Workbook

Sheet METADATA
A1: DESCRIPTION | B1: Dataset of compiled studies reporting changes in extent and/or density of seagrass sites in Europe, with time-windows from 1869 to 2016. Metadata and list of sources are given within the file.
A2: CREATOR | B2: Carmen B. de los Santos (cbsantos@ualg.pt)
A3: LAST MODIFICATION | B3: 2019-03-25
A6: COLUMN NAME | B6: TYPE | C6: UNITS | D6: DESCRIPTION
A8: DATA SHEET “sources”
A9: Source | B9: Character | C9: - | D9: Short description of the source, the one used in the data sheet “meadows”.
A10: Category | B10: Factor | D10: Category of the source: “book” (for book or book chapter), “dataset” (for unpublished dataset provided by a contributor), “journal” (scientific journal, not necessary “white”), “proceedings” (for book of abstracts of congresses, conferences and workshops), “report” (for scientific or technical reports), “thesis” (for PhD or MSc thesis).
A11: Year of Publication or Data Access | B11: Date [Year] | C11: - | D11: Year of publication of the source or year when dataset from a contributor was received.
A12: Web of Science | B12: Boolean | D12: Whether the source was retrieved from WoS or not.
A13: Included in Waycott et al. 2008 | B13: Boolean | D13: Whether the source is included in Waycott et al. 2008 or not.
A14: Title | B14: Character | C14: - | D14: Title of the document.
A15: Full reference | B15: Character | C15: - | D15: Full reference of the source.
A17: DATA SHEET “sites”
A18: SITE ID | B18: Numeric | C18: - | D18: Unique ID for a site (species-at-depth-at-location).
A19: SOURCE | B19: Character | C19: - | D19: Source of the data (see data-sheet “source” for full information).
A20: Included in Waycott et al. 2009 | B20: Boolean | C20: - | D20: Whether the study was included in Waycott et al. 2009 dataset or not.
A21: Site reference number in Waycott et al. 2009 | B21: Character | C21: - | D21: Site reference number in Waycott et al. 2009
A22: Updated since Waycott’s paper? (yes 1, no 0) | B22: Boolean | C22: - | D22: Updated since Waycott’s paper? (yes 1, no 0)
A23: SITE INFO
A24: SITE NAME | B24: Character | C24: - | D24: Name of the site. Not necessary in English. This may not be unique, since there can be more than one seagrass site in the same location (different species or depth).
A25: Latitude | B25: Numeric | C25: º | D25: Geographical latitude WGS84, in decimals, (+ for N, - for S).
A26: Longitude | B26: Numeric | C26: º | D26: Geographical longitude WGS84, in decimals, (+ for E, - for W).
A27: Accuracy coordinates | B27: Factor | C27: - | D27: “high” (from text/map in the source), “fair” (best guess from GoogleEarth based on the source), “bad” (best guess from GoogleEarth using site name).
A28: Region | B28: Factor | C28: - | D28: Big marine region: Mediterranean Sea, Baltic Sea, Atlantic Ocean.
A29: Regional sea | B29: Factor | C29: - | D29: Regional sea name according to European Environmental Agency.
A30: Country | B30: Factor | C30: - | D30: Name of the country, in English.
A31: SPECIES | B31: Factor | C31: - | D31: Main or dominant species assessed. Levels: "Po" (Posidonia oceanica), "Cn" (Cymodocea nodosa), "Zn" (Zostera noltii), "Zm" (Zostera marina).
A32: Secondary species | B32: Factor | C32: - | D32: Other seagrass species (only if included in the status assessment).
A33: Posidonia oceanica | B33: Boolean | C33: - | D33: Whether the main species of the meadow is Posidonia oceanica or not.
A34: Zostera marina | B34: Boolean | C34: - | D34: Whether the main species of the meadow is Zostera marina or not.
A35: Cymodocea nodosa | B35: Boolean | C35: - | D35: Whether the main species of the meadow is Cymodocea nodosa or not.
A36: Zostera noltei | B36: Boolean | C36: - | D36: Whether the main species of the meadow is Zostera noltei or not.
A37: TIDAL CATEGORY | B37: Factor | C37: - | D37: Tidal classification: subtidal or intertidal, as given in the source. Unknown if not available.
A38: Upper limit (m) | B38: Numeric | C38: m | D38: Shallow depth limit at the start of the observation (in m), given in the source. NA if not available.
A39: Lower limit (m) | B39: Numeric | C39: m | D39: Deep depth limit of the meadow at the start of the observation (in m), given in the source. NA if not available.
A40: Average depth (m) | B40: Numeric | C40: m | D40: Average or exact depth of the meadow (in m), given in the source.
A41: METRICS
A42: Time-point or only presence data | B42: Boolean | C42: - | D42: Whether this site is only based on time-point or presence data (1) or not (0).
A43: Time-series | B43: Boolean | C43: - | D43: Whether this site has (1) or not (0) a time-series associated in the “timeseries_raw” sheet.
A44: Included in decadal analysis | B44: Boolean | C44: - | D44: Whether at least one of the metrics assessed for this site is included (1) or not (0) in the decadal analysis.
A45: Only_presence | B45: Boolean | C45: - | D45: Whether this site has assessment(s) only for presence (1) or not (0).
A46: Only_extent | B46: Boolean | C46: - | D46: Whether this site has assessment(s) only for extent metrics (1) or not (0).
A47: Only_density | B47: Boolean | C47: - | D47: Whether this site has assessment(s) only for density metrics (1) or not (0).
A48: Both extent and density | B48: Boolean | D48: Whether this site has assessment(s) of both density and extent or not.
A49: PRESENCE | B49: Boolean
A50: Presence_timeseries | B50: Boolean | D50: Whether a time-series for presence exists (1) or not (0).
A51: Year0_presence | B51: Date [Year] | C51: - | D51: Year of the first observation for presence.
A52: Year1_presence | B52: Date [Year] | C52: - | D52: Year of the last observation for presence.
A53: Span_presence | B53: Numeric | C53: yr | D53: Observational time window for presence.
A54: Presence0 | B54: Boolean | C54: - | D54: 1 for presence of seagrasses in the first observation, 0 for absence.
A55: Presence1 | B55: Boolean | C55: - | D55: 1 for presence of seagrasses in the last observation, 0 for absence.
A56: Seagrass_site_gained | B56: Boolean | C56: - | D56: Whether the net change in presence is a seagrass (re)appearance (1) or not (0)
A57: Seagrass_site_lost | B57: Boolean | C57: - | D57: Whether the net change in presence is a seagrass disappearance (1) or not (0).
A58: Trajectory_PRESENCE | B58: Factor | C58: - | D58: Overall trajectory of the seagrasses in the site for the observational time window, 3 levels: “persistence”, “lost”, “gained”.
A59: “METRIC NAME” | B59: Boolean | C59: - | D59: 1 when assessed, 0 when not. Variable: “area” (area extension), “cover” (cover percentage), “udepth” (upper depth limit), “ldepth” (lower depth limit), “shoot” (shoot density), “biomass” (total biomass), “abiomass” (above-ground biomass).
A60: Metric_timeseries | B60: Boolean | C60: - | D60: Whether a time-series for that metric exists (1) or not (0).
A61: Area_decadal | B61: Boolean | C61: - | D61: Whether the time-series is included in the decadal analysis (1) or not (0).
A62: Year0_metric | B62: Date [Year] | C62: - | D62: Year of the first observation for that metric.
A63: Year1_metric | B63: Date [Year] | C63: - | D63: Year of the last observation for that metric.
A64: Span_metric | B64: Numeric | C64: yr | D64: Observational time window for that metric.
A65: Presence0_metric | B65: Boolean | C65: - | D65: 1 for presence of seagrasses in the first observation, 0 for absence.
A66: Presence1_metric | B66: Boolean | C66: - | D66: 1 for presence of seagrasses in the last observation, 0 for absence.
A67: Value0_metric | B67: Numeric | C67: unit | D67: Value of the metric assessed at the start of the time-series.
A68: Value1_metric | B68: Numeric | C68: unit | D68: Value of the metric assessed at the end of the time-series.
A69: MaxValue_metric | B69: Numeric | C69: unit | D69: Maximum value of the metric assessed registered during the time-series.
A70: N_observations_metric | B70: Numeric | C70: - | D70: Number of observations available in the observational time window.
A71: PerFinal_metric | B71: Numeric | C71: % | D71: Percentage of change during the observational time window, calculated as 100*Value1/Value0
A72: NetChange_metric | B72: Numeric | C72: unit yr-1 | D72: Net change in the value of the metric assessed = Value1 – Value0
A73: PerRate_metric | B73: Numeric | C73: % yr-1 | D73: Specific rate of change of the metric assessed for the time-series =100* Ln(Value1/Value0)/TimeSpan.
A74: Trajectory_METRIC | B74: Factor | C74: - | D74: Definition of the trajectory (“increase”, “decrease”, “no change”, “unknown”) for the metric assessed based on percentage of change (full explanation in the Materials and Methods).
A75: OVERALL TRAJECTORIES
A76: Overall_observation_start | B76: Date [Year] | C76: - | D76: Year of first observation, independently of the metric assessed.
A77: Overall_observation_end | B77: Date [Year] | C77: - | D77: Year of last observation, independently of the metric assessed.
A78: Overall_time_window | B78: Integer | C78: yr | D78: Observational time window in years, independently of the metric assessed.
A79: Mean_perc_final_DENSITY | B79: Numeric | C79: % | D79: Mean percentage of change for the assessed density metrics.
A80: N_metrics_DENSITY | B80: Integer | C80: - | D80: Number of density metrics assessed.
A81: Trajectory_DENSITY | B81: Factor | C81: - | D81: Trajectory for density: “increase”, “decrease”, “no change”, ”unknown”, based on the mean percentage of change.
A82: Mean_perc_final_LIMITS | B82: Numeric | C82: % | D82: Mean percentage of change for the assessed depth limits.
A83: N_metrics_LIMITS | B83: Integer | C83: - | D83: Number of metrics of depth limits assessed.
A84: Trajectory_LIMITS | B84: Factor | C84: - | D84: Trajectory for depth limit: “increase”, “decrease”, “no change”, ”unknown”, based on the mean percentage of change.
A85: Mean_perc_final_AREA | B85: Numeric | C85: % | D85: Percentage of change for area.
A86: N_metrics_AREA | B86: Integer | C86: - | D86: Number of metrics of area assessed.
A87: Trajectory_AREA | B87: Factor | C87: - | D87: Trajectory for area: “increase”, “decrease”, “no change”, “unknown”, based on the percentage of change.
A88: N_metrics_EXTENT | B88: Integer | C88: - | D88: Number of assessed metrics of extent.
A89: Trajectory_AREA_LIMITS | B89: Factor | C89: - | D89: Trajectory for area and depth limits.
A90: Trajectory_PRESENCE | B90: Factor | C90: - | D90: Trajectory for presence.
A91: Trajectory_EXTENT | B91: Factor | C91: - | D91: Trajectory for extent (combination of area, depth limits, and presence).
A92: Trajectory_GLOBAL | B92: Factor | C92: - | D92: Overall global trajectory (combination of extent and density trajectories).
A93: CAUSES ANALYSIS
A94: Multiple_causes | B94: Boolean | C94: - | D94: Whether there are multiples causes of change (1) or not (0).
A95: Both_decline_increase | B95: Boolean | C95: - | D95: Whether both causes of decline and gains are reported (1) or not (0).
A96: Report_decline | B96: Boolean | C96: - | D96: Whether any cause of decline is reported (1) or not (0).
A97: N_causes_decline | B97: Integer | C97: - | D97: Number of causes of decline reported according to the categories used.
A98: Report_decline_area | B98: Boolean | C98: - | D98: Whether it is known (1) or not (0) the area lost associated to the causes of decline.
A99: Decline_area | B99: Numeric | C99: ha | D99: The area lost associated to all the causes of change reported.
A100: Area_multiple | B100: Numeric | C100: ha | D100: The area lost associated only to multiple causes of change reported.
A101: Water_quality_degradation | B101: Boolean | C101: - | D101: Whether the cause given in the column name is reported as a cause of decline (1) or not (0) in the source.
A102: WQD_area | B102: Numeric | C102: ha | D102: Area lost due to water quality degradation.
A103: WQD_year0 | B103: Date [Year] | C103: - | D103: Year when the change in the seagrass extent or density was first observed, due to water quality degradation.
A104: WQD_year1 | B104: Date [Year] | C104: - | D104: Year when the change in the seagrass extent or density was last observed, due to water quality degradation.
A105: Urban_sewage | B105: Boolean | C105: - | D105: Whether the cause given in the column name is reported as a cause of decline (1) or not (0) in the source (subcategory).
A106: Eutrophication | B106: Boolean | C106: - | D106: Whether the cause given in the column name is reported as a cause of decline (1) or not (0) in the source (subcategory).
A107: Macroalgae_overgrowth_eutrophication | B107: Boolean | C107: - | D107: Whether the cause given in the column name is reported as a cause of decline (1) or not (0) in the source (subcategory).
A108: General_water_degradation | B108: Boolean | C108: - | D108: Whether the cause given in the column name is reported as a cause of decline (1) or not (0) in the source (subcategory).
A109: Fish_farming | B109: Boolean | C109: - | D109: Whether the cause given in the column name is reported as a cause of decline (1) or not (0) in the source (subcategory).
A110: Shellfish_farming | B110: Boolean | C110: - | D110: Whether the cause given in the column name is reported as a cause of decline (1) or not (0) in the source (subcategory).
A111: Industrial_pollution | B111: Boolean | C111: - | D111: Whether the cause given in the column name is reported as a cause of decline (1) or not (0) in the source (subcategory).
A112: Brine_sewage | B112: Boolean | C112: - | D112: Whether the cause given in the column name is reported as a cause of decline (1) or not (0) in the source (subcategory).
A113: Marina_sewage | B113: Boolean | C113: - | D113: Whether the cause given in the column name is reported as a cause of decline (1) or not (0) in the source (subcategory).
A114: General_pollution | B114: Boolean | C114: - | D114: Whether the cause given in the column name is reported as a cause of decline (1) or not (0) in the source (subcategory).
A115: Coastal_modification | B115: Boolean | C115: - | D115: Whether the cause given in the column name is reported as a cause of decline (1) or not (0) in the source.
A116: CD_area | B116: Numeric | C116: ha | D116: Area lost due to coastal modification.
A117: CD_year0 | B117: Date [Year] | C117: - | D117: Year when the change in the seagrass extent or density was first observed, due to coastal modification.
A118: CD_year1 | B118: Date [Year] | C118: - | D118: Year when the change in the seagrass extent or density was last observed, due to coastal modification.
A119: Harbour_construction | B119: Boolean | C119: - | D119: Whether the cause given in the column name is reported as a cause of decline (1) or not (0) in the source (subcategory).
A120: Beach_filling | B120: Boolean | C120: - | D120: Whether the cause given in the column name is reported as a cause of decline (1) or not (0) in the source (subcategory).
A121: Dredging | B121: Boolean | C121: - | D121: Whether the cause given in the column name is reported as a cause of decline (1) or not (0) in the source (subcategory).
A122: Land_reclamation | B122: Boolean | C122: - | D122: Whether the cause given in the column name is reported as a cause of decline (1) or not (0) in the source (subcategory).
A123: Pipeline_construction | B123: Boolean | C123: - | D123: Whether the cause given in the column name is reported as a cause of decline (1) or not (0) in the source (subcategory).
A124: River_diversion | B124: Boolean | C124: - | D124: Whether the cause given in the column name is reported as a cause of decline (1) or not (0) in the source (subcategory).
A125: Breakwater_construction | B125: Boolean | C125: - | D125: Whether the cause given in the column name is reported as a cause of decline (1) or not (0) in the source (subcategory).
A126: Dam_constructions | B126: Boolean | C126: - | D126: Whether the cause given in the column name is reported as a cause of decline (1) or not (0) in the source (subcategory).
A127: Storm_drains | B127: Boolean | C127: - | D127: Whether the cause given in the column name is reported as a cause of decline (1) or not (0) in the source (subcategory).
A128: Relocation_inlet | B128: Boolean | C128: - | D128: Whether the cause given in the column name is reported as a cause of decline (1) or not (0) in the source (subcategory).
A129: Other_coastal_works | B129: Boolean | C129: - | D129: Whether the cause given in the column name is reported as a cause of decline (1) or not (0) in the source (subcategory).
A130: Extreme_events | B130: Boolean | C130: - | D130: Whether the cause given in the column name is reported as a cause of decline (1) or not (0) in the source.
A131: EE_area | B131: Numeric | C131: ha | D131: Area lost due to extreme events.
A132: EE_year0 | B132: Date [Year] | C132: - | D132: Year when the change in the seagrass extent or density was first observed, due to extreme events.
A133: EE_year1 | B133: Date [Year] | C133: - | D133: Year when the change in the seagrass extent or density was last observed, due to extreme events.
A134: Heat_waves | B134: Boolean | C134: - | D134: Whether the cause given in the column name is reported as a cause of decline (1) or not (0) in the source (subcategory).
A135: Forest_fires | B135: Boolean | C135: - | D135: Whether the cause given in the column name is reported as a cause of decline (1) or not (0) in the source (subcategory).
A136: Storms_rainfalls | B136: Boolean | C136: - | D136: Whether the cause given in the column name is reported as a cause of decline (1) or not (0) in the source (subcategory).
A137: Floods | B137: Boolean | C137: - | D137: Whether the cause given in the column name is reported as a cause of decline (1) or not (0) in the source (subcategory).
A138: Mechanical_damage | B138: Boolean | C138: - | D138: Whether the cause given in the column name is reported as a cause of decline (1) or not (0) in the source.
A139: MD_area | B139: Numeric | C139: ha | D139: Area lost due to mechanical damage.
A140: MD_year0 | B140: Date [Year] | C140: - | D140: Year when the change in the seagrass extent or density was first observed, due to mechanical damage.
A141: MD_year1 | B141: Date [Year] | C141: - | D141: Year when the change in the seagrass extent or density was last observed, due to mechanical damage.
A142: Bottom_trawling | B142: Boolean | C142: - | D142: Whether the cause given in the column name is reported as a cause of decline (1) or not (0) in the source (subcategory).
A143: Anchoring_mooring | B143: Boolean | C143: - | D143: Whether the cause given in the column name is reported as a cause of decline (1) or not (0) in the source (subcategory).
A144: Explosive | B144: Boolean | C144: - | D144: Whether the cause given in the column name is reported as a cause of decline (1) or not (0) in the source (subcategory).
A145: Harvesting | B145: Boolean | C145: - | D145: Whether the cause given in the column name is reported as a cause of decline (1) or not (0) in the source (subcategory).
A146: Clam_digging | B146: Boolean | C146: - | D146: Whether the cause given in the column name is reported as a cause of decline (1) or not (0) in the source (subcategory).
A147: Culture_farm_occupation | B147: Boolean | C147: - | D147: Whether the cause given in the column name is reported as a cause of decline (1) or not (0) in the source (subcategory).
A148: Bait_collection | B148: Boolean | C148: - | D148: Whether the cause given in the column name is reported as a cause of decline (1) or not (0) in the source (subcategory).
A149: Other_local_human_activities | B149: Boolean | C149: - | D149: Whether the cause given in the column name is reported as a cause of decline (1) or not (0) in the source (subcategory).
A150: Overgrazing | B150: Boolean | C150: - | D150: Whether the cause given in the column name is reported as a cause of decline (1) or not (0) in the source.
A151: OG_area | B151: Numeric | C151: ha | D151: Area lost due to overgrazing.
A152: OG_year0 | B152: Date [Year] | C152: - | D152: Year when the change in the seagrass extent or density was first observed, due to overgrazing.
A153: OG_year1 | B153: Date [Year] | C153: - | D153: Year when the change in the seagrass extent or density was last observed, due to overgrazing.
A154: Overgrazing_others | B154: Boolean | C154: - | D154: Whether the cause given in the column name is reported as a cause of decline (1) or not (0) in the source (subcategory).
A155: Overgrazing_sea_urchins | B155: Boolean | C155: - | D155: Whether the cause given in the column name is reported as a cause of decline (1) or not (0) in the source (subcategory).
A156: Overgrazing_waterfowl | B156: Boolean | C156: - | D156: Whether the cause given in the column name is reported as a cause of decline (1) or not (0) in the source (subcategory).
A157: Wasting_disease | B157: Boolean | C157: - | D157: Whether the cause given in the column name is reported as a cause of decline (1) or not (0) in the source.
A158: WD_area | B158: Numeric | C158: ha | D158: Area lost due to wasting disease.
A159: WD_year0 | B159: Date [Year] | C159: - | D159: Year when the change in the seagrass extent or density was first observed, due to wasting disease.
A160: WD_year1 | B160: Date [Year] | C160: - | D160: Year when the change in the seagrass extent or density was last observed, due to wasting disease.
A161: Nonnative_macroalgae_invasion | B161: Boolean | C161: - | D161: Whether the cause given in the column name is reported as a cause of decline (1) or not (0) in the source.
A162: MI_area | B162: Numeric | C162: ha | D162: Area lost due to algae invasion.
A163: MI_year0 | B163: Date [Year] | C163: - | D163: Year when the change in the seagrass extent or density was first observed, due to algae invasion.
A164: MI_year1 | B164: Date [Year] | C164: - | D164: Year when the change in the seagrass extent or density was last observed, due to algae invasion.
A165: Report_increase | B165: Boolean | C165: - | D165: Whether any cause of increase is reported (1) or not (0).
A166: N_causes_increase | B166: Integer | C166: - | D166: Number of causes of increase reported according to the categories used.
A167: Report_increase_area | B167: Boolean | C167: - | D167: Whether it is known (1) or not (0) the area gained associated to the causes of increase.
A168: Increase_area | B168: Numeric | C168: ha | D168: The area gained associated to all the causes of change reported.
A169: Management_interventions | B169: Boolean | C169: - | D169: Whether the cause given in the column name is reported as a cause of increase (1) or not (0) in the source.
A170: MI_area | B170: Numeric | C170: ha | D170: Area gained due to management interventions.
A171: MI_year0 | B171: Date [Year] | C171: - | D171: Year when the change in the seagrass extent or density was first observed, due to management interventions.
A172: MI_year1 | B172: Date [Year] | C172: - | D172: Year when the change in the seagrass extent or density was last observed, due to management interventions.
A173: Reduction_industrial_pollution | B173: Boolean | C173: - | D173: Whether the cause given in the column name is reported as a cause of increase (1) or not (0) in the source (subcategory).
A174: Improvement_water_quality | B174: Boolean | C174: - | D174: Whether the cause given in the column name is reported as a cause of increase (1) or not (0) in the source (subcategory).
A175: Regulation_trawling | B175: Boolean | C175: - | D175: Whether the cause given in the column name is reported as a cause of increase (1) or not (0) in the source (subcategory).
A176: Regulation_anchoring | B176: Boolean | C176: - | D176: Whether the cause given in the column name is reported as a cause of increase (1) or not (0) in the source (subcategory).
A177: Other_management_actions | B177: Boolean | C177: - | D177: Whether the cause given in the column name is reported as a cause of increase (1) or not (0) in the source (subcategory).
A178: Natural_recovery_colonisation | B178: Boolean | C178: - | D178: Whether the cause given in the column name is reported as a cause of increase (1) or not (0) in the source.
A179: NR_area | B179: Numeric | C179: ha | D179: Area gained due to management interventions.
A180: NR_year0 | B180: Date [Year] | C180: - | D180: Year when the change in the seagrass extent or density was first observed, due to natural recovery or colonisation.
A181: NR_year1 | B181: Date [Year] | C181: - | D181: Year when the change in the seagrass extent or density was last observed, due to natural recovery or colonisation.
A183: DATA SHEET “timeseries_raw” | D183: Contains the time-series nested, by the column “SITE ID”, to data sheet “sites”.
A184: SITE ID | B184: Integer | D184: Unique ID for a seagrass site (same as given in data sheet “sites”).
A185: AssessmentID | B185: Character | C185: - | D185: Name of the assessment (site D + metric assessed).
A186: Species | B186: Factor | C186: - | D186: Main or dominant species assessed. Levels: "Po" (Posidonia oceanica), "Cn" (Cymodocea nodosa), "Zn" (Zostera noltii), "Zm" (Zostera marina).
A187: Decade | B187: Date [decade] | C187: - | D187: Decade of the observation.
A188: Year | B188: Date [Year] | C188: - | D188: Year of the observation. When the year is reported in the source as e.g. “1967/1968” for an observation, the first year was taken.
A189: Presence | B189: Boolean | C189: - | D189: Whether seagrasses were present (1) or absence (0) in that year.
A190: Metric | B190: Factor | C190: - | D190: Metric assessed: “area” (area extension), “cover” (cover percentage), “udepth” (upper depth limit), “ldepth” (lower depth limit), “density” (shoot density), “biomass” (total biomass), “abiomass” (above-ground biomass).
A191: Metric group | B191: Factor | C191: - | D191: Group of metrics: “extent” for area and depth limits, and “density” for cover, shoot density and biomass.
A192: Value | B192: Numeric | C192: See column units | D192: Value of the metric recorded in that year.
A193: Error | B193: Numeric | C193: See column units | D193: Standard deviation, if available, when the value is reported as a mean.
A194: SampleSize | B194: Integer | C194: - | D194: Number of observations, if available, when the value is reported as a mean.
A195: Units | B195: Character | C195: - | D195: Units of the metric. Units have been standardised for each metric.
A197: DATA SHEET “timeseries_decadal” | D197: Contains the time-series nested, by the column “SITE ID”, to data sheet “sites”, that have been used in the decadal analysis. Include the interpolations for the metrics at the decade boundaries.
A198: SITE ID | B198: Integer | D198: Unique ID for a seagrass site (same as given in data sheet “sites”).
A199: Assessment ID | B199: Character | C199: - | D199: Name of the assessment (site D + metric assessed).
A200: Species | B200: Factor | C200: - | D200: Main or dominant species assessed. Levels: "Po" (Posidonia oceanica), "Cn" (Cymodocea nodosa), "Zn" (Zostera noltii), "Zm" (Zostera marina).
A201: Metric | B201: Factor | C201: - | D201: Metric assessed: “area” (area extension), “cover” (cover percentage), “udepth” (upper depth limit), “ldepth” (lower depth limit), “density” (shoot density), “biomass” (total biomass), “abiomass” (above-ground biomass).
A202: Metric group | B202: Factor | C202: - | D202: Group of metrics: “extent” for area and depth limits, and “density” for cover, shoot density and biomass.
A203: Year start | B203: Date [Year] | C203: - | D203: Year of the first observation in that decade.
A204: Year end | B204: Date [Year] | C204: - | D204: Year of the last observation in that decade.
A205: Span | B205: Numeric | C205: years | D205: Observational time window (year end – year start).
A206: Decade | B206: Date [decade] | C206: - | D206: Decade of the observation.
... 9 more rows

Sheet sources
A1: Source | B1: Category | C1: Year of Publication or Data Access | D1: Web of Science | E1: Included in Waycott et al. 2008 | F1: Title | G1: Full reference
A2: Alami et al. 2014 | B2: proceedings | C2: 2014 | D2: 0 | E2: 0 | F2: Assessment and quantification of the anthropic impact on the Posidonia oceanica seagrass meadow. | G2: Alami, S., Bonacorsi, M., Clabaut, P., Jouet, G., Pergent-Martini, C., Pergent, G., & Sterckeman, A. (2015). Assessment and quantification of the anthropic impact on the posidonia oceanica seagrass meadow. In: Langar, H., Bouafif, C., & Ouerghi, A. (Eds.), Proceedings of the 5th Mediterranean Symposium on Marine Vegetation (Portorož, Slovenia, 27-28 October 2014) (pp. 34-39). Tunis: United Nations Envionment Programme, Mediterranean Action Plan, Regional Activity Center for Specially Protected Areas (RAC/SPA).
A3: Aliani et al. 1998 | B3: article | C3: 1998 | D3: 0 | E3: 0 | F3: A map of seagrass meadows in Pelaeochori Bay (Milos Island, Greece), a marine area with hydrothermal activity. | G3: Aliani, S., Bianchi, C. N., Cocito, S., Dando, P. R., Meloni, R., Morri, C., ... & Ziebis, W. (1998). A map of seagrass meadows in Palaeochori Bay (Milos Island, Greece), a marine area with hydrothermal activity. Rapports et Proces-Verbaux des Réunions de la Commission Internationale pour l’Exploration Scientifique de la Mer Méditerranée, 35(2), 512-513.
A4: Álvarez-Díaz and González-Fernández 1985 | B4: article | C4: 1985 | D4: 0 | E4: 0 | F4: Vegetación de estuarios gallegos. Marisma de Miño. Ria de Ares (La Coruña). | G4: Díaz, R. A., & Fernández, E. G. (1985). Vegetación de estuarios gallegos. Marisma de Miño. Ría de Ares (La Coruña). Stvdia botanica, (4), 49-56.
A5: Aragonés et al. 2015 | B5: article | C5: 2015 | D5: 1 | E5: 0 | F5: Beach nourishment impact on Posidonia oceanica: Case study of Poniente Beach (Benidorm, Spain). | G5: Aragones, L., Garcia-Barba, J., García-Bleda, E., Lopez, I., & Serra, J. C. (2015). Beach nourishment impact on Posidonia oceanica: case study of Poniente Beach (Benidorm, Spain). Ocean Engineering, 107, 1-12.
A6: Araújo et al. 2012 | B6: proceedings | C6: 2012 | D6: 0 | E6: 0 | F6: Seagrass meadow of Cymodocea nodosa at south coast of Madeira Island – a priority habitat in the EU Habitat Directive. | G6: Araújo, R., Maranhão, M., Gonçalves-Silva, J. J., & Kaufmann, M. (2012). Seagrass meadow of Cymodocea nodosa at south coast of Madeira Island – a priority habitat in the EU Habitat Directive. In: Menezes de Sequeira, M. (Ed.), Scientific program - Abstract Book – Excursion guide - of the International Symposium FloraMac 2012 (Funchal, Portugal. September 2012) (pp. 91). Funchal, Portugal.
A7: Arconada et al. 2013 | B7: article | C7: 2013 | D7: 1 | E7: 0 | F7: Minimizing environmental risks on constructing marine pipelines: Aguilas desalination plant. | G7: Arconada, B., Delgado, P., & García, Á. (2013). Minimizing environmental risks on constructing marine pipelines: Aguilas desalination plant. Desalination and Water Treatment, 51(1-3), 246-261.
A8: Ardizzone et al. 2006 | B8: article | C8: 2006 | D8: 1 | E8: 0 | F8: Long-term change in the structure of a Posidonia oceanica landscape and its reference for a monitoring plan. | G8: Ardizzone, G., Belluscio, A., & Maiorano, L. (2006). Long‐term change in the structure of a Posidonia oceanica landscape and its reference for a monitoring plan. Marine Ecology, 27(4), 299-309.
A9: Argyrou et al. 1999 | B9: article | C9: 1999 | D9: 1 | E9: 0 | F9: Expansion of the macroalga Caulerpa racemosa and changes in softbottom macrofaunal assemblages in Moni Bay, Cyprus. | G9: Argyrou, M., Demetropoulos, A., & Hadjichristophorou, M. (1999). Expansion of the macroalga Caulerpa racemosa and changes in softbottom macrofaunal assemblages in Moni Bay, Cyprus. Oceanologica Acta, 22(5), 517-528.
A10: Arroyo et al. 2015 | B10: book | C10: 2015 | D10: 0 | E10: 0 | F10: Atlas de las Praderas Marinas de España. Andalucía. | G10: Arroyo, M. C., Barrajón, A., Brun, F. G., del Castillo, F., De la Rosa, J., Díaz-Almela, E., Fernández-Casado, M., Hernández, I., Moreno, D., Pérez-Lloréns, J. L., Otero, M. M., Remón, J. M., Vergara, J. J., Vivas, M. S. (2015). Andalucía In: Ruiz, J. M., Guillén, E., Ramos-Segura, A., Otero, M. M. (Eds.), Atlas de las praderas marinas de España (pp. 313-397). Murcia-Alicante-Málaga: Instituto Español de Oceanografía, Instituto de Ecología Litoral, International Union for Conservation of Nature.
A11: Astier 1972 | B11: article | C11: 1972 | D11: 0 | E11: 0 | F11: Régression de l'herbier de posidonies en rade des Vignettes à Toulon. | G11: Astier, J. M. (1972). Régression de l'herbier de posidonies en rade des Vignettes à Toulon. Annales de la Societé des Sciences Naturelles et d’Archéologie de Toulon et du Var, 24, 97-103.
A12: Astier 1975 | B12: article | C12: 1975 | D12: 0 | E12: 0 | F12: Cartographie des fonds marins de la région de Toulon par le groupe ECOMAIR. | G12: Astier, J. M. (1975). Cartographie des fonds marins de la région de Toulon par le groupe ECOMAIR. Annales de la Societé des Sciences Naturelles et d’Archéologie de Toulon et du Var 27, 120-132.
A13: Astier 1984 | B13: proceedings | C13: 1984 | D13: 0 | E13: 0 | F13: Impacts des aménagements littoraux de la rade de Toulon, liés au techniques d'endigage, sur les herbiers à Posidonia oceanica. | G13: Astier, J. M. (1984). Impact des aménagements littoraux de la rade de Toulon, liés aux techniques d'endigage, sur les herbiers à Posidonia oceanica. In: Boudouresque, C. F., de Grissac, A. J., & Olivier, J. (Eds.), First International Workshop on Posidonia oceanica beds (pp. 255-259). Marseille, France: GIS Posidonie.
A14: Astruch et al. 2012 | B14: article | C14: 2012 | D14: 0 | E14: 0 | F14: Mapping and state of conservation of benthic marine habitats and assemblages of Port-Cros national Park (Provence, France, northwestern Mediterranean Sea). | G14: Astruch, P., Boudouresque, C. F., Bonhomme, D., Goujard, A., Antonioli, P. A., Bonhomme, P., Perez, T., Ruitton, S., de Sanint-Martin, T., & Verlaque, M. (2012). Mapping and state of conservation of benthic marine habitats and assemblages of Port-Cros national Park (Provence, France, northwestern Mediterranean Sea). Scientific Reports of Port-Cros National Park, 26, 45-90.
A15: Auby et al. 2010 | B15: report | C15: 2010 | D15: 0 | E15: 0 | F15: Angiospermes des côtes françaises Manche-Atlantique Propositions pour un indicateur DCE et premières estimations de la qualité. | G15: Auby, I., Oger-Jeanneret, H., Sauriau, P. G., Hily, C., & Barille, L. (2010). Angiospermes des côtes françaises Manche-Atlantique. Propositions pour un indicateur DCE et premières estimations de la qualité.
A16: Augier and Boudouresque 1970 | B16: article | C16: 1970 | D16: 0 | E16: 0 | F16: Végétaton marine de l'ile de Port-Cros. V. La baie de port-man et le problème de la régression de l'herbier de posidonies. | G16: Augier, H., & Boudouresque, C. F. (1970). Végétation marine de l’île de Port-Cros (Parc national). V. La baie de Port-Man et le problème de la régression de l’herbier de Posidonies. Bulletin du Muséum d'Histoire Naturelle de Marseille, 30, 145-164.
A17: Augier and Boudouresque 1975 | B17: article | C17: 1975 | D17: 0 | E17: 0 | F17: Dix ans de recherches dans la zone marine du Parc National de Port-Cros (France). Toisième partie. | G17: Augier, H., & Boudouresque, C. F. (1975). Dix ans de recherches dans la zone marine du Parc national de Port-Cros (France). Troisième partie. Annales de la Societé des Sciences Naturelles et d’Archéologie de Toulon et du Var, 27, 133-170.
A18: Azevedo et al. 2013 | B18: article | C18: 2013 | D18: 1 | E18: 0 | F18: Application of the generic DPSIR framework to seagrass communities of Ria de Aveiro: a better understanding of this coastal lagoon. | G18: Azevedo, A., Sousa, A. I., Lencart e Silva, J. D., Dias, J. M., & Lillebø, A. I. (2013). Application of the generic DPSIR framework to seagrass communities of Ria de Aveiro: a better understanding of this coastal lagoon. Journal of Coastal Research, 65(sp1), 19-24.
A19: Badalamenti et al. 2006 | B19: article | C19: 2006 | D19: 1 | E19: 0 | F19: Effects of dredging activities on population dynamics of Posidonia oceanica (L.) Delile in the Mediterranean sea: the case study of Capo Feto (SW Sicily, Italy). | G19: Badalamenti, F., Di Carlo, G., D’Anna, G., Gristina, M., & Toccaceli, M. (2006). Effects of dredging activities on population dynamics of Posidonia oceanica (L.) Delile in the Mediterranean sea: the case study of Capo Feto (SW Sicily, Italy). Hydrobiologia, 555, 253-261.
A20: Badalamenti et al. 2011 | B20: article | C20: 2011 | D20: 1 | E20: 0 | F20: The impact of dredge-fill on Posidonia oceanica seagrass meadows: Regression and patterns of recovery. | G20: Badalamenti, F., Alagna, A., D’Anna, G., Terlizzi, A., & Di Carlo, G. (2011). The impact of dredge-fill on Posidonia oceanica seagrass meadows: Regression and patterns of recovery. Marine Pollution Bulletin, 62(3), 483-489.
A21: Baden et al. 2003 | B21: article | C21: 2003 | D21: 1 | E21: 1 | F21: Vanishing Seagrass (Zostera marina, L.) in Swedish Coastal Waters. | G21: Baden, S., Gullström, M., Lundén, B., Pihl, L., & Rosenberg, R. (2003). Vanishing seagrass (Zostera marina, L.) in Swedish coastal waters. AMBIO: a Journal of the Human Environment, 32(5), 374-377.
A22: Balduzzi et al. 1984 | B22: proceedings | C22: 1984 | D22: 0 | E22: 0 | F22: Valutazione dello stato di alcune praterie di Posidonia del mare Ligure sottoposte a diverse condizioni di inquinamento. | G22: Balduzzi, A., Bavestrello, G., Belloni, S., Boero, F., Cattaneo-Vietti, R., Pansini, M., & Pronzato, R. (1984). Valutazione dello stato di alcune praterie di Posidonia del ma re Ligure sottoposte a diverse condizioni di inquinamento. In: Boudouresque, C. F., de Grissac, A. J., & Olivier, J. (Eds.), First International Workshop on Posidonia oceanica beds (pp. 73-78). Marseille, France: GIS Posidonie.
A23: Balestri et al. 2004 | B23: article | C23: 2004 | D23: 1 | E23: 0 | F23: Variability in patterns of growth and morphology of Posidonia oceanica exposed to urban and industrial wastes: contrasts with two reference locations. | G23: Balestri, E., Benedetti-Cecchi, L., & Lardicci, C. (2004). Variability in patterns of growth and morphology of Posidonia oceanica exposed to urban and industrial wastes: contrasts with two reference locations. Journal of Experimental Marine Biology and Ecology, 308(1), 1-21.
A24: Ballesta et al. 2000 | B24: article | C24: 2000 | D24: 1 | E24: 0 | F24: Distribution and dynamics of Posidonia oceanica beds along the Albères coastline. | G24: Ballesta, L., Pergent, G., Pasqualini, V., & Pergent-Martini, C. (2000). Distribution and dynamics of Posidonia oceanica beds along the Albères coastline. Comptes Rendus de l'Académie des Sciences-Series III-Sciences de la Vie, 323(4), 407-414.
A25: Ballesteros et al. 2007 | B25: article | C25: 2007 | D25: 1 | E25: 0 | F25: Mortality of shoots of Posidonia oceanica following meadow invasion by the red alga Lophocladia lallemandii. | G25: Ballesteros, E., Cebrian, E., & Alcoverro, T. (2007). Mortality of shoots of Posidonia oceanica following meadow invasion by the red alga Lophocladia lallemandii. Botanica Marina, 50(1), 8-13.
A26: Barillé et al. 2010 | B26: article | C26: 2010 | D26: 1 | E26: 0 | F26: Increase in seagrass distribution at Bourgneuf Bay (France) detected by spatial remote sensing. | G26: Barillé, L., Robin, M., Harin, N., Bargain, A., & Launeau, P. (2010). Increase in seagrass distribution at Bourgneuf Bay (France) detected by spatial remote sensing. Aquatic Botany, 92(3), 185-194.
A27: Barsanti et al. 2007 | B27: article | C27: 2007 | D27: 1 | E27: 0 | F27: Measuring change of Mediterranean coastal biodiversity: diachronic mapping of the meadow of the seagrass Cymodocea nodosa (Ucria) Ascherson in the Gulf of Tigullio (Ligurian Sea, NW Mediterranean). | G27: Barsanti, M., Delbono, I., Ferretti, O., Peirano, A., Bianchi, C. N., & Morri, C. (2007). Measuring change of Mediterranean coastal biodiversity: diachronic mapping of the meadow of the seagrass Cymodocea nodosa (Ucria) Ascherson in the Gulf of Tigullio (Ligurian Sea, NW Mediterranean). Hydrobiologia, 580(1), 35-41.
A28: Bartsch and Tittley 2004 | B28: article | C28: 2004 | D28: 1 | E28: 0 | F28: The rocky intertidal biotopes of Helgoland: present and past. | G28: Bartsch, I., & Tittley, I. (2004). The rocky intertidal biotopes of Helgoland: present and past. Helgoland Marine Research, 58(4), 289.
A29: Beqiraj et al. 2008 | B29: article | C29: 2008 | D29: 0 | E29: 0 | F29: Benthic macrofauna of Posidonia oceanica meadows in the Albanian coast. | G29: Beqiraj, S., Kashta, L., Kuci, M., Kasemi, D., Mato, X., & Gace, A. (2008). Benthic macrofauna of Posidonia oceanica meadows in the Albanian coast. Natura Montenegrina, 7(2), 55-69.
A30: Bernard et al. 2005 | B30: article | C30: 2005 | D30: 1 | E30: 0 | F30: Recovery of the seagrass Zostera marina in a disturbed Mediterranean lagoon (Etang de Berre, Bouches-du-Rhône, Southern France). | G30: Bernard, G., Bonhomme, P., & Boudouresque, C. F. (2005). Recovery of the seagrass Zostera marina in a disturbed Mediterranean lagoon (Etang de Berre, Bouches-du-Rhône, Southern France). Hydrobiologia, 539(1), 157-161.
A31: Bernard et al. 2007 | B31: article | C31: 2007 | D31: 1 | E31: 0 | F31: Long term changes in Zostera meadows in the Berre lagoon (Provence, Mediterranean Sea). | G31: Bernard, G., Boudouresque, C. F., & Picon, P. (2007). Long term changes in Zostera meadows in the Berre lagoon (Provence, Mediterranean Sea). Estuarine, Coastal and Shelf Science, 73(3), 617-629.
A32: Bertelli et al. 2017 | B32: article | C32: 2017 | D32: 1 | E32: 0 | F32: Finding some seagrass optimism in Wales, the case of Zostera noltii. | G32: Bertelli, C. M., Robinson, M. T., Mendzil, A. F., Pratt, L. R., & Unsworth, R. K. (2017). Finding some seagrass optimism in Wales, the case of Zostera noltii. Marine Pollution Bulletin. In press.
A33: Bianchi and Peirano 1995 | B33: book | C33: 1995 | D33: 0 | E33: 0 | F33: Atlante delle fanerogame marine della Liguria: Posidonia oceanica e Cymodocea nodosa. | G33: Bianchi, C. N., & Peirano, A. (1995). Atlante delle fanerogame marine della Liguria: Posidonia oceanica e Cymodocea nodosa. La Spieza: ENEA, Centro Ricerche Ambiente Marino.
A34: Bianchi and Sandulli 1992 | B34: report | C34: 1992 | D34: 0 | E34: 0 | F34: Resoconto del sopraluogo effettuato sui fondali antistanti Noli (SV). | G34: Bianchi, C.N., Sandulli, R. (1992). Resoconto del sopraluogo effettuato sui fondali antistanti Noli (SV). Teresa, La Spezia and Castalia, Genova: ENEA-Centro Ricerche Ambiente Marino S. Teresa.
A35: Bianchi et al. 2009 | B35: report | C35: 2009 | D35: 0 | E35: 0 | F35: Monitoraggio delle praterie di Posidonia oceanica dell’Area Marina Protetta “Isola di Bergeggi”. | G35: Bianchi C.N., Montefalcone M., Morri C., 2009. Monitoraggio delle praterie di Posidonia oceanica dell’Area Marina Protetta “Isola di Bergeggi”. Relazione Finale, Contratto di Ricerca Ente Gestore Area Marina Protetta Isola di Bergeggi-DipTeRis. Università di Genova.
A36: Bianchi et al. 2014 | B36: article | C36: 2014 | D36: 1 | E36: 0 | F36: Thirty years after: dramatic change in the coastal marine ecosystems of Kos Island (Greece), 1981-2013. | G36: Bianchi, C. N., Corsini-Foka, M., Morri, C., & Zenetos, A. (2014). Thirty years after-dramatic change in the coastal marine habitats of Kos Island (Greece), 1981-2013. Mediterranean Marine Science, 15(3), 482-497.
A37: Bonacorsi et al. 2013 | B37: article | C37: 2013 | D37: 1 | E37: 0 | F37: Is Posidonia oceanica regression a general feature in the Mediterranean Sea? | G37: Bonacorsi, M., Pergent-Martini, C., Breand, N., & Pergent, G. (2013). Is Posidonia oceanica regression a general feature in the Mediterranean Sea? Mediterranean Marine Science, 14(1), 193-203.
A38: Bonhomme et al. 2010 | B38: article | C38: 2010 | D38: 0 | E38: 0 | F38: Decline of the Posidonia oceanica seagrass meadow at its lower limit in a pristine Mediterranean locality. | G38: Bonhomme, P., Bonhomme, D., Boudouresque, C. F., Cadiou, G., Charbonnel, E., & Ruitton, S. (2010). Decline of the Posidonia oceanica seagrass meadow at its lower limit in a pristine Mediterranean locality. Rapports et Proces-Verbaux des Réunions de la Commission Internationale pour l’Exploration Scientifique de la Mer Méditerranée, 39, 457.
A39: Boström et al. 2002 | B39: article | C39: 2002 | D39: 1 | E39: 0 | F39: Long-term Changes of a Brackish-water Eelgrass (Zostera marina L.) Community Indicate Effects of Coastal Eutrophication. | G39: Boström, C., Bonsdorff, E., Kangas, P., & Norkko, A. (2002). Long-term changes of a brackish-water eelgrass (Zostera marina L.) community indicate effects of coastal eutrophication. Estuarine, Coastal and Shelf Science, 55(5), 795-804.
A40: Boström et al. 2003 | B40: book | C40: 2003 | D40: 0 | E40: 1 | F40: The seagrasses of Scandinavia and the Baltic Sea. | G40: Bostrom, C., Baden, S. P., & Krause-Jensen, D. (2003). The seagrasses of Scandinavia and the Baltic Sea In: Green, E. P., Short, F. T. (Eds.), World Atlas of seagrasses (pp. 27-37). Berkeley.
A41: Boudouresque et al. 2000 | B41: article | C41: 2000 | D41: 0 | E41: 0 | F41: A monitoring network based on the seagrass Posidonia oceanica in the northwestern Mediterranean sea. | G41: Boudouresque, C. F., Charbonel, E., Meinesz, A., Pergent, G., Pergent-Martini, C., Cadiou, G., Bertrandy, M. C., Foret, P., Ragazzo, M., & Rico-Raimondino, V. (2000). A monitoring network based on the seagrass Posidonia oceanica in the northwestern Mediterranean Sea. Biologia Marina Mediterranea, 7(2), 328-331.
A42: Boudouresque et al. 2006 | B42: book | C42: 2006 | D42: 0 | E42: 1 | F42: Préservation et conservation des herbiers á Posidonia oceanica. | G42: Boudouresque, C. F., Bernard, G., Bonhomme, P., Charbonnel, E., Diviacco, G., Meinesz, A., ... & Tunesi, L. (2006). Préservation et conservation des herbiers à Posidonia oceanica. Ramoge.
A43: Bourcier 1982 | B43: article | C43: 1982 | D43: 0 | E43: 0 | F43: Evolution au cours des quinze dernieres annees, des biocoenoses benthiques et de leurs facies dans une baie mediterraneenne soumise a l'action lointaine de deux emissaires urbains. | G43: Bourcier, M. (1982). Evolution au cours des quinze dernières années des biocoenoses benthiques et de leurs faciès dans une baie méditerranéenne soumise à l’action lointaine de deux émissaires urbains. Tethys, 10(4), 303-313.
A44: Bourcier 1989 | B44: proceedings | C44: 1989 | D44: 0 | E44: 0 | F44: Regression des herbiers à Posidonia oceanica (L.) Delile, à L'est de Marseille, sous l'action conjuguée des activités humaines et des modifications climatiques. | G44: Bourcier, M. (1989). Regression des herbiers à Posidonia oceanica (L.) Delile, à L'est de Marseille, sous l'action conjuguée des activités humaines et des modifications climatiques. In: Boudouresque, C. F., Meinesz, A., Fresi, E., & Gravez, V. (Eds.), Second International Workshop on Posidonia oceanica beds (pp. ). Marseille, France: GIS Posidonie.
A45: Bourcier 1996 | B45: article | C45: 1996 | D45: 0 | E45: 0 | F45: Long-term changes (1954 to 1982) in the benthic macrofauna under the combined effects of anthropogenic and climatic action (example of one Mediterranean Bay). | G45: Bourcier, M. (1996). Long-term changes (1954 to 1982) in the benthic macrofauna under the combined effects of anthropogenic and climatic action (example of one Mediterranean Bay). Oceanologica Acta, 19(1), 67-78.
A46: Braster and Carrière 1976 | B46: report | C46: 1976 | D46: 0 | E46: 0 | F46: Een oecologisch studie van het zeegras van het Terschellinger wad in 1974. | G46: Braster, B, & Carrière, C. (1974). Een oecologisch studie van het zeegras van het Terschellinger wad in 1974 (Report No. 30). Nijmegen: Laboratory of Aquatic Ecology, Catholic University Nijmegen.
A47: Brown 1990 | B47: report | C47: 1990 | D47: 0 | E47: 0 | F47: Strangford Lough The Wildlife of an Irish Sea Lough. | G47: Brown, R. (1990). Strangford Lough: the wildlife of an Irish Sea Lough. Belfast: Institute of Irish Studies, the Queen's University of Belfast.
A48: Bull et al. 2010 | B48: article | C48: 2010 | D48: 1 | E48: 0 | F48: Recent loss of Gibraltar seagrasses. | G48: Bull, J. C., Kenyon, E. J., Edmunds, D., & Cook, K. J. (2010). Recent loss of Gibraltar seagrasses. Botanica Marina, 53(1), 89-91.
A49: Bull et al. 2012 | B49: article | C49: 2012 | D49: 1 | E49: 0 | F49: Wasting disease regulates long-term population dynamics in a threatened seagrass. | G49: Bull, J. C., Kenyon, E. J., & Cook, K. J. (2012). Wasting disease regulates long-term population dynamics in a threatened seagrass. Oecologia, 169(1), 135-142.
A50: Burton et al. 2010 | B50: report | C50: 2010 | D50: 0 | E50: 0 | F50: Skomer Marine Nature Reserve Distribution and Abundance of Zostera marina in North Haven 2010. | G50: M. Burton, K. Lock, & Newman, P. (2010). Skomer Marine Nature Reserve distribution and abundance of Zostera marina in North Haven (Regional Report no. CCW/WW/10/10). Countryside Council of Wales.
A51: Busturia-Cerezo et al. 2009 | B51: report | C51: 2009 | D51: 0 | E51: 0 | F51: Seguimiento de la pradera de Posidonia oceanica RNC Islas Chafarinas. Septiembre 2009. | G51: Busturia-Cerezo, I., Díaz-Navarro, J., & Cuadrado, J. A. (2009). Seguimiento de la pradera de Posidonia oceanica RNC Islas Chafarinas. Quota.
A52: Cabaço and Santos (unpublished) | B52: dataset | C52: 2012 | D52: 0 | E52: 0 | F52: Unpublished data. | G52: Cabaço, S., & Santos, R. (2012). Unpublished data.
A53: Cabaço and Santos 2014 | B53: article | C53: 2014 | D53: 1 | E53: 0 | F53: Human-induced changes of the seagrass Cymodocea nodosa in Ria Formosa lagoon (Southern Portugal) after a decade. | G53: Cabaco, S., & Santos, R. (2014). Human-induced changes of the seagrass Cymodocea nodosa in Ria Formosa lagoon (Southern Portugal) after a decade. Cahiers de Biologie Marine, 55, 101-108.
A54: Cabaço et al. 2007 | B54: article | C54: 2007 | D54: 1 | E54: 0 | F54: Biomass-density relationships of the seagrass Zostera noltii: A tool for monitoring anthropogenic nutrient disturbance. | G54: Cabaço, S., Machás, R., & Santos, R. (2007). Biomass–density relationships of the seagrass Zostera noltii: a tool for monitoring anthropogenic nutrient disturbance. Estuarine, Coastal and Shelf Science, 74(3), 557-564.
A55: Cabaço et al. 2008 | B55: article | C55: 2008 | D55: 1 | E55: 0 | F55: Impacts of urban wastewater discharge on seagrass meadows (Zostera noltii). | G55: Cabaço, S., Machás, R., Vieira, V., & Santos, R. (2008). Impacts of urban wastewater discharge on seagrass meadows (Zostera noltii). Estuarine, Coastal and Shelf Science, 78(1), 1-13.
A56: Cabaço et al. 2010 | B56: article | C56: 2010 | D56: 1 | E56: 0 | F56: Population dynamics of the seagrass Cymodocea nodosa in Ria Formosa lagoon following inlet artificial relocation. | G56: Cabaço, S., Ferreira, Ó., & Santos, R. (2010). Population dynamics of the seagrass Cymodocea nodosa in Ria Formosa lagoon following inlet artificial relocation. Estuarine, Coastal and Shelf Science, 87(4), 510-516.
A57: Calleja et al. 2017 | B57: article | C57: 2017 | D57: 1 | E57: 0 | F57: Long-term analysis of Zostera noltei: a retrospective approach for understanding seagrasses’ dynamics. | G57: Calleja, F., Galván, C., Silió-Calzada, A., Juanes, J. A., & Ondiviela, B. (2017). Long-term analysis of Zostera noltei: A retrospective approach for understanding seagrasses' dynamics. Marine Environmental Research, 130, 93-105.
A58: Calvo et al. 1993 | B58: article | C58: 1993 | D58: 1 | E58: 0 | F58: The suitability of a topographical instrument for an integrated approach to the cartography of Posidonia oceanica meadows. | G58: Calvo, S., Orestano, C., & Abbadessa, P. (1993). The suitability of a topographical instrument for an integrated approach to the cartography of posidonia-oceanica meadows. Oceanologica acta, 16(3), 273-278.
A59: Cancemi et al. 1997 | B59: article | C59: 1997 | D59: 0 | E59: 0 | F59: Indagine cartografica sulla prateria a Posidonia oceanica (L.) delile di Capo S. Marco (golfo di Oristano), mediante elaborazione di immagini fotoaeree. | G59: Cancemi, G., Pasqualini, G., Piergallini, G., Baroli, M., De Falco, G., & Pergent-Martini, C. (1997). Indagine cartografica sulla prateria a Posidonia oceanica (L.) Delile de Capo San Marco (Golfo di Oristano) mediante elaborazione di immagini fotoaeree. Biologia Marina Mediterranea, 4(1), 8-10.
A60: Cancemi et al. 2003 | B60: article | C60: 2003 | D60: 1 | E60: 0 | F60: Effects of organic matter input from a fish farming facility on a Posidonia oceanica meadow. | G60: Cancemi, G., De Falco, G., & Pergent, G. (2003). Effects of organic matter input from a fish farming facility on a Posidonia oceanica meadow. Estuarine, Coastal and Shelf Science, 56(5), 961-968.
A61: Carstensen and Krause-Jensen 2012 | B61: report | C61: 2012 | D61: 0 | E61: 0 | F61: Udvikling i ålegræssets dybdeudbredelse i udvalgte områder. | G61: Carstensen, Jacob; Krause-Jensen, Dorte. Udvikling i ålegræssets dybdeudbredelse i udvalgte områder. Marine områder 2011: NOVANA. red. / Jens Würgler Hansen. Aarhus Universitet, DCE - Nationalt Center for Miljø og Energi, 2012. s. 113-124 (Videnskabelig rapport fra DCE - Nationalt Center for Miljø og Energi; Nr. 34).
A62: Carstensen et al. 2013 | B62: article | C62: 2013 | D62: 1 | E62: 0 | F62: Water clarity and eelgrass responses to nitrogen reductions in the eutrophic Skive Fjord, Denmark. | G62: Carstensen, J., Krause-Jensen, D., Markager, S., Timmermann, K., & Windolf, J. (2013). Water clarity and eelgrass responses to nitrogen reductions in the eutrophic Skive Fjord, Denmark. Hydrobiologia, 704(1), 293-309.
A63: Castellanos et al. 2003 | B63: article | C63: 2003 | D63: 0 | E63: 0 | F63: Cambios bentónicos en la ría de Foz (Lugo) (noroeste de España) tras la construcción de un espigón. | G63: Castellanos, C., Hernández-Vega, S., & Junoy, J. (2003). Cambios bentónicos en la ría de Foz (Lugo)(noroeste de España) tras la construcción de un espigón. Boletín Instituto Español de Oceanografía, 19(1-4), 205-217.
A64: Charpentier et al. 2005 | B64: article | C64: 2005 | D64: 1 | E64: 1 | F64: Spatio-temporal dynamics of a Zostera noltii dominated community over a period of fluctuating salinity in a shallow lagoon, Southern France. | G64: Charpentier, A., Grillas, P., Lescuyer, F., Coulet, E., & Auby, I. (2005). Spatio-temporal dynamics of a Zostera noltii dominated community over a period of fluctuating salinity in a shallow lagoon, Southern France. Estuarine, Coastal and Shelf Science, 64(2), 307-315.
A65: Cochón and Sánchez 2005 | B65: article | C65: 2005 | D65: 0 | E65: 0 | F65: Variations of seagrass beds in Pontevedra (North-Western Spain): 1947-2001. | G65: Cochón, G., & Sánchez, J. M. (2005). Variations of Seagrass Beds in Pontevedra (North-Western Spain): 1947-2001. Thalassas, 21(2), 9-19.
A66: Cole 2016 | B66: article | C66: 2016 | D66: 0 | E66: 0 | F66: Effects of dredging disturbance on seagrass coverage, sediment composition and infaunal assemblages within a SW England Zostera marina bed. | G66: Cole, R. (2016). Effects of dredging disturbance on seagrass coverage, sediment composition and infaunal assemblages within a SW England Zostera marina bed. The Plymouth Student Scientist, 9(1), 83-104.
A67: Coll et al. 1999 | B67: report | C67: 1999 | D67: 0 | E67: 0 | F67: Evaluación y control ambiental de algunos indicadores del estado de conservación del medio bentónico en aguas del Parque Nacional Marítimo-Terrestre del Archipiélago de Cabrera. | G67: Coll, J., E. Álvarez, et al. (1999). Evaluación y control ambiental de algunos indicadores del estado de conservación del medio bentónico en aguas del Parque Nacional Marítimo-Terrestre del Archipiélago de Cabrera. Pandion Consultoria ambiental.
A68: Colomer et al. 2017 | B68: article | C68: 2017 | D68: 1 | E68: 0 | F68: Impact of anthropogenically created canopy gaps on wave attenuation in a Posidonia oceanica seagrass meadow. | G68: Colomer, J., Soler, M., Serra, T., Casamitjana, X., & Oldham, C. (2017). Impact of anthropogenically created canopy gaps on wave attenuation in a Posidonia oceanica seagrass meadow. Marine Ecology Progress Series, 569, 103-116.
A69: Consejería de Medio Ambiente y Ordenación del Territorio 2016 | B69: report | C69: 2016 | D69: 0 | E69: 0 | F69: Programa de gestión sostenible del medio marino andaluz. Informe final de resultados 2016. | G69: Consejería de Medio Ambiente y Ordenación del Territorio, Junta de Andalucía (2016). Programa de gestión sostenible del medio marino andaluz. Informe final de resultados 2016.
A70: Cook (unpublished) | B70: dataset | C70: 2012 | D70: 0 | E70: 0 | F70: Unpublished data. | G70: Cook, K. (2012). Unpublished data.
A71: Cunha et al. 2005 | B71: article | C71: 2005 | D71: 0 | E71: 1 | F71: Seagrass landscape-scale changes in response to disturbance created by the dynamics of barrier-islands: A case study from Ria Formosa (Southern Portugal). | G71: Cunha, A. H., Santos, R. P., Gaspar, A. P., & Bairros, M. F. (2005). Seagrass landscape-scale changes in response to disturbance created by the dynamics of barrier-islands: a case study from Ria Formosa (Southern Portugal). Estuarine, Coastal and Shelf Science, 64(4), 636-644.
A72: Cunha et al. 2013 | B72: article | C72: 2013 | D72: 1 | E72: 0 | F72: Seagrasses in Portugal: A most endangered marine habitat. | G72: Cunha, A. H., Assis, J. F., & Serrão, E. A. (2013). Seagrasses in Portugal: a most endangered marine habitat. Aquatic Botany, 104, 193-203.
A73: da Silva et al. 2004 | B73: article | C73: 2004 | D73: 1 | E73: 1 | F73: Seagrasses and sediment response to changing physical forcing in a coastal lagoon. | G73: Silva, J. F., Duck, R. W., & Catarino, J. B. (2004). Seagrasses and sediment response to changing physical forcing in a coastal lagoon. Hydrology and Earth System Sciences, 8, 151-159.
A74: Dando et al. 1995 | B74: article | C74: 1995 | D74: 0 | E74: 0 | F74: Preliminary observations on biological communities at shallow hydrothermal vents in the Aegean Sea. | G74: Dando, P. R., Hughes, J. A., & Thiermann, F. (1995). Preliminary observations on biological communities at shallow hydrothermal vents in the Aegean Sea. Geological Society, London, Special Publications, 87(1), 303-317.
A75: De Biasi and Aliani 1998 | B75: article | C75: 1998 | D75: 0 | E75: 0 | F75: The Posidonia oceanica (L.) Delile meadow of Portovenere (Gulf of La Spezia, Eastern Ligurian Sea). | G75: De Biasi, A. M., & Aliani, S. (1998). The Posidonia Oceanica (L.) Delile Meadow of Portovenere (Gulf of La Spezia, Eastern Ligurian Sea). Atti della Società Toscana di Scienze Naturali, 105, 59-63.
A76: de Falco et al. 2000 | B76: article | C76: 2000 | D76: 0 | E76: 0 | F76: Photo-aerial image processing and sediment analysis as indicators of environmental impact on Posidonia oceanica in the Mediterranean sea. | G76: De Falco, G., Murru, E., Baroli, M., Piergallini, G., & Cancemi, G. (2000). Photo-aerial image processing and sediment analysis as indicators of environmental impact on Posidonia oceanica in the Mediterranean Sea. Biologia Marina Mediterranea, 7(2), 349-352.
A77: de Falco et al. 2006 | B77: article | C77: 2006 | D77: 1 | E77: 0 | F77: Sediment analysis evidences two different depositional phenomena influencing seagrass distribution in the Gulf of Oristano (Sardinia, Western Mediterranean). | G77: De Falco, G., Baroli, M., Murru, E., Piergallini, G., & Cancemi, G. (2006). Sediment analysis evidences two different depositional phenomena influencing seagrass distribution in the Gulf of Oristano (Sardinia, Western Mediterranean). Journal of coastal research, 1043-1050.
A78: de Jong (unpublished) | B78: dataset | C78: 2012 | D78: 0 | E78: 0 | F78: Unpublished data. | G78: de Jong, D.J. (2012). Unpublished data.
A79: de Paz et al. 2008 | B79: article | C79: 2008 | D79: 1 | E79: 0 | F79: Ecological status assessment in the lower Eo estuary (Spain). The challenge of habitat heterogeneity integration: A benthic perspective. | G79: De Paz, L., Patrício, J., Marques, J. C., Borja, A., & Laborda, A. J. (2008). Ecological status assessment in the lower Eo estuary (Spain). The challenge of habitat heterogeneity integration: a benthic perspective. Marine Pollution Bulletin, 56(7), 1275-1283.
A80: de Villèle and Verlaque 1995 | B80: article | C80: 1995 | D80: 1 | E80: 0 | F80: Changes and degradation in a Posidonia oceanica bed invaded by the introduced tropical alga Caulerpa taxifolia in the North Western Mediterranean. | G80: De Villèle, X., & Verlaque, M. (1995). Changes and degradation in a Posidonia oceanica bed invaded by the introduced tropical alga Caulerpa taxifolia in the north western Mediterranean. Botanica Marina, 38(1-6), 79-88.
A81: del Rei 2009 | B81: thesis | C81: 2009 | D81: 0 | E81: 0 | F81: Teledetección de hábitats bentónicos en la Bahía de Cádiz, España. | G81: del Rei, D. (2009). Teledetección de hábitats bentónicos en la Bahía de Cádiz, España. Universidad de Cádiz. MSc. Thesis.
A82: Delgado et al. 1997 | B82: article | C82: 1997 | D82: 1 | E82: 0 | F82: Seagrass regression caused by fish cultures· in Fornells Bay (Menorca, Western Mediterranean). | G82: Delgado, O., Grau, A., Pou, S., Riera, F., Massuti, C., Zabala, M., & Ballesteros, E. (1997). Seagrass regression caused by fish cultures in Fornells Bay (Menorca, Western Mediterranean). Oceanolica Acta, 20(3), 557-563.
A83: den Hartog 1994 | B83: article | C83: 1994 | D83: 1 | E83: 0 | F83: Suffocation of a littoral Zostera bed by Enteromorpha radiata. | G83: Den Hartog, C. (1994). Suffocation of a littoral Zostera bed by Enteromorpha radiata. Aquatic Botany, 47(1), 21-28.
A84: den Hartog and Jacobs 1980 | B84: article | C84: 1980 | D84: 1 | E84: 0 | F84: Effects of the "Amoco Cadiz" oil spill on an eelgrass community at Roscoff (France) with special reference to the mobile benthic fauna. | G84: Den Hartog, C., & Jacobs, R. P. W. M. (1980). Effects of the Amoco Cadiz oil spill on an eelgrass community at Roscoff (France) with special reference to the mobile benthic fauna. Helgol. wiss. Meeresunters, 33, 182-191.
A85: Díaz-Almela et al. 2009 | B85: article | C85: 2009 | D85: 1 | E85: 0 | F85: Seasonal dynamics of Posidonia oceanica in Magalluf Bay (Mallorca, Spain): Temperature effects on seagrass mortality. | G85: Díaz-Almela, E., Marba, N., Martínez, R., Santiago, R., & Duarte, C. M. (2009). Seasonal dynamics of Posidonia oceanica in Magalluf Bay (Mallorca, Spain): temperature effects on seagrass mortality. Limnology and Oceanography, 54(6), 2170-2182.
A86: Dimech et al. 2000 | B86: article | C86: 2000 | D86: 0 | E86: 0 | F86: Structural changes in a Posidonia oceanica meadow exposed to a pollution gradient from a marine fish-farm in Malta (Central Mediterranean). | G86: Dimech, M., Borg, J. A., & Schembri, P. J. (2000). Structural changes in a Posidonia oceanica meadow exposed to a pollution gradient from a marine fish-farm in Malta (Central Mediterranean). Biologia Marina Mediterranea, 7(2), 361-364.
A87: Dimech et al. 2002 | B87: article | C87: 2002 | D87: 1 | E87: 0 | F87: Changes in the structure of a Posidonia oceanica meadow and in the diversity of associated decapod, mollusc and echinoderm assemblages, resulting from inputs of waste from a marine fish farm (Malta, Central Mediterranean). | G87: Dimech, M., Borg, J. A., & Schembri, P. J. (2002). Changes in the structure of a Posidonia oceanica meadow and in the diversity of associated decapod, mollusc and echinoderm assemblages, resulting from inputs of waste from a marine fish farm (Malta, Central Mediterranean). Bulletin of Marine Science, 71(3), 1309-1321.
A88: Diviacco 2000 | B88: report | C88: 2000 | D88: 0 | E88: 0 | F88: Indagine sui popolamenti bentici marini del tratto costiero tra Punta Vescovado e Spotorno (SV), con particolare riferimento alle fanerogame marine. Regione Liguria, Genova. | G88: Diviacco G. 2000. Indagine sui popolamenti bentici marini del tratto costiero tra Punta Vescovado e Spotorno (SV), con particolare riferimento alle fanerogame marine. Regione Liguria, Genova: 13 pp.
A89: Dolbeth et al. 2011 | B89: article | C89: 2011 | D89: 1 | E89: 0 | F89: Long-term changes in the production by estuarine macrobenthos affected by multiple stressors. | G89: Dolbeth, M., Cardoso, P. G., Grilo, T. F., Bordalo, M. D., Raffaelli, D., & Pardal, M. A. (2011). Long-term changes in the production by estuarine macrobenthos affected by multiple stressors. Estuarine, Coastal and Shelf Science, 92(1), 10-18.
A90: Dolch et al. 2013 | B90: article | C90: 2013 | D90: 1 | E90: 0 | F90: Persisting intertidal seagrass beds in the northern Wadden Sea since 1930s. | G90: Dolch, T., Buschbaum, C., & Reise, K. (2013). Persisting intertidal seagrass beds in the northern Wadden Sea since 1930s. Journal of Sea Research, 82, 134-141.
A91: Dolch et al. 2017 | B91: report | C91: 2017 | D91: 0 | E91: 0 | F91: Seagrass. | G91: Dolch T., Folmer E.O., Frederiksen M.S., Herlyn M., van Katwijk M.M., Kolbe K., Krause- Jensen D., Schmedes P. & Westerbeek E.P. (2017) Seagrass. In: Wadden Sea Quality Status Report 2017. Eds.: Kloepper S. et al., Common Wadden Sea Secretariat, Wilhelmshaven, Germany. Last updated 21.12.2017. qsr.waddensea-worldheritage.org/reports/seagrass
A92: Duarte and Marbà (unpublished) | B92: dataset | C92: 2012 | D92: 0 | E92: 0 | F92: Unpublished data. | G92: Duarte, C.M. & Marbà, N. (2012). Unpublished data.
A93: Dural et al. 2012 | B93: article | C93: 2012 | D93: 0 | E93: 0 | F93: The status of sensitive ecosystems along the Aegean coast of Turkey: Posidonia oceanica (L.) Delile meadows. | G93: Dural, B., Aysel, V., Demir, N., & Erduğan, H. (2012). The status of sensitive ecosystems along the Aegean coast of Turkey: Posidonia oceanica (L.) Delile meadows. Journal of Black Sea/Mediterranean Environment, 18(3), 360-379.
A94: Falconetti and Meinesz 1989 | B94: article | C94: 1989 | D94: 1 | E94: 0 | F94: Charting the seaward limit of Posidonia oceanica meadows and of circalittoral biocoenoses along the coast of Monaco. | G94: Falconetti, C., & Meinesz, A. (1989). Charting the seaward limit of posidonia-oceanica meadows and of circalittoral biocoenoses along the coast of Monaco. Oceanologica Acta, 12(4), 443-447.
A95: Fernández-Torquemada et al. 2005 | B95: article | C95: 2005 | D95: 1 | E95: 0 | F95: Preliminary results of the monitoring of the brine discharge produced by the SWRO desalination plant of Alicante (SE Spain). | G95: Fernández-Torquemada, Y., Sánchez-Lizaso, J. L., & González-Correa, J. M. (2005). Preliminary results of the monitoring of the brine discharge produced by the SWRO desalination plant of Alicante (SE Spain). Desalination, 182(1-3), 395-402.
A96: Ferre-Vera 2012 | B96: thesis | C96: 2012 | D96: 0 | E96: 0 | F96: Usos turístico - recreativos y alteracion de la Posidonia oceánica en un tramo de la costa de Calvia (Mallorca): Cala Fornells y Caló de Ses Llises. | G96: Ferre-Vera, S. (2012). Usos turístico-recreativos y alteración de la posidonia oceánica en un tramo de la costa de Calvià (Mallorca): Cala Fornells y Caló de ses Llises. Universitat de les Illes Balears. MSc. Thesis.
A97: Foden and Brazier 2007 | B97: article | C97: 2007 | D97: 1 | E97: 0 | F97: Angiosperms (seagrass) within the EU water framework directive: A UK perspective. | G97: Foden, J., & Brazier, D. P. (2007). Angiosperms (seagrass) within the EU water framework directive: a UK perspective. Marine Pollution Bulletin, 55(1), 181-195.
A98: Fournier 2002 | B98: article | C98: 2002 | D98: 0 | E98: 0 | F98: Analyse spatiale de l'impact d'une perturbation anthropique sur un herbier de zostères en baie de Locquirec (Bretagne nord). | G98: Fournier, J. (2002). Analyse spatiale de l'impact d'une perturbation anthropique sur un herbier de zostères en baie de Locquirec (Bretagne nord). Norois, 189(1), 47-55.
A99: Fournier 2003 | B99: report | C99: 2003 | D99: 0 | E99: 0 | F99: Cartographie des herbiers de phanérogames marines de l'archipel des îles Chausey (Manche). | G99: Fournier J. Cartographie des herbiers de phanérogames marines de l'archipel des îles Chausey (Manche), Rapport DIREN, Caen, 35 p, 2003.
A100: Fournier 2007 | B100: report | C100: 2007 | D100: 0 | E100: 0 | F100: Transcription de la Dépêche Ministérielle du 13 mars 1933 concernant l'état des herbiers de phanérogames marines à la suite de la maladie des années 1930. | G100: Fournier J. Transcription de la Dépêche Ministérielle du 13 mars 1933 concernant l'état des herbiers de phanérogames marines à la suite de la maladie des années 1930, Rapport MNHN, Dinard, 64 p, 2007.
A101: Fournier et al. 2006 | B101: proceedings | C101: 2006 | D101: 0 | E101: 0 | F101: Impact de la variabilité climatique sur l’évolution spatio-temporelle des biocénoses benthiques. | G101: Fournier, J., Dubreuil, V., Olivier, F., & Dekindt, K. (2006). Impact de la variabilité climatique sur l’évolution spatio-temporelle des biocénoses benthiques. Le cas des herbiers médiolittoraux de phanérogames marines. In: Beltrando, G., Maelin, M., & Quénol, H. (Eds.), XIX Colloque de l’Association Internationale de Climatologie – Les risques liés au temps et au climat (pp. 255-260). Association International de Climatologie.
A102: Fraschetti et al. 2011 | B102: article | C102: 2011 | D102: 1 | E102: 0 | F102: Effects of unplanned development on marine biodiversity: a lesson from Albania (Central Mediterranean Sea). | G102: Fraschetti, S., Terlizzi, A., Guarnieri, G., Pizzolante, F., D'Ambrosio, P., Maiorano, P., Beqiraj, S., & Boero, F. (2011). Effects of unplanned development on marine biodiversity: a lesson from Albania (central Mediterranean Sea). Journal of Coastal Research, 106-115.
A103: Frederiksen et al. 2004 | B103: article | C103: 2004 | D103: 1 | E103: 1 | F103: Long-term changes in area distribution of eelgrass (Zostera marina) in Danish coastal waters. | G103: Frederiksen, M., Krause-Jensen, D., Holmer, M., & Laursen, J. S. (2004). Long-term changes in area distribution of eelgrass (Zostera marina) in Danish coastal waters. Aquatic Botany, 78(2), 167-181.
A104: Gambi et al. 2005 | B104: proceedings | C104: 2005 | D104: 0 | E104: 0 | F104: Chronicle of a death foretold’ – features of a Posidonia oceanica bed impacted by sand extraction. | G104: Gambi, M. C., Dappiano, M., Lorenti, M., Iacono, B., Flagella, S., & Buia, M. C. (2005). ‘‘Chronicle of a death foretold’’ – features of a Posidonia oceanica bed impacted by sand extraction. In: Ozhan E. (Ed.), Proceedings of the Seventh International Conference on the Mediterranean Coastal Environment MEDCOAST 05 (25–29 October 2005, Kusadasi, Turkey) (pp. 441–450). Mediterranean Coastal Foundation.
A105: Garmendia et al. 2013 | B105: article | C105: 2013 | D105: 0 | E105: 0 | F105: Cartografía de Zostera noltii en la costa vasca: cambios recientes en su distribución (2008-2012). | G105: Garmendia, J. M., Valle, M., Borja, Á., Chust, G., & Franco, J. (2013). Cartografía de Zostera noltii en la costa vasca: cambios recientes en su distribución (2008-2012). Revista de Investigación Marina, 20, 1-22.
A106: Garrido et al. 2013 | B106: article | C106: 2013 | D106: 1 | E106: 0 | F106: Resilience and stability of Cymodocea nodosa seagrass meadows over the last four decades in a Mediterranean lagoon. | G106: Garrido, M., Lafabrie, C., Torre, F., Fernandez, C., & Pasqualini, V. (2013). Resilience and stability of Cymodocea nodosa seagrass meadows over the last four decades in a Mediterranean lagoon. Estuarine, Coastal and Shelf Science, 130, 89-98.
A107: Gera et al. 2014 | B107: article | C107: 2014 | D107: 1 | E107: 0 | F107: The effect of a centenary storm on the long-lived seagrass Posidonia oceanica. | G107: Gera A, Pagès JF, Arthur R, Farina S, Roca G, Romero J, Alcoverro T (2014) The effect of a centenary storm on the long‐lived seagrass Posidonia oceanica. Limnology and Oceanography 59(6):1910–1918.
A108: Giardina and de Rubeis 2012 | B108: article | C108: 2012 | D108: 0 | E108: 0 | F108: Analysis of the Posidonia oceanica (L.) Delile (Najadales, Potamogetonaceae) meadow of the Marine Protected Area “Isole Pelagie” (Straits of Sicily). | G108: Giardina, F., & De Rubis, P. (2012) Analysis of the Posidonia oceanica (L.) Delile (Najadales, Potamogetonaceae) meadow of the Marine Protected Area “Isole Pelagie” (Straits of Sicily). Bolletino Accademia Gioenia di Scienze Naturali di Catania, 45, 651-664.
A109: Gic-Grusza et al. 2009 | B109: book | C109: 2009 | D109: 0 | E109: 0 | F109: Atlas of Polish marine area bottom habitats: Environmental valorization of marine habitats. | G109: Gic-Grusza, G., Kryla-Straszewska, L., Urbański, J., Warzocha, J., & Węsławski, J. M. (2009). Atlas of polish marine area bottom habitats: environmental valorization of marine habitats. Gdynia: Broker-Inowacji.
A110: Gil-Rodríguez et al. 2012 | B110: article | C110: 2012 | D110: 0 | E110: 0 | F110: Las praderas de Nanozostera noltii (Hornemann) Tomlinson & Posluszny en Canarias: redescubrimiento de poblaciones y su evolución en los últimos veinticinco años (Zosteraceae). | G110: Gil-Rodríguez, M.C., Machín-Sánchez, M., Pérez, M.C., Bacallado-Aránega, J.J., Moro-Abad, L., & Tejera, J.M.A. (2012). Las praderas de Nanozostera noltii (Hornemann) Tomlinson & Posluszny en Canarias: redescubrimiento de poblaciones y su evolución en los últimos veinticinco años (Zosteraceae). Vieraea, 40, 45-64.
A111: Giovani et al. 2010 | B111: article | C111: 2010 | D111: 0 | E111: 0 | F111: Factors affecting changes in phanerogam distribution patterns of Orbetello laggon, Italy. | G111: Giovani, A., Mari, E., Specchiulli, A., Cilenti, L., Scirocco, T., Breber, P., Renzi, M., Focardi, S. E., & Lenzi, M. (2010). Factors affecting changes in phanerogam distriburion patterns of Orbetello lagoon, Italy. Transitional Waters Bulletin, 4(1), 35-52.
A112: Glemarec et al. 1997 | B112: article | C112: 1997 | D112: 1 | E112: 1 | F112: Long-term changes of seagrass beds in the Glenan Archipelago (South Brittany). | G112: Glemarec, M., Lefaou, Y., & Cuq, F. (1997). Long-term changes of seagrass beds in the Glenan Archipelago (South Brittany). Oceanolica Acta, 20(1), 217-227.
A113: Godet et al. 2008 | B113: article | C113: 2008 | D113: 1 | E113: 0 | F113: Before and after wasting disease in common eelgrass Zostera marina along the French Atlantic coasts: a general overview and first accurate mapping. | G113: Godet, L., Fournier, J., van Katwijk, M. M., Olivier, F., & Mao, P. L. (2008). Before and after wasting disease in common eelgrass Zostera marina along the French Atlantic coasts: a general overview and first accurate mapping. Diseases of Aquatic Organisms, 79, 249-255.
A114: González-Correa et al. 2005 | B114: article | C114: 2005 | D114: 1 | E114: 0 | F114: Recovery of deep Posidonia oceanica meadows degraded by trawling. | G114: González-Correa, J. M., Bayle, J. T., Sánchez-Lizaso, J. L., Valle, C., Sánchez-Jerez, P., & Ruiz, J. M. (2005). Recovery of deep Posidonia oceanica meadows degraded by trawling. Journal of Experimental Marine Biology and Ecology, 320(1), 65-76.
A115: González-Correa et al. 2007 | B115: article | C115: 2007 | D115: 1 | E115: 0 | F115: Posidonia oceanica meadows are not declining globally. Analysis of population dynamics in marine protected areas of the Mediterranean Sea. | G115: González-Correa, J. M., Sempere, J. T. B., Sánchez-Jerez, P., & Valle, C. (2007). Posidonia oceanica meadows are not declining globally. Analysis of population dynamics in marine protected areas of the Mediterranean Sea. Marine Ecology Progress Series, 336, 111-119.
A116: González-Correa et al. 2008 | B116: article | C116: 2008 | D116: 1 | E116: 0 | F116: Long-term effect of beach replenishment on natural recovery of shallow Posidonia oceanica meadows. | G116: González-Correa, J. M., Torquemada, Y. F., & Lizaso, J. L. S. (2008). Long-term effect of beach replenishment on natural recovery of shallow Posidonia oceanica meadows. Estuarine, Coastal and Shelf Science, 76(4), 834-844.
A117: González-Correa et al. 2015 | B117: article | C117: 2015 | D117: 1 | E117: 0 | F117: Long-term population dynamics in a healthy Posidonia oceanica meadow. | G117: González-Correa, J. M., Sánchez-Lizaso, J. L., Fernández-Torquemada, Y., & Forcada, A. (2015). Long-term population dynamics in a healthy Posidonia oceanica meadow. Thalassas, 31(1), 63-72.
A118: Guidetti 2001 | B118: article | C118: 2001 | D118: 1 | E118: 0 | F118: Detecting environmental impacts on the Mediterranean seagrass Posidonia oceanica (L.) Delile: the use of reconstructive methods on combination with “beyond BACI” designs. | G118: Guidetti, P. (2001). Detecting environmental impacts on the Mediterranean seagrass Posidonia oceanica (L.) Delile: the use of reconstructive methods in combination with ‘beyond BACI’designs. Journal of Experimental Marine Biology and Ecology, 260(1), 27-39.
A119: Guidetti 2004 | B119: article | C119: 2004 | D119: 0 | E119: 0 | F119: Population dynamics of the seagrass Posidonia oceanica for evaluating meadow health status: a study case using reconstruction techniques. | G119: Guidetti, P. (2004). Population dynamics of the seagrass Posidonia oceanica for evaluating meadow health status: a study case using reconstruction techniques. Thalassia Salentina, 27, 33-46.
A120: Guillén et al. 1994 | B120: article | C120: 1994 | D120: 1 | E120: 0 | F120: Antitrawling reefs and the protection of Posidonia oceanica (l.) Delile meadows in the Western Mediterranean sea: demand and aims. | G120: Guillen, J. E., Ramos, A. A., Martinez, L., & Sánchez Lizaso, J. L. (1994). Antitrawling reefs and the protection of Posidonia oceanica (L.) Delile meadows in the western Mediterranean Sea: demand and aims. Bulletin of Marine Science, 55(2-3), 645-650.
A121: Guillén et al. 2013 | B121: article | C121: 2013 | D121: 1 | E121: 0 | F121: Evolution of Posidonia oceanica seagrass meadows and its implications for management. | G121: Guillén, J. E., Lizaso, J. L. S., Jiménez, S., Martínez, J., Codina, A., Montero, M., Triviño, A., Soler, G., & Zubcoff, J. J. (2013). Evolution of Posidonia oceanica seagrass meadows and its implications for management. Journal of Sea Research, 83, 65-71.
A122: Haritonidis and Diapoulis 1990 | B122: article | C122: 1990 | D122: 0 | E122: 0 | F122: Evolution of Greek marine phanerogam meadows over the last 20 years. | G122: Haritonidis, S., & Diapoulis, A. (1990). Evolution of Greek marine phanerogam meadows over the last 20 years. Posidonia Newsletter, 3(2), 5-10.
A123: Haritonidis et al. 1990 (in Haritonidis 1996) | B123: article | C123: 1990 | D123: 0 | E123: 0 | F123: First results on the localistation of the herbiers of marine phanerogams in the Gulf of Termaikos. | G123: Haritonidis, S., Diapoulis, A., & Nikolaidis, G. (1990). First results on the localisation of the herbiers of marine phanerogams in the Gulf of Thermaikos. Posidonia Newsletter, 3(2), 11-18.
A124: Herman et al. 1996 | B124: article | C124: 1996 | D124: 1 | E124: 0 | F124: Wax and wane of eelgrass Zostera marina and water column silicon levels. | G124: Herman, P. M. J., Hemminga, M. A., Nienhuis, P. H., Verschuure, J. M., & Wessel, E. G. J. (1996). Wax and wane of eelgrass Zostera marina and water column silicon levels. Marine Ecology Progress Series, 144(1), 303-307.
A125: Hily et al. 2003 | B125: book | C125: 2003 | D125: 0 | E125: 1 | F125: The seagrasses of western Europe. | G125: Hily, C., van Katwijk, M. M., & den Hartog, C. (2003). The seagrasses of western Europe In: Green, E. P., Short, F. T. (Eds.), World Atlas of seagrasses (pp. 38-47). Berkeley.
A126: Hughes and Paramor 2004 | B126: article | C126: 2004 | D126: 1 | E126: 0 | F126: On the loss of saltmarshes in south-east England and methods for their restoration. | G126: Hughes, R. G., & Paramor, O. A. L. (2004). On the loss of saltmarshes in south‐east England and methods for their restoration. Journal of Applied Ecology, 41(3), 440-448.
A127: Jakl et al. 2015 | B127: article | C127: 2015 | D127: 0 | E127: 0 | F127: Monitoring of Posidonia oceanica meadows in the Telašćica Nature Park (Croatia). | G127: Jakl, Z., Šijan, M., Prvan, M., Sertic, M., Čavrak, V., Derezanin, L., ... & Guala, I. (2015). Monitoring of Posidonia oceanica meadows in the Telašćica Nature Park (Croatia) (No. e1417). PeerJ PrePrints.
A128: Jaubert et al. 1999 | B128: article | C128: 1999 | D128: 1 | E128: 0 | F128: No deleterious alterations in Posidonia beds in the Bay of Menton (France) eight years after Caulerpa taxifolia colonization. | G128: Jaubert, J. M., Chisholm, J. R., Ducrot, D., Ripley, H. T., Roy, L., & Passeron‐Seitre, G. (1999). No deleterious alterations in Posidonia beds in the Bay of Menton (France) eight years after Caulerpa taxifolia colonization. Journal of Phycology, 35(6), 1113-1119.
A129: Josefson et al. 2009 | B129: report | C129: 2009 | D129: 0 | E129: 0 | F129: Udvikling af indikatorer og tilstandsvurderingsværktøj for marine Natura 2000-områder | G129: Josefson, A.B., Krause-Jensen, D., Rasmussen, M.B., Andersen, J.H. & Henriksen, P. 2009: Udvikling af indikatorer og tilstandsvurderingsværktøj for marine Natura 2000-områder. Lav- vandede bugter og vige. Danmarks Miljøundersøgelser, Aarhus Universitet. 76 s. - Faglig rapport fra DMU nr. 701. http://www.dmu.dk/Pub/FR701.pdf
A130: Kastler and Michaelis 1999 | B130: article | C130: 1999 | D130: 0 | E130: 0 | F130: The decline of seagrasses, Zostera marina and Zostera noltii, in the Wadden Sea of Lower Saxony. | G130: Kastler, T., & Michaelis, H. (1999). The decline of Seagrasses, Zostera marina andZostera noltii, in the Wadden Sea of Lower Saxony. Marine Biodiversity, 29, 77-80.
A131: Kaufmann and Maranhão 2017 | B131: proceedings | C131: 2017 | D131: 0 | E131: 0 | F131: Environmental monitoring of a seagrass bed at the south coast of Madeira Island. | G131: Kaufmann, M., & Maranhão, M. (2017). Environmental monitoring of a seagrass bed at the south coast of Madeira island. In: Proceedings of the Third European Conference on Scientific Diving.
A132: Kiparissis et al. 2011 | B132: article | C132: 2011 | D132: 1 | E132: 0 | F132: Illegal trawling and induced invasive algal spread as collaborative factors in a Posidonia oceanica meadow degradation. | G132: Kiparissis, S., Fakiris, E., Papatheodorou, G., Geraga, M., Kornaros, M., Kapareliotis, A., & Ferentinos, G. (2011). Illegal trawling and induced invasive algal spread as collaborative factors in a Posidonia oceanica meadow degradation. Biological invasions, 13(3), 669-678.
A133: Krause-Jensen and Rasmussen 2009 | B133: report | C133: 2009 | D133: 0 | E133: 0 | F133: Historisk udbredelse af ålegræs i danske kystområder. | G133: Krause-Jensen, D. & Rasmussen, M.B. 2009: Historisk udbredelse af ålegræs i danske kystom- råder. Danmarks Miljøundersøgelser, Aarhus Universitet. 38 s. – Faglig rapport fra DMU nr. 755. http://www.dmu.dk/Pub/FR755.pdf
A134: Krause-Jensen et al. 2000 | B134: report | C134: 2000 | D134: 0 | E134: 0 | F134: The Authorities' control and monitoring programme for the fixed link across Øresund. | G134: Krause-Jensen et al. 2000. The Authorities' control and monitoring programme for the fixed link across Øresund. Benthic vegetation. Status report 2000.
A135: Kruk-Dowgiallo 1991 | B135: article | C135: 1991 | D135: 0 | E135: 0 | F135: Long-term changes in the structure of underwater meadows of the Puck Lagoon. | G135: Kruk-Dowgiałło, L. (1991). Long-term changes in the structure of underwater meadows of the Puck Lagoon. Acta Ichthyologica et Piscatoria, 21, 77-84.
A136: Kruk-Dowgiallo and Szaniawska 2008 | B136: book | C136: 2008 | D136: 0 | E136: 0 | F136: Gulf of Gdask and Puck Bay. | G136: Kruk-Dowgiałło, L., & Szaniawska, A. (2008). Gulf of Gdask and Puck Bay In: Schiewer, U. (Ed.), Ecology of Baltic Coastal Waters. Ecological Studies, 197 (pp. 139-165). Berlin Heidelberg: Springer-Verlag.
A137: Kruzic 2008 | B137: article | C137: 2008 | D137: 1 | E137: 0 | F137: Variations in Posidonia oceanica meadow structure along the coast of the Dugi Otok Island (eastern Adriatic Sea). | G137: Kruzic, P. (2008). Variations in Posidonia oceanica meadow structure along the coast of the Dugi Otok Island (eastern Adriatic Sea). Journal of the Marine Biological Association of the United Kingdom, 88(5), 883-892.
A138: La Manna et al. 2015 | B138: article | C138: 2015 | D138: 1 | E138: 0 | F138: The detrimental consequences for seagrass of ineffective marine park management related to boat anchoring. | G138: La Manna, G., Donno, Y., Sarà, G., & Ceccherelli, G. (2015). The detrimental consequences for seagrass of ineffective marine park management related to boat anchoring. Marine Pollution Bulletin, 90(1), 160-166.
A139: Laursen (unpublished) | B139: dataset | C139: 2012 | D139: 0 | E139: 0 | F139: Unpublished data. | G139: Laursen, J.S. (2012). Unpublished data.
A140: Leriche et al. 2006 | B140: article | C140: 2006 | D140: 1 | E140: 0 | F140: Spatial, temporal and structural variations of a Posidonia oceanica seagrass meadow facing human activities. | G140: Leriche, A., Pasqualini, V., Boudouresque, C. F., Bernard, G., Bonhomme, P., Clabaut, P., & Denis, J. (2006). Spatial, temporal and structural variations of a Posidonia oceanica seagrass meadow facing human activities. Aquatic Botany, 84(4), 287-293.
A141: Loquès 1995 | B141: article | C141: 1995 | D141: 0 | E141: 0 | F141: La limite inférieure de l'herbier de posidonies des iles de Lérins (Baie de Cannes, France) traitement cartographique sur S.I.G. (systemes d'informations geographiques). | G141: Loquès, F. (1995). La limite inférieure de l'herbier de posidonies des Iles de Lérins (Baie de Cannes, France) Traitement cartographique sur SIG (Systemes d'Informations Géographiques). Mésogée, 54, 29-33.
A142: Lorenti et al. 2005 | B142: article | C142: 2005 | D142: 1 | E142: 0 | F142: Occurrence of mucous aggregates and their impact on Posidonia oceanica beds. | G142: Lorenti, M., Buia, M. C., Di Martino, V., & Modigh, M. (2005). Occurrence of mucous aggregates and their impact on Posidonia oceanica beds. Science of the Total Environment, 353(1), 369-379.
A143: Maggi 1972 | B143: article | C143: 1972 | D143: 0 | E143: 0 | F143: Les herbiers à Posidonies et la pollution urbaine dans le golfe de Giens (Var). | G143: Maggi, P. (1972). Les herbiers à Posidonies et la pollution urbaine dans le golfe de Giens (VAR). Annals de l'Institut Michel Pacha, 5, 1-11.
A144: Maggi 1973 | B144: article | C144: 1973 | D144: 0 | E144: 0 | F144: Les probleme de la disparition des herbiers a posidonies dans le Golfe de Giens (Var). | G144: Maggi, P. (1973). Le problème de la disparition des herbiers à Posidonies dans le golfe de Giens (Var). Science et Pêche, 221, 7-20.
A145: Maggi et al. 1977 | B145: article | C145: 1977 | D145: 0 | E145: 0 | F145: Influence de la pollution urbaine sur la vitalite des herbiers a posidonies dans le golfe de Giens (Var). | G145: Maggi, P., Gruet, Y., Lassus, P., & Kalifa, F. (1977). Influence de la pollution urbaine sur la vitalité des herbiers à Posidonies dans le golfe de Giens (Var). Science et Pêche, 269, 5-13.
A146: Mancusi et al. 2011 | B146: article | C146: 2011 | D146: 0 | E146: 0 | F146: Posidonia oceanica mapping in two areas of the Tuscany coast. | G146: Manacusi, C., Cecchi, E., Galloni, F., Padovani., S., & Serena, F. (2011). Posidonia oceanica mapping in two areas of the Tuscany coast. Biologia Marine Mediterranea, 18(1), 314-315.
A147: Marbà and Duarte 2010 | B147: article | C147: 2010 | D147: 1 | E147: 0 | F147: Mediterranean warming triggers seagrass (Posidonia oceanica) shoot mortality. | G147: Marbà, N., & Duarte, C. M. (2010). Mediterranean warming triggers seagrass (Posidonia oceanica) shoot mortality. Global Change Biology, 16(8), 2366-2375.
A148: Marbà et al. 2015 | B148: report | C148: 2015 | D148: 0 | E148: 0 | F148: Estudio demográfico de Posidonia oceanica. Proyecto Life09NAT/ES/000534. Conservación de las praderas de Posidonia oceanica en el Mediterráneo andaluz. | G148: Marbà, N. et al. (2015). Estudio demográfico de Posidonia oceanica. Proyecto Life09NAT/ES/000534. Conservación de las praderas de Posidonia oceanica en el Mediterráneo andaluz. Life+ posidonia andalucía. 114 pp.
A149: Martín et al. 1997 | B149: article | C149: 1997 | D149: 0 | E149: 0 | F149: Cuantificación del impacto de las artes de arrastre sobre la pradera de Posidonia oceanica (L.) Delile, 1813. | G149: Martín, M. A., Sánchez-Lizaso, J. L., & Ramos-Esplá, A. A. (1997). Cuantificación del impacto de las artes de arrastre sobre la pradera de Posidonia oceanica (L.) Delile, 1813. Publicaciones Especiales - Instituto Español de Oceanografía, 23, 243-253.
A150: Martínez-Samper et al. 2011 | B150: thesis | C150: 2011 | D150: 0 | E150: 0 | F150: Análisis espacio-temporal de las praderas de Cymodocea nodosa (Ucria) Ascherson en la isla de Gran Canaria. | G150: Martínez-Samper, J. (2011). Análisis espacio-temporal de las praderas de Cymodocea nodosa (Ucria) Ascherson en la isla de Gran Canaria. Universidad de Las Palmas de Gran Canaria. MSc. Thesis.
A151: Mascaró 2011 | B151: thesis | C151: 2011 | D151: 0 | E151: 0 | F151: From the physiology to the seascape: a multi-scale approach to the ecology of the seagrass Cymodocea nodosa. | G151: Mascaró, O. (2011). From the physiology to the seascape: a multi-scale approach to the ecology of the seagrass Cymodocea nodosa. Universitat de Barcelona. PhD. Thesis.
A152: Meinesz and Laurent 1978 | B152: article | C152: 1978 | D152: 0 | E152: 0 | F152: Cartographie et état de la limite inférieure de l'herbier de Posidonia oceanica dans les Alpes-maritimes (France). | G152: Meinesz, A., & Laurent, R. (1978). Cartographie et état de la limite inferieure de l’herbier de Posidonia oceanica dans les Alpes-maritimes (France). Botanica Marina, 21(8), 513-526.
A153: Meinesz et al. 2002 | B153: report | C153: 2002 | D153: 0 | E153: 0 | F153: Quatorzième suivi de la limite inférieure de Posidonia oceanica dans la baie d'Elbo (Réserve Naturelle de Scandola). | G153: MEINESZ, A., et al. "Quatorzième suivi de la limite inférieure de Posidonia oceanica dans la baie d'Elbo (Réserve Naturelle de Scandola)." Travaux scientifiques du Parc naturel régional et des réserves naturelles de Corse 60 (2002): 53-94.
A154: Milchakova 1999 | B154: article | C154: 1999 | D154: 1 | E154: 0 | F154: On the status of seagrass communities in the Black Sea. | G154: Milchakova, N. A. (1999). On the status of seagrass communities in the Black Sea. Aquatic Botany, 65(1), 21-31.
A155: Milchakova 2003 | B155: book | C155: 2003 | D155: 0 | E155: 0 | F155: The seagrasses of the Black, Azov, Caspian and Aral Seas. | G155: Milchakova, N.A. (2003). The seagrasses of the Black, Azov, Caspian and Aral Seas. In: Green, E. P., Short, F. T. (Eds.), World Atlas of seagrasses (pp. 59-64). Berkeley.
A156: Milchakova and Phillips 2003 | B156: article | C156: 2003 | D156: 1 | E156: 0 | F156: Black sea seagrasses. | G156: Milchakova, N. A., & Phillips, R. C. (2003). Black sea seagrasses. Marine Pollution Bulletin, 46(6), 695-699.
A157: Molenaar et al. 2006 | B157: article | C157: 2006 | D157: 0 | E157: 0 | F157: Competition between native Posidonia oceanica and invasive Caulerpa taxifolia. | G157: Molenaar, H., Meinesz, A., & Thibaut, T. (2006). Competition between native Posidonia oceanica and invasive Caulerpa taxifolia. Biologia Marina Mediterranea, 13(4), 68-71.
A158: Molenaar et al. 2009 | B158: article | C158: 2009 | D158: 1 | E158: 0 | F158: Alterations of the structure of Posidonia oceanica beds due to the introduced alga Caulerpa taxifolia. | G158: Molenaar, H., Meinesz, A., & Thibaut, T. (2009). Alterations of the structure of Posidonia oceanica beds due to the introduced alga Caulerpa taxifolia. Scientia Marina, 73(2), 329-335.
A159: Molinier and Picard 1953 (in Calvo et al. 2010) | B159: article | C159: 1953 | D159: 0 | E159: 0 | F159: Notes biologiques a propos d'un voyage d'étude sur les côtes de Sicile. | G159: Molinier, R., & Picard, J. (1953). Notes biologiques a propos d'un voyage d'etude sur les coates de Sicile. Annales de l'Institut Oceanographique, 28, 163-188.
A160: Montefalcone (unpublished) | B160: dataset | C160: 2012 | D160: 0 | E160: 0 | F160: Unpublished data. | G160: Montefalcone, M. (2012). Unpublished data.
A161: Montefalcone et al. 2007 (a) | B161: article | C161: 2007 | D161: 1 | E161: 0 | F161: Substitution and phase-shift in Posidonia oceanica meadows of NW Mediterranean Sea. | G161: Montefalcone, M., Morri, C., Peirano, A., Albertelli, G., & Bianchi, C. N. (2007). Substitution and phase shift within the Posidonia oceanica seagrass meadows of NW Mediterranean Sea. Estuarine, Coastal and Shelf Science, 75(1), 63-71.
A162: Montefalcone et al. 2007 (b) | B162: article | C162: 2007 | D162: 0 | E162: 0 | F162: Diachronic analysis of a Posidonia oceanica meadow in the marine protected area of Bergeggi. | G162: Montefalcone, M., Giovannetti, E., Lasagna, R., Parravicini, V., Morri, C., & Albertelli, G. (2007). Diachronic analysis of a Posidonia oceanica meadow in the marine protected area of Bergeggi. Biologia Marina Mediterranea, 14(2), 82-83.
A163: Montefalcone et al. 2013 | B163: article | C163: 2013 | D163: 1 | E163: 0 | F163: Evaluating change in seagrass meadows: A time-framed comparison of Side Scan Sonar maps. | G163: Montefalcone, M., Rovere, A., Parravicini, V., Albertelli, G., Morri, C., & Bianchi, C. N. (2013). Evaluating change in seagrass meadows: A time-framed comparison of Side Scan Sonar maps. Aquatic Botany, 104, 204-212.
A164: Moreno et al. 1999 | B164: book | C164: 1999 | D164: 0 | E164: 0 | F164: Valoración del impacto de los vertidos hídricos industriales en el litoral: aproximación metodológica al estudio de la pradera de Posidonia oceanica (L.) Delile. | G164: Moreno, D., Aguilera, P.A., Castro, H., Martínez-Vidal, J.L., Martínez-Sola, F., Sanz., F. (1999). Valoración de impacto de los vertidos hídricos industriales en el litoral: aproximación metodológica al estudio de la pradera de posidonia aceanica (L.) Delile. In: Navarro-Flores, A., Sánchez-Garrido, J. A., & Collado-Fernández, D. M. (Eds.), Minería, Industria y Medio Ambiente en la Cuenca Mediterránea (pp. 227-238). Almería: Universidad de Almería.
A165: Moreno et al. 2001 | B165: article | C165: 2010 | D165: 1 | E165: 0 | F165: Assessment of the conservation status of seagrass (Posidonia oceanica) meadows: implications for monitoring strategy and the decision-making process. | G165: Moreno, D., Aguilera, P. A., & Castro, H. (2001). Assessment of the conservation status of seagrass (Posidonia oceanica) meadows: implications for monitoring strategy and the decision-making process. Biological Conservation, 102(3), 325-332.
A166: Moy (unpublished) | B166: dataset | C166: 2012 | D166: 0 | E166: 0 | F166: Unpublished data. | G166: Moy, F.E. (2012). Unpublished data.
A167: Munkes 2005 | B167: article | C167: 2005 | D167: 1 | E167: 0 | F167: Eutrophication, phase shift, the delay and the potential return in the Greifswalder Bodden, Baltic Sea. | G167: Munkes, B. (2005). Eutrophication, phase shift, the delay and the potential return in the Greifswalder Bodden, Baltic Sea. Aquatic Sciences-Research Across Boundaries, 67(3), 372-381.
A168: Muñoz-Ramos and Seglar (unpublished) | B168: dataset | C168: 2012 | D168: 0 | E168: 0 | F168: Unpublished data. | G168: Muñoz-Ramos, G. and Seglar, X. (2012). Unpublished data.
A169: Muñoz-Ramos and Seglar 2015 | B169: report | C169: 2015 | D169: 0 | E169: 0 | F169: Estudi de l’alguer de Mataró. Campanya 2015. | G169: Muñoz-Ramos, G. and Seglar, X. (2015). Estudi de l'Alguer de Mataró. Campanya 2015. Escola del Mar, Ajuntament de Badalona. 33 pp.
A170: Nebout et al. 2008 | B170: report | C170: 2008 | D170: 0 | E170: 0 | F170: Inventaire cartographique des herbiers de phanérogames marines de la Côte d'Emeraude et de Chausey. Etat en 2002 (d'Erquy à Granville). | G170: Nebout, T., Godet L., Fournier J. (2008). Inventaire cartographique des herbiers de phanérogames marines de la Côte d'Emeraude et de Chausey. Etat en 2002 (d'Erquy à Granville). Rapport CNRS/CRESCO Dinard, 10 p.
A171: Neto et al. 2013 | B171: article | C171: 2013 | D171: 1 | E171: 0 | F171: Seagrass Quality Index (SQI), a Water Framework Directive compliant tool for the assessment of transitional and coastal intertidal areas. | G171: Neto, J. M., Barroso, D. V., & Barría, P. (2013). Seagrass Quality Index (SQI), a Water Framework Directive compliant tool for the assessment of transitional and coastal intertidal areas. Ecological indicators, 30, 130-137.
A172: Nienhuis et al. 1996 | B172: article | C172: 1996 | D172: 0 | E172: 0 | F172: Twenty-five years of changes in the distribution and biomass of eelgrass, Zostera marina, in Grevelingen lagoon, The Netherlands. | G172: Nienhuis, P. H., De Bree, B. H. H., Herman, P. M. J., Holland, A. M. B., Verschuure, J. M., & Wessel, E. G. J. (1996). Twentyfive years of changes in the distribution and biomass of eelgrass, Zostera marina, in Grevelingen lagoon, The Netherlands. Netherland Journal of Aquatic Ecology, 30(2-3), 107-117.
A173: Nodot et al. 1978 | B173: article | C173: 1978 | D173: 0 | E173: 0 | F173: Etude d’impact des aménagements littoraux du Mourillon sur l’herbier de Posidonia oceanica de la rade des Vignettes (Toulon, Var). | G173: Nodot, C., Astier, J. M., Taillez, P., & Tine, J. (1978). Etude d’impact des aménagements littoraux du Mourillon sur l’herbier de Posidonia oceanica de la rade des Vignettes (Toulon-Var). Annales de la Societé des Sciences Naturelles et d’Archéologie de Toulon et du Var, 30, 118-133.
A174: Nyqvist et al. 2009 | B174: article | C174: 2009 | D174: 1 | E174: 0 | F174: Dynamics of Seagrass Meadows on the Swedish Skagerrak Coast. | G174: Nyqvist, A., André, C., Gullström, M., Baden, S. P., & Åberg, P. (2009). Dynamics of seagrass meadows on the Swedish Skagerrak coast. AMBIO: A Journal of the Human Environment, 38(2), 85-88.
A175: Oprandi et al. 2014 | B175: proceedings | C175: 2014 | D175: 0 | E175: 0 | F175: Combining modelling and historical data to define the status of Posidonia oceanica meadows | G175: Oprandi, A., Montefalcone, M., Vacchi, M., Coppo, S., Diviacco, G., Morri, C., Ferrari, M., and Bianchi, C.N. (2014). Combining modelling and historical data to define the status of Posidonia oceanica meadows. 5th Symposium on Marine Vegetation (pp. 119-124). Portorož, Slovenia, 27-28 October 2014.
A176: Peirano et al. 2011 | B176: article | C176: 2011 | D176: 1 | E176: 0 | F176: Phenology of the Mediterranean seagrass Posidonia oceanica (L.) Delile: Medium and long-term cycles and climate inferences. | G176: Peirano, A., Cocito, S., Banfi, V., Cupido, R., Damasso, V., Farina, G., Lombardi, C., Mauro, R., Morri, C., Roncarolo, I., Saldaña, S., Savini, D., Sgorbini, S., Silvestri, C., Stoppelli, N., Torricelli, L., & Bianchi, C. N. (2011). Phenology of the Mediterranean seagrass Posidonia oceanica (L.) Delile: Medium and long-term cycles and climate inferences. Aquatic Botany, 94(2), 77-92
A177: Peralta et al. (unpublished) | B177: dataset | C177: 2012 | D177: 0 | E177: 0 | F177: Cymodocea nodosa monitoring in Cádiz Bay (FAMAR) (2004-2012). | G177: Peralta, G., Vergara, J.J., Hernández, I., Brun, F., Pérez-Lloréns, J.L. (2012) [Cymodocea nodosa monitoring in Cádiz Bay (FAMAR) (2004-2012)]. Unpublished data.
A178: Pérez-Ruzafa et al. 2012 | B178: article | C178: 2012 | D178: 1 | E178: 0 | F178: Cymodocea nodosa vs. Caulerpa prolifera: Causes and consequences of a long term history of interaction in macrophyte meadows in the Mar Menor coastal lagoon (Spain, southwestern Mediterranean). | G178: Pérez-Ruzafa, A., Marcos, C., Bernal, C. M., Quintino, V., Freitas, R., Rodrigues, A. M., García-Sánchez, M., & Pérez-Ruzafa, I. M. (2012). Cymodocea nodosa vs. Caulerpa prolifera: Causes and consequences of a long term history of interaction in macrophyte meadows in the mar Menor coastal lagoon (Spain, Southwestern Mediterranean). Estuarine, Coastal and Shelf Science, 110, 101-115.
A179: Pergent (unpublished) | B179: dataset | C179: 2012 | D179: 0 | E179: 0 | F179: Unpublished data. | G179: Pergent, G. (2012). Unpublished data.
A180: Pergent and Pergent-Martini 1985 | B180: article | C180: 1985 | D180: 0 | E180: 0 | F180: Cartographie de l'herbier à Posidonia oceanica (L.) de la baie d'Urla-Iskele (Turquie). | G180: Pergent, G. and C. Pergent (1985). Cartographie de l'herbier à Posidonia oceanica de la baie d'Urla-Iskele (Turquie). Rapports et Proces-Verbaux des Réunions de la Commission Internationale pour l’Exploration Scientifique de la Mer Méditerranée, 29(6), 231-234.
A181: Pergent et al. 1983 | B181: article | C181: 1983 | D181: 0 | E181: 0 | F181: Quelques observations sur les herbiers à Posidonia oceanica des Pyrenées-Orientales (Méditerranée, France). | G181: Pergent, G., Boudouresque, C. F., et al. (1983). Quelques observations sur les herbiers à Posidonia oceanica des Pyrenées-Orientales (Méditerranée, France). Rapports et Proces-Verbaux des Réunions de la Commission Internationale pour l’Exploration Scientifique de la Mer Méditerranée, 28(3): 169-170.
A182: Pergent et al. 1999 | B182: article | C182: 1999 | D182: 1 | E182: 0 | F182: Preliminary data on the impact of fish farming facilities on Posidonia oceanica meadows in the Mediterranean. | G182: Pergent, G., Mendez, S., Pergent-Martini, C., & Pasqualini, V. (1999). Preliminary data on the impact of fish farming facilities on Posidonia oceanica meadows in the Mediterranean. Oceanologica Acta, 22(1), 95-107.
A183: Pergent et al. 2015 | B183: article | C183: 2015 | D183: 1 | E183: 0 | F183: Dynamic of Posidonia oceanica seagrass meadows in the northwestern Mediterranean: Could climate change be to blame? | G183: Pergent, G., Pergent-Martini, C., Bein, A., Dedeken, M., Oberti, P., Orsini, A., Santucci, J.-F., & Short, F. (2015). Dynamic of Posidonia oceanica seagrass meadows in the northwestern Mediterranean: Could climate change be to blame? Comptes Rendus Biologies, 338(7), 484-493.
A184: Pergent-Martini and Pergent 1996 | B184: proceedings | C184: 1996 | D184: 0 | E184: 0 | F184: Spatio-temporal dynamics of Posidonia oceanica beds near a sewage outfall (Mediterranean-France). | G184: Pergent-Martini, C., & Pergent, G. (1996). Spatio-temporal dynamics of Posidonia oceanica beds near a sewage outfall (Mediterranean-France). In: Kuo, J., Phillips, R. C., Walker, D. I., & Kirkman, H. (Eds). Seagrass Biology: Proceedings of an International Workshop (pp. 299-306). Nedlands: The University of Western Australia.
A185: Pergent-Martini et al. 2002 | B185: article | C185: 2002 | D185: 1 | E185: 1 | F185: Effect of a newly set up wastewater-treatment plant on a marine phanerogam seagrass bed – a medium-term monitoring program. | G185: Pergent-Martini, C., Pasqualini, V., Pergent, G., & Ferrat, L. (2002). Effect of a newly set up wastewater-treatment plant on a marine phanerogam seagrass bed—a medium-term monitoring program. Bulletin of Marine Science, 71(3), 1227-1236.
A186: Pessani et al. 1984 | B186: proceedings | C186: 1984 | D186: 0 | E186: 0 | F186: Premières données sur la distribution de Posidonia oceanica Delile autour de l'île de Saligna (îles Eoliennes, Sicilie). | G186: Pessani, D., Poncini, F., & Vetere, M. (1984). Premières données sur la distribution de Posidonia oceanica Delile autour de l’île de Salina (îles Éoliennes, Sicile). In: Boudouresque, C. F., de Grissac, A. J., & Olivier, J. (Eds.), First International Workshop on Posidonia oceanica beds (pp. 129-135). Marseille, France: GIS Posidonie.
A187: Philippart and Dijkema 1995 | B187: article | C187: 1995 | D187: 1 | E187: 1 | F187: Wax and wane of Zostera noltii Hornem. In the Dutch Wadden Sea. | G187: Philippart, C. J., & Dijkema, K. S. (1995). Wax and wane of Zostera noltii Hornem. in the Dutch Wadden Sea. Aquatic Botany, 49(4), 255-268.
A188: Piazzi et al. 1996 | B188: article | C188: 1996 | D188: 0 | E188: 0 | F188: Mapping and survey of a Posidonia oceanica (L.) Delile bed sited south of Livorno (Tuscany, Italy). | G188: Piazzi, L., Balestri, E., & Cinelli, F. (1996). Mapping and survey of a Posidonia oceanica (L.) Delile bed sited south of Livorno (Tuscany, Italy). Infomatore Botanico Italiano, 28(1), 67-77.
A189: Piazzi et al. 2000 | B189: article | C189: 2000 | D189: 1 | E189: 0 | F189: Mapping of Posidonia oceanica beds around Elba island (Western Mediterranean) with integration of direct and indirect methods. | G189: Piazzi, L., Acunto, S., & Cinelli, F. (2000). Mapping of Posidonia oceanica beds around Elba Island (western Mediterranean) with integration of direct and indirect methods. Oceanologica Acta, 23(3), 339-346.
A190: Picard 1978 | B190: article | C190: 1978 | D190: 0 | E190: 0 | F190: Impact sur le benthos marin de quelques grands types de nuissances liées à l'évolution de complexes urbains et industriels de la province occidentale. | G190: Picard, J. (1978). Impact sur le benthos marin de quelques grands types de nuisances liées à l'évolution des complexes urbains et industriels de la Provence occidentale. Oceanis, 4, 214.
A191: Picard and Bourcier 1976 | B191: article | C191: 1976 | D191: 0 | E191: 0 | F191: Evolution sous influences humaines des peuplements benthiques des parages de la Ciotat entre 1954 et 1972. | G191: Picard, J., & Bourcier, M. (1976). Evolution sous influences humaines des peuplements benthiques des parages de la Ciotat entre 1954 et 1972. Téthys, 7, 213.
A192: Plus et al. 2003 | B192: article | C192: 2003 | D192: 1 | E192: 0 | F192: Seagrass (Zostera marina L.) bed recolonisation after anoxia-induced full mortality. | G192: Plus, M., Deslous-Paoli, J. M., & Dagault, F. (2003). Seagrass (Zostera marina L.) bed recolonisation after anoxia-induced full mortality. Aquatic Botany, 77(2), 121-134.
A193: Plus et al. 2010 | B193: article | C193: 2010 | D193: 1 | E193: 0 | F193: Long-term evolution (1988–2008) of Zostera spp. meadows in Arcachon Bay (Bay of Biscay). | G193: Plus, M.., Sébastien, D., Gilles, T., Isabelle, A., de Montaudouin, X., Emery, É., Claire, N., & Christophe, V. (2010). Long-term evolution (1988–2008) of Zostera spp. meadows in Arcachon Bay (Bay of Biscay). Estuarine, Coastal and Shelf Science, 87(2), 357-366.
A194: Polderman and den Hartog 1975 | B194: article | C194: 1975 | D194: 0 | E194: 0 | F194: Zeegrassen in de Waddenzee. | G194: Polderman, P. J. G., & den Hartog, C. (1975). De zeegrassen in de Waddenzee. Wetenschappelijke Mededelingen (Koninklijke Nederlandse Natuurhistorische Vereniging), 107, 1-32.
A195: Portig 2006 | B195: report | C195: 2006 | D195: 0 | E195: 0 | F195: The distribution of intertidal Zostera spp. in Northern Ireland. | G195: Alex Portig 2006. The distribution of intertidal Zostera spp. in Northern Ireland. Environment and Heritage Service Research and Development Series. No. 06/22.
A196: Procaccini et al. 2003 | B196: book | C196: 2003 | D196: 0 | E196: 1 | F196: The seagrasses of western Mediterranean. | G196: Procaccini, G., Buia, M.C., Gambi, M.C., Perez, M., Pergent, G., Pergent-Martini, C., Romero, J. (2003). The seagrasses of the western Mediterranean. In: Green, E. P., Short, F. T. (Eds.), World Atlas of seagrasses (pp. 48-58). Berkeley.
A197: Ramos-Esplá et al. 2006 | B197: report | C197: 2006 | D197: 0 | E197: 0 | F197: Estudio de la franja litoral de la Comunidad Valenciana dentro de la Directiva Marco del Agua. Macrófitos: macroalgas y Posidonia oceanica. | G197: Ramos Esplá, A.; Díaz-Valdés, M.; Fernández Torquemada, Y.; Giménez, F.; Abellán Gallardo, E.; Izquierdo, A.; Vázquez, T.; Sánchez Lizaso, J.L.; Colilla, F.; González Correa, J.M.; Torráz, X. 2006. Estudio de la franja litoral de la Comunidad Valenciana dentro de la Directiva Marco del Agua. Macrófitos: macroalgas y Posidonia oceanica. 171 pp
A198: Ramos-Esplá et al. 2007 | B198: report | C198: 2007 | D198: 0 | E198: 0 | F198: Estudio de la franja litoral de la Comunidad Valenciana dentro de la Directiva Marco del Agua. Macrófitos: macroalgas y Posidonia oceanica. | G198: Ramos Esplá, A.; Díaz-Valdés Farray, M.; Fernández Torquemada, Y.; Giménez Casalduero, F.; Abellán Gallardo, E.; Izquierdo Muñoz, A.; Vázquez Luis, T.; Sánchez Lizaso, J.L.; Colilla, F.; Torras, X. 2007. Estudio de la franja litoral de la Comunidad Valenciana dentro de la Directiva Marco del Agua. Macrófitos: macroalgas y Posidonia oceanica. 201 pp.
A199: Ramos-Esplá et al. 2008 | B199: report | C199: 2008 | D199: 0 | E199: 0 | F199: Estudio de la franja litoral de la Comunidad Valenciana dentro de la Directiva Marco del Agua. Macrófitos: macroalgas y Posidonia oceanica. | G199: Ramos Esplá, A.; Díaz-Valdés, M.; Fernández Torquemada, Y.; Abellán Gallardo, E.; Izquierdo, A.; Sánchez Lizaso, J.L.; Torrás Boldú, X.; Rubio, E. 2008. Estudio de la franja litoral de la Comunidad Valenciana dentro de la Directiva Marco del Agua. Macrófitos: macroalgas y Posidonia oceanica. 200 pp.
A200: Ramos-Esplá et al. 2009 | B200: report | C200: 2009 | D200: 0 | E200: 0 | F200: Estudio del estado de conservación de las comunidades bentónicas de substrato duro en la franja litoral, así como, determinación del estado de conservación de las praderas de Posidonia oceanica en el litoral de la Comunidad Valenciana, en aplicación de la Directiva Marco del Agua. | G200: Ramos Esplá, A.; Izquierdo Muñoz, A.; Vázquez Luis, M.T.; Fernández Torquemada, Y.; Sánchez Lizaso, J.L.; Abellán Gallardo, E.; Mariona Castillo, G.I.; Díaz-Valdés Farray, M.; Torrás Boldú, X. 2009. Estudio del estado de conservación de las comunidades bentónicas de substrato duro en la franja litoral, así como, determinación del estado de conservación de las praderas de Posidonia oceanica en el litoral de la Comunidad Valenciana, en aplicación de la Directiva Marco del Agua. 173 pp.
... 42 more rows

Sheet sites
A1: SITE ID | B1: SOURCE | C1: Included in Waycott et al. 2009 | D1: Site reference number in Waycott et al. 2009 | E1: Updated since Waycott’s paper? (yes 1, no 0) | F1: SITE INFO | G1: SITE NAME | H1: Latitude | I1: Longitude | J1: Accuracy coordinates | K1: Region | L1: Regional sea | M1: Country | N1: SPECIES | O1: Secondary species | P1: Posidonia oceanica | Q1: Zostera marina | R1: Cymodocea nodosa | S1: Zostera noltei | T1: TIDAL CATEGORY | U1: Upper limit (m) | V1: Lower limit (m) | W1: Average depth (m) | X1: METRICS | Y1: Time-point or only presence data | Z1: Time-series | AA1: Included in decadal analysis | AB1: Only_presence | AC1: Only_extent | AD1: Only_density | AE1: Both_extent_and_density | AF1: PRESENCE | AG1: Presence_timeseries | AH1: Year0_presence | AI1: Year1_presence | AJ1: Span_presence | AK1: Presence0 | AL1: Presence1 | AM1: Seagrass_site_gained | AN1: Seagrass_site_lost | AO1: Trajectory_PRESENCE | AP1: AREA | AQ1: Area_timeseries | AR1: Area_decadal | AS1: Year0_area | AT1: Year1_area | AU1: Span_area | AV1: Presence0_area | AW1: Presence1_area | AX1: Value0_area | AY1: Value1_area | AZ1: MaxValue_area | BA1: N_observations_area | BB1: PerFinal_area | BC1: NetChange_area | BD1: PerRate_area | BE1: Trajectory_area | BF1: LOWER_LIMIT | BG1: Lower_timeseries | BH1: Lower_decadal | BI1: Year0_lower | BJ1: Year1_lower | BK1: Span_lower | BL1: Presence0_lower | BM1: Presence1_lower | BN1: Value0_lower | BO1: Value1_lower | BP1: MaxValue_lower | BQ1: N_observations_lower | BR1: PerFinal_lower | BS1: NetChange_lower | BT1: PerRate_lower | BU1: Trajectory_lower | BV1: UPPER_LIMIT | BW1: Upper_timeseries | BX1: Upper_decadal | BY1: Year0_upper | BZ1: Year1_upper | CA1: Span_upper | CB1: Presence0_upper | CC1: Presence1_upper | CD1: Value0_upper | CE1: Value1_upper | CF1: MaxValue_upper | CG1: N_observations_upper | CH1: PerFinal_upper | CI1: NetChange_upper | CJ1: PerRate_upper | CK1: Trajectory_upper | CL1: COVER | CM1: Cover_timeseries | CN1: Cover_decadal | CO1: Year0_cover | CP1: Year1_cover | CQ1: Span_cover | CR1: Presence0_cover | CS1: Presence1_cover | CT1: Value0_cover | CU1: Value1_cover | CV1: MaxValue_cover | CW1: N_observations_cover | CX1: PerFinal_cover | CY1: NetChange_cover | CZ1: PerRate_cover | DA1: Trajectory_cover | DB1: SHOOT_DENSITY | DC1: Shoot_timeseries | DD1: Shoot_decadal | DE1: Year0_shoot | DF1: Year1_shoot | DG1: Span_shoot | DH1: Presence0_shoot | DI1: Presence1_shoot | DJ1: Value0_shoot | DK1: Value1_shoot | DL1: MaxValue_shoot | DM1: N_observations_shoot | DN1: PerFinal_shoot | DO1: NetChange_shoot | DP1: PerRate_shoot | DQ1: Trajectory_shoot | DR1: BIOMASS | DS1: Biomass_timeseries | DT1: Biomass_decadal | DU1: Year0_biomass | DV1: Year1_biomass | DW1: Span_biomass | DX1: Presence0_biomass | DY1: Presence1_biomass | DZ1: Value0_biomass | EA1: Value1_biomass | EB1: MaxValue_biomass | EC1: N_observations_biomass | ED1: PerFinal_biomass | EE1: NetChange_biomass | EF1: PerRate_biomass | EG1: Trajectory_biomass | EH1: OVERALL (trajectories) | EI1: Overall_observation_start | EJ1: Overall_observation_end | EK1: Overall_time_window | EL1: Mean_perc_final_DENSITY | EM1: N_metrics_DENSITY | EN1: Trajectory_DENSITY | EO1: Mean_perc_final_LIMITS | EP1: N_metrics_LIMITS | EQ1: Trajectory_LIMITS | ER1: Mean_perc_final_AREA | ES1: N_metrics_AREA | ET1: Trajectory_AREA | EU1: N_metrics_EXTENT | EV1: Trajectory_AREA_LIMITS | EW1: Trajectory_PRESENCE | EX1: Trajectory_EXTENT | EY1: Trajectory_GLOBAL | EZ1: CAUSES | FA1: Multiple_causes | FB1: Both_decline_increase | FC1: Report_decline | FD1: N_causes_decline | FE1: Report_decline_area | FF1: Decline_area | FG1: Area_multiple | FH1: Water_quality_degradation | FI1: WQD_area | FJ1: WQD_year0 | FK1: WQD_year1 | FL1: Urban_sewage | FM1: Eutrophication | FN1: Macroalgae_overgrowth_eutrophication | FO1: General_water_degradation | FP1: Fish_farming | FQ1: Shellfish_farming | FR1: Industrial_pollution | FS1: Brine_sewage | FT1: Marina_sewage | FU1: General_pollution | FV1: Coastal_modification | FW1: CD_area | FX1: CD_year0 | FY1: CD_year1 | FZ1: Harbour_construction | GA1: Beach_filling | GB1: Dredging | GC1: Land_reclamation | GD1: Pipeline_construction | GE1: River_diversion | GF1: Breakwater_construction | GG1: Dam_constructions | GH1: Storm_drains | GI1: Relocation_inlet | GJ1: Other_coastal_works | GK1: Extreme_events | GL1: EE_area | GM1: EE_year0 | GN1: EE_year1 | GO1: Heat_waves | GP1: Forest_fires | GQ1: Storms_rainfalls | GR1: Floods | GS1: Mechanical_damage | GT1: MD_area | GU1: MD_year0 | GV1: MD_year1 | GW1: Bottom_trawling | GX1: Anchoring_mooring | GY1: Explosive | GZ1: Harvesting | HA1: Clam_digging | HB1: Culture_farm_occupation | HC1: Bait_collection | HD1: Other_local_human_activities | HE1: Overgrazing | HF1: OG_area | HG1: OG_year0 | HH1: OG_year1 | HI1: Overgrazing_others | HJ1: Overgrazing_sea_urchins | HK1: Overgrazing_waterfowl | HL1: Wasting_disease | HM1: WD_area | HN1: WD_year0 | HO1: WD_year1 | HP1: Nonnative_macroalgae_invasion | HQ1: MI_area | HR1: MI_year0 | HS1: MI_year1 | HT1: Report_increase | HU1: N_causes_increase | HV1: Report_increase_area | HW1: Increase_area | HX1: Management_interventions | HY1: MI_area | HZ1: MI_year0 | IA1: MI_year1 | IB1: Reduction_industrial_pollution | IC1: Improvement_water_quality | ID1: Regulation_trawling | IE1: Regulation_anchoring | IF1: Other_management_actions | IG1: Natural_recovery_colonisation | IH1: NR_area | II1: NR_year0 | IJ1: NR_year1
A2: 1 | B2: Alami et al. 2014 | C2: =IF(D2>0,1,0) -> 0 | F2: - | G2: Biguglia - Golo | H2: 42.5861 | I2: 9.53212 | J2: good | K2: Mediterranean | L2: Western Mediterranean Sea | M2: France | N2: Po | O2: none | P2: 1 | Q2: 0 | R2: 0 | S2: 0 | T2: subtidal | U2: -20 | V2: -40 | W2: NA | X2: - | Y2: =IF(Z2=1,0,1) -> 1 | Z2: =IF((AQ2+BG2+BW2+CM2+DC2+DS2)>0,1,0) -> 0 | AA2: =IF(SUM(AR2+BH2+BX2+CN2+DD2+DT2)>0,1,0) -> 0 | AB2: 0 | AC2: 1 | AD2: 0 | AE2: 0 | AF2: 1 | AG2: 0 | AH2: NA | AI2: 2013 | AJ2: NA | AK2: 1 | AL2: 1 | AM2: 0 | AN2: 0 | AO2: persists | AP2: 1 | AQ2: 0 | AR2: 0 | AS2: NA | AT2: 2013 | AU2: NA | AV2: 1 | AW2: 1 | AX2: NA | AY2: NA | AZ2: NA | BA2: 1 | BB2: NA | BC2: -280 | BD2: NA | BE2: decrease | BF2: 0 | BG2: 0 | BH2: 0 | BI2: NA | BJ2: NA | BK2: NA | BL2: NA | BM2: NA | BN2: NA | BO2: NA | BP2: NA | BQ2: NA | BR2: NA | BS2: NA | BT2: NA | BU2: unknown | BV2: 0 | BW2: 0 | BX2: 0 | BY2: NA | BZ2: NA | CA2: NA | CB2: NA | CC2: NA | CD2: NA | CE2: NA | CF2: NA | CG2: NA | CH2: NA | CI2: NA | CJ2: NA | CK2: unknown | CL2: 0 | CM2: 0 | CN2: 0 | CO2: NA | CP2: NA | CQ2: NA | CR2: NA | CS2: NA | CT2: NA | CU2: NA | CV2: NA | CW2: NA | CX2: NA | CY2: NA | CZ2: NA | DA2: unknown | DB2: 0 | DC2: 0 | DD2: 0 | DE2: NA | DF2: NA | DG2: NA | DH2: NA | DI2: NA | DJ2: NA | DK2: NA | DL2: NA | DM2: NA | DN2: NA | DO2: NA | DP2: NA | DQ2: unknown | DR2: 0 | DS2: 0 | DT2: 0 | DU2: NA | DV2: NA | DW2: NA | DX2: NA | DY2: NA | DZ2: NA | EA2: NA | EB2: NA | EC2: NA | ED2: NA | EE2: NA | EF2: NA | EG2: unknown | EH2: - | EI2: NA | EJ2: =MAX(DV2,DF2,CP2,BZ2,BJ2,AT2,AI2) -> 2013 | EK2: NA | EL2: =IF(EM2=0,"NA",AVERAGE(ED2,DN2,CX2)) -> NA | EM2: =DR2+DB2+CL2 -> 0 | EN2: unknown | EO2: NA | EP2: =BV2+BF2 -> 0 | EQ2: unknown | ER2: =BB2 -> NA | ES2: =AP2 -> 1 | ET2: =BE2 -> decrease | EU2: =ES2+EP2 -> 1 | EV2: =ET2 -> decrease | EW2: =AO2 -> persists | EX2: decrease | EY2: =EV2 -> decrease | EZ2: =IF(FC2+HT2>0,1,0) -> 1 | FA2: =IF(FD2>1 OR(HU2>1),1,0) -> 0 | FB2: =IF(FC2+HT2=2,1,0) -> 0 | FC2: =IF(SUM(FH2,FV2,GK2,GS2,HE2,HL2,HP2)>0,1,0) -> 1 | FD2: =SUM(FH2,FV2,GK2,GS2,HE2,HL2,HP2) -> 1 | FE2: 1 | FF2: -280 | FG2: NA | FH2: =IF(SUM(FL2:FU2)>0,1,0) -> 0 | FI2: NA | FJ2: NA | FK2: NA | FL2: 0 | FM2: 0 | FN2: 0 | FO2: 0 | FP2: 0 | FQ2: 0 | FR2: 0 | FS2: 0 | FT2: 0 | FU2: 0 | FV2: =IF(SUM(FZ2:GJ2)>0,1,0) -> 0 | FW2: NA | FX2: NA | FY2: NA | FZ2: 0 | GA2: 0 | GB2: 0 | GC2: 0 | GD2: 0 | GE2: 0 | GF2: 0 | GG2: 0 | GH2: 0 | GI2: 0 | GJ2: 0 | GK2: =IF(SUM(GO2:GR2)>0,1,0) -> 0 | GL2: NA | GM2: NA | GN2: NA | GO2: 0 | GP2: 0 | GQ2: 0 | GR2: 0 | GS2: =IF(SUM(GW2:HD2)>0,1,0) -> 1 | GT2: -280 | GU2: NA | GV2: NA | GW2: 1 | GX2: 1 | GY2: 0 | GZ2: 0 | HA2: 0 | HB2: 0 | HC2: 0 | HD2: 0 | HE2: =IF(SUM(HI2:HK2)>0,1,0) -> 0 | HF2: NA | HG2: NA | HH2: NA | HI2: 0 | HJ2: 0 | HK2: 0 | HL2: 0 | HM2: NA | HN2: NA | HO2: NA | HP2: 0 | HQ2: NA | HR2: NA | HS2: NA | HT2: =IF(HX2+IG2>0,1,0) -> 0 | HU2: =SUM(HX2,IG2) -> 0 | HV2: 0 | HW2: NA | HX2: =IF(SUM(IB2:IF2)>0,1,0) -> 0 | HY2: NA | HZ2: NA | IA2: NA | IB2: 0 | IC2: 0 | ID2: 0 | IE2: 0 | IF2: 0 | IG2: 0 | IH2: NA | II2: NA | IJ2: NA
A3: 2 | B3: Brown 1990 | C3: =IF(D3>0,1,0) -> 0 | F3: - | G3: Strangford Lough | H3: 54.55426 | I3: -5.66081 | J3: bad | K3: Atlantic | L3: Celtic Seas | M3: United Kingdom | N3: Zm | O3: none | P3: 0 | Q3: 1 | R3: 0 | S3: 0 | T3: subtidal | U3: NA | V3: NA | W3: NA | X3: - | Y3: =IF(Z3=1,0,1) -> 1 | Z3: =IF((AQ3+BG3+BW3+CM3+DC3+DS3)>0,1,0) -> 0 | AA3: =IF(SUM(AR3+BH3+BX3+CN3+DD3+DT3)>0,1,0) -> 0 | AB3: 1 | AC3: 0 | AD3: 0 | AE3: 0 | AF3: 1 | AG3: 0 | AH3: NA | AI3: 1930 | AJ3: NA | AK3: 1 | AL3: 0 | AM3: 0 | AN3: 1 | AO3: lost | AP3: 0 | AQ3: 0 | AR3: 0 | AS3: NA | AT3: NA | AU3: NA | AV3: NA | AW3: NA | AX3: NA | AY3: NA | AZ3: NA | BA3: NA | BB3: NA | BC3: NA | BD3: NA | BE3: unknown | BF3: 0 | BG3: 0 | BH3: 0 | BI3: NA | BJ3: NA | BK3: NA | BL3: NA | BM3: NA | BN3: NA | BO3: NA | BP3: NA | BQ3: NA | BR3: NA | BS3: NA | BT3: NA | BU3: unknown | BV3: 0 | BW3: 0 | BX3: 0 | BY3: NA | BZ3: NA | CA3: NA | CB3: NA | CC3: NA | CD3: NA | CE3: NA | CF3: NA | CG3: NA | CH3: NA | CI3: NA | CJ3: NA | CK3: unknown | CL3: 0 | CM3: 0 | CN3: 0 | CO3: NA | CP3: NA | CQ3: NA | CR3: NA | CS3: NA | CT3: NA | CU3: NA | CV3: NA | CW3: NA | CX3: NA | CY3: NA | CZ3: NA | DA3: unknown | DB3: 0 | DC3: 0 | DD3: 0 | DE3: NA | DF3: NA | DG3: NA | DH3: NA | DI3: NA | DJ3: NA | DK3: NA | DL3: NA | DM3: NA | DN3: NA | DO3: NA | DP3: NA | DQ3: unknown | DR3: 0 | DS3: 0 | DT3: 0 | DU3: NA | DV3: NA | DW3: NA | DX3: NA | DY3: NA | DZ3: NA | EA3: NA | EB3: NA | EC3: NA | ED3: NA | EE3: NA | EF3: NA | EG3: unknown | EH3: - | EI3: NA | EJ3: =MAX(DV3,DF3,CP3,BZ3,BJ3,AT3,AI3) -> 1930 | EK3: NA | EL3: =IF(EM3=0,"NA",AVERAGE(ED3,DN3,CX3)) -> NA | EM3: =DR3+DB3+CL3 -> 0 | EN3: unknown | EO3: NA | EP3: =BV3+BF3 -> 0 | EQ3: unknown | ER3: =BB3 -> NA | ES3: =AP3 -> 0 | ET3: =BE3 -> unknown | EU3: =ES3+EP3 -> 0 | EV3: unknown | EW3: =AO3 -> lost | EX3: decrease | EY3: decrease | EZ3: =IF(FC3+HT3>0,1,0) -> 1 | FA3: =IF(FD3>1 OR(HU3>1),1,0) -> 0 | FB3: =IF(FC3+HT3=2,1,0) -> 0 | FC3: =IF(SUM(FH3,FV3,GK3,GS3,HE3,HL3,HP3)>0,1,0) -> 1 | FD3: =SUM(FH3,FV3,GK3,GS3,HE3,HL3,HP3) -> 1 | FE3: 0 | FF3: NA | FG3: NA | FH3: =IF(SUM(FL3:FU3)>0,1,0) -> 0 | FI3: NA | FJ3: NA | FK3: NA | FL3: 0 | FM3: 0 | FN3: 0 | FO3: 0 | FP3: 0 | FQ3: 0 | FR3: 0 | FS3: 0 | FT3: 0 | FU3: 0 | FV3: =IF(SUM(FZ3:GJ3)>0,1,0) -> 0 | FW3: NA | FX3: NA | FY3: NA | FZ3: 0 | GA3: 0 | GB3: 0 | GC3: 0 | GD3: 0 | GE3: 0 | GF3: 0 | GG3: 0 | GH3: 0 | GI3: 0 | GJ3: 0 | GK3: =IF(SUM(GO3:GR3)>0,1,0) -> 0 | GL3: NA | GM3: NA | GN3: NA | GO3: 0 | GP3: 0 | GQ3: 0 | GR3: 0 | GS3: =IF(SUM(GW3:HD3)>0,1,0) -> 0 | GT3: NA | GU3: NA | GV3: NA | GW3: 0 | GX3: 0 | GY3: 0 | GZ3: 0 | HA3: 0 | HB3: 0 | HC3: 0 | HD3: 0 | HE3: =IF(SUM(HI3:HK3)>0,1,0) -> 0 | HF3: NA | HG3: NA | HH3: NA | HI3: 0 | HJ3: 0 | HK3: 0 | HL3: 1 | HM3: NA | HN3: 1930 | HO3: NA | HP3: 0 | HQ3: NA | HR3: NA | HS3: NA | HT3: =IF(HX3+IG3>0,1,0) -> 0 | HU3: =SUM(HX3,IG3) -> 0 | HV3: 0 | HW3: NA | HX3: =IF(SUM(IB3:IF3)>0,1,0) -> 0 | HY3: NA | HZ3: NA | IA3: NA | IB3: 0 | IC3: 0 | ID3: 0 | IE3: 0 | IF3: 0 | IG3: 0 | IH3: NA | II3: NA | IJ3: NA
A4: 3 | B4: Cochón and Sánchez 2005 | C4: =IF(D4>0,1,0) -> 0 | F4: - | G4: Ría de Pontevedra | H4: 42.41634 | I4: -8.6966 | J4: good | K4: Atlantic | L4: Bay of Biscay and Atlantic Iberian Coast | M4: Spain | N4: Zn | O4: none | P4: 0 | Q4: 0 | R4: 0 | S4: 1 | T4: intertidal | U4: NA | V4: NA | W4: NA | X4: - | Y4: =IF(Z4=1,0,1) -> 0 | Z4: =IF((AQ4+BG4+BW4+CM4+DC4+DS4)>0,1,0) -> 1 | AA4: =IF(SUM(AR4+BH4+BX4+CN4+DD4+DT4)>0,1,0) -> 1 | AB4: 0 | AC4: 1 | AD4: 0 | AE4: 0 | AF4: 1 | AG4: 0 | AH4: 1947 | AI4: 2001 | AJ4: 54 | AK4: 1 | AL4: 1 | AM4: 0 | AN4: 0 | AO4: persists | AP4: 1 | AQ4: 1 | AR4: 1 | AS4: 1947 | AT4: 2001 | AU4: 54 | AV4: 1 | AW4: 1 | AX4: 247.98 | AY4: 80.04 | AZ4: 247.98 | BA4: 2 | BB4: 32.27679652 | BC4: -167.94 | BD4: -2.094114052 | BE4: decrease | BF4: 0 | BG4: 0 | BH4: 0 | BI4: NA | BJ4: NA | BK4: NA | BL4: NA | BM4: NA | BN4: NA | BO4: NA | BP4: NA | BQ4: NA | BR4: NA | BS4: NA | BT4: NA | BU4: unknown | BV4: 0 | BW4: 0 | BX4: 0 | BY4: NA | BZ4: NA | CA4: NA | CB4: NA | CC4: NA | CD4: NA | CE4: NA | CF4: NA | CG4: NA | CH4: NA | CI4: NA | CJ4: NA | CK4: unknown | CL4: 0 | CM4: 0 | CN4: 0 | CO4: NA | CP4: NA | CQ4: NA | CR4: NA | CS4: NA | CT4: NA | CU4: NA | CV4: NA | CW4: NA | CX4: NA | CY4: NA | CZ4: NA | DA4: unknown | DB4: 0 | DC4: 0 | DD4: 0 | DE4: NA | DF4: NA | DG4: NA | DH4: NA | DI4: NA | DJ4: NA | DK4: NA | DL4: NA | DM4: NA | DN4: NA | DO4: NA | DP4: NA | DQ4: unknown | DR4: 0 | DS4: 0 | DT4: 0 | DU4: NA | DV4: NA | DW4: NA | DX4: NA | DY4: NA | DZ4: NA | EA4: NA | EB4: NA | EC4: NA | ED4: NA | EE4: NA | EF4: NA | EG4: unknown | EH4: - | EI4: =MIN(DU4,DE4,CO4,BY4,BI4,AS4,AH4) -> 1947 | EJ4: =MAX(DV4,DF4,CP4,BZ4,BJ4,AT4,AI4) -> 2001 | EK4: =EJ4-EI4 -> 54 | EL4: =IF(EM4=0,"NA",AVERAGE(ED4,DN4,CX4)) -> NA | EM4: =DR4+DB4+CL4 -> 0 | EN4: unknown | EO4: NA | EP4: =BV4+BF4 -> 0 | EQ4: unknown | ER4: =BB4 -> 32.27679652 | ES4: =AP4 -> 1 | ET4: =BE4 -> decrease | EU4: =ES4+EP4 -> 1 | EV4: =ET4 -> decrease | EW4: =AO4 -> persists | EX4: decrease | EY4: =EV4 -> decrease | EZ4: =IF(FC4+HT4>0,1,0) -> 1 | FA4: =IF(FD4>1 OR(HU4>1),1,0) -> 1 | FB4: =IF(FC4+HT4=2,1,0) -> 0 | FC4: =IF(SUM(FH4,FV4,GK4,GS4,HE4,HL4,HP4)>0,1,0) -> 1 | FD4: =SUM(FH4,FV4,GK4,GS4,HE4,HL4,HP4) -> 2 | FE4: 1 | FF4: -167.94 | FG4: NA | FH4: =IF(SUM(FL4:FU4)>0,1,0) -> 0 | FI4: NA | FJ4: NA | FK4: NA | FL4: 0 | FM4: 0 | FN4: 0 | FO4: 0 | FP4: 0 | FQ4: 0 | FR4: 0 | FS4: 0 | FT4: 0 | FU4: 0 | FV4: =IF(SUM(FZ4:GJ4)>0,1,0) -> 1 | FW4: -167.94 | FX4: NA | FY4: NA | FZ4: 1 | GA4: 0 | GB4: 0 | GC4: 1 | GD4: 0 | GE4: 0 | GF4: 0 | GG4: 0 | GH4: 0 | GI4: 0 | GJ4: 0 | GK4: =IF(SUM(GO4:GR4)>0,1,0) -> 0 | GL4: NA | GM4: NA | GN4: NA | GO4: 0 | GP4: 0 | GQ4: 0 | GR4: 0 | GS4: =IF(SUM(GW4:HD4)>0,1,0) -> 1 | GT4: NA | GU4: NA | GV4: NA | GW4: 0 | GX4: 0 | GY4: 0 | GZ4: 0 | HA4: 1 | HB4: 0 | HC4: 0 | HD4: 0 | HE4: =IF(SUM(HI4:HK4)>0,1,0) -> 0 | HF4: NA | HG4: NA | HH4: NA | HI4: 0 | HJ4: 0 | HK4: 0 | HL4: 0 | HM4: NA | HN4: NA | HO4: NA | HP4: 0 | HQ4: NA | HR4: NA | HS4: NA | HT4: =IF(HX4+IG4>0,1,0) -> 0 | HU4: =SUM(HX4,IG4) -> 0 | HV4: 0 | HW4: NA | HX4: =IF(SUM(IB4:IF4)>0,1,0) -> 0 | HY4: NA | HZ4: NA | IA4: NA | IB4: 0 | IC4: 0 | ID4: 0 | IE4: 0 | IF4: 0 | IG4: 0 | IH4: NA | II4: NA | IJ4: NA
A5: 4 | B5: Álvarez-Díaz and González-Fernández 1985 | C5: =IF(D5>0,1,0) -> 0 | F5: - | G5: Marisma del Miño | H5: 43.35798 | I5: -8.20603 | J5: fair | K5: Atlantic | L5: Bay of Biscay and Atlantic Iberian Coast | M5: Spain | N5: Zn | O5: Zm | P5: 0 | Q5: 1 | R5: 0 | S5: 1 | T5: intertidal | U5: NA | V5: NA | W5: NA | X5: - | Y5: =IF(Z5=1,0,1) -> 1 | Z5: =IF((AQ5+BG5+BW5+CM5+DC5+DS5)>0,1,0) -> 0 | AA5: =IF(SUM(AR5+BH5+BX5+CN5+DD5+DT5)>0,1,0) -> 0 | AB5: 1 | AC5: 0 | AD5: 0 | AE5: 0 | AF5: 1 | AG5: 0 | AH5: 1967 | AI5: 1982 | AJ5: 15 | AK5: 1 | AL5: 0 | AM5: 0 | AN5: 1 | AO5: lost | AP5: 0 | AQ5: 0 | AR5: 0 | AS5: NA | AT5: NA | AU5: NA | AV5: NA | AW5: NA | AX5: NA | AY5: NA | AZ5: NA | BA5: NA | BB5: NA | BC5: NA | BD5: NA | BE5: unknown | BF5: 0 | BG5: 0 | BH5: 0 | BI5: NA | BJ5: NA | BK5: NA | BL5: NA | BM5: NA | BN5: NA | BO5: NA | BP5: NA | BQ5: NA | BR5: NA | BS5: NA | BT5: NA | BU5: unknown | BV5: 0 | BW5: 0 | BX5: 0 | BY5: NA | BZ5: NA | CA5: NA | CB5: NA | CC5: NA | CD5: NA | CE5: NA | CF5: NA | CG5: NA | CH5: NA | CI5: NA | CJ5: NA | CK5: unknown | CL5: 0 | CM5: 0 | CN5: 0 | CO5: NA | CP5: NA | CQ5: NA | CR5: NA | CS5: NA | CT5: NA | CU5: NA | CV5: NA | CW5: NA | CX5: NA | CY5: NA | CZ5: NA | DA5: unknown | DB5: 0 | DC5: 0 | DD5: 0 | DE5: NA | DF5: NA | DG5: NA | DH5: NA | DI5: NA | DJ5: NA | DK5: NA | DL5: NA | DM5: NA | DN5: NA | DO5: NA | DP5: NA | DQ5: unknown | DR5: 0 | DS5: 0 | DT5: 0 | DU5: NA | DV5: NA | DW5: NA | DX5: NA | DY5: NA | DZ5: NA | EA5: NA | EB5: NA | EC5: NA | ED5: NA | EE5: NA | EF5: NA | EG5: unknown | EH5: - | EI5: =MIN(DU5,DE5,CO5,BY5,BI5,AS5,AH5) -> 1967 | EJ5: =MAX(DV5,DF5,CP5,BZ5,BJ5,AT5,AI5) -> 1982 | EK5: =EJ5-EI5 -> 15 | EL5: =IF(EM5=0,"NA",AVERAGE(ED5,DN5,CX5)) -> NA | EM5: =DR5+DB5+CL5 -> 0 | EN5: unknown | EO5: NA | EP5: =BV5+BF5 -> 0 | EQ5: unknown | ER5: =BB5 -> NA | ES5: =AP5 -> 0 | ET5: =BE5 -> unknown | EU5: =ES5+EP5 -> 0 | EV5: unknown | EW5: =AO5 -> lost | EX5: decrease | EY5: decrease | EZ5: =IF(FC5+HT5>0,1,0) -> 0 | FA5: =IF(FD5>1 OR(HU5>1),1,0) -> 0 | FB5: =IF(FC5+HT5=2,1,0) -> 0 | FC5: =IF(SUM(FH5,FV5,GK5,GS5,HE5,HL5,HP5)>0,1,0) -> 0 | FD5: =SUM(FH5,FV5,GK5,GS5,HE5,HL5,HP5) -> 0 | FE5: 0 | FF5: NA | FG5: NA | FH5: =IF(SUM(FL5:FU5)>0,1,0) -> 0 | FI5: NA | FJ5: NA | FK5: NA | FL5: 0 | FM5: 0 | FN5: 0 | FO5: 0 | FP5: 0 | FQ5: 0 | FR5: 0 | FS5: 0 | FT5: 0 | FU5: 0 | FV5: =IF(SUM(FZ5:GJ5)>0,1,0) -> 0 | FW5: NA | FX5: NA | FY5: NA | FZ5: 0 | GA5: 0 | GB5: 0 | GC5: 0 | GD5: 0 | GE5: 0 | GF5: 0 | GG5: 0 | GH5: 0 | GI5: 0 | GJ5: 0 | GK5: =IF(SUM(GO5:GR5)>0,1,0) -> 0 | GL5: NA | GM5: NA | GN5: NA | GO5: 0 | GP5: 0 | GQ5: 0 | GR5: 0 | GS5: =IF(SUM(GW5:HD5)>0,1,0) -> 0 | GT5: NA | GU5: NA | GV5: NA | GW5: 0 | GX5: 0 | GY5: 0 | GZ5: 0 | HA5: 0 | HB5: 0 | HC5: 0 | HD5: 0 | HE5: =IF(SUM(HI5:HK5)>0,1,0) -> 0 | HF5: NA | HG5: NA | HH5: NA | HI5: 0 | HJ5: 0 | HK5: 0 | HL5: 0 | HM5: NA | HN5: NA | HO5: NA | HP5: 0 | HQ5: NA | HR5: NA | HS5: NA | HT5: =IF(HX5+IG5>0,1,0) -> 0 | HU5: =SUM(HX5,IG5) -> 0 | HV5: 0 | HW5: NA | HX5: =IF(SUM(IB5:IF5)>0,1,0) -> 0 | HY5: NA | HZ5: NA | IA5: NA | IB5: 0 | IC5: 0 | ID5: 0 | IE5: 0 | IF5: 0 | IG5: 0 | IH5: NA | II5: NA | IJ5: NA
A6: 5 | B6: Castellanos et al. 2003 | C6: =IF(D6>0,1,0) -> 0 | F6: - | G6: Ría de Foz | H6: 43.55214 | I6: -7.25024 | J6: good | K6: Atlantic | L6: Bay of Biscay and Atlantic Iberian Coast | M6: Spain | N6: Zn | O6: none | P6: 0 | Q6: 0 | R6: 0 | S6: 1 | T6: intertidal | U6: NA | V6: NA | W6: NA | X6: - | Y6: =IF(Z6=1,0,1) -> 0 | Z6: =IF((AQ6+BG6+BW6+CM6+DC6+DS6)>0,1,0) -> 1 | AA6: =IF(SUM(AR6+BH6+BX6+CN6+DD6+DT6)>0,1,0) -> 1 | AB6: 0 | AC6: 1 | AD6: 0 | AE6: 0 | AF6: 1 | AG6: 0 | AH6: 1984 | AI6: 2002 | AJ6: 18 | AK6: 1 | AL6: 1 | AM6: 0 | AN6: 0 | AO6: persists | AP6: 1 | AQ6: 1 | AR6: 1 | AS6: 1984 | AT6: 2002 | AU6: 18 | AV6: 1 | AW6: 1 | AX6: 76.9 | AY6: 101.4 | AZ6: 101.4 | BA6: 2 | BB6: 131.8595579 | BC6: 24.5 | BD6: 1.536484526 | BE6: increase | BF6: 0 | BG6: 0 | BH6: 0 | BI6: NA | BJ6: NA | BK6: NA | BL6: NA | BM6: NA | BN6: NA | BO6: NA | BP6: NA | BQ6: NA | BR6: NA | BS6: NA | BT6: NA | BU6: unknown | BV6: 0 | BW6: 0 | BX6: 0 | BY6: NA | BZ6: NA | CA6: NA | CB6: NA | CC6: NA | CD6: NA | CE6: NA | CF6: NA | CG6: NA | CH6: NA | CI6: NA | CJ6: NA | CK6: unknown | CL6: 0 | CM6: 0 | CN6: 0 | CO6: NA | CP6: NA | CQ6: NA | CR6: NA | CS6: NA | CT6: NA | CU6: NA | CV6: NA | CW6: NA | CX6: NA | CY6: NA | CZ6: NA | DA6: unknown | DB6: 0 | DC6: 0 | DD6: 0 | DE6: NA | DF6: NA | DG6: NA | DH6: NA | DI6: NA | DJ6: NA | DK6: NA | DL6: NA | DM6: NA | DN6: NA | DO6: NA | DP6: NA | DQ6: unknown | DR6: 0 | DS6: 0 | DT6: 0 | DU6: NA | DV6: NA | DW6: NA | DX6: NA | DY6: NA | DZ6: NA | EA6: NA | EB6: NA | EC6: NA | ED6: NA | EE6: NA | EF6: NA | EG6: unknown | EH6: - | EI6: =MIN(DU6,DE6,CO6,BY6,BI6,AS6,AH6) -> 1984 | EJ6: =MAX(DV6,DF6,CP6,BZ6,BJ6,AT6,AI6) -> 2002 | EK6: =EJ6-EI6 -> 18 | EL6: =IF(EM6=0,"NA",AVERAGE(ED6,DN6,CX6)) -> NA | EM6: =DR6+DB6+CL6 -> 0 | EN6: unknown | EO6: NA | EP6: =BV6+BF6 -> 0 | EQ6: unknown | ER6: =BB6 -> 131.8595579 | ES6: =AP6 -> 1 | ET6: =BE6 -> increase | EU6: =ES6+EP6 -> 1 | EV6: =ET6 -> increase | EW6: =AO6 -> persists | EX6: increase | EY6: =EV6 -> increase | EZ6: =IF(FC6+HT6>0,1,0) -> 1 | FA6: =IF(FD6>1 OR(HU6>1),1,0) -> 0 | FB6: =IF(FC6+HT6=2,1,0) -> 0 | FC6: =IF(SUM(FH6,FV6,GK6,GS6,HE6,HL6,HP6)>0,1,0) -> 0 | FD6: =SUM(FH6,FV6,GK6,GS6,HE6,HL6,HP6) -> 0 | FE6: 0 | FF6: NA | FG6: NA | FH6: =IF(SUM(FL6:FU6)>0,1,0) -> 0 | FI6: NA | FJ6: NA | FK6: NA | FL6: 0 | FM6: 0 | FN6: 0 | FO6: 0 | FP6: 0 | FQ6: 0 | FR6: 0 | FS6: 0 | FT6: 0 | FU6: 0 | FV6: =IF(SUM(FZ6:GJ6)>0,1,0) -> 0 | FW6: NA | FX6: NA | FY6: NA | FZ6: 0 | GA6: 0 | GB6: 0 | GC6: 0 | GD6: 0 | GE6: 0 | GF6: 0 | GG6: 0 | GH6: 0 | GI6: 0 | GJ6: 0 | GK6: =IF(SUM(GO6:GR6)>0,1,0) -> 0 | GL6: NA | GM6: NA | GN6: NA | GO6: 0 | GP6: 0 | GQ6: 0 | GR6: 0 | GS6: =IF(SUM(GW6:HD6)>0,1,0) -> 0 | GT6: NA | GU6: NA | GV6: NA | GW6: 0 | GX6: 0 | GY6: 0 | GZ6: 0 | HA6: 0 | HB6: 0 | HC6: 0 | HD6: 0 | HE6: =IF(SUM(HI6:HK6)>0,1,0) -> 0 | HF6: NA | HG6: NA | HH6: NA | HI6: 0 | HJ6: 0 | HK6: 0 | HL6: 0 | HM6: NA | HN6: NA | HO6: NA | HP6: 0 | HQ6: NA | HR6: NA | HS6: NA | HT6: =IF(HX6+IG6>0,1,0) -> 1 | HU6: =SUM(HX6,IG6) -> 1 | HV6: 1 | HW6: 24.5 | HX6: =IF(SUM(IB6:IF6)>0,1,0) -> 0 | HY6: NA | HZ6: NA | IA6: NA | IB6: 0 | IC6: 0 | ID6: 0 | IE6: 0 | IF6: 0 | IG6: 1 | IH6: 24.5 | II6: 2002 | IJ6: NA
A7: 6 | B7: Boström et al. 2003 | C7: =IF(D7>0,1,0) -> 0 | F7: - | G7: Curonian Spit | H7: 55.413339 | I7: 21.167958 | J7: bad | K7: Baltic | L7: Baltic Sea | M7: Lithuania | N7: Zm | O7: none | P7: 0 | Q7: 1 | R7: 0 | S7: 0 | T7: unknown | U7: NA | V7: NA | W7: NA | X7: - | Y7: =IF(Z7=1,0,1) -> 1 | Z7: =IF((AQ7+BG7+BW7+CM7+DC7+DS7)>0,1,0) -> 0 | AA7: =IF(SUM(AR7+BH7+BX7+CN7+DD7+DT7)>0,1,0) -> 0 | AB7: 1 | AC7: 0 | AD7: 0 | AE7: 0 | AF7: 1 | AG7: 0 | AH7: NA | AI7: 1997 | AJ7: NA | AK7: 1 | AL7: 0 | AM7: 0 | AN7: 1 | AO7: lost | AP7: 0 | AQ7: 0 | AR7: 0 | AS7: NA | AT7: NA | AU7: NA | AV7: NA | AW7: NA | AX7: NA | AY7: NA | AZ7: NA | BA7: NA | BB7: NA | BC7: NA | BD7: NA | BE7: unknown | BF7: 0 | BG7: 0 | BH7: 0 | BI7: NA | BJ7: NA | BK7: NA | BL7: NA | BM7: NA | BN7: NA | BO7: NA | BP7: NA | BQ7: NA | BR7: NA | BS7: NA | BT7: NA | BU7: unknown | BV7: 0 | BW7: 0 | BX7: 0 | BY7: NA | BZ7: NA | CA7: NA | CB7: NA | CC7: NA | CD7: NA | CE7: NA | CF7: NA | CG7: NA | CH7: NA | CI7: NA | CJ7: NA | CK7: unknown | CL7: 0 | CM7: 0 | CN7: 0 | CO7: NA | CP7: NA | CQ7: NA | CR7: NA | CS7: NA | CT7: NA | CU7: NA | CV7: NA | CW7: NA | CX7: NA | CY7: NA | CZ7: NA | DA7: unknown | DB7: 0 | DC7: 0 | DD7: 0 | DE7: NA | DF7: NA | DG7: NA | DH7: NA | DI7: NA | DJ7: NA | DK7: NA | DL7: NA | DM7: NA | DN7: NA | DO7: NA | DP7: NA | DQ7: unknown | DR7: 0 | DS7: 0 | DT7: 0 | DU7: NA | DV7: NA | DW7: NA | DX7: NA | DY7: NA | DZ7: NA | EA7: NA | EB7: NA | EC7: NA | ED7: NA | EE7: NA | EF7: NA | EG7: unknown | EH7: - | EI7: NA | EJ7: =MAX(DV7,DF7,CP7,BZ7,BJ7,AT7,AI7) -> 1997 | EK7: NA | EL7: =IF(EM7=0,"NA",AVERAGE(ED7,DN7,CX7)) -> NA | EM7: =DR7+DB7+CL7 -> 0 | EN7: unknown | EO7: NA | EP7: =BV7+BF7 -> 0 | EQ7: unknown | ER7: =BB7 -> NA | ES7: =AP7 -> 0 | ET7: =BE7 -> unknown | EU7: =ES7+EP7 -> 0 | EV7: unknown | EW7: =AO7 -> lost | EX7: decrease | EY7: decrease | EZ7: =IF(FC7+HT7>0,1,0) -> 0 | FA7: =IF(FD7>1 OR(HU7>1),1,0) -> 0 | FB7: =IF(FC7+HT7=2,1,0) -> 0 | FC7: =IF(SUM(FH7,FV7,GK7,GS7,HE7,HL7,HP7)>0,1,0) -> 0 | FD7: =SUM(FH7,FV7,GK7,GS7,HE7,HL7,HP7) -> 0 | FE7: 0 | FF7: NA | FG7: NA | FH7: =IF(SUM(FL7:FU7)>0,1,0) -> 0 | FI7: NA | FJ7: NA | FK7: NA | FL7: 0 | FM7: 0 | FN7: 0 | FO7: 0 | FP7: 0 | FQ7: 0 | FR7: 0 | FS7: 0 | FT7: 0 | FU7: 0 | FV7: =IF(SUM(FZ7:GJ7)>0,1,0) -> 0 | FW7: NA | FX7: NA | FY7: NA | FZ7: 0 | GA7: 0 | GB7: 0 | GC7: 0 | GD7: 0 | GE7: 0 | GF7: 0 | GG7: 0 | GH7: 0 | GI7: 0 | GJ7: 0 | GK7: =IF(SUM(GO7:GR7)>0,1,0) -> 0 | GL7: NA | GM7: NA | GN7: NA | GO7: 0 | GP7: 0 | GQ7: 0 | GR7: 0 | GS7: =IF(SUM(GW7:HD7)>0,1,0) -> 0 | GT7: NA | GU7: NA | GV7: NA | GW7: 0 | GX7: 0 | GY7: 0 | GZ7: 0 | HA7: 0 | HB7: 0 | HC7: 0 | HD7: 0 | HE7: =IF(SUM(HI7:HK7)>0,1,0) -> 0 | HF7: NA | HG7: NA | HH7: NA | HI7: 0 | HJ7: 0 | HK7: 0 | HL7: 0 | HM7: NA | HN7: NA | HO7: NA | HP7: 0 | HQ7: NA | HR7: NA | HS7: NA | HT7: =IF(HX7+IG7>0,1,0) -> 0 | HU7: =SUM(HX7,IG7) -> 0 | HV7: 0 | HW7: NA | HX7: =IF(SUM(IB7:IF7)>0,1,0) -> 0 | HY7: NA | HZ7: NA | IA7: NA | IB7: 0 | IC7: 0 | ID7: 0 | IE7: 0 | IF7: 0 | IG7: 0 | IH7: NA | II7: NA | IJ7: NA
A8: 7 | B8: Whelan 1986 (in Hily et al. 2003) | C8: =IF(D8>0,1,0) -> 0 | F8: - | G8: Ventry Bay | H8: 52.124179 | I8: -10.36575 | J8: bad | K8: Atlantic | L8: Celtic Seas | M8: Ireland | N8: Zm | O8: none | P8: 0 | Q8: 1 | R8: 0 | S8: 0 | T8: subtidal | U8: NA | V8: NA | W8: -13 | X8: - | Y8: =IF(Z8=1,0,1) -> 0 | Z8: =IF((AQ8+BG8+BW8+CM8+DC8+DS8)>0,1,0) -> 1 | AA8: =IF(SUM(AR8+BH8+BX8+CN8+DD8+DT8)>0,1,0) -> 0 | AB8: 0 | AC8: 1 | AD8: 0 | AE8: 0 | AF8: 1 | AG8: 0 | AH8: 1978 | AI8: 1980 | AJ8: 2 | AK8: 1 | AL8: 1 | AM8: 0 | AN8: 0 | AO8: persists | AP8: 0 | AQ8: 0 | AR8: 0 | AS8: NA | AT8: NA | AU8: NA | AV8: NA | AW8: NA | AX8: NA | AY8: NA | AZ8: NA | BA8: NA | BB8: NA | BC8: NA | BD8: NA | BE8: unknown | BF8: 1 | BG8: 1 | BH8: 0 | BI8: 1978 | BJ8: 1980 | BK8: =BJ8-BI8 -> 2 | BL8: 1 | BM8: 1 | BN8: -13 | BO8: -10 | BP8: -13 | BQ8: 2 | BR8: 76.92307692 | BS8: -3 | BT8: -13.11821322 | BU8: decrease | BV8: 0 | BW8: 0 | BX8: 0 | BY8: NA | BZ8: NA | CA8: NA | CB8: NA | CC8: NA | CD8: NA | CE8: NA | CF8: NA | CG8: NA | CH8: NA | CI8: NA | CJ8: NA | CK8: unknown | CL8: 0 | CM8: 0 | CN8: 0 | CO8: NA | CP8: NA | CQ8: NA | CR8: NA | CS8: NA | CT8: NA | CU8: NA | CV8: NA | CW8: NA | CX8: NA | CY8: NA | CZ8: NA | DA8: unknown | DB8: 0 | DC8: 0 | DD8: 0 | DE8: NA | DF8: NA | DG8: NA | DH8: NA | DI8: NA | DJ8: NA | DK8: NA | DL8: NA | DM8: NA | DN8: NA | DO8: NA | DP8: NA | DQ8: unknown | DR8: 0 | DS8: 0 | DT8: 0 | DU8: NA | DV8: NA | DW8: NA | DX8: NA | DY8: NA | DZ8: NA | EA8: NA | EB8: NA | EC8: NA | ED8: NA | EE8: NA | EF8: NA | EG8: unknown | EH8: - | EI8: =MIN(DU8,DE8,CO8,BY8,BI8,AS8,AH8) -> 1978 | EJ8: =MAX(DV8,DF8,CP8,BZ8,BJ8,AT8,AI8) -> 1980 | EK8: =EJ8-EI8 -> 2 | EL8: =IF(EM8=0,"NA",AVERAGE(ED8,DN8,CX8)) -> NA | EM8: =DR8+DB8+CL8 -> 0 | EN8: unknown | EO8: =AVERAGE(CH8,BR8) -> 76.92307692 | EP8: =BV8+BF8 -> 1 | EQ8: =IF(EO8>125,"increase",IF(EO8<75,"decrease","no change")) -> no change | ER8: =BB8 -> NA | ES8: =AP8 -> 0 | ET8: =BE8 -> unknown | EU8: =ES8+EP8 -> 1 | EV8: =EQ8 -> no change | EW8: =AO8 -> persists | EX8: no change | EY8: =EV8 -> no change | EZ8: =IF(FC8+HT8>0,1,0) -> 0 | FA8: =IF(FD8>1 OR(HU8>1),1,0) -> 0 | FB8: =IF(FC8+HT8=2,1,0) -> 0 | FC8: =IF(SUM(FH8,FV8,GK8,GS8,HE8,HL8,HP8)>0,1,0) -> 0 | FD8: =SUM(FH8,FV8,GK8,GS8,HE8,HL8,HP8) -> 0 | FE8: 0 | FF8: NA | FG8: NA | FH8: =IF(SUM(FL8:FU8)>0,1,0) -> 0 | FI8: NA | FJ8: NA | FK8: NA | FL8: 0 | FM8: 0 | FN8: 0 | FO8: 0 | FP8: 0 | FQ8: 0 | FR8: 0 | FS8: 0 | FT8: 0 | FU8: 0 | FV8: =IF(SUM(FZ8:GJ8)>0,1,0) -> 0 | FW8: NA | FX8: NA | FY8: NA | FZ8: 0 | GA8: 0 | GB8: 0 | GC8: 0 | GD8: 0 | GE8: 0 | GF8: 0 | GG8: 0 | GH8: 0 | GI8: 0 | GJ8: 0 | GK8: =IF(SUM(GO8:GR8)>0,1,0) -> 0 | GL8: NA | GM8: NA | GN8: NA | GO8: 0 | GP8: 0 | GQ8: 0 | GR8: 0 | GS8: =IF(SUM(GW8:HD8)>0,1,0) -> 0 | GT8: NA | GU8: NA | GV8: NA | GW8: 0 | GX8: 0 | GY8: 0 | GZ8: 0 | HA8: 0 | HB8: 0 | HC8: 0 | HD8: 0 | HE8: =IF(SUM(HI8:HK8)>0,1,0) -> 0 | HF8: NA | HG8: NA | HH8: NA | HI8: 0 | HJ8: 0 | HK8: 0 | HL8: 0 | HM8: NA | HN8: NA | HO8: NA | HP8: 0 | HQ8: NA | HR8: NA | HS8: NA | HT8: =IF(HX8+IG8>0,1,0) -> 0 | HU8: =SUM(HX8,IG8) -> 0 | HV8: 0 | HW8: NA | HX8: =IF(SUM(IB8:IF8)>0,1,0) -> 0 | HY8: NA | HZ8: NA | IA8: NA | IB8: 0 | IC8: 0 | ID8: 0 | IE8: 0 | IF8: 0 | IG8: 0 | IH8: NA | II8: NA | IJ8: NA
A9: 8 | B9: Tagliapietra et al. 1998, Rismonto and Mion 2008 | C9: =IF(D9>0,1,0) -> 0 | F9: - | G9: Venice Lagoon | H9: 45.39453 | I9: 12.304 | J9: good | K9: Mediterranean | L9: Adriatic Sea | M9: Italy | N9: Zn | O9: none | P9: 0 | Q9: 0 | R9: 0 | S9: 1 | T9: unknown | U9: NA | V9: NA | W9: NA | X9: - | Y9: =IF(Z9=1,0,1) -> 0 | Z9: =IF((AQ9+BG9+BW9+CM9+DC9+DS9)>0,1,0) -> 1 | AA9: =IF(SUM(AR9+BH9+BX9+CN9+DD9+DT9)>0,1,0) -> 0 | AB9: 0 | AC9: 1 | AD9: 0 | AE9: 0 | AF9: 1 | AG9: 0 | AH9: 2002 | AI9: 2004 | AJ9: 2 | AK9: 1 | AL9: 1 | AM9: 0 | AN9: 0 | AO9: persists | AP9: 1 | AQ9: 1 | AR9: 0 | AS9: 2002 | AT9: 2004 | AU9: 2 | AV9: 1 | AW9: 1 | AX9: 42 | AY9: 14 | AZ9: 42 | BA9: 3 | BB9: 33.33333333 | BC9: -28 | BD9: -54.93061443 | BE9: decrease | BF9: 0 | BG9: 0 | BH9: 0 | BI9: NA | BJ9: NA | BK9: NA | BL9: NA | BM9: NA | BN9: NA | BO9: NA | BP9: NA | BQ9: NA | BR9: NA | BS9: NA | BT9: NA | BU9: unknown | BV9: 0 | BW9: 0 | BX9: 0 | BY9: NA | BZ9: NA | CA9: NA | CB9: NA | CC9: NA | CD9: NA | CE9: NA | CF9: NA | CG9: NA | CH9: NA | CI9: NA | CJ9: NA | CK9: unknown | CL9: 0 | CM9: 0 | CN9: 0 | CO9: NA | CP9: NA | CQ9: NA | CR9: NA | CS9: NA | CT9: NA | CU9: NA | CV9: NA | CW9: NA | CX9: NA | CY9: NA | CZ9: NA | DA9: unknown | DB9: 0 | DC9: 0 | DD9: 0 | DE9: NA | DF9: NA | DG9: NA | DH9: NA | DI9: NA | DJ9: NA | DK9: NA | DL9: NA | DM9: NA | DN9: NA | DO9: NA | DP9: NA | DQ9: unknown | DR9: 0 | DS9: 0 | DT9: 0 | DU9: NA | DV9: NA | DW9: NA | DX9: NA | DY9: NA | DZ9: NA | EA9: NA | EB9: NA | EC9: NA | ED9: NA | EE9: NA | EF9: NA | EG9: unknown | EH9: - | EI9: =MIN(DU9,DE9,CO9,BY9,BI9,AS9,AH9) -> 2002 | EJ9: =MAX(DV9,DF9,CP9,BZ9,BJ9,AT9,AI9) -> 2004 | EK9: =EJ9-EI9 -> 2 | EL9: =IF(EM9=0,"NA",AVERAGE(ED9,DN9,CX9)) -> NA | EM9: =DR9+DB9+CL9 -> 0 | EN9: unknown | EO9: NA | EP9: =BV9+BF9 -> 0 | EQ9: unknown | ER9: =BB9 -> 33.33333333 | ES9: =AP9 -> 1 | ET9: =BE9 -> decrease | EU9: =ES9+EP9 -> 1 | EV9: =ET9 -> decrease | EW9: =AO9 -> persists | EX9: decrease | EY9: =EV9 -> decrease | EZ9: =IF(FC9+HT9>0,1,0) -> 1 | FA9: =IF(FD9>1 OR(HU9>1),1,0) -> 1 | FB9: =IF(FC9+HT9=2,1,0) -> 0 | FC9: =IF(SUM(FH9,FV9,GK9,GS9,HE9,HL9,HP9)>0,1,0) -> 1 | FD9: =SUM(FH9,FV9,GK9,GS9,HE9,HL9,HP9) -> 2 | FE9: 1 | FF9: -28 | FG9: NA | FH9: =IF(SUM(FL9:FU9)>0,1,0) -> 1 | FI9: NA | FJ9: NA | FK9: NA | FL9: 0 | FM9: 1 | FN9: 0 | FO9: 0 | FP9: 0 | FQ9: 0 | FR9: 0 | FS9: 0 | FT9: 0 | FU9: 0 | FV9: =IF(SUM(FZ9:GJ9)>0,1,0) -> 0 | FW9: NA | FX9: NA | FY9: NA | FZ9: 0 | GA9: 0 | GB9: 0 | GC9: 0 | GD9: 0 | GE9: 0 | GF9: 0 | GG9: 0 | GH9: 0 | GI9: 0 | GJ9: 0 | GK9: =IF(SUM(GO9:GR9)>0,1,0) -> 1 | GL9: -28 | GM9: 2003 | GN9: 2003 | GO9: 1 | GP9: 0 | GQ9: 0 | GR9: 0 | GS9: =IF(SUM(GW9:HD9)>0,1,0) -> 0 | GT9: NA | GU9: NA | GV9: NA | GW9: 0 | GX9: 0 | GY9: 0 | GZ9: 0 | HA9: 0 | HB9: 0 | HC9: 0 | HD9: 0 | HE9: =IF(SUM(HI9:HK9)>0,1,0) -> 0 | HF9: NA | HG9: NA | HH9: NA | HI9: 0 | HJ9: 0 | HK9: 0 | HL9: 0 | HM9: NA | HN9: NA | HO9: NA | HP9: 0 | HQ9: NA | HR9: NA | HS9: NA | HT9: =IF(HX9+IG9>0,1,0) -> 0 | HU9: =SUM(HX9,IG9) -> 0 | HV9: 0 | HW9: NA | HX9: =IF(SUM(IB9:IF9)>0,1,0) -> 0 | HY9: NA | HZ9: NA | IA9: NA | IB9: 0 | IC9: 0 | ID9: 0 | IE9: 0 | IF9: 0 | IG9: 0 | IH9: NA | II9: NA | IJ9: NA
A10: 9 | B10: Arconada et al. 2013 | C10: =IF(D10>0,1,0) -> 0 | F10: - | G10: Águilas (desalination plant) | H10: 37.40164 | I10: -1.575 | J10: good | K10: Mediterranean | L10: Western Mediterranean Sea | M10: Spain | N10: Po | O10: Cn | P10: 1 | Q10: 0 | R10: 1 | S10: 0 | T10: subtidal | U10: 0 | V10: -25 | W10: NA | X10: - | Y10: =IF(Z10=1,0,1) -> 0 | Z10: =IF((AQ10+BG10+BW10+CM10+DC10+DS10)>0,1,0) -> 1 | AA10: =IF(SUM(AR10+BH10+BX10+CN10+DD10+DT10)>0,1,0) -> 0 | AB10: 0 | AC10: 1 | AD10: 0 | AE10: 0 | AF10: 1 | AG10: 0 | AH10: 2004 | AI10: 2011 | AJ10: 7 | AK10: 1 | AL10: 1 | AM10: 0 | AN10: 0 | AO10: persists | AP10: 1 | AQ10: 1 | AR10: 0 | AS10: 2004 | AT10: 2011 | AU10: 7 | AV10: 1 | AW10: 1 | AX10: 111.55 | AY10: 85.69 | AZ10: 111.55 | BA10: 5 | BB10: 76.8175706 | BC10: -25.86 | BD10: -3.767668403 | BE10: decrease | BF10: 0 | BG10: 0 | BH10: 0 | BI10: NA | BJ10: NA | BK10: NA | BL10: NA | BM10: NA | BN10: NA | BO10: NA | BP10: NA | BQ10: NA | BR10: NA | BS10: NA | BT10: NA | BU10: unknown | BV10: 0 | BW10: 0 | BX10: 0 | BY10: NA | BZ10: NA | CA10: NA | CB10: NA | CC10: NA | CD10: NA | CE10: NA | CF10: NA | CG10: NA | CH10: NA | CI10: NA | CJ10: NA | CK10: unknown | CL10: 0 | CM10: 0 | CN10: 0 | CO10: NA | CP10: NA | CQ10: NA | CR10: NA | CS10: NA | CT10: NA | CU10: NA | CV10: NA | CW10: NA | CX10: NA | CY10: NA | CZ10: NA | DA10: unknown | DB10: 0 | DC10: 0 | DD10: 0 | DE10: NA | DF10: NA | DG10: NA | DH10: NA | DI10: NA | DJ10: NA | DK10: NA | DL10: NA | DM10: NA | DN10: NA | DO10: NA | DP10: NA | DQ10: unknown | DR10: 0 | DS10: 0 | DT10: 0 | DU10: NA | DV10: NA | DW10: NA | DX10: NA | DY10: NA | DZ10: NA | EA10: NA | EB10: NA | EC10: NA | ED10: NA | EE10: NA | EF10: NA | EG10: unknown | EH10: - | EI10: =MIN(DU10,DE10,CO10,BY10,BI10,AS10,AH10) -> 2004 | EJ10: =MAX(DV10,DF10,CP10,BZ10,BJ10,AT10,AI10) -> 2011 | EK10: =EJ10-EI10 -> 7 | EL10: =IF(EM10=0,"NA",AVERAGE(ED10,DN10,CX10)) -> NA | EM10: =DR10+DB10+CL10 -> 0 | EN10: unknown | EO10: NA | EP10: =BV10+BF10 -> 0 | EQ10: unknown | ER10: =BB10 -> 76.8175706 | ES10: =AP10 -> 1 | ET10: =BE10 -> decrease | EU10: =ES10+EP10 -> 1 | EV10: =ET10 -> decrease | EW10: =AO10 -> persists | EX10: decrease | EY10: =EV10 -> decrease | EZ10: =IF(FC10+HT10>0,1,0) -> 1 | FA10: =IF(FD10>1 OR(HU10>1),1,0) -> 1 | FB10: =IF(FC10+HT10=2,1,0) -> 0 | FC10: =IF(SUM(FH10,FV10,GK10,GS10,HE10,HL10,HP10)>0,1,0) -> 1 | FD10: =SUM(FH10,FV10,GK10,GS10,HE10,HL10,HP10) -> 2 | FE10: 1 | FF10: -25.3618 | FG10: NA | FH10: =IF(SUM(FL10:FU10)>0,1,0) -> 1 | FI10: -25.6109 | FJ10: NA | FK10: NA | FL10: 0 | FM10: 0 | FN10: 0 | FO10: 0 | FP10: 0 | FQ10: 0 | FR10: 0 | FS10: 1 | FT10: 1 | FU10: 0 | FV10: =IF(SUM(FZ10:GJ10)>0,1,0) -> 1 | FW10: 0.2491 | FX10: 2004 | FY10: 2011 | FZ10: 0 | GA10: 1 | GB10: 0 | GC10: 0 | GD10: 1 | GE10: 0 | GF10: 0 | GG10: 0 | GH10: 0 | GI10: 0 | GJ10: 0 | GK10: =IF(SUM(GO10:GR10)>0,1,0) -> 0 | GL10: NA | GM10: NA | GN10: NA | GO10: 0 | GP10: 0 | GQ10: 0 | GR10: 0 | GS10: =IF(SUM(GW10:HD10)>0,1,0) -> 0 | GT10: NA | GU10: NA | GV10: NA | GW10: 0 | GX10: 0 | GY10: 0 | GZ10: 0 | HA10: 0 | HB10: 0 | HC10: 0 | HD10: 0 | HE10: =IF(SUM(HI10:HK10)>0,1,0) -> 0 | HF10: NA | HG10: NA | HH10: NA | HI10: 0 | HJ10: 0 | HK10: 0 | HL10: 0 | HM10: NA | HN10: NA | HO10: NA | HP10: 0 | HQ10: NA | HR10: NA | HS10: NA | HT10: =IF(HX10+IG10>0,1,0) -> 0 | HU10: =SUM(HX10,IG10) -> 0 | HV10: 0 | HW10: NA | HX10: =IF(SUM(IB10:IF10)>0,1,0) -> 0 | HY10: NA | HZ10: NA | IA10: NA | IB10: 0 | IC10: 0 | ID10: 0 | IE10: 0 | IF10: 0 | IG10: 0 | IH10: NA | II10: NA | IJ10: NA
A11: 10 | B11: Argyrou et al. 1999 | C11: =IF(D11>0,1,0) -> 0 | F11: - | G11: Moni Bay | H11: 34.69651 | I11: 33.25664 | J11: good | K11: Mediterranean | L11: Aegean-Levantine Sea | M11: Cyprus | N11: Po | O11: none | P11: 1 | Q11: 0 | R11: 0 | S11: 0 | T11: subtidal | U11: NA | V11: NA | W11: -20 | X11: - | Y11: =IF(Z11=1,0,1) -> 1 | Z11: =IF((AQ11+BG11+BW11+CM11+DC11+DS11)>0,1,0) -> 0 | AA11: =IF(SUM(AR11+BH11+BX11+CN11+DD11+DT11)>0,1,0) -> 0 | AB11: 0 | AC11: 0 | AD11: 0 | AE11: 1 | AF11: 1 | AG11: 0 | AH11: 1992 | AI11: 1997 | AJ11: 5 | AK11: 1 | AL11: 1 | AM11: 0 | AN11: 0 | AO11: persists | AP11: 1 | AQ11: 0 | AR11: 0 | AS11: 1992 | AT11: 1997 | AU11: 5 | AV11: 1 | AW11: 1 | AX11: NA | AY11: NA | AZ11: NA | BA11: 2 | BB11: NA | BC11: NA | BD11: NA | BE11: decrease | BF11: 0 | BG11: 0 | BH11: 0 | BI11: NA | BJ11: NA | BK11: NA | BL11: NA | BM11: NA | BN11: NA | BO11: NA | BP11: NA | BQ11: NA | BR11: NA | BS11: NA | BT11: NA | BU11: unknown | BV11: 0 | BW11: 0 | BX11: 0 | BY11: NA | BZ11: NA | CA11: NA | CB11: NA | CC11: NA | CD11: NA | CE11: NA | CF11: NA | CG11: NA | CH11: NA | CI11: NA | CJ11: NA | CK11: unknown | CL11: 0 | CM11: 0 | CN11: 0 | CO11: NA | CP11: NA | CQ11: NA | CR11: NA | CS11: NA | CT11: NA | CU11: NA | CV11: NA | CW11: NA | CX11: NA | CY11: NA | CZ11: NA | DA11: unknown | DB11: 1 | DC11: 0 | DD11: 0 | DE11: 1992 | DF11: 1997 | DG11: 5 | DH11: 1 | DI11: 1 | DJ11: NA | DK11: NA | DL11: NA | DM11: 2 | DN11: NA | DO11: NA | DP11: NA | DQ11: decrease | DR11: 0 | DS11: 0 | DT11: 0 | DU11: NA | DV11: NA | DW11: NA | DX11: NA | DY11: NA | DZ11: NA | EA11: NA | EB11: NA | EC11: NA | ED11: NA | EE11: NA | EF11: NA | EG11: unknown | EH11: - | EI11: =MIN(DU11,DE11,CO11,BY11,BI11,AS11,AH11) -> 1992 | EJ11: =MAX(DV11,DF11,CP11,BZ11,BJ11,AT11,AI11) -> 1997 | EK11: =EJ11-EI11 -> 5 | EL11: NA | EM11: =DR11+DB11+CL11 -> 1 | EN11: =DQ11 -> decrease | EO11: NA | EP11: =BV11+BF11 -> 0 | EQ11: unknown | ER11: =BB11 -> NA | ES11: =AP11 -> 1 | ET11: =BE11 -> decrease | EU11: =ES11+EP11 -> 1 | EV11: =ET11 -> decrease | EW11: =AO11 -> persists | EX11: decrease | EY11: =EV11 -> decrease | EZ11: =IF(FC11+HT11>0,1,0) -> 1 | FA11: =IF(FD11>1 OR(HU11>1),1,0) -> 0 | FB11: =IF(FC11+HT11=2,1,0) -> 0 | FC11: =IF(SUM(FH11,FV11,GK11,GS11,HE11,HL11,HP11)>0,1,0) -> 1 | FD11: =SUM(FH11,FV11,GK11,GS11,HE11,HL11,HP11) -> 1 | FE11: 0 | FF11: NA | FG11: NA | FH11: =IF(SUM(FL11:FU11)>0,1,0) -> 0 | FI11: NA | FJ11: NA | FK11: NA | FL11: 0 | FM11: 0 | FN11: 0 | FO11: 0 | FP11: 0 | FQ11: 0 | FR11: 0 | FS11: 0 | FT11: 0 | FU11: 0 | FV11: =IF(SUM(FZ11:GJ11)>0,1,0) -> 0 | FW11: NA | FX11: NA | FY11: NA | FZ11: 0 | GA11: 0 | GB11: 0 | GC11: 0 | GD11: 0 | GE11: 0 | GF11: 0 | GG11: 0 | GH11: 0 | GI11: 0 | GJ11: 0 | GK11: =IF(SUM(GO11:GR11)>0,1,0) -> 0 | GL11: NA | GM11: NA | GN11: NA | GO11: 0 | GP11: 0 | GQ11: 0 | GR11: 0 | GS11: =IF(SUM(GW11:HD11)>0,1,0) -> 0 | GT11: NA | GU11: NA | GV11: NA | GW11: 0 | GX11: 0 | GY11: 0 | GZ11: 0 | HA11: 0 | HB11: 0 | HC11: 0 | HD11: 0 | HE11: =IF(SUM(HI11:HK11)>0,1,0) -> 0 | HF11: NA | HG11: NA | HH11: NA | HI11: 0 | HJ11: 0 | HK11: 0 | HL11: 0 | HM11: NA | HN11: NA | HO11: NA | HP11: 1 | HQ11: NA | HR11: 1992 | HS11: 1997 | HT11: =IF(HX11+IG11>0,1,0) -> 0 | HU11: =SUM(HX11,IG11) -> 0 | HV11: 0 | HW11: NA | HX11: =IF(SUM(IB11:IF11)>0,1,0) -> 0 | HY11: NA | HZ11: NA | IA11: NA | IB11: 0 | IC11: 0 | ID11: 0 | IE11: 0 | IF11: 0 | IG11: 0 | IH11: NA | II11: NA | IJ11: NA
A12: 11 | B12: Ardizzone et al. 2006 | C12: =IF(D12>0,1,0) -> 0 | F12: - | G12: Cape Circeo and Sperlonga | H12: 41.2653 | I12: 13.16544 | J12: good | K12: Mediterranean | L12: Western Mediterranean Sea | M12: Italy | N12: Po | O12: none | P12: 1 | Q12: 0 | R12: 0 | S12: 0 | T12: subtidal | U12: -14.4 | V12: -35.5 | W12: NA | X12: - | Y12: =IF(Z12=1,0,1) -> 0 | Z12: =IF((AQ12+BG12+BW12+CM12+DC12+DS12)>0,1,0) -> 1 | AA12: =IF(SUM(AR12+BH12+BX12+CN12+DD12+DT12)>0,1,0) -> 1 | AB12: 0 | AC12: 1 | AD12: 0 | AE12: 0 | AF12: 1 | AG12: 0 | AH12: 1959 | AI12: 2005 | AJ12: 46 | AK12: 1 | AL12: 1 | AM12: 0 | AN12: 0 | AO12: persists | AP12: 1 | AQ12: 1 | AR12: 1 | AS12: 1959 | AT12: 2005 | AU12: 46 | AV12: 1 | AW12: 1 | AX12: 7301.1 | AY12: 2936.3 | AZ12: 7301.1 | BA12: 4 | BB12: 40.21722754 | BC12: -4364.8 | BD12: -1.98016247 | BE12: decrease | BF12: 1 | BG12: 1 | BH12: 1 | BI12: 1959 | BJ12: 2005 | BK12: =BJ12-BI12 -> 46 | BL12: 1 | BM12: 1 | BN12: -35.33 | BO12: -24.7 | BP12: -35.33 | BQ12: 4 | BR12: 69.91225587 | BS12: -10.63 | BT12: -0.7781069951 | BU12: decrease | BV12: 1 | BW12: 1 | BX12: 1 | BY12: 1959 | BZ12: 2005 | CA12: =BZ12-BY12 -> 46 | CB12: 1 | CC12: 1 | CD12: -14.37 | CE12: -16.7 | CF12: -14.37 | CG12: 4 | CH12: 86.04790419 | CI12: -2.33 | CJ12: -0.3266652594 | CK12: decrease | CL12: 0 | CM12: 0 | CN12: 0 | CO12: NA | CP12: NA | CQ12: NA | CR12: NA | CS12: NA | CT12: NA | CU12: NA | CV12: NA | CW12: NA | CX12: NA | CY12: NA | CZ12: NA | DA12: unknown | DB12: 0 | DC12: 0 | DD12: 0 | DE12: NA | DF12: NA | DG12: NA | DH12: NA | DI12: NA | DJ12: NA | DK12: NA | DL12: NA | DM12: NA | DN12: NA | DO12: NA | DP12: NA | DQ12: unknown | DR12: 0 | DS12: 0 | DT12: 0 | DU12: NA | DV12: NA | DW12: NA | DX12: NA | DY12: NA | DZ12: NA | EA12: NA | EB12: NA | EC12: NA | ED12: NA | EE12: NA | EF12: NA | EG12: unknown | EH12: - | EI12: =MIN(DU12,DE12,CO12,BY12,BI12,AS12,AH12) -> 1959 | EJ12: =MAX(DV12,DF12,CP12,BZ12,BJ12,AT12,AI12) -> 2005 | EK12: =EJ12-EI12 -> 46 | EL12: =IF(EM12=0,"NA",AVERAGE(ED12,DN12,CX12)) -> NA | EM12: =DR12+DB12+CL12 -> 0 | EN12: unknown | EO12: =AVERAGE(CH12,BR12) -> 77.98008003 | EP12: =BV12+BF12 -> 2 | EQ12: =IF(EO12>125,"increase",IF(EO12<75,"decrease","no change")) -> no change | ER12: =BB12 -> 40.21722754 | ES12: =AP12 -> 1 | ET12: =BE12 -> decrease | EU12: =ES12+EP12 -> 3 | EV12: =ET12 -> decrease | EW12: =AO12 -> persists | EX12: decrease | EY12: =EV12 -> decrease | EZ12: =IF(FC12+HT12>0,1,0) -> 1 | FA12: =IF(FD12>1 OR(HU12>1),1,0) -> 1 | FB12: =IF(FC12+HT12=2,1,0) -> 0 | FC12: =IF(SUM(FH12,FV12,GK12,GS12,HE12,HL12,HP12)>0,1,0) -> 1 | FD12: =SUM(FH12,FV12,GK12,GS12,HE12,HL12,HP12) -> 3 | FE12: 1 | FF12: -4364.8 | FG12: -4364.8 | FH12: =IF(SUM(FL12:FU12)>0,1,0) -> 1 | FI12: NA | FJ12: 1959 | FK12: 2005 | FL12: 0 | FM12: 1 | FN12: 0 | FO12: 0 | FP12: 0 | FQ12: 0 | FR12: 0 | FS12: 0 | FT12: 0 | FU12: 0 | FV12: =IF(SUM(FZ12:GJ12)>0,1,0) -> 1 | FW12: NA | FX12: 1959 | FY12: 2005 | FZ12: 1 | GA12: 0 | GB12: 0 | GC12: 0 | GD12: 0 | GE12: 0 | GF12: 0 | GG12: 0 | GH12: 0 | GI12: 0 | GJ12: 0 | GK12: =IF(SUM(GO12:GR12)>0,1,0) -> 0 | GL12: NA | GM12: NA | GN12: NA | GO12: 0 | GP12: 0 | GQ12: 0 | GR12: 0 | GS12: =IF(SUM(GW12:HD12)>0,1,0) -> 1 | GT12: NA | GU12: 1959 | GV12: 2005 | GW12: 1 | GX12: 0 | GY12: 0 | GZ12: 0 | HA12: 0 | HB12: 0 | HC12: 0 | HD12: 0 | HE12: =IF(SUM(HI12:HK12)>0,1,0) -> 0 | HF12: NA | HG12: NA | HH12: NA | HI12: 0 | HJ12: 0 | HK12: 0 | HL12: 0 | HM12: NA | HN12: NA | HO12: NA | HP12: 0 | HQ12: NA | HR12: NA | HS12: NA | HT12: =IF(HX12+IG12>0,1,0) -> 0 | HU12: =SUM(HX12,IG12) -> 0 | HV12: 0 | HW12: NA | HX12: =IF(SUM(IB12:IF12)>0,1,0) -> 0 | HY12: NA | HZ12: NA | IA12: NA | IB12: 0 | IC12: 0 | ID12: 0 | IE12: 0 | IF12: 0 | IG12: 0 | IH12: NA | II12: NA | IJ12: NA
A13: 12 | B13: Marbà et al. 2015 | C13: =IF(D13>0,1,0) -> 0 | F13: - | G13: Agua Amarga (POS_08) | H13: 36.93741 | I13: -1.93353 | J13: bad | K13: Mediterranean | L13: Western Mediterranean Sea | M13: Spain | N13: Po | O13: none | P13: 1 | Q13: 0 | R13: 0 | S13: 0 | T13: subtidal | U13: NA | V13: NA | W13: -13 | X13: - | Y13: =IF(Z13=1,0,1) -> 0 | Z13: =IF((AQ13+BG13+BW13+CM13+DC13+DS13)>0,1,0) -> 1 | AA13: =IF(SUM(AR13+BH13+BX13+CN13+DD13+DT13)>0,1,0) -> 0 | AB13: 0 | AC13: 0 | AD13: 1 | AE13: 0 | AF13: 1 | AG13: 0 | AH13: 2012 | AI13: 2014 | AJ13: 2 | AK13: 1 | AL13: 1 | AM13: 0 | AN13: 0 | AO13: persists | AP13: 0 | AQ13: 0 | AR13: 0 | AS13: NA | AT13: NA | AU13: NA | AV13: NA | AW13: NA | AX13: NA | AY13: NA | AZ13: NA | BA13: NA | BB13: NA | BC13: NA | BD13: NA | BE13: unknown | BF13: 0 | BG13: 0 | BH13: 0 | BI13: NA | BJ13: NA | BK13: NA | BL13: NA | BM13: NA | BN13: NA | BO13: NA | BP13: NA | BQ13: NA | BR13: NA | BS13: NA | BT13: NA | BU13: unknown | BV13: 0 | BW13: 0 | BX13: 0 | BY13: NA | BZ13: NA | CA13: NA | CB13: NA | CC13: NA | CD13: NA | CE13: NA | CF13: NA | CG13: NA | CH13: NA | CI13: NA | CJ13: NA | CK13: unknown | CL13: 1 | CM13: 1 | CN13: 0 | CO13: 2012 | CP13: 2014 | CQ13: 2 | CR13: 1 | CS13: 1 | CT13: 48.5 | CU13: 38 | CV13: 48.5 | CW13: 3 | CX13: 78.35051546 | CY13: -10.5 | CZ13: -12.19888191 | DA13: no change | DB13: 1 | DC13: 1 | DD13: 0 | DE13: 2012 | DF13: 2014 | DG13: 2 | DH13: 1 | DI13: 1 | DJ13: 430.56 | DK13: 319.44 | DL13: 430.56 | DM13: 3 | DN13: 74.19175028 | DO13: -111.12 | DP13: -14.92586121 | DQ13: decrease | DR13: 0 | DS13: 0 | DT13: 0 | DU13: NA | DV13: NA | DW13: NA | DX13: NA | DY13: NA | DZ13: NA | EA13: NA | EB13: NA | EC13: NA | ED13: NA | EE13: NA | EF13: NA | EG13: unknown | EH13: - | EI13: =MIN(DU13,DE13,CO13,BY13,BI13,AS13,AH13) -> 2012 | EJ13: =MAX(DV13,DF13,CP13,BZ13,BJ13,AT13,AI13) -> 2014 | EK13: =EJ13-EI13 -> 2 | EL13: =IF(EM13=0,"NA",AVERAGE(ED13,DN13,CX13)) -> 76.27113287 | EM13: =DR13+DB13+CL13 -> 2 | EN13: =IF(EL13>125,"increase",IF(EL13<75,"decrease","no change")) -> no change | EO13: NA | EP13: =BV13+BF13 -> 0 | EQ13: unknown | ER13: =BB13 -> NA | ES13: =AP13 -> 0 | ET13: =BE13 -> unknown | EU13: =ES13+EP13 -> 0 | EV13: unknown | EW13: =AO13 -> persists | EX13: unknown | EY13: =EN13 -> no change | EZ13: =IF(FC13+HT13>0,1,0) -> 1 | FA13: =IF(FD13>1 OR(HU13>1),1,0) -> 0 | FB13: =IF(FC13+HT13=2,1,0) -> 0 | FC13: =IF(SUM(FH13,FV13,GK13,GS13,HE13,HL13,HP13)>0,1,0) -> 1 | FD13: =SUM(FH13,FV13,GK13,GS13,HE13,HL13,HP13) -> 1 | FE13: 0 | FF13: NA | FG13: NA | FH13: =IF(SUM(FL13:FU13)>0,1,0) -> 0 | FI13: NA | FJ13: NA | FK13: NA | FL13: 0 | FM13: 0 | FN13: 0 | FO13: 0 | FP13: 0 | FQ13: 0 | FR13: 0 | FS13: 0 | FT13: 0 | FU13: 0 | FV13: =IF(SUM(FZ13:GJ13)>0,1,0) -> 0 | FW13: NA | FX13: NA | FY13: NA | FZ13: 0 | GA13: 0 | GB13: 0 | GC13: 0 | GD13: 0 | GE13: 0 | GF13: 0 | GG13: 0 | GH13: 0 | GI13: 0 | GJ13: 0 | GK13: =IF(SUM(GO13:GR13)>0,1,0) -> 0 | GL13: NA | GM13: NA | GN13: NA | GO13: 0 | GP13: 0 | GQ13: 0 | GR13: 0 | GS13: =IF(SUM(GW13:HD13)>0,1,0) -> 1 | GT13: NA | GU13: 2012 | GV13: 2014 | GW13: 0 | GX13: 1 | GY13: 0 | GZ13: 0 | HA13: 0 | HB13: 0 | HC13: 0 | HD13: 0 | HE13: =IF(SUM(HI13:HK13)>0,1,0) -> 0 | HF13: NA | HG13: NA | HH13: NA | HI13: 0 | HJ13: 0 | HK13: 0 | HL13: 0 | HM13: NA | HN13: NA | HO13: NA | HP13: 0 | HQ13: NA | HR13: NA | HS13: NA | HT13: =IF(HX13+IG13>0,1,0) -> 0 | HU13: =SUM(HX13,IG13) -> 0 | HV13: 0 | HW13: NA | HX13: =IF(SUM(IB13:IF13)>0,1,0) -> 0 | HY13: NA | HZ13: NA | IA13: NA | IB13: 0 | IC13: 0 | ID13: 0 | IE13: 0 | IF13: 0 | IG13: 0 | IH13: NA | II13: NA | IJ13: NA
A14: 13 | B14: Marbà et al. 2015 | C14: =IF(D14>0,1,0) -> 0 | F14: - | G14: Carnaje (POS_10) | H14: 36.83481 | I14: -2.01298 | J14: bad | K14: Mediterranean | L14: Western Mediterranean Sea | M14: Spain | N14: Po | O14: none | P14: 1 | Q14: 0 | R14: 0 | S14: 0 | T14: subtidal | U14: NA | V14: NA | W14: -13 | X14: - | Y14: =IF(Z14=1,0,1) -> 0 | Z14: =IF((AQ14+BG14+BW14+CM14+DC14+DS14)>0,1,0) -> 1 | AA14: =IF(SUM(AR14+BH14+BX14+CN14+DD14+DT14)>0,1,0) -> 0 | AB14: 0 | AC14: 0 | AD14: 1 | AE14: 0 | AF14: 1 | AG14: 0 | AH14: 2012 | AI14: 2014 | AJ14: 2 | AK14: 1 | AL14: 1 | AM14: 0 | AN14: 0 | AO14: persists | AP14: 0 | AQ14: 0 | AR14: 0 | AS14: NA | AT14: NA | AU14: NA | AV14: NA | AW14: NA | AX14: NA | AY14: NA | AZ14: NA | BA14: NA | BB14: NA | BC14: NA | BD14: NA | BE14: unknown | BF14: 0 | BG14: 0 | BH14: 0 | BI14: NA | BJ14: NA | BK14: NA | BL14: NA | BM14: NA | BN14: NA | BO14: NA | BP14: NA | BQ14: NA | BR14: NA | BS14: NA | BT14: NA | BU14: unknown | BV14: 0 | BW14: 0 | BX14: 0 | BY14: NA | BZ14: NA | CA14: NA | CB14: NA | CC14: NA | CD14: NA | CE14: NA | CF14: NA | CG14: NA | CH14: NA | CI14: NA | CJ14: NA | CK14: unknown | CL14: 0 | CM14: 0 | CN14: 0 | CO14: NA | CP14: NA | CQ14: NA | CR14: NA | CS14: NA | CT14: NA | CU14: NA | CV14: NA | CW14: NA | CX14: NA | CY14: NA | CZ14: NA | DA14: unknown | DB14: 1 | DC14: 1 | DD14: 0 | DE14: 2012 | DF14: 2014 | DG14: 2 | DH14: 1 | DI14: 1 | DJ14: 500 | DK14: 543.97 | DL14: 584.68 | DM14: 3 | DN14: 108.794 | DO14: 43.97 | DP14: 4.214299993 | DQ14: no change | DR14: 0 | DS14: 0 | DT14: 0 | DU14: NA | DV14: NA | DW14: NA | DX14: NA | DY14: NA | DZ14: NA | EA14: NA | EB14: NA | EC14: NA | ED14: NA | EE14: NA | EF14: NA | EG14: unknown | EH14: - | EI14: =MIN(DU14,DE14,CO14,BY14,BI14,AS14,AH14) -> 2012 | EJ14: =MAX(DV14,DF14,CP14,BZ14,BJ14,AT14,AI14) -> 2014 | EK14: =EJ14-EI14 -> 2 | EL14: =IF(EM14=0,"NA",AVERAGE(ED14,DN14,CX14)) -> 108.794 | EM14: =DR14+DB14+CL14 -> 1 | EN14: =IF(EL14>125,"increase",IF(EL14<75,"decrease","no change")) -> no change | EO14: NA | EP14: =BV14+BF14 -> 0 | EQ14: unknown | ER14: =BB14 -> NA | ES14: =AP14 -> 0 | ET14: =BE14 -> unknown | EU14: =ES14+EP14 -> 0 | EV14: unknown | EW14: =AO14 -> persists | EX14: unknown | EY14: =EN14 -> no change | EZ14: =IF(FC14+HT14>0,1,0) -> 0 | FA14: =IF(FD14>1 OR(HU14>1),1,0) -> 0 | FB14: =IF(FC14+HT14=2,1,0) -> 0 | FC14: =IF(SUM(FH14,FV14,GK14,GS14,HE14,HL14,HP14)>0,1,0) -> 0 | FD14: =SUM(FH14,FV14,GK14,GS14,HE14,HL14,HP14) -> 0 | FE14: 0 | FF14: NA | FG14: NA | FH14: =IF(SUM(FL14:FU14)>0,1,0) -> 0 | FI14: NA | FJ14: NA | FK14: NA | FL14: 0 | FM14: 0 | FN14: 0 | FO14: 0 | FP14: 0 | FQ14: 0 | FR14: 0 | FS14: 0 | FT14: 0 | FU14: 0 | FV14: =IF(SUM(FZ14:GJ14)>0,1,0) -> 0 | FW14: NA | FX14: NA | FY14: NA | FZ14: 0 | GA14: 0 | GB14: 0 | GC14: 0 | GD14: 0 | GE14: 0 | GF14: 0 | GG14: 0 | GH14: 0 | GI14: 0 | GJ14: 0 | GK14: =IF(SUM(GO14:GR14)>0,1,0) -> 0 | GL14: NA | GM14: NA | GN14: NA | GO14: 0 | GP14: 0 | GQ14: 0 | GR14: 0 | GS14: =IF(SUM(GW14:HD14)>0,1,0) -> 0 | GT14: NA | GU14: NA | GV14: NA | GW14: 0 | GX14: 0 | GY14: 0 | GZ14: 0 | HA14: 0 | HB14: 0 | HC14: 0 | HD14: 0 | HE14: =IF(SUM(HI14:HK14)>0,1,0) -> 0 | HF14: NA | HG14: NA | HH14: NA | HI14: 0 | HJ14: 0 | HK14: 0 | HL14: 0 | HM14: NA | HN14: NA | HO14: NA | HP14: 0 | HQ14: NA | HR14: NA | HS14: NA | HT14: =IF(HX14+IG14>0,1,0) -> 0 | HU14: =SUM(HX14,IG14) -> 0 | HV14: 0 | HW14: NA | HX14: =IF(SUM(IB14:IF14)>0,1,0) -> 0 | HY14: NA | HZ14: NA | IA14: NA | IB14: 0 | IC14: 0 | ID14: 0 | IE14: 0 | IF14: 0 | IG14: 0 | IH14: NA | II14: NA | IJ14: NA
A15: 14 | B15: Marbà et al. 2015 | C15: =IF(D15>0,1,0) -> 0 | F15: - | G15: Las Negras (POS_09) | H15: 36.87861 | I15: -2.00292 | J15: bad | K15: Mediterranean | L15: Western Mediterranean Sea | M15: Spain | N15: Po | O15: none | P15: 1 | Q15: 0 | R15: 0 | S15: 0 | T15: subtidal | U15: NA | V15: NA | W15: -11 | X15: - | Y15: =IF(Z15=1,0,1) -> 0 | Z15: =IF((AQ15+BG15+BW15+CM15+DC15+DS15)>0,1,0) -> 1 | AA15: =IF(SUM(AR15+BH15+BX15+CN15+DD15+DT15)>0,1,0) -> 0 | AB15: 0 | AC15: 0 | AD15: 1 | AE15: 0 | AF15: 1 | AG15: 0 | AH15: 2012 | AI15: 2014 | AJ15: 2 | AK15: 1 | AL15: 1 | AM15: 0 | AN15: 0 | AO15: persists | AP15: 0 | AQ15: 0 | AR15: 0 | AS15: NA | AT15: NA | AU15: NA | AV15: NA | AW15: NA | AX15: NA | AY15: NA | AZ15: NA | BA15: NA | BB15: NA | BC15: NA | BD15: NA | BE15: unknown | BF15: 0 | BG15: 0 | BH15: 0 | BI15: NA | BJ15: NA | BK15: NA | BL15: NA | BM15: NA | BN15: NA | BO15: NA | BP15: NA | BQ15: NA | BR15: NA | BS15: NA | BT15: NA | BU15: unknown | BV15: 0 | BW15: 0 | BX15: 0 | BY15: NA | BZ15: NA | CA15: NA | CB15: NA | CC15: NA | CD15: NA | CE15: NA | CF15: NA | CG15: NA | CH15: NA | CI15: NA | CJ15: NA | CK15: unknown | CL15: 1 | CM15: 1 | CN15: 0 | CO15: 2012 | CP15: 2014 | CQ15: 2 | CR15: 1 | CS15: 1 | CT15: 53.07 | CU15: 75.6 | CV15: 75.6 | CW15: 3 | CX15: 142.4533635 | CY15: 22.53 | CZ15: 17.69222432 | DA15: increase | DB15: 1 | DC15: 1 | DD15: 0 | DE15: 2012 | DF15: 2014 | DG15: 2 | DH15: 1 | DI15: 1 | DJ15: 698.21 | DK15: 664.29 | DL15: 698.21 | DM15: 3 | DN15: 95.14186276 | DO15: -33.92 | DP15: -2.4900558 | DQ15: no change | DR15: 0 | DS15: 0 | DT15: 0 | DU15: NA | DV15: NA | DW15: NA | DX15: NA | DY15: NA | DZ15: NA | EA15: NA | EB15: NA | EC15: NA | ED15: NA | EE15: NA | EF15: NA | EG15: unknown | EH15: - | EI15: =MIN(DU15,DE15,CO15,BY15,BI15,AS15,AH15) -> 2012 | EJ15: =MAX(DV15,DF15,CP15,BZ15,BJ15,AT15,AI15) -> 2014 | EK15: =EJ15-EI15 -> 2 | EL15: =IF(EM15=0,"NA",AVERAGE(ED15,DN15,CX15)) -> 118.7976131 | EM15: =DR15+DB15+CL15 -> 2 | EN15: =IF(EL15>125,"increase",IF(EL15<75,"decrease","no change")) -> no change | EO15: NA | EP15: =BV15+BF15 -> 0 | EQ15: unknown | ER15: =BB15 -> NA | ES15: =AP15 -> 0 | ET15: =BE15 -> unknown | EU15: =ES15+EP15 -> 0 | EV15: unknown | EW15: =AO15 -> persists | EX15: unknown | EY15: =EN15 -> no change | EZ15: =IF(FC15+HT15>0,1,0) -> 0 | FA15: =IF(FD15>1 OR(HU15>1),1,0) -> 0 | FB15: =IF(FC15+HT15=2,1,0) -> 0 | FC15: =IF(SUM(FH15,FV15,GK15,GS15,HE15,HL15,HP15)>0,1,0) -> 0 | FD15: =SUM(FH15,FV15,GK15,GS15,HE15,HL15,HP15) -> 0 | FE15: 0 | FF15: NA | FG15: NA | FH15: =IF(SUM(FL15:FU15)>0,1,0) -> 0 | FI15: NA | FJ15: NA | FK15: NA | FL15: 0 | FM15: 0 | FN15: 0 | FO15: 0 | FP15: 0 | FQ15: 0 | FR15: 0 | FS15: 0 | FT15: 0 | FU15: 0 | FV15: =IF(SUM(FZ15:GJ15)>0,1,0) -> 0 | FW15: NA | FX15: NA | FY15: NA | FZ15: 0 | GA15: 0 | GB15: 0 | GC15: 0 | GD15: 0 | GE15: 0 | GF15: 0 | GG15: 0 | GH15: 0 | GI15: 0 | GJ15: 0 | GK15: =IF(SUM(GO15:GR15)>0,1,0) -> 0 | GL15: NA | GM15: NA | GN15: NA | GO15: 0 | GP15: 0 | GQ15: 0 | GR15: 0 | GS15: =IF(SUM(GW15:HD15)>0,1,0) -> 0 | GT15: NA | GU15: NA | GV15: NA | GW15: 0 | GX15: 0 | GY15: 0 | GZ15: 0 | HA15: 0 | HB15: 0 | HC15: 0 | HD15: 0 | HE15: =IF(SUM(HI15:HK15)>0,1,0) -> 0 | HF15: NA | HG15: NA | HH15: NA | HI15: 0 | HJ15: 0 | HK15: 0 | HL15: 0 | HM15: NA | HN15: NA | HO15: NA | HP15: 0 | HQ15: NA | HR15: NA | HS15: NA | HT15: =IF(HX15+IG15>0,1,0) -> 0 | HU15: =SUM(HX15,IG15) -> 0 | HV15: 0 | HW15: NA | HX15: =IF(SUM(IB15:IF15)>0,1,0) -> 0 | HY15: NA | HZ15: NA | IA15: NA | IB15: 0 | IC15: 0 | ID15: 0 | IE15: 0 | IF15: 0 | IG15: 0 | IH15: NA | II15: NA | IJ15: NA
A16: 15 | B16: Marbà et al. 2015 | C16: =IF(D16>0,1,0) -> 0 | F16: - | G16: Los Escullos (POS_11) | H16: 36.81255 | I16: -2.05335 | J16: bad | K16: Mediterranean | L16: Western Mediterranean Sea | M16: Spain | N16: Po | O16: none | P16: 1 | Q16: 0 | R16: 0 | S16: 0 | T16: subtidal | U16: NA | V16: NA | W16: -12 | X16: - | Y16: =IF(Z16=1,0,1) -> 0 | Z16: =IF((AQ16+BG16+BW16+CM16+DC16+DS16)>0,1,0) -> 1 | AA16: =IF(SUM(AR16+BH16+BX16+CN16+DD16+DT16)>0,1,0) -> 0 | AB16: 0 | AC16: 0 | AD16: 1 | AE16: 0 | AF16: 1 | AG16: 0 | AH16: 2012 | AI16: 2014 | AJ16: 2 | AK16: 1 | AL16: 1 | AM16: 0 | AN16: 0 | AO16: persists | AP16: 0 | AQ16: 0 | AR16: 0 | AS16: NA | AT16: NA | AU16: NA | AV16: NA | AW16: NA | AX16: NA | AY16: NA | AZ16: NA | BA16: NA | BB16: NA | BC16: NA | BD16: NA | BE16: unknown | BF16: 0 | BG16: 0 | BH16: 0 | BI16: NA | BJ16: NA | BK16: NA | BL16: NA | BM16: NA | BN16: NA | BO16: NA | BP16: NA | BQ16: NA | BR16: NA | BS16: NA | BT16: NA | BU16: unknown | BV16: 0 | BW16: 0 | BX16: 0 | BY16: NA | BZ16: NA | CA16: NA | CB16: NA | CC16: NA | CD16: NA | CE16: NA | CF16: NA | CG16: NA | CH16: NA | CI16: NA | CJ16: NA | CK16: unknown | CL16: 1 | CM16: 1 | CN16: 0 | CO16: 2012 | CP16: 2014 | CQ16: 2 | CR16: 1 | CS16: 1 | CT16: 84 | CU16: 84 | CV16: 90 | CW16: 3 | CX16: 100 | CY16: 0 | CZ16: 0 | DA16: no change | DB16: 1 | DC16: 1 | DD16: 0 | DE16: 2012 | DF16: 2014 | DG16: 2 | DH16: 1 | DI16: 1 | DJ16: 568.75 | DK16: 402.27 | DL16: 568.75 | DM16: 3 | DN16: 70.72879121 | DO16: -166.48 | DP16: -17.31587327 | DQ16: decrease | DR16: 0 | DS16: 0 | DT16: 0 | DU16: NA | DV16: NA | DW16: NA | DX16: NA | DY16: NA | DZ16: NA | EA16: NA | EB16: NA | EC16: NA | ED16: NA | EE16: NA | EF16: NA | EG16: unknown | EH16: - | EI16: =MIN(DU16,DE16,CO16,BY16,BI16,AS16,AH16) -> 2012 | EJ16: =MAX(DV16,DF16,CP16,BZ16,BJ16,AT16,AI16) -> 2014 | EK16: =EJ16-EI16 -> 2 | EL16: =IF(EM16=0,"NA",AVERAGE(ED16,DN16,CX16)) -> 85.3643956 | EM16: =DR16+DB16+CL16 -> 2 | EN16: =IF(EL16>125,"increase",IF(EL16<75,"decrease","no change")) -> no change | EO16: NA | EP16: =BV16+BF16 -> 0 | EQ16: unknown | ER16: =BB16 -> NA | ES16: =AP16 -> 0 | ET16: =BE16 -> unknown | EU16: =ES16+EP16 -> 0 | EV16: unknown | EW16: =AO16 -> persists | EX16: unknown | EY16: =EN16 -> no change | EZ16: =IF(FC16+HT16>0,1,0) -> 1 | FA16: =IF(FD16>1 OR(HU16>1),1,0) -> 0 | FB16: =IF(FC16+HT16=2,1,0) -> 0 | FC16: =IF(SUM(FH16,FV16,GK16,GS16,HE16,HL16,HP16)>0,1,0) -> 1 | FD16: =SUM(FH16,FV16,GK16,GS16,HE16,HL16,HP16) -> 1 | FE16: 0 | FF16: NA | FG16: NA | FH16: =IF(SUM(FL16:FU16)>0,1,0) -> 0 | FI16: NA | FJ16: NA | FK16: NA | FL16: 0 | FM16: 0 | FN16: 0 | FO16: 0 | FP16: 0 | FQ16: 0 | FR16: 0 | FS16: 0 | FT16: 0 | FU16: 0 | FV16: =IF(SUM(FZ16:GJ16)>0,1,0) -> 0 | FW16: NA | FX16: NA | FY16: NA | FZ16: 0 | GA16: 0 | GB16: 0 | GC16: 0 | GD16: 0 | GE16: 0 | GF16: 0 | GG16: 0 | GH16: 0 | GI16: 0 | GJ16: 0 | GK16: =IF(SUM(GO16:GR16)>0,1,0) -> 0 | GL16: NA | GM16: NA | GN16: NA | GO16: 0 | GP16: 0 | GQ16: 0 | GR16: 0 | GS16: =IF(SUM(GW16:HD16)>0,1,0) -> 1 | GT16: NA | GU16: 2012 | GV16: 2014 | GW16: 0 | GX16: 1 | GY16: 0 | GZ16: 0 | HA16: 0 | HB16: 0 | HC16: 0 | HD16: 0 | HE16: =IF(SUM(HI16:HK16)>0,1,0) -> 0 | HF16: NA | HG16: NA | HH16: NA | HI16: 0 | HJ16: 0 | HK16: 0 | HL16: 0 | HM16: NA | HN16: NA | HO16: NA | HP16: 0 | HQ16: NA | HR16: NA | HS16: NA | HT16: =IF(HX16+IG16>0,1,0) -> 0 | HU16: =SUM(HX16,IG16) -> 0 | HV16: 0 | HW16: NA | HX16: =IF(SUM(IB16:IF16)>0,1,0) -> 0 | HY16: NA | HZ16: NA | IA16: NA | IB16: 0 | IC16: 0 | ID16: 0 | IE16: 0 | IF16: 0 | IG16: 0 | IH16: NA | II16: NA | IJ16: NA
A17: 16 | B17: Marbà et al. 2015 | C17: =IF(D17>0,1,0) -> 0 | F17: - | G17: Bajos de Roquetas (POS_12) | H17: 36.77938 | I17: -2.59288 | J17: fair | K17: Mediterranean | L17: Western Mediterranean Sea | M17: Spain | N17: Po | O17: none | P17: 1 | Q17: 0 | R17: 0 | S17: 0 | T17: subtidal | U17: NA | V17: NA | W17: -11.5 | X17: - | Y17: =IF(Z17=1,0,1) -> 0 | Z17: =IF((AQ17+BG17+BW17+CM17+DC17+DS17)>0,1,0) -> 1 | AA17: =IF(SUM(AR17+BH17+BX17+CN17+DD17+DT17)>0,1,0) -> 0 | AB17: 0 | AC17: 0 | AD17: 1 | AE17: 0 | AF17: 1 | AG17: 0 | AH17: 2012 | AI17: 2014 | AJ17: 2 | AK17: 1 | AL17: 1 | AM17: 0 | AN17: 0 | AO17: persists | AP17: 0 | AQ17: 0 | AR17: 0 | AS17: NA | AT17: NA | AU17: NA | AV17: NA | AW17: NA | AX17: NA | AY17: NA | AZ17: NA | BA17: NA | BB17: NA | BC17: NA | BD17: NA | BE17: unknown | BF17: 0 | BG17: 0 | BH17: 0 | BI17: NA | BJ17: NA | BK17: NA | BL17: NA | BM17: NA | BN17: NA | BO17: NA | BP17: NA | BQ17: NA | BR17: NA | BS17: NA | BT17: NA | BU17: unknown | BV17: 0 | BW17: 0 | BX17: 0 | BY17: NA | BZ17: NA | CA17: NA | CB17: NA | CC17: NA | CD17: NA | CE17: NA | CF17: NA | CG17: NA | CH17: NA | CI17: NA | CJ17: NA | CK17: unknown | CL17: 1 | CM17: 1 | CN17: 0 | CO17: 2012 | CP17: 2014 | CQ17: 2 | CR17: 1 | CS17: 1 | CT17: 72.4 | CU17: 74.93 | CV17: 76.67 | CW17: 3 | CX17: 103.4944751 | CY17: 2.53 | CZ17: 1.717402249 | DA17: no change | DB17: 1 | DC17: 1 | DD17: 0 | DE17: 2012 | DF17: 2014 | DG17: 2 | DH17: 1 | DI17: 1 | DJ17: 463.69 | DK17: 403.13 | DL17: 463.69 | DM17: 3 | DN17: 86.93955013 | DO17: -60.56 | DP17: -6.997856746 | DQ17: no change | DR17: 0 | DS17: 0 | DT17: 0 | DU17: NA | DV17: NA | DW17: NA | DX17: NA | DY17: NA | DZ17: NA | EA17: NA | EB17: NA | EC17: NA | ED17: NA | EE17: NA | EF17: NA | EG17: unknown | EH17: - | EI17: =MIN(DU17,DE17,CO17,BY17,BI17,AS17,AH17) -> 2012 | EJ17: =MAX(DV17,DF17,CP17,BZ17,BJ17,AT17,AI17) -> 2014 | EK17: =EJ17-EI17 -> 2 | EL17: =IF(EM17=0,"NA",AVERAGE(ED17,DN17,CX17)) -> 95.21701263 | EM17: =DR17+DB17+CL17 -> 2 | EN17: =IF(EL17>125,"increase",IF(EL17<75,"decrease","no change")) -> no change | EO17: NA | EP17: =BV17+BF17 -> 0 | EQ17: unknown | ER17: =BB17 -> NA | ES17: =AP17 -> 0 | ET17: =BE17 -> unknown | EU17: =ES17+EP17 -> 0 | EV17: unknown | EW17: =AO17 -> persists | EX17: unknown | EY17: =EN17 -> no change | EZ17: =IF(FC17+HT17>0,1,0) -> 0 | FA17: =IF(FD17>1 OR(HU17>1),1,0) -> 0 | FB17: =IF(FC17+HT17=2,1,0) -> 0 | FC17: =IF(SUM(FH17,FV17,GK17,GS17,HE17,HL17,HP17)>0,1,0) -> 0 | FD17: =SUM(FH17,FV17,GK17,GS17,HE17,HL17,HP17) -> 0 | FE17: 0 | FF17: NA | FG17: NA | FH17: =IF(SUM(FL17:FU17)>0,1,0) -> 0 | FI17: NA | FJ17: NA | FK17: NA | FL17: 0 | FM17: 0 | FN17: 0 | FO17: 0 | FP17: 0 | FQ17: 0 | FR17: 0 | FS17: 0 | FT17: 0 | FU17: 0 | FV17: =IF(SUM(FZ17:GJ17)>0,1,0) -> 0 | FW17: NA | FX17: NA | FY17: NA | FZ17: 0 | GA17: 0 | GB17: 0 | GC17: 0 | GD17: 0 | GE17: 0 | GF17: 0 | GG17: 0 | GH17: 0 | GI17: 0 | GJ17: 0 | GK17: =IF(SUM(GO17:GR17)>0,1,0) -> 0 | GL17: NA | GM17: NA | GN17: NA | GO17: 0 | GP17: 0 | GQ17: 0 | GR17: 0 | GS17: =IF(SUM(GW17:HD17)>0,1,0) -> 0 | GT17: NA | GU17: NA | GV17: NA | GW17: 0 | GX17: 0 | GY17: 0 | GZ17: 0 | HA17: 0 | HB17: 0 | HC17: 0 | HD17: 0 | HE17: =IF(SUM(HI17:HK17)>0,1,0) -> 0 | HF17: NA | HG17: NA | HH17: NA | HI17: 0 | HJ17: 0 | HK17: 0 | HL17: 0 | HM17: NA | HN17: NA | HO17: NA | HP17: 0 | HQ17: NA | HR17: NA | HS17: NA | HT17: =IF(HX17+IG17>0,1,0) -> 0 | HU17: =SUM(HX17,IG17) -> 0 | HV17: 0 | HW17: NA | HX17: =IF(SUM(IB17:IF17)>0,1,0) -> 0 | HY17: NA | HZ17: NA | IA17: NA | IB17: 0 | IC17: 0 | ID17: 0 | IE17: 0 | IF17: 0 | IG17: 0 | IH17: NA | II17: NA | IJ17: NA
A18: 17 | B18: Marbà et al. 2015 | C18: =IF(D18>0,1,0) -> 0 | F18: - | G18: Punta Entinas (POS_14) | H18: 36.68705 | I18: -2.68973 | J18: fair | K18: Mediterranean | L18: Western Mediterranean Sea | M18: Spain | N18: Po | O18: none | P18: 1 | Q18: 0 | R18: 0 | S18: 0 | T18: subtidal | U18: NA | V18: NA | W18: -11 | X18: - | Y18: =IF(Z18=1,0,1) -> 0 | Z18: =IF((AQ18+BG18+BW18+CM18+DC18+DS18)>0,1,0) -> 1 | AA18: =IF(SUM(AR18+BH18+BX18+CN18+DD18+DT18)>0,1,0) -> 0 | AB18: 0 | AC18: 0 | AD18: 1 | AE18: 0 | AF18: 1 | AG18: 0 | AH18: 2012 | AI18: 2014 | AJ18: 2 | AK18: 1 | AL18: 1 | AM18: 0 | AN18: 0 | AO18: persists | AP18: 0 | AQ18: 0 | AR18: 0 | AS18: NA | AT18: NA | AU18: NA | AV18: NA | AW18: NA | AX18: NA | AY18: NA | AZ18: NA | BA18: NA | BB18: NA | BC18: NA | BD18: NA | BE18: unknown | BF18: 0 | BG18: 0 | BH18: 0 | BI18: NA | BJ18: NA | BK18: NA | BL18: NA | BM18: NA | BN18: NA | BO18: NA | BP18: NA | BQ18: NA | BR18: NA | BS18: NA | BT18: NA | BU18: unknown | BV18: 0 | BW18: 0 | BX18: 0 | BY18: NA | BZ18: NA | CA18: NA | CB18: NA | CC18: NA | CD18: NA | CE18: NA | CF18: NA | CG18: NA | CH18: NA | CI18: NA | CJ18: NA | CK18: unknown | CL18: 1 | CM18: 1 | CN18: 0 | CO18: 2012 | CP18: 2014 | CQ18: 2 | CR18: 1 | CS18: 1 | CT18: 82 | CU18: 83.33 | CV18: 83.47 | CW18: 3 | CX18: 101.6219512 | CY18: 1.33 | CZ18: 0.8044690565 | DA18: no change | DB18: 1 | DC18: 1 | DD18: 0 | DE18: 2012 | DF18: 2014 | DG18: 2 | DH18: 1 | DI18: 1 | DJ18: 364.06 | DK18: 443.55 | DL18: 443.55 | DM18: 2 | DN18: 121.834313 | DO18: 79.49 | DP18: 9.874592287 | DQ18: no change | DR18: 0 | DS18: 0 | DT18: 0 | DU18: NA | DV18: NA | DW18: NA | DX18: NA | DY18: NA | DZ18: NA | EA18: NA | EB18: NA | EC18: NA | ED18: NA | EE18: NA | EF18: NA | EG18: unknown | EH18: - | EI18: =MIN(DU18,DE18,CO18,BY18,BI18,AS18,AH18) -> 2012 | EJ18: =MAX(DV18,DF18,CP18,BZ18,BJ18,AT18,AI18) -> 2014 | EK18: =EJ18-EI18 -> 2 | EL18: =IF(EM18=0,"NA",AVERAGE(ED18,DN18,CX18)) -> 111.7281321 | EM18: =DR18+DB18+CL18 -> 2 | EN18: =IF(EL18>125,"increase",IF(EL18<75,"decrease","no change")) -> no change | EO18: NA | EP18: =BV18+BF18 -> 0 | EQ18: unknown | ER18: =BB18 -> NA | ES18: =AP18 -> 0 | ET18: =BE18 -> unknown | EU18: =ES18+EP18 -> 0 | EV18: unknown | EW18: =AO18 -> persists | EX18: unknown | EY18: =EN18 -> no change | EZ18: =IF(FC18+HT18>0,1,0) -> 0 | FA18: =IF(FD18>1 OR(HU18>1),1,0) -> 0 | FB18: =IF(FC18+HT18=2,1,0) -> 0 | FC18: =IF(SUM(FH18,FV18,GK18,GS18,HE18,HL18,HP18)>0,1,0) -> 0 | FD18: =SUM(FH18,FV18,GK18,GS18,HE18,HL18,HP18) -> 0 | FE18: 0 | FF18: NA | FG18: NA | FH18: =IF(SUM(FL18:FU18)>0,1,0) -> 0 | FI18: NA | FJ18: NA | FK18: NA | FL18: 0 | FM18: 0 | FN18: 0 | FO18: 0 | FP18: 0 | FQ18: 0 | FR18: 0 | FS18: 0 | FT18: 0 | FU18: 0 | FV18: =IF(SUM(FZ18:GJ18)>0,1,0) -> 0 | FW18: NA | FX18: NA | FY18: NA | FZ18: 0 | GA18: 0 | GB18: 0 | GC18: 0 | GD18: 0 | GE18: 0 | GF18: 0 | GG18: 0 | GH18: 0 | GI18: 0 | GJ18: 0 | GK18: =IF(SUM(GO18:GR18)>0,1,0) -> 0 | GL18: NA | GM18: NA | GN18: NA | GO18: 0 | GP18: 0 | GQ18: 0 | GR18: 0 | GS18: =IF(SUM(GW18:HD18)>0,1,0) -> 0 | GT18: NA | GU18: NA | GV18: NA | GW18: 0 | GX18: 0 | GY18: 0 | GZ18: 0 | HA18: 0 | HB18: 0 | HC18: 0 | HD18: 0 | HE18: =IF(SUM(HI18:HK18)>0,1,0) -> 0 | HF18: NA | HG18: NA | HH18: NA | HI18: 0 | HJ18: 0 | HK18: 0 | HL18: 0 | HM18: NA | HN18: NA | HO18: NA | HP18: 0 | HQ18: NA | HR18: NA | HS18: NA | HT18: =IF(HX18+IG18>0,1,0) -> 0 | HU18: =SUM(HX18,IG18) -> 0 | HV18: 0 | HW18: NA | HX18: =IF(SUM(IB18:IF18)>0,1,0) -> 0 | HY18: NA | HZ18: NA | IA18: NA | IB18: 0 | IC18: 0 | ID18: 0 | IE18: 0 | IF18: 0 | IG18: 0 | IH18: NA | II18: NA | IJ18: NA
A19: 18 | B19: Marbà et al. 2015 | C19: =IF(D19>0,1,0) -> 0 | F19: - | G19: Cocedores (POS_01) | H19: 37.37467 | I19: -1.63024 | J19: bad | K19: Mediterranean | L19: Western Mediterranean Sea | M19: Spain | N19: Po | O19: none | P19: 1 | Q19: 0 | R19: 0 | S19: 0 | T19: subtidal | U19: NA | V19: NA | W19: -11 | X19: - | Y19: =IF(Z19=1,0,1) -> 0 | Z19: =IF((AQ19+BG19+BW19+CM19+DC19+DS19)>0,1,0) -> 1 | AA19: =IF(SUM(AR19+BH19+BX19+CN19+DD19+DT19)>0,1,0) -> 0 | AB19: 0 | AC19: 0 | AD19: 1 | AE19: 0 | AF19: 1 | AG19: 0 | AH19: 2012 | AI19: 2014 | AJ19: 2 | AK19: 1 | AL19: 1 | AM19: 0 | AN19: 0 | AO19: persists | AP19: 0 | AQ19: 0 | AR19: 0 | AS19: NA | AT19: NA | AU19: NA | AV19: NA | AW19: NA | AX19: NA | AY19: NA | AZ19: NA | BA19: NA | BB19: NA | BC19: NA | BD19: NA | BE19: unknown | BF19: 0 | BG19: 0 | BH19: 0 | BI19: NA | BJ19: NA | BK19: NA | BL19: NA | BM19: NA | BN19: NA | BO19: NA | BP19: NA | BQ19: NA | BR19: NA | BS19: NA | BT19: NA | BU19: unknown | BV19: 0 | BW19: 0 | BX19: 0 | BY19: NA | BZ19: NA | CA19: NA | CB19: NA | CC19: NA | CD19: NA | CE19: NA | CF19: NA | CG19: NA | CH19: NA | CI19: NA | CJ19: NA | CK19: unknown | CL19: 1 | CM19: 1 | CN19: 0 | CO19: 2012 | CP19: 2014 | CQ19: 2 | CR19: 1 | CS19: 1 | CT19: 75.4 | CU19: 87.47 | CV19: 87.47 | CW19: 3 | CX19: 116.0079576 | CY19: 12.07 | CZ19: 7.424430121 | DA19: no change | DB19: 0 | DC19: 0 | DD19: 0 | DE19: NA | DF19: NA | DG19: NA | DH19: NA | DI19: NA | DJ19: NA | DK19: NA | DL19: NA | DM19: NA | DN19: NA | DO19: NA | DP19: NA | DQ19: unknown | DR19: 0 | DS19: 0 | DT19: 0 | DU19: NA | DV19: NA | DW19: NA | DX19: NA | DY19: NA | DZ19: NA | EA19: NA | EB19: NA | EC19: NA | ED19: NA | EE19: NA | EF19: NA | EG19: unknown | EH19: - | EI19: =MIN(DU19,DE19,CO19,BY19,BI19,AS19,AH19) -> 2012 | EJ19: =MAX(DV19,DF19,CP19,BZ19,BJ19,AT19,AI19) -> 2014 | EK19: =EJ19-EI19 -> 2 | EL19: =IF(EM19=0,"NA",AVERAGE(ED19,DN19,CX19)) -> 116.0079576 | EM19: =DR19+DB19+CL19 -> 1 | EN19: =IF(EL19>125,"increase",IF(EL19<75,"decrease","no change")) -> no change | EO19: NA | EP19: =BV19+BF19 -> 0 | EQ19: unknown | ER19: =BB19 -> NA | ES19: =AP19 -> 0 | ET19: =BE19 -> unknown | EU19: =ES19+EP19 -> 0 | EV19: unknown | EW19: =AO19 -> persists | EX19: unknown | EY19: =EN19 -> no change | EZ19: =IF(FC19+HT19>0,1,0) -> 0 | FA19: =IF(FD19>1 OR(HU19>1),1,0) -> 0 | FB19: =IF(FC19+HT19=2,1,0) -> 0 | FC19: =IF(SUM(FH19,FV19,GK19,GS19,HE19,HL19,HP19)>0,1,0) -> 0 | FD19: =SUM(FH19,FV19,GK19,GS19,HE19,HL19,HP19) -> 0 | FE19: 0 | FF19: NA | FG19: NA | FH19: =IF(SUM(FL19:FU19)>0,1,0) -> 0 | FI19: NA | FJ19: NA | FK19: NA | FL19: 0 | FM19: 0 | FN19: 0 | FO19: 0 | FP19: 0 | FQ19: 0 | FR19: 0 | FS19: 0 | FT19: 0 | FU19: 0 | FV19: =IF(SUM(FZ19:GJ19)>0,1,0) -> 0 | FW19: NA | FX19: NA | FY19: NA | FZ19: 0 | GA19: 0 | GB19: 0 | GC19: 0 | GD19: 0 | GE19: 0 | GF19: 0 | GG19: 0 | GH19: 0 | GI19: 0 | GJ19: 0 | GK19: =IF(SUM(GO19:GR19)>0,1,0) -> 0 | GL19: NA | GM19: NA | GN19: NA | GO19: 0 | GP19: 0 | GQ19: 0 | GR19: 0 | GS19: =IF(SUM(GW19:HD19)>0,1,0) -> 0 | GT19: NA | GU19: NA | GV19: NA | GW19: 0 | GX19: 0 | GY19: 0 | GZ19: 0 | HA19: 0 | HB19: 0 | HC19: 0 | HD19: 0 | HE19: =IF(SUM(HI19:HK19)>0,1,0) -> 0 | HF19: NA | HG19: NA | HH19: NA | HI19: 0 | HJ19: 0 | HK19: 0 | HL19: 0 | HM19: NA | HN19: NA | HO19: NA | HP19: 0 | HQ19: NA | HR19: NA | HS19: NA | HT19: =IF(HX19+IG19>0,1,0) -> 0 | HU19: =SUM(HX19,IG19) -> 0 | HV19: 0 | HW19: NA | HX19: =IF(SUM(IB19:IF19)>0,1,0) -> 0 | HY19: NA | HZ19: NA | IA19: NA | IB19: 0 | IC19: 0 | ID19: 0 | IE19: 0 | IF19: 0 | IG19: 0 | IH19: NA | II19: NA | IJ19: NA
A20: 19 | B20: Marbà et al. 2015 | C20: =IF(D20>0,1,0) -> 0 | F20: - | G20: Isla de Terreros (POS_02) | H20: 37.34655 | I20: -1.6522 | J20: bad | K20: Mediterranean | L20: Western Mediterranean Sea | M20: Spain | N20: Po | O20: none | P20: 1 | Q20: 0 | R20: 0 | S20: 0 | T20: subtidal | U20: NA | V20: NA | W20: -11 | X20: - | Y20: =IF(Z20=1,0,1) -> 0 | Z20: =IF((AQ20+BG20+BW20+CM20+DC20+DS20)>0,1,0) -> 1 | AA20: =IF(SUM(AR20+BH20+BX20+CN20+DD20+DT20)>0,1,0) -> 0 | AB20: 0 | AC20: 0 | AD20: 1 | AE20: 0 | AF20: 1 | AG20: 0 | AH20: 2012 | AI20: 2014 | AJ20: 2 | AK20: 1 | AL20: 1 | AM20: 0 | AN20: 0 | AO20: persists | AP20: 0 | AQ20: 0 | AR20: 0 | AS20: NA | AT20: NA | AU20: NA | AV20: NA | AW20: NA | AX20: NA | AY20: NA | AZ20: NA | BA20: NA | BB20: NA | BC20: NA | BD20: NA | BE20: unknown | BF20: 0 | BG20: 0 | BH20: 0 | BI20: NA | BJ20: NA | BK20: NA | BL20: NA | BM20: NA | BN20: NA | BO20: NA | BP20: NA | BQ20: NA | BR20: NA | BS20: NA | BT20: NA | BU20: unknown | BV20: 0 | BW20: 0 | BX20: 0 | BY20: NA | BZ20: NA | CA20: NA | CB20: NA | CC20: NA | CD20: NA | CE20: NA | CF20: NA | CG20: NA | CH20: NA | CI20: NA | CJ20: NA | CK20: unknown | CL20: 1 | CM20: 1 | CN20: 0 | CO20: 2012 | CP20: 2014 | CQ20: 2 | CR20: 1 | CS20: 1 | CT20: 56 | CU20: 72 | CV20: 74.27 | CW20: 3 | CX20: 128.5714286 | CY20: 16 | CZ20: 12.56572141 | DA20: increase | DB20: 0 | DC20: 0 | DD20: 0 | DE20: NA | DF20: NA | DG20: NA | DH20: NA | DI20: NA | DJ20: NA | DK20: NA | DL20: NA | DM20: NA | DN20: NA | DO20: NA | DP20: NA | DQ20: unknown | DR20: 0 | DS20: 0 | DT20: 0 | DU20: NA | DV20: NA | DW20: NA | DX20: NA | DY20: NA | DZ20: NA | EA20: NA | EB20: NA | EC20: NA | ED20: NA | EE20: NA | EF20: NA | EG20: unknown | EH20: - | EI20: =MIN(DU20,DE20,CO20,BY20,BI20,AS20,AH20) -> 2012 | EJ20: =MAX(DV20,DF20,CP20,BZ20,BJ20,AT20,AI20) -> 2014 | EK20: =EJ20-EI20 -> 2 | EL20: =IF(EM20=0,"NA",AVERAGE(ED20,DN20,CX20)) -> 128.5714286 | EM20: =DR20+DB20+CL20 -> 1 | EN20: =IF(EL20>125,"increase",IF(EL20<75,"decrease","no change")) -> increase | EO20: NA | EP20: =BV20+BF20 -> 0 | EQ20: unknown | ER20: =BB20 -> NA | ES20: =AP20 -> 0 | ET20: =BE20 -> unknown | EU20: =ES20+EP20 -> 0 | EV20: unknown | EW20: =AO20 -> persists | EX20: unknown | EY20: =EN20 -> increase | EZ20: =IF(FC20+HT20>0,1,0) -> 1 | FA20: =IF(FD20>1 OR(HU20>1),1,0) -> 1 | FB20: =IF(FC20+HT20=2,1,0) -> 0 | FC20: =IF(SUM(FH20,FV20,GK20,GS20,HE20,HL20,HP20)>0,1,0) -> 1 | FD20: =SUM(FH20,FV20,GK20,GS20,HE20,HL20,HP20) -> 2 | FE20: 0 | FF20: NA | FG20: NA | FH20: =IF(SUM(FL20:FU20)>0,1,0) -> 1 | FI20: NA | FJ20: NA | FK20: NA | FL20: 1 | FM20: 0 | FN20: 0 | FO20: 0 | FP20: 0 | FQ20: 0 | FR20: 0 | FS20: 0 | FT20: 0 | FU20: 0 | FV20: =IF(SUM(FZ20:GJ20)>0,1,0) -> 0 | FW20: NA | FX20: NA | FY20: NA | FZ20: 0 | GA20: 0 | GB20: 0 | GC20: 0 | GD20: 0 | GE20: 0 | GF20: 0 | GG20: 0 | GH20: 0 | GI20: 0 | GJ20: 0 | GK20: =IF(SUM(GO20:GR20)>0,1,0) -> 0 | GL20: NA | GM20: NA | GN20: NA | GO20: 0 | GP20: 0 | GQ20: 0 | GR20: 0 | GS20: =IF(SUM(GW20:HD20)>0,1,0) -> 1 | GT20: NA | GU20: 2012 | GV20: 2014 | GW20: 0 | GX20: 1 | GY20: 0 | GZ20: 0 | HA20: 0 | HB20: 0 | HC20: 0 | HD20: 0 | HE20: =IF(SUM(HI20:HK20)>0,1,0) -> 0 | HF20: NA | HG20: NA | HH20: NA | HI20: 0 | HJ20: 0 | HK20: 0 | HL20: 0 | HM20: NA | HN20: NA | HO20: NA | HP20: 0 | HQ20: NA | HR20: NA | HS20: NA | HT20: =IF(HX20+IG20>0,1,0) -> 0 | HU20: =SUM(HX20,IG20) -> 0 | HV20: 0 | HW20: NA | HX20: =IF(SUM(IB20:IF20)>0,1,0) -> 0 | HY20: NA | HZ20: NA | IA20: NA | IB20: 0 | IC20: 0 | ID20: 0 | IE20: 0 | IF20: 0 | IG20: 0 | IH20: NA | II20: NA | IJ20: NA
A21: 20 | B21: Marbà et al. 2015 | C21: =IF(D21>0,1,0) -> 0 | F21: - | G21: Pozo de Esparto (POS_03) | H21: 37.33274 | I21: -1.69147 | J21: bad | K21: Mediterranean | L21: Western Mediterranean Sea | M21: Spain | N21: Po | O21: none | P21: 1 | Q21: 0 | R21: 0 | S21: 0 | T21: subtidal | U21: NA | V21: NA | W21: -12.5 | X21: - | Y21: =IF(Z21=1,0,1) -> 0 | Z21: =IF((AQ21+BG21+BW21+CM21+DC21+DS21)>0,1,0) -> 1 | AA21: =IF(SUM(AR21+BH21+BX21+CN21+DD21+DT21)>0,1,0) -> 0 | AB21: 0 | AC21: 0 | AD21: 1 | AE21: 0 | AF21: 1 | AG21: 0 | AH21: 2011 | AI21: 2014 | AJ21: 3 | AK21: 1 | AL21: 1 | AM21: 0 | AN21: 0 | AO21: persists | AP21: 0 | AQ21: 0 | AR21: 0 | AS21: NA | AT21: NA | AU21: NA | AV21: NA | AW21: NA | AX21: NA | AY21: NA | AZ21: NA | BA21: NA | BB21: NA | BC21: NA | BD21: NA | BE21: unknown | BF21: 0 | BG21: 0 | BH21: 0 | BI21: NA | BJ21: NA | BK21: NA | BL21: NA | BM21: NA | BN21: NA | BO21: NA | BP21: NA | BQ21: NA | BR21: NA | BS21: NA | BT21: NA | BU21: unknown | BV21: 0 | BW21: 0 | BX21: 0 | BY21: NA | BZ21: NA | CA21: NA | CB21: NA | CC21: NA | CD21: NA | CE21: NA | CF21: NA | CG21: NA | CH21: NA | CI21: NA | CJ21: NA | CK21: unknown | CL21: 1 | CM21: 1 | CN21: 0 | CO21: 2011 | CP21: 2013 | CQ21: 2 | CR21: 1 | CS21: 1 | CT21: 77.33 | CU21: 84.8 | CV21: 84.8 | CW21: 2 | CX21: 109.6598991 | CY21: 7.47 | CZ21: 4.610678209 | DA21: no change | DB21: 1 | DC21: 1 | DD21: 0 | DE21: 2011 | DF21: 2014 | DG21: 3 | DH21: 1 | DI21: 1 | DJ21: 713.89 | DK21: 376.85 | DL21: 713.89 | DM21: 4 | DN21: 52.78824469 | DO21: -337.04 | DP21: -21.29605529 | DQ21: decrease | DR21: 0 | DS21: 0 | DT21: 0 | DU21: NA | DV21: NA | DW21: NA | DX21: NA | DY21: NA | DZ21: NA | EA21: NA | EB21: NA | EC21: NA | ED21: NA | EE21: NA | EF21: NA | EG21: unknown | EH21: - | EI21: =MIN(DU21,DE21,CO21,BY21,BI21,AS21,AH21) -> 2011 | EJ21: =MAX(DV21,DF21,CP21,BZ21,BJ21,AT21,AI21) -> 2014 | EK21: =EJ21-EI21 -> 3 | EL21: =IF(EM21=0,"NA",AVERAGE(ED21,DN21,CX21)) -> 81.22407191 | EM21: =DR21+DB21+CL21 -> 2 | EN21: =IF(EL21>125,"increase",IF(EL21<75,"decrease","no change")) -> no change | EO21: NA | EP21: =BV21+BF21 -> 0 | EQ21: unknown | ER21: =BB21 -> NA | ES21: =AP21 -> 0 | ET21: =BE21 -> unknown | EU21: =ES21+EP21 -> 0 | EV21: unknown | EW21: =AO21 -> persists | EX21: unknown | EY21: =EN21 -> no change | EZ21: =IF(FC21+HT21>0,1,0) -> 0 | FA21: =IF(FD21>1 OR(HU21>1),1,0) -> 0 | FB21: =IF(FC21+HT21=2,1,0) -> 0 | FC21: =IF(SUM(FH21,FV21,GK21,GS21,HE21,HL21,HP21)>0,1,0) -> 0 | FD21: =SUM(FH21,FV21,GK21,GS21,HE21,HL21,HP21) -> 0 | FE21: 0 | FF21: NA | FG21: NA | FH21: =IF(SUM(FL21:FU21)>0,1,0) -> 0 | FI21: NA | FJ21: NA | FK21: NA | FL21: 0 | FM21: 0 | FN21: 0 | FO21: 0 | FP21: 0 | FQ21: 0 | FR21: 0 | FS21: 0 | FT21: 0 | FU21: 0 | FV21: =IF(SUM(FZ21:GJ21)>0,1,0) -> 0 | FW21: NA | FX21: NA | FY21: NA | FZ21: 0 | GA21: 0 | GB21: 0 | GC21: 0 | GD21: 0 | GE21: 0 | GF21: 0 | GG21: 0 | GH21: 0 | GI21: 0 | GJ21: 0 | GK21: =IF(SUM(GO21:GR21)>0,1,0) -> 0 | GL21: NA | GM21: NA | GN21: NA | GO21: 0 | GP21: 0 | GQ21: 0 | GR21: 0 | GS21: =IF(SUM(GW21:HD21)>0,1,0) -> 0 | GT21: NA | GU21: NA | GV21: NA | GW21: 0 | GX21: 0 | GY21: 0 | GZ21: 0 | HA21: 0 | HB21: 0 | HC21: 0 | HD21: 0 | HE21: =IF(SUM(HI21:HK21)>0,1,0) -> 0 | HF21: NA | HG21: NA | HH21: NA | HI21: 0 | HJ21: 0 | HK21: 0 | HL21: 0 | HM21: NA | HN21: NA | HO21: NA | HP21: 0 | HQ21: NA | HR21: NA | HS21: NA | HT21: =IF(HX21+IG21>0,1,0) -> 0 | HU21: =SUM(HX21,IG21) -> 0 | HV21: 0 | HW21: NA | HX21: =IF(SUM(IB21:IF21)>0,1,0) -> 0 | HY21: NA | HZ21: NA | IA21: NA | IB21: 0 | IC21: 0 | ID21: 0 | IE21: 0 | IF21: 0 | IG21: 0 | IH21: NA | II21: NA | IJ21: NA
A22: 21 | B22: Marbà et al. 2015 | C22: =IF(D22>0,1,0) -> 0 | F22: - | G22: El Calón (POS_04) | H22: 37.30999 | I22: -1.7052 | J22: bad | K22: Mediterranean | L22: Western Mediterranean Sea | M22: Spain | N22: Po | O22: none | P22: 1 | Q22: 0 | R22: 0 | S22: 0 | T22: subtidal | U22: NA | V22: NA | W22: -12 | X22: - | Y22: =IF(Z22=1,0,1) -> 0 | Z22: =IF((AQ22+BG22+BW22+CM22+DC22+DS22)>0,1,0) -> 1 | AA22: =IF(SUM(AR22+BH22+BX22+CN22+DD22+DT22)>0,1,0) -> 0 | AB22: 0 | AC22: 0 | AD22: 1 | AE22: 0 | AF22: 1 | AG22: 0 | AH22: 2011 | AI22: 2014 | AJ22: 3 | AK22: 1 | AL22: 1 | AM22: 0 | AN22: 0 | AO22: persists | AP22: 0 | AQ22: 0 | AR22: 0 | AS22: NA | AT22: NA | AU22: NA | AV22: NA | AW22: NA | AX22: NA | AY22: NA | AZ22: NA | BA22: NA | BB22: NA | BC22: NA | BD22: NA | BE22: unknown | BF22: 0 | BG22: 0 | BH22: 0 | BI22: NA | BJ22: NA | BK22: NA | BL22: NA | BM22: NA | BN22: NA | BO22: NA | BP22: NA | BQ22: NA | BR22: NA | BS22: NA | BT22: NA | BU22: unknown | BV22: 0 | BW22: 0 | BX22: 0 | BY22: NA | BZ22: NA | CA22: NA | CB22: NA | CC22: NA | CD22: NA | CE22: NA | CF22: NA | CG22: NA | CH22: NA | CI22: NA | CJ22: NA | CK22: unknown | CL22: 1 | CM22: 1 | CN22: 0 | CO22: 2011 | CP22: 2014 | CQ22: 3 | CR22: 1 | CS22: 1 | CT22: 85.33 | CU22: 69.87 | CV22: 85.33 | CW22: 4 | CX22: 81.88210477 | CY22: -15.46 | CZ22: -6.662990666 | DA22: no change | DB22: 1 | DC22: 1 | DD22: 0 | DE22: 2011 | DF22: 2014 | DG22: 3 | DH22: 1 | DI22: 1 | DJ22: 600 | DK22: 540.63 | DL22: 600 | DM22: 4 | DN22: 90.105 | DO22: -59.37 | DP22: -3.473150967 | DQ22: no change | DR22: 0 | DS22: 0 | DT22: 0 | DU22: NA | DV22: NA | DW22: NA | DX22: NA | DY22: NA | DZ22: NA | EA22: NA | EB22: NA | EC22: NA | ED22: NA | EE22: NA | EF22: NA | EG22: unknown | EH22: - | EI22: =MIN(DU22,DE22,CO22,BY22,BI22,AS22,AH22) -> 2011 | EJ22: =MAX(DV22,DF22,CP22,BZ22,BJ22,AT22,AI22) -> 2014 | EK22: =EJ22-EI22 -> 3 | EL22: =IF(EM22=0,"NA",AVERAGE(ED22,DN22,CX22)) -> 85.99355238 | EM22: =DR22+DB22+CL22 -> 2 | EN22: =IF(EL22>125,"increase",IF(EL22<75,"decrease","no change")) -> no change | EO22: NA | EP22: =BV22+BF22 -> 0 | EQ22: unknown | ER22: =BB22 -> NA | ES22: =AP22 -> 0 | ET22: =BE22 -> unknown | EU22: =ES22+EP22 -> 0 | EV22: unknown | EW22: =AO22 -> persists | EX22: unknown | EY22: =EN22 -> no change | EZ22: =IF(FC22+HT22>0,1,0) -> 0 | FA22: =IF(FD22>1 OR(HU22>1),1,0) -> 0 | FB22: =IF(FC22+HT22=2,1,0) -> 0 | FC22: =IF(SUM(FH22,FV22,GK22,GS22,HE22,HL22,HP22)>0,1,0) -> 0 | FD22: =SUM(FH22,FV22,GK22,GS22,HE22,HL22,HP22) -> 0 | FE22: 0 | FF22: NA | FG22: NA | FH22: =IF(SUM(FL22:FU22)>0,1,0) -> 0 | FI22: NA | FJ22: NA | FK22: NA | FL22: 0 | FM22: 0 | FN22: 0 | FO22: 0 | FP22: 0 | FQ22: 0 | FR22: 0 | FS22: 0 | FT22: 0 | FU22: 0 | FV22: =IF(SUM(FZ22:GJ22)>0,1,0) -> 0 | FW22: NA | FX22: NA | FY22: NA | FZ22: 0 | GA22: 0 | GB22: 0 | GC22: 0 | GD22: 0 | GE22: 0 | GF22: 0 | GG22: 0 | GH22: 0 | GI22: 0 | GJ22: 0 | GK22: =IF(SUM(GO22:GR22)>0,1,0) -> 0 | GL22: NA | GM22: NA | GN22: NA | GO22: 0 | GP22: 0 | GQ22: 0 | GR22: 0 | GS22: =IF(SUM(GW22:HD22)>0,1,0) -> 0 | GT22: NA | GU22: NA | GV22: NA | GW22: 0 | GX22: 0 | GY22: 0 | GZ22: 0 | HA22: 0 | HB22: 0 | HC22: 0 | HD22: 0 | HE22: =IF(SUM(HI22:HK22)>0,1,0) -> 0 | HF22: NA | HG22: NA | HH22: NA | HI22: 0 | HJ22: 0 | HK22: 0 | HL22: 0 | HM22: NA | HN22: NA | HO22: NA | HP22: 0 | HQ22: NA | HR22: NA | HS22: NA | HT22: =IF(HX22+IG22>0,1,0) -> 0 | HU22: =SUM(HX22,IG22) -> 0 | HV22: 0 | HW22: NA | HX22: =IF(SUM(IB22:IF22)>0,1,0) -> 0 | HY22: NA | HZ22: NA | IA22: NA | IB22: 0 | IC22: 0 | ID22: 0 | IE22: 0 | IF22: 0 | IG22: 0 | IH22: NA | II22: NA | IJ22: NA
A23: 22 | B23: Marbà et al. 2015 | C23: =IF(D23>0,1,0) -> 0 | F23: - | G23: Loza del Payo (POS_05) | H23: 37.29749 | I23: -1.71554 | J23: bad | K23: Mediterranean | L23: Western Mediterranean Sea | M23: Spain | N23: Po | O23: none | P23: 1 | Q23: 0 | R23: 0 | S23: 0 | T23: subtidal | U23: NA | V23: NA | W23: -13 | X23: - | Y23: =IF(Z23=1,0,1) -> 0 | Z23: =IF((AQ23+BG23+BW23+CM23+DC23+DS23)>0,1,0) -> 1 | AA23: =IF(SUM(AR23+BH23+BX23+CN23+DD23+DT23)>0,1,0) -> 0 | AB23: 0 | AC23: 0 | AD23: 1 | AE23: 0 | AF23: 1 | AG23: 0 | AH23: 2011 | AI23: 2014 | AJ23: 3 | AK23: 1 | AL23: 1 | AM23: 0 | AN23: 0 | AO23: persists | AP23: 0 | AQ23: 0 | AR23: 0 | AS23: NA | AT23: NA | AU23: NA | AV23: NA | AW23: NA | AX23: NA | AY23: NA | AZ23: NA | BA23: NA | BB23: NA | BC23: NA | BD23: NA | BE23: unknown | BF23: 0 | BG23: 0 | BH23: 0 | BI23: NA | BJ23: NA | BK23: NA | BL23: NA | BM23: NA | BN23: NA | BO23: NA | BP23: NA | BQ23: NA | BR23: NA | BS23: NA | BT23: NA | BU23: unknown | BV23: 0 | BW23: 0 | BX23: 0 | BY23: NA | BZ23: NA | CA23: NA | CB23: NA | CC23: NA | CD23: NA | CE23: NA | CF23: NA | CG23: NA | CH23: NA | CI23: NA | CJ23: NA | CK23: unknown | CL23: 1 | CM23: 1 | CN23: 0 | CO23: 2011 | CP23: 2014 | CQ23: 3 | CR23: 1 | CS23: 1 | CT23: 82.67 | CU23: 71.6 | CV23: 82.67 | CW23: 4 | CX23: 86.60941091 | CY23: -11.07 | CZ23: -4.792056843 | DA23: no change | DB23: 1 | DC23: 1 | DD23: 0 | DE23: 2011 | DF23: 2014 | DG23: 3 | DH23: 1 | DI23: 1 | DJ23: 500 | DK23: 576.79 | DL23: 607.89 | DM23: 4 | DN23: 115.358 | DO23: 76.79 | DP23: 4.762338346 | DQ23: no change | DR23: 0 | DS23: 0 | DT23: 0 | DU23: NA | DV23: NA | DW23: NA | DX23: NA | DY23: NA | DZ23: NA | EA23: NA | EB23: NA | EC23: NA | ED23: NA | EE23: NA | EF23: NA | EG23: unknown | EH23: - | EI23: =MIN(DU23,DE23,CO23,BY23,BI23,AS23,AH23) -> 2011 | EJ23: =MAX(DV23,DF23,CP23,BZ23,BJ23,AT23,AI23) -> 2014 | EK23: =EJ23-EI23 -> 3 | EL23: =IF(EM23=0,"NA",AVERAGE(ED23,DN23,CX23)) -> 100.9837055 | EM23: =DR23+DB23+CL23 -> 2 | EN23: =IF(EL23>125,"increase",IF(EL23<75,"decrease","no change")) -> no change | EO23: NA | EP23: =BV23+BF23 -> 0 | EQ23: unknown | ER23: =BB23 -> NA | ES23: =AP23 -> 0 | ET23: =BE23 -> unknown | EU23: =ES23+EP23 -> 0 | EV23: unknown | EW23: =AO23 -> persists | EX23: unknown | EY23: =EN23 -> no change | EZ23: =IF(FC23+HT23>0,1,0) -> 0 | FA23: =IF(FD23>1 OR(HU23>1),1,0) -> 0 | FB23: =IF(FC23+HT23=2,1,0) -> 0 | FC23: =IF(SUM(FH23,FV23,GK23,GS23,HE23,HL23,HP23)>0,1,0) -> 0 | FD23: =SUM(FH23,FV23,GK23,GS23,HE23,HL23,HP23) -> 0 | FE23: 0 | FF23: NA | FG23: NA | FH23: =IF(SUM(FL23:FU23)>0,1,0) -> 0 | FI23: NA | FJ23: NA | FK23: NA | FL23: 0 | FM23: 0 | FN23: 0 | FO23: 0 | FP23: 0 | FQ23: 0 | FR23: 0 | FS23: 0 | FT23: 0 | FU23: 0 | FV23: =IF(SUM(FZ23:GJ23)>0,1,0) -> 0 | FW23: NA | FX23: NA | FY23: NA | FZ23: 0 | GA23: 0 | GB23: 0 | GC23: 0 | GD23: 0 | GE23: 0 | GF23: 0 | GG23: 0 | GH23: 0 | GI23: 0 | GJ23: 0 | GK23: =IF(SUM(GO23:GR23)>0,1,0) -> 0 | GL23: NA | GM23: NA | GN23: NA | GO23: 0 | GP23: 0 | GQ23: 0 | GR23: 0 | GS23: =IF(SUM(GW23:HD23)>0,1,0) -> 0 | GT23: NA | GU23: NA | GV23: NA | GW23: 0 | GX23: 0 | GY23: 0 | GZ23: 0 | HA23: 0 | HB23: 0 | HC23: 0 | HD23: 0 | HE23: =IF(SUM(HI23:HK23)>0,1,0) -> 0 | HF23: NA | HG23: NA | HH23: NA | HI23: 0 | HJ23: 0 | HK23: 0 | HL23: 0 | HM23: NA | HN23: NA | HO23: NA | HP23: 0 | HQ23: NA | HR23: NA | HS23: NA | HT23: =IF(HX23+IG23>0,1,0) -> 0 | HU23: =SUM(HX23,IG23) -> 0 | HV23: 0 | HW23: NA | HX23: =IF(SUM(IB23:IF23)>0,1,0) -> 0 | HY23: NA | HZ23: NA | IA23: NA | IB23: 0 | IC23: 0 | ID23: 0 | IE23: 0 | IF23: 0 | IG23: 0 | IH23: NA | II23: NA | IJ23: NA
A24: 23 | B24: Marbà et al. 2015 | C24: =IF(D24>0,1,0) -> 0 | F24: - | G24: Deretil (POS_06) | H24: 37.25837 | I24: -1.76046 | J24: bad | K24: Mediterranean | L24: Western Mediterranean Sea | M24: Spain | N24: Po | O24: none | P24: 1 | Q24: 0 | R24: 0 | S24: 0 | T24: subtidal | U24: NA | V24: NA | W24: -12 | X24: - | Y24: =IF(Z24=1,0,1) -> 0 | Z24: =IF((AQ24+BG24+BW24+CM24+DC24+DS24)>0,1,0) -> 1 | AA24: =IF(SUM(AR24+BH24+BX24+CN24+DD24+DT24)>0,1,0) -> 0 | AB24: 0 | AC24: 0 | AD24: 1 | AE24: 0 | AF24: 1 | AG24: 0 | AH24: 2012 | AI24: 2014 | AJ24: 2 | AK24: 1 | AL24: 1 | AM24: 0 | AN24: 0 | AO24: persists | AP24: 0 | AQ24: 0 | AR24: 0 | AS24: NA | AT24: NA | AU24: NA | AV24: NA | AW24: NA | AX24: NA | AY24: NA | AZ24: NA | BA24: NA | BB24: NA | BC24: NA | BD24: NA | BE24: unknown | BF24: 0 | BG24: 0 | BH24: 0 | BI24: NA | BJ24: NA | BK24: NA | BL24: NA | BM24: NA | BN24: NA | BO24: NA | BP24: NA | BQ24: NA | BR24: NA | BS24: NA | BT24: NA | BU24: unknown | BV24: 0 | BW24: 0 | BX24: 0 | BY24: NA | BZ24: NA | CA24: NA | CB24: NA | CC24: NA | CD24: NA | CE24: NA | CF24: NA | CG24: NA | CH24: NA | CI24: NA | CJ24: NA | CK24: unknown | CL24: 1 | CM24: 1 | CN24: 0 | CO24: 2012 | CP24: 2014 | CQ24: 2 | CR24: 1 | CS24: 1 | CT24: 26.73 | CU24: 27.47 | CV24: 27.47 | CW24: 3 | CX24: 102.768425 | CY24: 0.74 | CZ24: 1.365398498 | DA24: no change | DB24: 1 | DC24: 1 | DD24: 0 | DE24: 2012 | DF24: 2014 | DG24: 2 | DH24: 1 | DI24: 1 | DJ24: 303 | DK24: 207.41 | DL24: 303 | DM24: 3 | DN24: 68.45214521 | DO24: -95.59 | DP24: -18.95176474 | DQ24: decrease | DR24: 0 | DS24: 0 | DT24: 0 | DU24: NA | DV24: NA | DW24: NA | DX24: NA | DY24: NA | DZ24: NA | EA24: NA | EB24: NA | EC24: NA | ED24: NA | EE24: NA | EF24: NA | EG24: unknown | EH24: - | EI24: =MIN(DU24,DE24,CO24,BY24,BI24,AS24,AH24) -> 2012 | EJ24: =MAX(DV24,DF24,CP24,BZ24,BJ24,AT24,AI24) -> 2014 | EK24: =EJ24-EI24 -> 2 | EL24: =IF(EM24=0,"NA",AVERAGE(ED24,DN24,CX24)) -> 85.6102851 | EM24: =DR24+DB24+CL24 -> 2 | EN24: =IF(EL24>125,"increase",IF(EL24<75,"decrease","no change")) -> no change | EO24: NA | EP24: =BV24+BF24 -> 0 | EQ24: unknown | ER24: =BB24 -> NA | ES24: =AP24 -> 0 | ET24: =BE24 -> unknown | EU24: =ES24+EP24 -> 0 | EV24: unknown | EW24: =AO24 -> persists | EX24: unknown | EY24: =EN24 -> no change | EZ24: =IF(FC24+HT24>0,1,0) -> 1 | FA24: =IF(FD24>1 OR(HU24>1),1,0) -> 0 | FB24: =IF(FC24+HT24=2,1,0) -> 0 | FC24: =IF(SUM(FH24,FV24,GK24,GS24,HE24,HL24,HP24)>0,1,0) -> 1 | FD24: =SUM(FH24,FV24,GK24,GS24,HE24,HL24,HP24) -> 1 | FE24: 0 | FF24: NA | FG24: NA | FH24: =IF(SUM(FL24:FU24)>0,1,0) -> 1 | FI24: NA | FJ24: 2012 | FK24: 2014 | FL24: 0 | FM24: 0 | FN24: 0 | FO24: 0 | FP24: 0 | FQ24: 0 | FR24: 1 | FS24: 0 | FT24: 0 | FU24: 0 | FV24: =IF(SUM(FZ24:GJ24)>0,1,0) -> 0 | FW24: NA | FX24: NA | FY24: NA | FZ24: 0 | GA24: 0 | GB24: 0 | GC24: 0 | GD24: 0 | GE24: 0 | GF24: 0 | GG24: 0 | GH24: 0 | GI24: 0 | GJ24: 0 | GK24: =IF(SUM(GO24:GR24)>0,1,0) -> 0 | GL24: NA | GM24: NA | GN24: NA | GO24: 0 | GP24: 0 | GQ24: 0 | GR24: 0 | GS24: =IF(SUM(GW24:HD24)>0,1,0) -> 0 | GT24: NA | GU24: NA | GV24: NA | GW24: 0 | GX24: 0 | GY24: 0 | GZ24: 0 | HA24: 0 | HB24: 0 | HC24: 0 | HD24: 0 | HE24: =IF(SUM(HI24:HK24)>0,1,0) -> 0 | HF24: NA | HG24: NA | HH24: NA | HI24: 0 | HJ24: 0 | HK24: 0 | HL24: 0 | HM24: NA | HN24: NA | HO24: NA | HP24: 0 | HQ24: NA | HR24: NA | HS24: NA | HT24: =IF(HX24+IG24>0,1,0) -> 0 | HU24: =SUM(HX24,IG24) -> 0 | HV24: 0 | HW24: NA | HX24: =IF(SUM(IB24:IF24)>0,1,0) -> 0 | HY24: NA | HZ24: NA | IA24: NA | IB24: 0 | IC24: 0 | ID24: 0 | IE24: 0 | IF24: 0 | IG24: 0 | IH24: NA | II24: NA | IJ24: NA
A25: 24 | B25: Marbà et al. 2015 | C25: =IF(D25>0,1,0) -> 0 | F25: - | G25: Isla de San Andrés (POS_07) | H25: 36.99172 | I25: -1.88561 | J25: bad | K25: Mediterranean | L25: Western Mediterranean Sea | M25: Spain | N25: Po | O25: none | P25: 1 | Q25: 0 | R25: 0 | S25: 0 | T25: subtidal | U25: NA | V25: NA | W25: -12 | X25: - | Y25: =IF(Z25=1,0,1) -> 0 | Z25: =IF((AQ25+BG25+BW25+CM25+DC25+DS25)>0,1,0) -> 1 | AA25: =IF(SUM(AR25+BH25+BX25+CN25+DD25+DT25)>0,1,0) -> 0 | AB25: 0 | AC25: 0 | AD25: 1 | AE25: 0 | AF25: 1 | AG25: 0 | AH25: 2012 | AI25: 2014 | AJ25: 2 | AK25: 1 | AL25: 1 | AM25: 0 | AN25: 0 | AO25: persists | AP25: 0 | AQ25: 0 | AR25: 0 | AS25: NA | AT25: NA | AU25: NA | AV25: NA | AW25: NA | AX25: NA | AY25: NA | AZ25: NA | BA25: NA | BB25: NA | BC25: NA | BD25: NA | BE25: unknown | BF25: 0 | BG25: 0 | BH25: 0 | BI25: NA | BJ25: NA | BK25: NA | BL25: NA | BM25: NA | BN25: NA | BO25: NA | BP25: NA | BQ25: NA | BR25: NA | BS25: NA | BT25: NA | BU25: unknown | BV25: 0 | BW25: 0 | BX25: 0 | BY25: NA | BZ25: NA | CA25: NA | CB25: NA | CC25: NA | CD25: NA | CE25: NA | CF25: NA | CG25: NA | CH25: NA | CI25: NA | CJ25: NA | CK25: unknown | CL25: 1 | CM25: 1 | CN25: 0 | CO25: 2012 | CP25: 2014 | CQ25: 2 | CR25: 1 | CS25: 1 | CT25: 55.33 | CU25: 50 | CV25: 67.2 | CW25: 3 | CX25: 90.36688957 | CY25: -5.33 | CZ25: -5.064612574 | DA25: no change | DB25: 1 | DC25: 1 | DD25: 0 | DE25: 2012 | DF25: 2014 | DG25: 2 | DH25: 1 | DI25: 1 | DJ25: 791.94 | DK25: 565.91 | DL25: 791.94 | DM25: 3 | DN25: 71.45869637 | DO25: -226.03 | DP25: -16.80252882 | DQ25: decrease | DR25: 0 | DS25: 0 | DT25: 0 | DU25: NA | DV25: NA | DW25: NA | DX25: NA | DY25: NA | DZ25: NA | EA25: NA | EB25: NA | EC25: NA | ED25: NA | EE25: NA | EF25: NA | EG25: unknown | EH25: - | EI25: =MIN(DU25,DE25,CO25,BY25,BI25,AS25,AH25) -> 2012 | EJ25: =MAX(DV25,DF25,CP25,BZ25,BJ25,AT25,AI25) -> 2014 | EK25: =EJ25-EI25 -> 2 | EL25: =IF(EM25=0,"NA",AVERAGE(ED25,DN25,CX25)) -> 80.91279297 | EM25: =DR25+DB25+CL25 -> 2 | EN25: =IF(EL25>125,"increase",IF(EL25<75,"decrease","no change")) -> no change | EO25: NA | EP25: =BV25+BF25 -> 0 | EQ25: unknown | ER25: =BB25 -> NA | ES25: =AP25 -> 0 | ET25: =BE25 -> unknown | EU25: =ES25+EP25 -> 0 | EV25: unknown | EW25: =AO25 -> persists | EX25: unknown | EY25: =EN25 -> no change | EZ25: =IF(FC25+HT25>0,1,0) -> 0 | FA25: =IF(FD25>1 OR(HU25>1),1,0) -> 0 | FB25: =IF(FC25+HT25=2,1,0) -> 0 | FC25: =IF(SUM(FH25,FV25,GK25,GS25,HE25,HL25,HP25)>0,1,0) -> 0 | FD25: =SUM(FH25,FV25,GK25,GS25,HE25,HL25,HP25) -> 0 | FE25: 0 | FF25: NA | FG25: NA | FH25: =IF(SUM(FL25:FU25)>0,1,0) -> 0 | FI25: NA | FJ25: NA | FK25: NA | FL25: 0 | FM25: 0 | FN25: 0 | FO25: 0 | FP25: 0 | FQ25: 0 | FR25: 0 | FS25: 0 | FT25: 0 | FU25: 0 | FV25: =IF(SUM(FZ25:GJ25)>0,1,0) -> 0 | FW25: NA | FX25: NA | FY25: NA | FZ25: 0 | GA25: 0 | GB25: 0 | GC25: 0 | GD25: 0 | GE25: 0 | GF25: 0 | GG25: 0 | GH25: 0 | GI25: 0 | GJ25: 0 | GK25: =IF(SUM(GO25:GR25)>0,1,0) -> 0 | GL25: NA | GM25: NA | GN25: NA | GO25: 0 | GP25: 0 | GQ25: 0 | GR25: 0 | GS25: =IF(SUM(GW25:HD25)>0,1,0) -> 0 | GT25: NA | GU25: NA | GV25: NA | GW25: 0 | GX25: 0 | GY25: 0 | GZ25: 0 | HA25: 0 | HB25: 0 | HC25: 0 | HD25: 0 | HE25: =IF(SUM(HI25:HK25)>0,1,0) -> 0 | HF25: NA | HG25: NA | HH25: NA | HI25: 0 | HJ25: 0 | HK25: 0 | HL25: 0 | HM25: NA | HN25: NA | HO25: NA | HP25: 0 | HQ25: NA | HR25: NA | HS25: NA | HT25: =IF(HX25+IG25>0,1,0) -> 0 | HU25: =SUM(HX25,IG25) -> 0 | HV25: 0 | HW25: NA | HX25: =IF(SUM(IB25:IF25)>0,1,0) -> 0 | HY25: NA | HZ25: NA | IA25: NA | IB25: 0 | IC25: 0 | ID25: 0 | IE25: 0 | IF25: 0 | IG25: 0 | IH25: NA | II25: NA | IJ25: NA
A26: 25 | B26: Boström et al. 2002 | C26: =IF(D26>0,1,0) -> 0 | F26: - | G26: Hangö Peninsula (dense) | H26: 59.84 | I26: 23.25167 | J26: good | K26: Baltic | L26: Baltic Sea | M26: Finland | N26: Zm | O26: none | P26: 0 | Q26: 1 | R26: 0 | S26: 0 | T26: subtidal | U26: NA | V26: NA | W26: -4 | X26: - | Y26: =IF(Z26=1,0,1) -> 0 | Z26: =IF((AQ26+BG26+BW26+CM26+DC26+DS26)>0,1,0) -> 1 | AA26: =IF(SUM(AR26+BH26+BX26+CN26+DD26+DT26)>0,1,0) -> 1 | AB26: 0 | AC26: 0 | AD26: 1 | AE26: 0 | AF26: 1 | AG26: 0 | AH26: 1968 | AI26: 1993 | AJ26: 25 | AK26: 1 | AL26: 1 | AM26: 0 | AN26: 0 | AO26: persists | AP26: 0 | AQ26: 0 | AR26: 0 | AS26: NA | AT26: NA | AU26: NA | AV26: NA | AW26: NA | AX26: NA | AY26: NA | AZ26: NA | BA26: NA | BB26: NA | BC26: NA | BD26: NA | BE26: unknown | BF26: 0 | BG26: 0 | BH26: 0 | BI26: NA | BJ26: NA | BK26: NA | BL26: NA | BM26: NA | BN26: NA | BO26: NA | BP26: NA | BQ26: NA | BR26: NA | BS26: NA | BT26: NA | BU26: unknown | BV26: 0 | BW26: 0 | BX26: 0 | BY26: NA | BZ26: NA | CA26: NA | CB26: NA | CC26: NA | CD26: NA | CE26: NA | CF26: NA | CG26: NA | CH26: NA | CI26: NA | CJ26: NA | CK26: unknown | CL26: 0 | CM26: 0 | CN26: 0 | CO26: NA | CP26: NA | CQ26: NA | CR26: NA | CS26: NA | CT26: NA | CU26: NA | CV26: NA | CW26: NA | CX26: NA | CY26: NA | CZ26: NA | DA26: unknown | DB26: 0 | DC26: 0 | DD26: 0 | DE26: NA | DF26: NA | DG26: NA | DH26: NA | DI26: NA | DJ26: NA | DK26: NA | DL26: NA | DM26: NA | DN26: NA | DO26: NA | DP26: NA | DQ26: unknown | DR26: 1 | DS26: 1 | DT26: 1 | DU26: 1968 | DV26: 1993 | DW26: 25 | DX26: 1 | DY26: 1 | DZ26: 14.3 | EA26: 22.7 | EB26: 22.7 | EC26: 2 | ED26: 158.7412587 | EE26: 8.4 | EF26: 1.848421549 | EG26: increase | EH26: - | EI26: =MIN(DU26,DE26,CO26,BY26,BI26,AS26,AH26) -> 1968 | EJ26: =MAX(DV26,DF26,CP26,BZ26,BJ26,AT26,AI26) -> 1993 | EK26: =EJ26-EI26 -> 25 | EL26: =IF(EM26=0,"NA",AVERAGE(ED26,DN26,CX26)) -> 158.7412587 | EM26: =DR26+DB26+CL26 -> 1 | EN26: =IF(EL26>125,"increase",IF(EL26<75,"decrease","no change")) -> increase | EO26: NA | EP26: =BV26+BF26 -> 0 | EQ26: unknown | ER26: =BB26 -> NA | ES26: =AP26 -> 0 | ET26: =BE26 -> unknown | EU26: =ES26+EP26 -> 0 | EV26: unknown | EW26: =AO26 -> persists | EX26: unknown | EY26: =EN26 -> increase | EZ26: =IF(FC26+HT26>0,1,0) -> 0 | FA26: =IF(FD26>1 OR(HU26>1),1,0) -> 0 | FB26: =IF(FC26+HT26=2,1,0) -> 0 | FC26: =IF(SUM(FH26,FV26,GK26,GS26,HE26,HL26,HP26)>0,1,0) -> 0 | FD26: =SUM(FH26,FV26,GK26,GS26,HE26,HL26,HP26) -> 0 | FE26: 0 | FF26: NA | FG26: NA | FH26: =IF(SUM(FL26:FU26)>0,1,0) -> 0 | FI26: NA | FJ26: NA | FK26: NA | FL26: 0 | FM26: 0 | FN26: 0 | FO26: 0 | FP26: 0 | FQ26: 0 | FR26: 0 | FS26: 0 | FT26: 0 | FU26: 0 | FV26: =IF(SUM(FZ26:GJ26)>0,1,0) -> 0 | FW26: NA | FX26: NA | FY26: NA | FZ26: 0 | GA26: 0 | GB26: 0 | GC26: 0 | GD26: 0 | GE26: 0 | GF26: 0 | GG26: 0 | GH26: 0 | GI26: 0 | GJ26: 0 | GK26: =IF(SUM(GO26:GR26)>0,1,0) -> 0 | GL26: NA | GM26: NA | GN26: NA | GO26: 0 | GP26: 0 | GQ26: 0 | GR26: 0 | GS26: =IF(SUM(GW26:HD26)>0,1,0) -> 0 | GT26: NA | GU26: NA | GV26: NA | GW26: 0 | GX26: 0 | GY26: 0 | GZ26: 0 | HA26: 0 | HB26: 0 | HC26: 0 | HD26: 0 | HE26: =IF(SUM(HI26:HK26)>0,1,0) -> 0 | HF26: NA | HG26: NA | HH26: NA | HI26: 0 | HJ26: 0 | HK26: 0 | HL26: 0 | HM26: NA | HN26: NA | HO26: NA | HP26: 0 | HQ26: NA | HR26: NA | HS26: NA | HT26: =IF(HX26+IG26>0,1,0) -> 0 | HU26: =SUM(HX26,IG26) -> 0 | HV26: 0 | HW26: NA | HX26: =IF(SUM(IB26:IF26)>0,1,0) -> 0 | HY26: NA | HZ26: NA | IA26: NA | IB26: 0 | IC26: 0 | ID26: 0 | IE26: 0 | IF26: 0 | IG26: 0 | IH26: NA | II26: NA | IJ26: NA
A27: 26 | B27: Boström et al. 2002 | C27: =IF(D27>0,1,0) -> 0 | F27: - | G27: Hangö Peninsula (sparce) | H27: 59.84017 | I27: 23.25148 | J27: good | K27: Baltic | L27: Baltic Sea | M27: Finland | N27: Zm | O27: none | P27: 0 | Q27: 1 | R27: 0 | S27: 0 | T27: subtidal | U27: NA | V27: NA | W27: -4 | X27: - | Y27: =IF(Z27=1,0,1) -> 0 | Z27: =IF((AQ27+BG27+BW27+CM27+DC27+DS27)>0,1,0) -> 1 | AA27: =IF(SUM(AR27+BH27+BX27+CN27+DD27+DT27)>0,1,0) -> 1 | AB27: 0 | AC27: 0 | AD27: 1 | AE27: 0 | AF27: 1 | AG27: 0 | AH27: 1968 | AI27: 1993 | AJ27: 25 | AK27: 1 | AL27: 1 | AM27: 0 | AN27: 0 | AO27: persists | AP27: 0 | AQ27: 0 | AR27: 0 | AS27: NA | AT27: NA | AU27: NA | AV27: NA | AW27: NA | AX27: NA | AY27: NA | AZ27: NA | BA27: NA | BB27: NA | BC27: NA | BD27: NA | BE27: unknown | BF27: 0 | BG27: 0 | BH27: 0 | BI27: NA | BJ27: NA | BK27: NA | BL27: NA | BM27: NA | BN27: NA | BO27: NA | BP27: NA | BQ27: NA | BR27: NA | BS27: NA | BT27: NA | BU27: unknown | BV27: 0 | BW27: 0 | BX27: 0 | BY27: NA | BZ27: NA | CA27: NA | CB27: NA | CC27: NA | CD27: NA | CE27: NA | CF27: NA | CG27: NA | CH27: NA | CI27: NA | CJ27: NA | CK27: unknown | CL27: 0 | CM27: 0 | CN27: 0 | CO27: NA | CP27: NA | CQ27: NA | CR27: NA | CS27: NA | CT27: NA | CU27: NA | CV27: NA | CW27: NA | CX27: NA | CY27: NA | CZ27: NA | DA27: unknown | DB27: 1 | DC27: 1 | DD27: 1 | DE27: 1968 | DF27: 1993 | DG27: 25 | DH27: 1 | DI27: 1 | DJ27: 6 | DK27: 17 | DL27: 17 | DM27: 2 | DN27: 283.3333333 | DO27: 11 | DP27: 4.165815499 | DQ27: increase | DR27: 1 | DS27: 1 | DT27: 1 | DU27: 1968 | DV27: 1993 | DW27: 25 | DX27: 1 | DY27: 1 | DZ27: 1.8 | EA27: 4.6 | EB27: 4.6 | EC27: 2 | ED27: 255.5555556 | EE27: 2.8 | EF27: 3.753078554 | EG27: increase | EH27: - | EI27: =MIN(DU27,DE27,CO27,BY27,BI27,AS27,AH27) -> 1968 | EJ27: =MAX(DV27,DF27,CP27,BZ27,BJ27,AT27,AI27) -> 1993 | EK27: =EJ27-EI27 -> 25 | EL27: =IF(EM27=0,"NA",AVERAGE(ED27,DN27,CX27)) -> 269.4444444 | EM27: =DR27+DB27+CL27 -> 2 | EN27: =IF(EL27>125,"increase",IF(EL27<75,"decrease","no change")) -> increase | EO27: NA | EP27: =BV27+BF27 -> 0 | EQ27: unknown | ER27: =BB27 -> NA | ES27: =AP27 -> 0 | ET27: =BE27 -> unknown | EU27: =ES27+EP27 -> 0 | EV27: unknown | EW27: =AO27 -> persists | EX27: unknown | EY27: =EN27 -> increase | EZ27: =IF(FC27+HT27>0,1,0) -> 0 | FA27: =IF(FD27>1 OR(HU27>1),1,0) -> 0 | FB27: =IF(FC27+HT27=2,1,0) -> 0 | FC27: =IF(SUM(FH27,FV27,GK27,GS27,HE27,HL27,HP27)>0,1,0) -> 0 | FD27: =SUM(FH27,FV27,GK27,GS27,HE27,HL27,HP27) -> 0 | FE27: 0 | FF27: NA | FG27: NA | FH27: =IF(SUM(FL27:FU27)>0,1,0) -> 0 | FI27: NA | FJ27: NA | FK27: NA | FL27: 0 | FM27: 0 | FN27: 0 | FO27: 0 | FP27: 0 | FQ27: 0 | FR27: 0 | FS27: 0 | FT27: 0 | FU27: 0 | FV27: =IF(SUM(FZ27:GJ27)>0,1,0) -> 0 | FW27: NA | FX27: NA | FY27: NA | FZ27: 0 | GA27: 0 | GB27: 0 | GC27: 0 | GD27: 0 | GE27: 0 | GF27: 0 | GG27: 0 | GH27: 0 | GI27: 0 | GJ27: 0 | GK27: =IF(SUM(GO27:GR27)>0,1,0) -> 0 | GL27: NA | GM27: NA | GN27: NA | GO27: 0 | GP27: 0 | GQ27: 0 | GR27: 0 | GS27: =IF(SUM(GW27:HD27)>0,1,0) -> 0 | GT27: NA | GU27: NA | GV27: NA | GW27: 0 | GX27: 0 | GY27: 0 | GZ27: 0 | HA27: 0 | HB27: 0 | HC27: 0 | HD27: 0 | HE27: =IF(SUM(HI27:HK27)>0,1,0) -> 0 | HF27: NA | HG27: NA | HH27: NA | HI27: 0 | HJ27: 0 | HK27: 0 | HL27: 0 | HM27: NA | HN27: NA | HO27: NA | HP27: 0 | HQ27: NA | HR27: NA | HS27: NA | HT27: =IF(HX27+IG27>0,1,0) -> 0 | HU27: =SUM(HX27,IG27) -> 0 | HV27: 0 | HW27: NA | HX27: =IF(SUM(IB27:IF27)>0,1,0) -> 0 | HY27: NA | HZ27: NA | IA27: NA | IB27: 0 | IC27: 0 | ID27: 0 | IE27: 0 | IF27: 0 | IG27: 0 | IH27: NA | II27: NA | IJ27: NA
A28: 27 | B28: Bull et al. 2010 | C28: =IF(D28>0,1,0) -> 0 | F28: - | G28: Gibraltar | H28: 36.14977 | I28: -5.35741 | J28: good | K28: Mediterranean | L28: Western Mediterranean Sea | M28: United Kingdom | N28: Zm | O28: none | P28: 0 | Q28: 1 | R28: 0 | S28: 0 | T28: subtidal | U28: NA | V28: NA | W28: NA | X28: - | Y28: =IF(Z28=1,0,1) -> 0 | Z28: =IF((AQ28+BG28+BW28+CM28+DC28+DS28)>0,1,0) -> 1 | AA28: =IF(SUM(AR28+BH28+BX28+CN28+DD28+DT28)>0,1,0) -> 1 | AB28: 0 | AC28: 1 | AD28: 0 | AE28: 0 | AF28: 1 | AG28: 0 | AH28: 1993 | AI28: 2008 | AJ28: 15 | AK28: 1 | AL28: 0 | AM28: 0 | AN28: 1 | AO28: lost | AP28: 1 | AQ28: 1 | AR28: 1 | AS28: 1993 | AT28: 2008 | AU28: 15 | AV28: 1 | AW28: 0 | AX28: 121.05 | AY28: 0 | AZ28: 121.05 | BA28: 2 | BB28: 0 | BC28: -121.05 | BD28: NA | BE28: decrease | BF28: 0 | BG28: 0 | BH28: 0 | BI28: NA | BJ28: NA | BK28: NA | BL28: NA | BM28: NA | BN28: NA | BO28: NA | BP28: NA | BQ28: NA | BR28: NA | BS28: NA | BT28: NA | BU28: unknown | BV28: 0 | BW28: 0 | BX28: 0 | BY28: NA | BZ28: NA | CA28: NA | CB28: NA | CC28: NA | CD28: NA | CE28: NA | CF28: NA | CG28: NA | CH28: NA | CI28: NA | CJ28: NA | CK28: unknown | CL28: 0 | CM28: 0 | CN28: 0 | CO28: NA | CP28: NA | CQ28: NA | CR28: NA | CS28: NA | CT28: NA | CU28: NA | CV28: NA | CW28: NA | CX28: NA | CY28: NA | CZ28: NA | DA28: unknown | DB28: 0 | DC28: 0 | DD28: 0 | DE28: NA | DF28: NA | DG28: NA | DH28: NA | DI28: NA | DJ28: NA | DK28: NA | DL28: NA | DM28: NA | DN28: NA | DO28: NA | DP28: NA | DQ28: unknown | DR28: 0 | DS28: 0 | DT28: 0 | DU28: NA | DV28: NA | DW28: NA | DX28: NA | DY28: NA | DZ28: NA | EA28: NA | EB28: NA | EC28: NA | ED28: NA | EE28: NA | EF28: NA | EG28: unknown | EH28: - | EI28: =MIN(DU28,DE28,CO28,BY28,BI28,AS28,AH28) -> 1993 | EJ28: =MAX(DV28,DF28,CP28,BZ28,BJ28,AT28,AI28) -> 2008 | EK28: =EJ28-EI28 -> 15 | EL28: =IF(EM28=0,"NA",AVERAGE(ED28,DN28,CX28)) -> NA | EM28: =DR28+DB28+CL28 -> 0 | EN28: unknown | EO28: NA | EP28: =BV28+BF28 -> 0 | EQ28: unknown | ER28: =BB28 -> 0 | ES28: =AP28 -> 1 | ET28: =BE28 -> decrease | EU28: =ES28+EP28 -> 1 | EV28: =ET28 -> decrease | EW28: =AO28 -> lost | EX28: decrease | EY28: decrease | EZ28: =IF(FC28+HT28>0,1,0) -> 1 | FA28: =IF(FD28>1 OR(HU28>1),1,0) -> 0 | FB28: =IF(FC28+HT28=2,1,0) -> 0 | FC28: =IF(SUM(FH28,FV28,GK28,GS28,HE28,HL28,HP28)>0,1,0) -> 1 | FD28: =SUM(FH28,FV28,GK28,GS28,HE28,HL28,HP28) -> 1 | FE28: 1 | FF28: -121.05 | FG28: NA | FH28: =IF(SUM(FL28:FU28)>0,1,0) -> 0 | FI28: NA | FJ28: NA | FK28: NA | FL28: 0 | FM28: 0 | FN28: 0 | FO28: 0 | FP28: 0 | FQ28: 0 | FR28: 0 | FS28: 0 | FT28: 0 | FU28: 0 | FV28: =IF(SUM(FZ28:GJ28)>0,1,0) -> 1 | FW28: -121.05 | FX28: 1993 | FY28: 2008 | FZ28: 0 | GA28: 0 | GB28: 1 | GC28: 1 | GD28: 0 | GE28: 0 | GF28: 0 | GG28: 0 | GH28: 0 | GI28: 0 | GJ28: 0 | GK28: =IF(SUM(GO28:GR28)>0,1,0) -> 0 | GL28: NA | GM28: NA | GN28: NA | GO28: 0 | GP28: 0 | GQ28: 0 | GR28: 0 | GS28: =IF(SUM(GW28:HD28)>0,1,0) -> 0 | GT28: NA | GU28: NA | GV28: NA | GW28: 0 | GX28: 0 | GY28: 0 | GZ28: 0 | HA28: 0 | HB28: 0 | HC28: 0 | HD28: 0 | HE28: =IF(SUM(HI28:HK28)>0,1,0) -> 0 | HF28: NA | HG28: NA | HH28: NA | HI28: 0 | HJ28: 0 | HK28: 0 | HL28: 0 | HM28: NA | HN28: NA | HO28: NA | HP28: 0 | HQ28: NA | HR28: NA | HS28: NA | HT28: =IF(HX28+IG28>0,1,0) -> 0 | HU28: =SUM(HX28,IG28) -> 0 | HV28: 0 | HW28: NA | HX28: =IF(SUM(IB28:IF28)>0,1,0) -> 0 | HY28: NA | HZ28: NA | IA28: NA | IB28: 0 | IC28: 0 | ID28: 0 | IE28: 0 | IF28: 0 | IG28: 0 | IH28: NA | II28: NA | IJ28: NA
A29: 28 | B29: Bull et al. 2010 | C29: =IF(D29>0,1,0) -> 0 | F29: - | G29: Gibraltar | H29: 36.14977 | I29: -5.35741 | J29: good | K29: Mediterranean | L29: Western Mediterranean Sea | M29: United Kingdom | N29: Po | O29: none | P29: 1 | Q29: 0 | R29: 0 | S29: 0 | T29: subtidal | U29: NA | V29: NA | W29: NA | X29: - | Y29: =IF(Z29=1,0,1) -> 0 | Z29: =IF((AQ29+BG29+BW29+CM29+DC29+DS29)>0,1,0) -> 1 | AA29: =IF(SUM(AR29+BH29+BX29+CN29+DD29+DT29)>0,1,0) -> 1 | AB29: 0 | AC29: 1 | AD29: 0 | AE29: 0 | AF29: 1 | AG29: 0 | AH29: 1993 | AI29: 2008 | AJ29: 15 | AK29: 1 | AL29: 0 | AM29: 0 | AN29: 1 | AO29: lost | AP29: 1 | AQ29: 1 | AR29: 1 | AS29: 1993 | AT29: 2008 | AU29: 15 | AV29: 1 | AW29: 0 | AX29: 152.41 | AY29: 0 | AZ29: 152.41 | BA29: 2 | BB29: 0 | BC29: -152.41 | BD29: NA | BE29: decrease | BF29: 0 | BG29: 0 | BH29: 0 | BI29: NA | BJ29: NA | BK29: NA | BL29: NA | BM29: NA | BN29: NA | BO29: NA | BP29: NA | BQ29: NA | BR29: NA | BS29: NA | BT29: NA | BU29: unknown | BV29: 0 | BW29: 0 | BX29: 0 | BY29: NA | BZ29: NA | CA29: NA | CB29: NA | CC29: NA | CD29: NA | CE29: NA | CF29: NA | CG29: NA | CH29: NA | CI29: NA | CJ29: NA | CK29: unknown | CL29: 0 | CM29: 0 | CN29: 0 | CO29: NA | CP29: NA | CQ29: NA | CR29: NA | CS29: NA | CT29: NA | CU29: NA | CV29: NA | CW29: NA | CX29: NA | CY29: NA | CZ29: NA | DA29: unknown | DB29: 0 | DC29: 0 | DD29: 0 | DE29: NA | DF29: NA | DG29: NA | DH29: NA | DI29: NA | DJ29: NA | DK29: NA | DL29: NA | DM29: NA | DN29: NA | DO29: NA | DP29: NA | DQ29: unknown | DR29: 0 | DS29: 0 | DT29: 0 | DU29: NA | DV29: NA | DW29: NA | DX29: NA | DY29: NA | DZ29: NA | EA29: NA | EB29: NA | EC29: NA | ED29: NA | EE29: NA | EF29: NA | EG29: unknown | EH29: - | EI29: =MIN(DU29,DE29,CO29,BY29,BI29,AS29,AH29) -> 1993 | EJ29: =MAX(DV29,DF29,CP29,BZ29,BJ29,AT29,AI29) -> 2008 | EK29: =EJ29-EI29 -> 15 | EL29: =IF(EM29=0,"NA",AVERAGE(ED29,DN29,CX29)) -> NA | EM29: =DR29+DB29+CL29 -> 0 | EN29: unknown | EO29: NA | EP29: =BV29+BF29 -> 0 | EQ29: unknown | ER29: =BB29 -> 0 | ES29: =AP29 -> 1 | ET29: =BE29 -> decrease | EU29: =ES29+EP29 -> 1 | EV29: =ET29 -> decrease | EW29: =AO29 -> lost | EX29: decrease | EY29: decrease | EZ29: =IF(FC29+HT29>0,1,0) -> 1 | FA29: =IF(FD29>1 OR(HU29>1),1,0) -> 0 | FB29: =IF(FC29+HT29=2,1,0) -> 0 | FC29: =IF(SUM(FH29,FV29,GK29,GS29,HE29,HL29,HP29)>0,1,0) -> 1 | FD29: =SUM(FH29,FV29,GK29,GS29,HE29,HL29,HP29) -> 1 | FE29: 1 | FF29: -152.41 | FG29: NA | FH29: =IF(SUM(FL29:FU29)>0,1,0) -> 0 | FI29: NA | FJ29: NA | FK29: NA | FL29: 0 | FM29: 0 | FN29: 0 | FO29: 0 | FP29: 0 | FQ29: 0 | FR29: 0 | FS29: 0 | FT29: 0 | FU29: 0 | FV29: =IF(SUM(FZ29:GJ29)>0,1,0) -> 1 | FW29: -152.41 | FX29: 1993 | FY29: 2008 | FZ29: 0 | GA29: 0 | GB29: 1 | GC29: 1 | GD29: 0 | GE29: 0 | GF29: 0 | GG29: 0 | GH29: 0 | GI29: 0 | GJ29: 0 | GK29: =IF(SUM(GO29:GR29)>0,1,0) -> 0 | GL29: NA | GM29: NA | GN29: NA | GO29: 0 | GP29: 0 | GQ29: 0 | GR29: 0 | GS29: =IF(SUM(GW29:HD29)>0,1,0) -> 0 | GT29: NA | GU29: NA | GV29: NA | GW29: 0 | GX29: 0 | GY29: 0 | GZ29: 0 | HA29: 0 | HB29: 0 | HC29: 0 | HD29: 0 | HE29: =IF(SUM(HI29:HK29)>0,1,0) -> 0 | HF29: NA | HG29: NA | HH29: NA | HI29: 0 | HJ29: 0 | HK29: 0 | HL29: 0 | HM29: NA | HN29: NA | HO29: NA | HP29: 0 | HQ29: NA | HR29: NA | HS29: NA | HT29: =IF(HX29+IG29>0,1,0) -> 0 | HU29: =SUM(HX29,IG29) -> 0 | HV29: 0 | HW29: NA | HX29: =IF(SUM(IB29:IF29)>0,1,0) -> 0 | HY29: NA | HZ29: NA | IA29: NA | IB29: 0 | IC29: 0 | ID29: 0 | IE29: 0 | IF29: 0 | IG29: 0 | IH29: NA | II29: NA | IJ29: NA
A30: 29 | B30: Bull et al. 2012 | C30: =IF(D30>0,1,0) -> 0 | F30: - | G30: Broad Ledges | H30: 49.9416 | I30: -6.32841 | J30: good | K30: Atlantic | L30: Celtic Seas | M30: United Kingdom | N30: Zm | O30: none | P30: 0 | Q30: 1 | R30: 0 | S30: 0 | T30: subtidal | U30: NA | V30: NA | W30: -0.2 | X30: - | Y30: =IF(Z30=1,0,1) -> 0 | Z30: =IF((AQ30+BG30+BW30+CM30+DC30+DS30)>0,1,0) -> 1 | AA30: =IF(SUM(AR30+BH30+BX30+CN30+DD30+DT30)>0,1,0) -> 1 | AB30: 0 | AC30: 0 | AD30: 1 | AE30: 0 | AF30: 1 | AG30: 0 | AH30: 1997 | AI30: 2010 | AJ30: 13 | AK30: 1 | AL30: 1 | AM30: 0 | AN30: 0 | AO30: persists | AP30: 0 | AQ30: 0 | AR30: 0 | AS30: NA | AT30: NA | AU30: NA | AV30: NA | AW30: NA | AX30: NA | AY30: NA | AZ30: NA | BA30: NA | BB30: NA | BC30: NA | BD30: NA | BE30: unknown | BF30: 0 | BG30: 0 | BH30: 0 | BI30: NA | BJ30: NA | BK30: NA | BL30: NA | BM30: NA | BN30: NA | BO30: NA | BP30: NA | BQ30: NA | BR30: NA | BS30: NA | BT30: NA | BU30: unknown | BV30: 0 | BW30: 0 | BX30: 0 | BY30: NA | BZ30: NA | CA30: NA | CB30: NA | CC30: NA | CD30: NA | CE30: NA | CF30: NA | CG30: NA | CH30: NA | CI30: NA | CJ30: NA | CK30: unknown | CL30: 0 | CM30: 0 | CN30: 0 | CO30: NA | CP30: NA | CQ30: NA | CR30: NA | CS30: NA | CT30: NA | CU30: NA | CV30: NA | CW30: NA | CX30: NA | CY30: NA | CZ30: NA | DA30: unknown | DB30: 1 | DC30: 1 | DD30: 1 | DE30: 1997 | DF30: 2010 | DG30: 13 | DH30: 1 | DI30: 1 | DJ30: 84.6 | DK30: 71.3 | DL30: 177 | DM30: 14 | DN30: 84.27895981 | DO30: -13.3 | DP30: -1.315676455 | DQ30: no change | DR30: 0 | DS30: 0 | DT30: 0 | DU30: NA | DV30: NA | DW30: NA | DX30: NA | DY30: NA | DZ30: NA | EA30: NA | EB30: NA | EC30: NA | ED30: NA | EE30: NA | EF30: NA | EG30: unknown | EH30: - | EI30: =MIN(DU30,DE30,CO30,BY30,BI30,AS30,AH30) -> 1997 | EJ30: =MAX(DV30,DF30,CP30,BZ30,BJ30,AT30,AI30) -> 2010 | EK30: =EJ30-EI30 -> 13 | EL30: =IF(EM30=0,"NA",AVERAGE(ED30,DN30,CX30)) -> 84.27895981 | EM30: =DR30+DB30+CL30 -> 1 | EN30: =IF(EL30>125,"increase",IF(EL30<75,"decrease","no change")) -> no change | EO30: NA | EP30: =BV30+BF30 -> 0 | EQ30: unknown | ER30: =BB30 -> NA | ES30: =AP30 -> 0 | ET30: =BE30 -> unknown | EU30: =ES30+EP30 -> 0 | EV30: unknown | EW30: =AO30 -> persists | EX30: unknown | EY30: =EN30 -> no change | EZ30: =IF(FC30+HT30>0,1,0) -> 0 | FA30: =IF(FD30>1 OR(HU30>1),1,0) -> 0 | FB30: =IF(FC30+HT30=2,1,0) -> 0 | FC30: =IF(SUM(FH30,FV30,GK30,GS30,HE30,HL30,HP30)>0,1,0) -> 0 | FD30: =SUM(FH30,FV30,GK30,GS30,HE30,HL30,HP30) -> 0 | FE30: 0 | FF30: NA | FG30: NA | FH30: =IF(SUM(FL30:FU30)>0,1,0) -> 0 | FI30: NA | FJ30: NA | FK30: NA | FL30: 0 | FM30: 0 | FN30: 0 | FO30: 0 | FP30: 0 | FQ30: 0 | FR30: 0 | FS30: 0 | FT30: 0 | FU30: 0 | FV30: =IF(SUM(FZ30:GJ30)>0,1,0) -> 0 | FW30: NA | FX30: NA | FY30: NA | FZ30: 0 | GA30: 0 | GB30: 0 | GC30: 0 | GD30: 0 | GE30: 0 | GF30: 0 | GG30: 0 | GH30: 0 | GI30: 0 | GJ30: 0 | GK30: =IF(SUM(GO30:GR30)>0,1,0) -> 0 | GL30: NA | GM30: NA | GN30: NA | GO30: 0 | GP30: 0 | GQ30: 0 | GR30: 0 | GS30: =IF(SUM(GW30:HD30)>0,1,0) -> 0 | GT30: NA | GU30: NA | GV30: NA | GW30: 0 | GX30: 0 | GY30: 0 | GZ30: 0 | HA30: 0 | HB30: 0 | HC30: 0 | HD30: 0 | HE30: =IF(SUM(HI30:HK30)>0,1,0) -> 0 | HF30: NA | HG30: NA | HH30: NA | HI30: 0 | HJ30: 0 | HK30: 0 | HL30: 0 | HM30: NA | HN30: NA | HO30: NA | HP30: 0 | HQ30: NA | HR30: NA | HS30: NA | HT30: =IF(HX30+IG30>0,1,0) -> 0 | HU30: =SUM(HX30,IG30) -> 0 | HV30: 0 | HW30: NA | HX30: =IF(SUM(IB30:IF30)>0,1,0) -> 0 | HY30: NA | HZ30: NA | IA30: NA | IB30: 0 | IC30: 0 | ID30: 0 | IE30: 0 | IF30: 0 | IG30: 0 | IH30: NA | II30: NA | IJ30: NA
A31: 30 | B31: Bull et al. 2012 | C31: =IF(D31>0,1,0) -> 0 | F31: - | G31: Higher Town Bay | H31: 49.958 | I31: -6.27607 | J31: good | K31: Atlantic | L31: Celtic Seas | M31: United Kingdom | N31: Zm | O31: none | P31: 0 | Q31: 1 | R31: 0 | S31: 0 | T31: intertidal | U31: NA | V31: NA | W31: 0.5 | X31: - | Y31: =IF(Z31=1,0,1) -> 0 | Z31: =IF((AQ31+BG31+BW31+CM31+DC31+DS31)>0,1,0) -> 1 | AA31: =IF(SUM(AR31+BH31+BX31+CN31+DD31+DT31)>0,1,0) -> 1 | AB31: 0 | AC31: 0 | AD31: 1 | AE31: 0 | AF31: 1 | AG31: 0 | AH31: 1997 | AI31: 2010 | AJ31: 13 | AK31: 1 | AL31: 1 | AM31: 0 | AN31: 0 | AO31: persists | AP31: 0 | AQ31: 0 | AR31: 0 | AS31: NA | AT31: NA | AU31: NA | AV31: NA | AW31: NA | AX31: NA | AY31: NA | AZ31: NA | BA31: NA | BB31: NA | BC31: NA | BD31: NA | BE31: unknown | BF31: 0 | BG31: 0 | BH31: 0 | BI31: NA | BJ31: NA | BK31: NA | BL31: NA | BM31: NA | BN31: NA | BO31: NA | BP31: NA | BQ31: NA | BR31: NA | BS31: NA | BT31: NA | BU31: unknown | BV31: 0 | BW31: 0 | BX31: 0 | BY31: NA | BZ31: NA | CA31: NA | CB31: NA | CC31: NA | CD31: NA | CE31: NA | CF31: NA | CG31: NA | CH31: NA | CI31: NA | CJ31: NA | CK31: unknown | CL31: 0 | CM31: 0 | CN31: 0 | CO31: NA | CP31: NA | CQ31: NA | CR31: NA | CS31: NA | CT31: NA | CU31: NA | CV31: NA | CW31: NA | CX31: NA | CY31: NA | CZ31: NA | DA31: unknown | DB31: 1 | DC31: 1 | DD31: 1 | DE31: 1997 | DF31: 2010 | DG31: 13 | DH31: 1 | DI31: 1 | DJ31: 182 | DK31: 155 | DL31: 220 | DM31: 14 | DN31: 85.16483516 | DO31: -27 | DP31: -1.235242847 | DQ31: no change | DR31: 0 | DS31: 0 | DT31: 0 | DU31: NA | DV31: NA | DW31: NA | DX31: NA | DY31: NA | DZ31: NA | EA31: NA | EB31: NA | EC31: NA | ED31: NA | EE31: NA | EF31: NA | EG31: unknown | EH31: - | EI31: =MIN(DU31,DE31,CO31,BY31,BI31,AS31,AH31) -> 1997 | EJ31: =MAX(DV31,DF31,CP31,BZ31,BJ31,AT31,AI31) -> 2010 | EK31: =EJ31-EI31 -> 13 | EL31: =IF(EM31=0,"NA",AVERAGE(ED31,DN31,CX31)) -> 85.16483516 | EM31: =DR31+DB31+CL31 -> 1 | EN31: =IF(EL31>125,"increase",IF(EL31<75,"decrease","no change")) -> no change | EO31: NA | EP31: =BV31+BF31 -> 0 | EQ31: unknown | ER31: =BB31 -> NA | ES31: =AP31 -> 0 | ET31: =BE31 -> unknown | EU31: =ES31+EP31 -> 0 | EV31: unknown | EW31: =AO31 -> persists | EX31: unknown | EY31: =EN31 -> no change | EZ31: =IF(FC31+HT31>0,1,0) -> 0 | FA31: =IF(FD31>1 OR(HU31>1),1,0) -> 0 | FB31: =IF(FC31+HT31=2,1,0) -> 0 | FC31: =IF(SUM(FH31,FV31,GK31,GS31,HE31,HL31,HP31)>0,1,0) -> 0 | FD31: =SUM(FH31,FV31,GK31,GS31,HE31,HL31,HP31) -> 0 | FE31: 0 | FF31: NA | FG31: NA | FH31: =IF(SUM(FL31:FU31)>0,1,0) -> 0 | FI31: NA | FJ31: NA | FK31: NA | FL31: 0 | FM31: 0 | FN31: 0 | FO31: 0 | FP31: 0 | FQ31: 0 | FR31: 0 | FS31: 0 | FT31: 0 | FU31: 0 | FV31: =IF(SUM(FZ31:GJ31)>0,1,0) -> 0 | FW31: NA | FX31: NA | FY31: NA | FZ31: 0 | GA31: 0 | GB31: 0 | GC31: 0 | GD31: 0 | GE31: 0 | GF31: 0 | GG31: 0 | GH31: 0 | GI31: 0 | GJ31: 0 | GK31: =IF(SUM(GO31:GR31)>0,1,0) -> 0 | GL31: NA | GM31: NA | GN31: NA | GO31: 0 | GP31: 0 | GQ31: 0 | GR31: 0 | GS31: =IF(SUM(GW31:HD31)>0,1,0) -> 0 | GT31: NA | GU31: NA | GV31: NA | GW31: 0 | GX31: 0 | GY31: 0 | GZ31: 0 | HA31: 0 | HB31: 0 | HC31: 0 | HD31: 0 | HE31: =IF(SUM(HI31:HK31)>0,1,0) -> 0 | HF31: NA | HG31: NA | HH31: NA | HI31: 0 | HJ31: 0 | HK31: 0 | HL31: 0 | HM31: NA | HN31: NA | HO31: NA | HP31: 0 | HQ31: NA | HR31: NA | HS31: NA | HT31: =IF(HX31+IG31>0,1,0) -> 0 | HU31: =SUM(HX31,IG31) -> 0 | HV31: 0 | HW31: NA | HX31: =IF(SUM(IB31:IF31)>0,1,0) -> 0 | HY31: NA | HZ31: NA | IA31: NA | IB31: 0 | IC31: 0 | ID31: 0 | IE31: 0 | IF31: 0 | IG31: 0 | IH31: NA | II31: NA | IJ31: NA
A32: 31 | B32: Bull et al. 2012 | C32: =IF(D32>0,1,0) -> 0 | F32: - | G32: Little Arthur | H32: 49.94872 | I32: -6.26499 | J32: good | K32: Atlantic | L32: Celtic Seas | M32: United Kingdom | N32: Zm | O32: none | P32: 0 | Q32: 1 | R32: 0 | S32: 0 | T32: subtidal | U32: NA | V32: NA | W32: -1 | X32: - | Y32: =IF(Z32=1,0,1) -> 0 | Z32: =IF((AQ32+BG32+BW32+CM32+DC32+DS32)>0,1,0) -> 1 | AA32: =IF(SUM(AR32+BH32+BX32+CN32+DD32+DT32)>0,1,0) -> 1 | AB32: 0 | AC32: 0 | AD32: 1 | AE32: 0 | AF32: 1 | AG32: 0 | AH32: 1998 | AI32: 2010 | AJ32: 12 | AK32: 1 | AL32: 1 | AM32: 0 | AN32: 0 | AO32: persists | AP32: 0 | AQ32: 0 | AR32: 0 | AS32: NA | AT32: NA | AU32: NA | AV32: NA | AW32: NA | AX32: NA | AY32: NA | AZ32: NA | BA32: NA | BB32: NA | BC32: NA | BD32: NA | BE32: unknown | BF32: 0 | BG32: 0 | BH32: 0 | BI32: NA | BJ32: NA | BK32: NA | BL32: NA | BM32: NA | BN32: NA | BO32: NA | BP32: NA | BQ32: NA | BR32: NA | BS32: NA | BT32: NA | BU32: unknown | BV32: 0 | BW32: 0 | BX32: 0 | BY32: NA | BZ32: NA | CA32: NA | CB32: NA | CC32: NA | CD32: NA | CE32: NA | CF32: NA | CG32: NA | CH32: NA | CI32: NA | CJ32: NA | CK32: unknown | CL32: 0 | CM32: 0 | CN32: 0 | CO32: NA | CP32: NA | CQ32: NA | CR32: NA | CS32: NA | CT32: NA | CU32: NA | CV32: NA | CW32: NA | CX32: NA | CY32: NA | CZ32: NA | DA32: unknown | DB32: 1 | DC32: 1 | DD32: 1 | DE32: 1998 | DF32: 2010 | DG32: 12 | DH32: 1 | DI32: 1 | DJ32: 131 | DK32: 164 | DL32: 253 | DM32: 13 | DN32: 125.1908397 | DO32: 33 | DP32: 1.872242539 | DQ32: increase | DR32: 0 | DS32: 0 | DT32: 0 | DU32: NA | DV32: NA | DW32: NA | DX32: NA | DY32: NA | DZ32: NA | EA32: NA | EB32: NA | EC32: NA | ED32: NA | EE32: NA | EF32: NA | EG32: unknown | EH32: - | EI32: =MIN(DU32,DE32,CO32,BY32,BI32,AS32,AH32) -> 1998 | EJ32: =MAX(DV32,DF32,CP32,BZ32,BJ32,AT32,AI32) -> 2010 | EK32: =EJ32-EI32 -> 12 | EL32: =IF(EM32=0,"NA",AVERAGE(ED32,DN32,CX32)) -> 125.1908397 | EM32: =DR32+DB32+CL32 -> 1 | EN32: =IF(EL32>125,"increase",IF(EL32<75,"decrease","no change")) -> increase | EO32: NA | EP32: =BV32+BF32 -> 0 | EQ32: unknown | ER32: =BB32 -> NA | ES32: =AP32 -> 0 | ET32: =BE32 -> unknown | EU32: =ES32+EP32 -> 0 | EV32: unknown | EW32: =AO32 -> persists | EX32: unknown | EY32: =EN32 -> increase | EZ32: =IF(FC32+HT32>0,1,0) -> 0 | FA32: =IF(FD32>1 OR(HU32>1),1,0) -> 0 | FB32: =IF(FC32+HT32=2,1,0) -> 0 | FC32: =IF(SUM(FH32,FV32,GK32,GS32,HE32,HL32,HP32)>0,1,0) -> 0 | FD32: =SUM(FH32,FV32,GK32,GS32,HE32,HL32,HP32) -> 0 | FE32: 0 | FF32: NA | FG32: NA | FH32: =IF(SUM(FL32:FU32)>0,1,0) -> 0 | FI32: NA | FJ32: NA | FK32: NA | FL32: 0 | FM32: 0 | FN32: 0 | FO32: 0 | FP32: 0 | FQ32: 0 | FR32: 0 | FS32: 0 | FT32: 0 | FU32: 0 | FV32: =IF(SUM(FZ32:GJ32)>0,1,0) -> 0 | FW32: NA | FX32: NA | FY32: NA | FZ32: 0 | GA32: 0 | GB32: 0 | GC32: 0 | GD32: 0 | GE32: 0 | GF32: 0 | GG32: 0 | GH32: 0 | GI32: 0 | GJ32: 0 | GK32: =IF(SUM(GO32:GR32)>0,1,0) -> 0 | GL32: NA | GM32: NA | GN32: NA | GO32: 0 | GP32: 0 | GQ32: 0 | GR32: 0 | GS32: =IF(SUM(GW32:HD32)>0,1,0) -> 0 | GT32: NA | GU32: NA | GV32: NA | GW32: 0 | GX32: 0 | GY32: 0 | GZ32: 0 | HA32: 0 | HB32: 0 | HC32: 0 | HD32: 0 | HE32: =IF(SUM(HI32:HK32)>0,1,0) -> 0 | HF32: NA | HG32: NA | HH32: NA | HI32: 0 | HJ32: 0 | HK32: 0 | HL32: 0 | HM32: NA | HN32: NA | HO32: NA | HP32: 0 | HQ32: NA | HR32: NA | HS32: NA | HT32: =IF(HX32+IG32>0,1,0) -> 0 | HU32: =SUM(HX32,IG32) -> 0 | HV32: 0 | HW32: NA | HX32: =IF(SUM(IB32:IF32)>0,1,0) -> 0 | HY32: NA | HZ32: NA | IA32: NA | IB32: 0 | IC32: 0 | ID32: 0 | IE32: 0 | IF32: 0 | IG32: 0 | IH32: NA | II32: NA | IJ32: NA
A33: 32 | B33: Bull et al. 2012 | C33: =IF(D33>0,1,0) -> 0 | F33: - | G33: Old Grimsby Harbour | H33: 49.96137 | I33: -6.33229 | J33: good | K33: Atlantic | L33: Celtic Seas | M33: United Kingdom | N33: Zm | O33: none | P33: 0 | Q33: 1 | R33: 0 | S33: 0 | T33: subtidal | U33: NA | V33: NA | W33: -0.6 | X33: - | Y33: =IF(Z33=1,0,1) -> 0 | Z33: =IF((AQ33+BG33+BW33+CM33+DC33+DS33)>0,1,0) -> 1 | AA33: =IF(SUM(AR33+BH33+BX33+CN33+DD33+DT33)>0,1,0) -> 1 | AB33: 0 | AC33: 0 | AD33: 1 | AE33: 0 | AF33: 1 | AG33: 0 | AH33: 1997 | AI33: 2010 | AJ33: 13 | AK33: 1 | AL33: 1 | AM33: 0 | AN33: 0 | AO33: persists | AP33: 0 | AQ33: 0 | AR33: 0 | AS33: NA | AT33: NA | AU33: NA | AV33: NA | AW33: NA | AX33: NA | AY33: NA | AZ33: NA | BA33: NA | BB33: NA | BC33: NA | BD33: NA | BE33: unknown | BF33: 0 | BG33: 0 | BH33: 0 | BI33: NA | BJ33: NA | BK33: NA | BL33: NA | BM33: NA | BN33: NA | BO33: NA | BP33: NA | BQ33: NA | BR33: NA | BS33: NA | BT33: NA | BU33: unknown | BV33: 0 | BW33: 0 | BX33: 0 | BY33: NA | BZ33: NA | CA33: NA | CB33: NA | CC33: NA | CD33: NA | CE33: NA | CF33: NA | CG33: NA | CH33: NA | CI33: NA | CJ33: NA | CK33: unknown | CL33: 0 | CM33: 0 | CN33: 0 | CO33: NA | CP33: NA | CQ33: NA | CR33: NA | CS33: NA | CT33: NA | CU33: NA | CV33: NA | CW33: NA | CX33: NA | CY33: NA | CZ33: NA | DA33: unknown | DB33: 1 | DC33: 1 | DD33: 1 | DE33: 1997 | DF33: 2010 | DG33: 13 | DH33: 1 | DI33: 1 | DJ33: 119 | DK33: 109 | DL33: 156 | DM33: 14 | DN33: 91.59663866 | DO33: -10 | DP33: -0.6751970068 | DQ33: no change | DR33: 0 | DS33: 0 | DT33: 0 | DU33: NA | DV33: NA | DW33: NA | DX33: NA | DY33: NA | DZ33: NA | EA33: NA | EB33: NA | EC33: NA | ED33: NA | EE33: NA | EF33: NA | EG33: unknown | EH33: - | EI33: =MIN(DU33,DE33,CO33,BY33,BI33,AS33,AH33) -> 1997 | EJ33: =MAX(DV33,DF33,CP33,BZ33,BJ33,AT33,AI33) -> 2010 | EK33: =EJ33-EI33 -> 13 | EL33: =IF(EM33=0,"NA",AVERAGE(ED33,DN33,CX33)) -> 91.59663866 | EM33: =DR33+DB33+CL33 -> 1 | EN33: =IF(EL33>125,"increase",IF(EL33<75,"decrease","no change")) -> no change | EO33: NA | EP33: =BV33+BF33 -> 0 | EQ33: unknown | ER33: =BB33 -> NA | ES33: =AP33 -> 0 | ET33: =BE33 -> unknown | EU33: =ES33+EP33 -> 0 | EV33: unknown | EW33: =AO33 -> persists | EX33: unknown | EY33: =EN33 -> no change | EZ33: =IF(FC33+HT33>0,1,0) -> 0 | FA33: =IF(FD33>1 OR(HU33>1),1,0) -> 0 | FB33: =IF(FC33+HT33=2,1,0) -> 0 | FC33: =IF(SUM(FH33,FV33,GK33,GS33,HE33,HL33,HP33)>0,1,0) -> 0 | FD33: =SUM(FH33,FV33,GK33,GS33,HE33,HL33,HP33) -> 0 | FE33: 0 | FF33: NA | FG33: NA | FH33: =IF(SUM(FL33:FU33)>0,1,0) -> 0 | FI33: NA | FJ33: NA | FK33: NA | FL33: 0 | FM33: 0 | FN33: 0 | FO33: 0 | FP33: 0 | FQ33: 0 | FR33: 0 | FS33: 0 | FT33: 0 | FU33: 0 | FV33: =IF(SUM(FZ33:GJ33)>0,1,0) -> 0 | FW33: NA | FX33: NA | FY33: NA | FZ33: 0 | GA33: 0 | GB33: 0 | GC33: 0 | GD33: 0 | GE33: 0 | GF33: 0 | GG33: 0 | GH33: 0 | GI33: 0 | GJ33: 0 | GK33: =IF(SUM(GO33:GR33)>0,1,0) -> 0 | GL33: NA | GM33: NA | GN33: NA | GO33: 0 | GP33: 0 | GQ33: 0 | GR33: 0 | GS33: =IF(SUM(GW33:HD33)>0,1,0) -> 0 | GT33: NA | GU33: NA | GV33: NA | GW33: 0 | GX33: 0 | GY33: 0 | GZ33: 0 | HA33: 0 | HB33: 0 | HC33: 0 | HD33: 0 | HE33: =IF(SUM(HI33:HK33)>0,1,0) -> 0 | HF33: NA | HG33: NA | HH33: NA | HI33: 0 | HJ33: 0 | HK33: 0 | HL33: 0 | HM33: NA | HN33: NA | HO33: NA | HP33: 0 | HQ33: NA | HR33: NA | HS33: NA | HT33: =IF(HX33+IG33>0,1,0) -> 0 | HU33: =SUM(HX33,IG33) -> 0 | HV33: 0 | HW33: NA | HX33: =IF(SUM(IB33:IF33)>0,1,0) -> 0 | HY33: NA | HZ33: NA | IA33: NA | IB33: 0 | IC33: 0 | ID33: 0 | IE33: 0 | IF33: 0 | IG33: 0 | IH33: NA | II33: NA | IJ33: NA
A34: 33 | B34: Bull et al. 2012 | C34: =IF(D34>0,1,0) -> 0 | F34: - | G34: West Broad Ledges | H34: 49.96507 | I34: -6.30715 | J34: good | K34: Atlantic | L34: Celtic Seas | M34: United Kingdom | N34: Zm | O34: none | P34: 0 | Q34: 1 | R34: 0 | S34: 0 | T34: subtidal | U34: NA | V34: NA | W34: -0.6 | X34: - | Y34: =IF(Z34=1,0,1) -> 0 | Z34: =IF((AQ34+BG34+BW34+CM34+DC34+DS34)>0,1,0) -> 1 | AA34: =IF(SUM(AR34+BH34+BX34+CN34+DD34+DT34)>0,1,0) -> 1 | AB34: 0 | AC34: 0 | AD34: 1 | AE34: 0 | AF34: 1 | AG34: 0 | AH34: 1997 | AI34: 2010 | AJ34: 13 | AK34: 1 | AL34: 1 | AM34: 0 | AN34: 0 | AO34: persists | AP34: 0 | AQ34: 0 | AR34: 0 | AS34: NA | AT34: NA | AU34: NA | AV34: NA | AW34: NA | AX34: NA | AY34: NA | AZ34: NA | BA34: NA | BB34: NA | BC34: NA | BD34: NA | BE34: unknown | BF34: 0 | BG34: 0 | BH34: 0 | BI34: NA | BJ34: NA | BK34: NA | BL34: NA | BM34: NA | BN34: NA | BO34: NA | BP34: NA | BQ34: NA | BR34: NA | BS34: NA | BT34: NA | BU34: unknown | BV34: 0 | BW34: 0 | BX34: 0 | BY34: NA | BZ34: NA | CA34: NA | CB34: NA | CC34: NA | CD34: NA | CE34: NA | CF34: NA | CG34: NA | CH34: NA | CI34: NA | CJ34: NA | CK34: unknown | CL34: 0 | CM34: 0 | CN34: 0 | CO34: NA | CP34: NA | CQ34: NA | CR34: NA | CS34: NA | CT34: NA | CU34: NA | CV34: NA | CW34: NA | CX34: NA | CY34: NA | CZ34: NA | DA34: unknown | DB34: 1 | DC34: 1 | DD34: 1 | DE34: 1997 | DF34: 2010 | DG34: 13 | DH34: 1 | DI34: 1 | DJ34: 135 | DK34: 120 | DL34: 148 | DM34: 14 | DN34: 88.88888889 | DO34: -15 | DP34: -0.9060233512 | DQ34: no change | DR34: 0 | DS34: 0 | DT34: 0 | DU34: NA | DV34: NA | DW34: NA | DX34: NA | DY34: NA | DZ34: NA | EA34: NA | EB34: NA | EC34: NA | ED34: NA | EE34: NA | EF34: NA | EG34: unknown | EH34: - | EI34: =MIN(DU34,DE34,CO34,BY34,BI34,AS34,AH34) -> 1997 | EJ34: =MAX(DV34,DF34,CP34,BZ34,BJ34,AT34,AI34) -> 2010 | EK34: =EJ34-EI34 -> 13 | EL34: =IF(EM34=0,"NA",AVERAGE(ED34,DN34,CX34)) -> 88.88888889 | EM34: =DR34+DB34+CL34 -> 1 | EN34: =IF(EL34>125,"increase",IF(EL34<75,"decrease","no change")) -> no change | EO34: NA | EP34: =BV34+BF34 -> 0 | EQ34: unknown | ER34: =BB34 -> NA | ES34: =AP34 -> 0 | ET34: =BE34 -> unknown | EU34: =ES34+EP34 -> 0 | EV34: unknown | EW34: =AO34 -> persists | EX34: unknown | EY34: =EN34 -> no change | EZ34: =IF(FC34+HT34>0,1,0) -> 0 | FA34: =IF(FD34>1 OR(HU34>1),1,0) -> 0 | FB34: =IF(FC34+HT34=2,1,0) -> 0 | FC34: =IF(SUM(FH34,FV34,GK34,GS34,HE34,HL34,HP34)>0,1,0) -> 0 | FD34: =SUM(FH34,FV34,GK34,GS34,HE34,HL34,HP34) -> 0 | FE34: 0 | FF34: NA | FG34: NA | FH34: =IF(SUM(FL34:FU34)>0,1,0) -> 0 | FI34: NA | FJ34: NA | FK34: NA | FL34: 0 | FM34: 0 | FN34: 0 | FO34: 0 | FP34: 0 | FQ34: 0 | FR34: 0 | FS34: 0 | FT34: 0 | FU34: 0 | FV34: =IF(SUM(FZ34:GJ34)>0,1,0) -> 0 | FW34: NA | FX34: NA | FY34: NA | FZ34: 0 | GA34: 0 | GB34: 0 | GC34: 0 | GD34: 0 | GE34: 0 | GF34: 0 | GG34: 0 | GH34: 0 | GI34: 0 | GJ34: 0 | GK34: =IF(SUM(GO34:GR34)>0,1,0) -> 0 | GL34: NA | GM34: NA | GN34: NA | GO34: 0 | GP34: 0 | GQ34: 0 | GR34: 0 | GS34: =IF(SUM(GW34:HD34)>0,1,0) -> 0 | GT34: NA | GU34: NA | GV34: NA | GW34: 0 | GX34: 0 | GY34: 0 | GZ34: 0 | HA34: 0 | HB34: 0 | HC34: 0 | HD34: 0 | HE34: =IF(SUM(HI34:HK34)>0,1,0) -> 0 | HF34: NA | HG34: NA | HH34: NA | HI34: 0 | HJ34: 0 | HK34: 0 | HL34: 0 | HM34: NA | HN34: NA | HO34: NA | HP34: 0 | HQ34: NA | HR34: NA | HS34: NA | HT34: =IF(HX34+IG34>0,1,0) -> 0 | HU34: =SUM(HX34,IG34) -> 0 | HV34: 0 | HW34: NA | HX34: =IF(SUM(IB34:IF34)>0,1,0) -> 0 | HY34: NA | HZ34: NA | IA34: NA | IB34: 0 | IC34: 0 | ID34: 0 | IE34: 0 | IF34: 0 | IG34: 0 | IH34: NA | II34: NA | IJ34: NA
A35: 34 | B35: Burton et al. 2010 | C35: =IF(D35>0,1,0) -> 0 | F35: - | G35: North Haven (Skomer) | H35: 51.73739 | I35: -5.28081 | J35: good | K35: Atlantic | L35: Celtic Seas | M35: United Kingdom | N35: Zm | O35: none | P35: 0 | Q35: 1 | R35: 0 | S35: 0 | T35: subtidal | U35: -3.7 | V35: -8.7 | W35: NA | X35: - | Y35: =IF(Z35=1,0,1) -> 0 | Z35: =IF((AQ35+BG35+BW35+CM35+DC35+DS35)>0,1,0) -> 1 | AA35: =IF(SUM(AR35+BH35+BX35+CN35+DD35+DT35)>0,1,0) -> 1 | AB35: 0 | AC35: 0 | AD35: 0 | AE35: 1 | AF35: 1 | AG35: 0 | AH35: 1982 | AI35: 2010 | AJ35: 28 | AK35: 1 | AL35: 1 | AM35: 0 | AN35: 0 | AO35: persists | AP35: 1 | AQ35: 1 | AR35: 1 | AS35: 1982 | AT35: 2010 | AU35: 28 | AV35: 1 | AW35: 1 | AX35: 0.55 | AY35: 0.8 | AZ35: 0.8 | BA35: 7 | BB35: 145.4545455 | BC35: 0.25 | BD35: 1.338190891 | BE35: increase | BF35: 0 | BG35: 0 | BH35: 0 | BI35: NA | BJ35: NA | BK35: NA | BL35: NA | BM35: NA | BN35: NA | BO35: NA | BP35: NA | BQ35: NA | BR35: NA | BS35: NA | BT35: NA | BU35: unknown | BV35: 0 | BW35: 0 | BX35: 0 | BY35: NA | BZ35: NA | CA35: NA | CB35: NA | CC35: NA | CD35: NA | CE35: NA | CF35: NA | CG35: NA | CH35: NA | CI35: NA | CJ35: NA | CK35: unknown | CL35: 0 | CM35: 0 | CN35: 0 | CO35: NA | CP35: NA | CQ35: NA | CR35: NA | CS35: NA | CT35: NA | CU35: NA | CV35: NA | CW35: NA | CX35: NA | CY35: NA | CZ35: NA | DA35: unknown | DB35: 1 | DC35: 1 | DD35: 1 | DE35: 1997 | DF35: 2010 | DG35: 13 | DH35: 1 | DI35: 1 | DJ35: 36.3 | DK35: 40.5 | DL35: 54.6 | DM35: 4 | DN35: 111.5702479 | DO35: 4.2 | DP35: 0.8421864065 | DQ35: no change | DR35: 0 | DS35: 0 | DT35: 0 | DU35: NA | DV35: NA | DW35: NA | DX35: NA | DY35: NA | DZ35: NA | EA35: NA | EB35: NA | EC35: NA | ED35: NA | EE35: NA | EF35: NA | EG35: unknown | EH35: - | EI35: =MIN(DU35,DE35,CO35,BY35,BI35,AS35,AH35) -> 1982 | EJ35: =MAX(DV35,DF35,CP35,BZ35,BJ35,AT35,AI35) -> 2010 | EK35: =EJ35-EI35 -> 28 | EL35: =IF(EM35=0,"NA",AVERAGE(ED35,DN35,CX35)) -> 111.5702479 | EM35: =DR35+DB35+CL35 -> 1 | EN35: =IF(EL35>125,"increase",IF(EL35<75,"decrease","no change")) -> no change | EO35: NA | EP35: =BV35+BF35 -> 0 | EQ35: unknown | ER35: =BB35 -> 145.4545455 | ES35: =AP35 -> 1 | ET35: =BE35 -> increase | EU35: =ES35+EP35 -> 1 | EV35: =ET35 -> increase | EW35: =AO35 -> persists | EX35: increase | EY35: =EV35 -> increase | EZ35: =IF(FC35+HT35>0,1,0) -> 1 | FA35: =IF(FD35>1 OR(HU35>1),1,0) -> 0 | FB35: =IF(FC35+HT35=2,1,0) -> 0 | FC35: =IF(SUM(FH35,FV35,GK35,GS35,HE35,HL35,HP35)>0,1,0) -> 0 | FD35: =SUM(FH35,FV35,GK35,GS35,HE35,HL35,HP35) -> 0 | FE35: 0 | FF35: NA | FG35: NA | FH35: =IF(SUM(FL35:FU35)>0,1,0) -> 0 | FI35: NA | FJ35: NA | FK35: NA | FL35: 0 | FM35: 0 | FN35: 0 | FO35: 0 | FP35: 0 | FQ35: 0 | FR35: 0 | FS35: 0 | FT35: 0 | FU35: 0 | FV35: =IF(SUM(FZ35:GJ35)>0,1,0) -> 0 | FW35: NA | FX35: NA | FY35: NA | FZ35: 0 | GA35: 0 | GB35: 0 | GC35: 0 | GD35: 0 | GE35: 0 | GF35: 0 | GG35: 0 | GH35: 0 | GI35: 0 | GJ35: 0 | GK35: =IF(SUM(GO35:GR35)>0,1,0) -> 0 | GL35: NA | GM35: NA | GN35: NA | GO35: 0 | GP35: 0 | GQ35: 0 | GR35: 0 | GS35: =IF(SUM(GW35:HD35)>0,1,0) -> 0 | GT35: NA | GU35: NA | GV35: NA | GW35: 0 | GX35: 0 | GY35: 0 | GZ35: 0 | HA35: 0 | HB35: 0 | HC35: 0 | HD35: 0 | HE35: =IF(SUM(HI35:HK35)>0,1,0) -> 0 | HF35: NA | HG35: NA | HH35: NA | HI35: 0 | HJ35: 0 | HK35: 0 | HL35: 0 | HM35: NA | HN35: NA | HO35: NA | HP35: 0 | HQ35: NA | HR35: NA | HS35: NA | HT35: =IF(HX35+IG35>0,1,0) -> 1 | HU35: =SUM(HX35,IG35) -> 1 | HV35: 1 | HW35: 0.25 | HX35: =IF(SUM(IB35:IF35)>0,1,0) -> 1 | HY35: 0.25 | HZ35: NA | IA35: NA | IB35: 0 | IC35: 0 | ID35: 0 | IE35: 1 | IF35: 0 | IG35: 0 | IH35: NA | II35: NA | IJ35: NA
A36: 35 | B36: Rismondo and Mion 2008 | C36: =IF(D36>0,1,0) -> 0 | F36: - | G36: Venice Lagoon | H36: 45.39453 | I36: 12.304 | J36: fair | K36: Mediterranean | L36: Adriatic Sea | M36: Italy | N36: Zm | O36: none | P36: 0 | Q36: 1 | R36: 0 | S36: 0 | T36: intertidal | U36: NA | V36: NA | W36: -1 | X36: - | Y36: =IF(Z36=1,0,1) -> 0 | Z36: =IF((AQ36+BG36+BW36+CM36+DC36+DS36)>0,1,0) -> 1 | AA36: =IF(SUM(AR36+BH36+BX36+CN36+DD36+DT36)>0,1,0) -> 0 | AB36: 0 | AC36: 1 | AD36: 0 | AE36: 0 | AF36: 1 | AG36: 0 | AH36: 2002 | AI36: 2004 | AJ36: 2 | AK36: 1 | AL36: 1 | AM36: 0 | AN36: 0 | AO36: persists | AP36: 1 | AQ36: 1 | AR36: 0 | AS36: 2002 | AT36: 2004 | AU36: 2 | AV36: 1 | AW36: 1 | AX36: 1594 | AY36: 754 | AZ36: 1594 | BA36: 3 | BB36: 47.30238394 | BC36: -840 | BD36: -37.43047457 | BE36: decrease | BF36: 0 | BG36: 0 | BH36: 0 | BI36: NA | BJ36: NA | BK36: NA | BL36: NA | BM36: NA | BN36: NA | BO36: NA | BP36: NA | BQ36: NA | BR36: NA | BS36: NA | BT36: NA | BU36: unknown | BV36: 0 | BW36: 0 | BX36: 0 | BY36: NA | BZ36: NA | CA36: NA | CB36: NA | CC36: NA | CD36: NA | CE36: NA | CF36: NA | CG36: NA | CH36: NA | CI36: NA | CJ36: NA | CK36: unknown | CL36: 0 | CM36: 0 | CN36: 0 | CO36: NA | CP36: NA | CQ36: NA | CR36: NA | CS36: NA | CT36: NA | CU36: NA | CV36: NA | CW36: NA | CX36: NA | CY36: NA | CZ36: NA | DA36: unknown | DB36: 0 | DC36: 0 | DD36: 0 | DE36: NA | DF36: NA | DG36: NA | DH36: NA | DI36: NA | DJ36: NA | DK36: NA | DL36: NA | DM36: NA | DN36: NA | DO36: NA | DP36: NA | DQ36: unknown | DR36: 0 | DS36: 0 | DT36: 0 | DU36: NA | DV36: NA | DW36: NA | DX36: NA | DY36: NA | DZ36: NA | EA36: NA | EB36: NA | EC36: NA | ED36: NA | EE36: NA | EF36: NA | EG36: unknown | EH36: - | EI36: =MIN(DU36,DE36,CO36,BY36,BI36,AS36,AH36) -> 2002 | EJ36: =MAX(DV36,DF36,CP36,BZ36,BJ36,AT36,AI36) -> 2004 | EK36: =EJ36-EI36 -> 2 | EL36: =IF(EM36=0,"NA",AVERAGE(ED36,DN36,CX36)) -> NA | EM36: =DR36+DB36+CL36 -> 0 | EN36: unknown | EO36: NA | EP36: =BV36+BF36 -> 0 | EQ36: unknown | ER36: =BB36 -> 47.30238394 | ES36: =AP36 -> 1 | ET36: =BE36 -> decrease | EU36: =ES36+EP36 -> 1 | EV36: =ET36 -> decrease | EW36: =AO36 -> persists | EX36: decrease | EY36: =EV36 -> decrease | EZ36: =IF(FC36+HT36>0,1,0) -> 0 | FA36: =IF(FD36>1 OR(HU36>1),1,0) -> 0 | FB36: =IF(FC36+HT36=2,1,0) -> 0 | FC36: =IF(SUM(FH36,FV36,GK36,GS36,HE36,HL36,HP36)>0,1,0) -> 0 | FD36: =SUM(FH36,FV36,GK36,GS36,HE36,HL36,HP36) -> 0 | FE36: 0 | FF36: NA | FG36: NA | FH36: =IF(SUM(FL36:FU36)>0,1,0) -> 0 | FI36: NA | FJ36: NA | FK36: NA | FL36: 0 | FM36: 0 | FN36: 0 | FO36: 0 | FP36: 0 | FQ36: 0 | FR36: 0 | FS36: 0 | FT36: 0 | FU36: 0 | FV36: =IF(SUM(FZ36:GJ36)>0,1,0) -> 0 | FW36: NA | FX36: NA | FY36: NA | FZ36: 0 | GA36: 0 | GB36: 0 | GC36: 0 | GD36: 0 | GE36: 0 | GF36: 0 | GG36: 0 | GH36: 0 | GI36: 0 | GJ36: 0 | GK36: =IF(SUM(GO36:GR36)>0,1,0) -> 0 | GL36: NA | GM36: NA | GN36: NA | GO36: 0 | GP36: 0 | GQ36: 0 | GR36: 0 | GS36: =IF(SUM(GW36:HD36)>0,1,0) -> 0 | GT36: NA | GU36: NA | GV36: NA | GW36: 0 | GX36: 0 | GY36: 0 | GZ36: 0 | HA36: 0 | HB36: 0 | HC36: 0 | HD36: 0 | HE36: =IF(SUM(HI36:HK36)>0,1,0) -> 0 | HF36: NA | HG36: NA | HH36: NA | HI36: 0 | HJ36: 0 | HK36: 0 | HL36: 0 | HM36: NA | HN36: NA | HO36: NA | HP36: 0 | HQ36: NA | HR36: NA | HS36: NA | HT36: =IF(HX36+IG36>0,1,0) -> 0 | HU36: =SUM(HX36,IG36) -> 0 | HV36: 0 | HW36: NA | HX36: =IF(SUM(IB36:IF36)>0,1,0) -> 0 | HY36: NA | HZ36: NA | IA36: NA | IB36: 0 | IC36: 0 | ID36: 0 | IE36: 0 | IF36: 0 | IG36: 0 | IH36: NA | II36: NA | IJ36: NA
A37: 36 | B37: Munkes 2005 | C37: =IF(D37>0,1,0) -> 0 | F37: - | G37: Bay of Greifswald | H37: 54.2249 | I37: 13.52119 | J37: bad | K37: Baltic | L37: Baltic Sea | M37: Germany | N37: Zm | O37: none | P37: 0 | Q37: 1 | R37: 0 | S37: 0 | T37: subtidal | U37: NA | V37: -14 | W37: NA | X37: - | Y37: =IF(Z37=1,0,1) -> 1 | Z37: =IF((AQ37+BG37+BW37+CM37+DC37+DS37)>0,1,0) -> 0 | AA37: =IF(SUM(AR37+BH37+BX37+CN37+DD37+DT37)>0,1,0) -> 0 | AB37: 0 | AC37: 1 | AD37: 0 | AE37: 0 | AF37: 1 | AG37: 0 | AH37: 1938 | AI37: 1990 | AJ37: 52 | AK37: 1 | AL37: 1 | AM37: 0 | AN37: 0 | AO37: persists | AP37: 1 | AQ37: 0 | AR37: 0 | AS37: 1938 | AT37: 1990 | AU37: 52 | AV37: 1 | AW37: 1 | AX37: NA | AY37: NA | AZ37: NA | BA37: 2 | BB37: NA | BC37: NA | BD37: NA | BE37: decrease | BF37: 1 | BG37: 0 | BH37: 0 | BI37: 1938 | BJ37: 1990 | BK37: =BJ37-BI37 -> 52 | BL37: 1 | BM37: 1 | BN37: NA | BO37: NA | BP37: NA | BQ37: 2 | BR37: NA | BS37: NA | BT37: NA | BU37: decrease | BV37: 0 | BW37: 0 | BX37: 0 | BY37: NA | BZ37: NA | CA37: NA | CB37: NA | CC37: NA | CD37: NA | CE37: NA | CF37: NA | CG37: NA | CH37: NA | CI37: NA | CJ37: NA | CK37: unknown | CL37: 0 | CM37: 0 | CN37: 0 | CO37: NA | CP37: NA | CQ37: NA | CR37: NA | CS37: NA | CT37: NA | CU37: NA | CV37: NA | CW37: NA | CX37: NA | CY37: NA | CZ37: NA | DA37: unknown | DB37: 0 | DC37: 0 | DD37: 0 | DE37: NA | DF37: NA | DG37: NA | DH37: NA | DI37: NA | DJ37: NA | DK37: NA | DL37: NA | DM37: NA | DN37: NA | DO37: NA | DP37: NA | DQ37: unknown | DR37: 0 | DS37: 0 | DT37: 0 | DU37: NA | DV37: NA | DW37: NA | DX37: NA | DY37: NA | DZ37: NA | EA37: NA | EB37: NA | EC37: NA | ED37: NA | EE37: NA | EF37: NA | EG37: unknown | EH37: - | EI37: =MIN(DU37,DE37,CO37,BY37,BI37,AS37,AH37) -> 1938 | EJ37: =MAX(DV37,DF37,CP37,BZ37,BJ37,AT37,AI37) -> 1990 | EK37: =EJ37-EI37 -> 52 | EL37: =IF(EM37=0,"NA",AVERAGE(ED37,DN37,CX37)) -> NA | EM37: =DR37+DB37+CL37 -> 0 | EN37: unknown | EO37: NA | EP37: =BV37+BF37 -> 1 | EQ37: =BU37 -> decrease | ER37: =BB37 -> NA | ES37: =AP37 -> 1 | ET37: =BE37 -> decrease | EU37: =ES37+EP37 -> 2 | EV37: =ET37 -> decrease | EW37: =AO37 -> persists | EX37: decrease | EY37: =EV37 -> decrease | EZ37: =IF(FC37+HT37>0,1,0) -> 1 | FA37: =IF(FD37>1 OR(HU37>1),1,0) -> 0 | FB37: =IF(FC37+HT37=2,1,0) -> 0 | FC37: =IF(SUM(FH37,FV37,GK37,GS37,HE37,HL37,HP37)>0,1,0) -> 1 | FD37: =SUM(FH37,FV37,GK37,GS37,HE37,HL37,HP37) -> 1 | FE37: 0 | FF37: NA | FG37: NA | FH37: =IF(SUM(FL37:FU37)>0,1,0) -> 1 | FI37: NA | FJ37: 1938 | FK37: 1988 | FL37: 0 | FM37: 1 | FN37: 0 | FO37: 0 | FP37: 0 | FQ37: 0 | FR37: 0 | FS37: 0 | FT37: 0 | FU37: 0 | FV37: =IF(SUM(FZ37:GJ37)>0,1,0) -> 0 | FW37: NA | FX37: NA | FY37: NA | FZ37: 0 | GA37: 0 | GB37: 0 | GC37: 0 | GD37: 0 | GE37: 0 | GF37: 0 | GG37: 0 | GH37: 0 | GI37: 0 | GJ37: 0 | GK37: =IF(SUM(GO37:GR37)>0,1,0) -> 0 | GL37: NA | GM37: NA | GN37: NA | GO37: 0 | GP37: 0 | GQ37: 0 | GR37: 0 | GS37: =IF(SUM(GW37:HD37)>0,1,0) -> 0 | GT37: NA | GU37: NA | GV37: NA | GW37: 0 | GX37: 0 | GY37: 0 | GZ37: 0 | HA37: 0 | HB37: 0 | HC37: 0 | HD37: 0 | HE37: =IF(SUM(HI37:HK37)>0,1,0) -> 0 | HF37: NA | HG37: NA | HH37: NA | HI37: 0 | HJ37: 0 | HK37: 0 | HL37: 0 | HM37: NA | HN37: NA | HO37: NA | HP37: 0 | HQ37: NA | HR37: NA | HS37: NA | HT37: =IF(HX37+IG37>0,1,0) -> 0 | HU37: =SUM(HX37,IG37) -> 0 | HV37: 0 | HW37: NA | HX37: =IF(SUM(IB37:IF37)>0,1,0) -> 0 | HY37: NA | HZ37: NA | IA37: NA | IB37: 0 | IC37: 0 | ID37: 0 | IE37: 0 | IF37: 0 | IG37: 0 | IH37: NA | II37: NA | IJ37: NA
A38: 37 | B38: Rask et al. 1999 | C38: =IF(D38>0,1,0) -> 0 | F38: - | G38: South Funen Archipelago | H38: 55.59576 | I38: 10.47883 | J38: bad | K38: Baltic | L38: Baltic Sea | M38: Denmark | N38: Zm | O38: none | P38: 0 | Q38: 1 | R38: 0 | S38: 0 | T38: subtidal | U38: NA | V38: -6 | W38: NA | X38: - | Y38: =IF(Z38=1,0,1) -> 0 | Z38: =IF((AQ38+BG38+BW38+CM38+DC38+DS38)>0,1,0) -> 1 | AA38: =IF(SUM(AR38+BH38+BX38+CN38+DD38+DT38)>0,1,0) -> 1 | AB38: 0 | AC38: 1 | AD38: 0 | AE38: 0 | AF38: 1 | AG38: 0 | AH38: 1979 | AI38: 1996 | AJ38: 17 | AK38: 1 | AL38: 1 | AM38: 0 | AN38: 0 | AO38: persists | AP38: 0 | AQ38: 0 | AR38: 0 | AS38: NA | AT38: NA | AU38: NA | AV38: NA | AW38: NA | AX38: NA | AY38: NA | AZ38: NA | BA38: NA | BB38: NA | BC38: NA | BD38: NA | BE38: unknown | BF38: 1 | BG38: 1 | BH38: 1 | BI38: 1979 | BJ38: 1996 | BK38: =BJ38-BI38 -> 17 | BL38: 1 | BM38: 1 | BN38: -6 | BO38: -7.5 | BP38: -7.5 | BQ38: 2 | BR38: 125 | BS38: 1.5 | BT38: 1.312609125 | BU38: increase | BV38: 0 | BW38: 0 | BX38: 0 | BY38: NA | BZ38: NA | CA38: NA | CB38: NA | CC38: NA | CD38: NA | CE38: NA | CF38: NA | CG38: NA | CH38: NA | CI38: NA | CJ38: NA | CK38: unknown | CL38: 0 | CM38: 0 | CN38: 0 | CO38: NA | CP38: NA | CQ38: NA | CR38: NA | CS38: NA | CT38: NA | CU38: NA | CV38: NA | CW38: NA | CX38: NA | CY38: NA | CZ38: NA | DA38: unknown | DB38: 0 | DC38: 0 | DD38: 0 | DE38: NA | DF38: NA | DG38: NA | DH38: NA | DI38: NA | DJ38: NA | DK38: NA | DL38: NA | DM38: NA | DN38: NA | DO38: NA | DP38: NA | DQ38: unknown | DR38: 0 | DS38: 0 | DT38: 0 | DU38: NA | DV38: NA | DW38: NA | DX38: NA | DY38: NA | DZ38: NA | EA38: NA | EB38: NA | EC38: NA | ED38: NA | EE38: NA | EF38: NA | EG38: unknown | EH38: - | EI38: =MIN(DU38,DE38,CO38,BY38,BI38,AS38,AH38) -> 1979 | EJ38: =MAX(DV38,DF38,CP38,BZ38,BJ38,AT38,AI38) -> 1996 | EK38: =EJ38-EI38 -> 17 | EL38: =IF(EM38=0,"NA",AVERAGE(ED38,DN38,CX38)) -> NA | EM38: =DR38+DB38+CL38 -> 0 | EN38: unknown | EO38: =AVERAGE(CH38,BR38) -> 125 | EP38: =BV38+BF38 -> 1 | EQ38: =IF(EO38>125,"increase",IF(EO38<75,"decrease","no change")) -> no change | ER38: =BB38 -> NA | ES38: =AP38 -> 0 | ET38: =BE38 -> unknown | EU38: =ES38+EP38 -> 1 | EV38: =EQ38 -> no change | EW38: =AO38 -> persists | EX38: no change | EY38: =EV38 -> no change | EZ38: =IF(FC38+HT38>0,1,0) -> 1 | FA38: =IF(FD38>1 OR(HU38>1),1,0) -> 0 | FB38: =IF(FC38+HT38=2,1,0) -> 0 | FC38: =IF(SUM(FH38,FV38,GK38,GS38,HE38,HL38,HP38)>0,1,0) -> 0 | FD38: =SUM(FH38,FV38,GK38,GS38,HE38,HL38,HP38) -> 0 | FE38: 0 | FF38: NA | FG38: NA | FH38: =IF(SUM(FL38:FU38)>0,1,0) -> 0 | FI38: NA | FJ38: NA | FK38: NA | FL38: 0 | FM38: 0 | FN38: 0 | FO38: 0 | FP38: 0 | FQ38: 0 | FR38: 0 | FS38: 0 | FT38: 0 | FU38: 0 | FV38: =IF(SUM(FZ38:GJ38)>0,1,0) -> 0 | FW38: NA | FX38: NA | FY38: NA | FZ38: 0 | GA38: 0 | GB38: 0 | GC38: 0 | GD38: 0 | GE38: 0 | GF38: 0 | GG38: 0 | GH38: 0 | GI38: 0 | GJ38: 0 | GK38: =IF(SUM(GO38:GR38)>0,1,0) -> 0 | GL38: NA | GM38: NA | GN38: NA | GO38: 0 | GP38: 0 | GQ38: 0 | GR38: 0 | GS38: =IF(SUM(GW38:HD38)>0,1,0) -> 0 | GT38: NA | GU38: NA | GV38: NA | GW38: 0 | GX38: 0 | GY38: 0 | GZ38: 0 | HA38: 0 | HB38: 0 | HC38: 0 | HD38: 0 | HE38: =IF(SUM(HI38:HK38)>0,1,0) -> 0 | HF38: NA | HG38: NA | HH38: NA | HI38: 0 | HJ38: 0 | HK38: 0 | HL38: 0 | HM38: NA | HN38: NA | HO38: NA | HP38: 0 | HQ38: NA | HR38: NA | HS38: NA | HT38: =IF(HX38+IG38>0,1,0) -> 1 | HU38: =SUM(HX38,IG38) -> 1 | HV38: 0 | HW38: NA | HX38: =IF(SUM(IB38:IF38)>0,1,0) -> 1 | HY38: NA | HZ38: NA | IA38: NA | IB38: 0 | IC38: 1 | ID38: 0 | IE38: 0 | IF38: 0 | IG38: 0 | IH38: NA | II38: NA | IJ38: NA
A39: 38 | B39: Zavodnik and Jaklin 1990 | C39: =IF(D39>0,1,0) -> 0 | F39: - | G39: Istrian coast | H39: 45.05045 | I39: 13.67209 | J39: bad | K39: Mediterranean | L39: Adriatic Sea | M39: Croatia | N39: Po | O39: none | P39: 1 | Q39: 0 | R39: 0 | S39: 0 | T39: subtidal | U39: NA | V39: NA | W39: NA | X39: - | Y39: =IF(Z39=1,0,1) -> 1 | Z39: =IF((AQ39+BG39+BW39+CM39+DC39+DS39)>0,1,0) -> 0 | AA39: =IF(SUM(AR39+BH39+BX39+CN39+DD39+DT39)>0,1,0) -> 0 | AB39: 0 | AC39: 1 | AD39: 0 | AE39: 0 | AF39: 1 | AG39: 0 | AH39: 1938 | AI39: 1988 | AJ39: 50 | AK39: 1 | AL39: 1 | AM39: 0 | AN39: 0 | AO39: persists | AP39: 1 | AQ39: 0 | AR39: 0 | AS39: 1938 | AT39: 1988 | AU39: 50 | AV39: 1 | AW39: 1 | AX39: NA | AY39: NA | AZ39: NA | BA39: 2 | BB39: NA | BC39: NA | BD39: NA | BE39: decrease | BF39: 0 | BG39: 0 | BH39: 0 | BI39: NA | BJ39: NA | BK39: NA | BL39: NA | BM39: NA | BN39: NA | BO39: NA | BP39: NA | BQ39: NA | BR39: NA | BS39: NA | BT39: NA | BU39: unknown | BV39: 0 | BW39: 0 | BX39: 0 | BY39: NA | BZ39: NA | CA39: NA | CB39: NA | CC39: NA | CD39: NA | CE39: NA | CF39: NA | CG39: NA | CH39: NA | CI39: NA | CJ39: NA | CK39: unknown | CL39: 0 | CM39: 0 | CN39: 0 | CO39: NA | CP39: NA | CQ39: NA | CR39: NA | CS39: NA | CT39: NA | CU39: NA | CV39: NA | CW39: NA | CX39: NA | CY39: NA | CZ39: NA | DA39: unknown | DB39: 0 | DC39: 0 | DD39: 0 | DE39: NA | DF39: NA | DG39: NA | DH39: NA | DI39: NA | DJ39: NA | DK39: NA | DL39: NA | DM39: NA | DN39: NA | DO39: NA | DP39: NA | DQ39: unknown | DR39: 0 | DS39: 0 | DT39: 0 | DU39: NA | DV39: NA | DW39: NA | DX39: NA | DY39: NA | DZ39: NA | EA39: NA | EB39: NA | EC39: NA | ED39: NA | EE39: NA | EF39: NA | EG39: unknown | EH39: - | EI39: =MIN(DU39,DE39,CO39,BY39,BI39,AS39,AH39) -> 1938 | EJ39: =MAX(DV39,DF39,CP39,BZ39,BJ39,AT39,AI39) -> 1988 | EK39: =EJ39-EI39 -> 50 | EL39: =IF(EM39=0,"NA",AVERAGE(ED39,DN39,CX39)) -> NA | EM39: =DR39+DB39+CL39 -> 0 | EN39: unknown | EO39: NA | EP39: =BV39+BF39 -> 0 | EQ39: unknown | ER39: =BB39 -> NA | ES39: =AP39 -> 1 | ET39: =BE39 -> decrease | EU39: =ES39+EP39 -> 1 | EV39: =ET39 -> decrease | EW39: =AO39 -> persists | EX39: decrease | EY39: =EV39 -> decrease | EZ39: =IF(FC39+HT39>0,1,0) -> 1 | FA39: =IF(FD39>1 OR(HU39>1),1,0) -> 0 | FB39: =IF(FC39+HT39=2,1,0) -> 0 | FC39: =IF(SUM(FH39,FV39,GK39,GS39,HE39,HL39,HP39)>0,1,0) -> 1 | FD39: =SUM(FH39,FV39,GK39,GS39,HE39,HL39,HP39) -> 1 | FE39: 0 | FF39: NA | FG39: NA | FH39: =IF(SUM(FL39:FU39)>0,1,0) -> 1 | FI39: NA | FJ39: 1938 | FK39: 1988 | FL39: 0 | FM39: 0 | FN39: 0 | FO39: 1 | FP39: 0 | FQ39: 0 | FR39: 0 | FS39: 0 | FT39: 0 | FU39: 0 | FV39: =IF(SUM(FZ39:GJ39)>0,1,0) -> 0 | FW39: NA | FX39: NA | FY39: NA | FZ39: 0 | GA39: 0 | GB39: 0 | GC39: 0 | GD39: 0 | GE39: 0 | GF39: 0 | GG39: 0 | GH39: 0 | GI39: 0 | GJ39: 0 | GK39: =IF(SUM(GO39:GR39)>0,1,0) -> 0 | GL39: NA | GM39: NA | GN39: NA | GO39: 0 | GP39: 0 | GQ39: 0 | GR39: 0 | GS39: =IF(SUM(GW39:HD39)>0,1,0) -> 0 | GT39: NA | GU39: NA | GV39: NA | GW39: 0 | GX39: 0 | GY39: 0 | GZ39: 0 | HA39: 0 | HB39: 0 | HC39: 0 | HD39: 0 | HE39: =IF(SUM(HI39:HK39)>0,1,0) -> 0 | HF39: NA | HG39: NA | HH39: NA | HI39: 0 | HJ39: 0 | HK39: 0 | HL39: 0 | HM39: NA | HN39: NA | HO39: NA | HP39: 0 | HQ39: NA | HR39: NA | HS39: NA | HT39: =IF(HX39+IG39>0,1,0) -> 0 | HU39: =SUM(HX39,IG39) -> 0 | HV39: 0 | HW39: NA | HX39: =IF(SUM(IB39:IF39)>0,1,0) -> 0 | HY39: NA | HZ39: NA | IA39: NA | IB39: 0 | IC39: 0 | ID39: 0 | IE39: 0 | IF39: 0 | IG39: 0 | IH39: NA | II39: NA | IJ39: NA
A40: 39 | B40: Zavodnik and Jaklin 1990 | C40: =IF(D40>0,1,0) -> 0 | F40: - | G40: Istrian coast | H40: 45.05045 | I40: 13.67209 | J40: bad | K40: Mediterranean | L40: Adriatic Sea | M40: Croatia | N40: Cn | O40: none | P40: 0 | Q40: 0 | R40: 1 | S40: 0 | T40: subtidal | U40: NA | V40: NA | W40: NA | X40: - | Y40: =IF(Z40=1,0,1) -> 1 | Z40: =IF((AQ40+BG40+BW40+CM40+DC40+DS40)>0,1,0) -> 0 | AA40: =IF(SUM(AR40+BH40+BX40+CN40+DD40+DT40)>0,1,0) -> 0 | AB40: 0 | AC40: 1 | AD40: 0 | AE40: 0 | AF40: 1 | AG40: 0 | AH40: 1938 | AI40: 1988 | AJ40: 50 | AK40: 1 | AL40: 1 | AM40: 0 | AN40: 0 | AO40: persists | AP40: 1 | AQ40: 0 | AR40: 0 | AS40: 1938 | AT40: 1988 | AU40: 50 | AV40: 1 | AW40: 1 | AX40: NA | AY40: NA | AZ40: NA | BA40: 2 | BB40: NA | BC40: NA | BD40: NA | BE40: increase | BF40: 0 | BG40: 0 | BH40: 0 | BI40: NA | BJ40: NA | BK40: NA | BL40: NA | BM40: NA | BN40: NA | BO40: NA | BP40: NA | BQ40: NA | BR40: NA | BS40: NA | BT40: NA | BU40: unknown | BV40: 0 | BW40: 0 | BX40: 0 | BY40: NA | BZ40: NA | CA40: NA | CB40: NA | CC40: NA | CD40: NA | CE40: NA | CF40: NA | CG40: NA | CH40: NA | CI40: NA | CJ40: NA | CK40: unknown | CL40: 0 | CM40: 0 | CN40: 0 | CO40: NA | CP40: NA | CQ40: NA | CR40: NA | CS40: NA | CT40: NA | CU40: NA | CV40: NA | CW40: NA | CX40: NA | CY40: NA | CZ40: NA | DA40: unknown | DB40: 0 | DC40: 0 | DD40: 0 | DE40: NA | DF40: NA | DG40: NA | DH40: NA | DI40: NA | DJ40: NA | DK40: NA | DL40: NA | DM40: NA | DN40: NA | DO40: NA | DP40: NA | DQ40: unknown | DR40: 0 | DS40: 0 | DT40: 0 | DU40: NA | DV40: NA | DW40: NA | DX40: NA | DY40: NA | DZ40: NA | EA40: NA | EB40: NA | EC40: NA | ED40: NA | EE40: NA | EF40: NA | EG40: unknown | EH40: - | EI40: =MIN(DU40,DE40,CO40,BY40,BI40,AS40,AH40) -> 1938 | EJ40: =MAX(DV40,DF40,CP40,BZ40,BJ40,AT40,AI40) -> 1988 | EK40: =EJ40-EI40 -> 50 | EL40: =IF(EM40=0,"NA",AVERAGE(ED40,DN40,CX40)) -> NA | EM40: =DR40+DB40+CL40 -> 0 | EN40: unknown | EO40: NA | EP40: =BV40+BF40 -> 0 | EQ40: unknown | ER40: =BB40 -> NA | ES40: =AP40 -> 1 | ET40: =BE40 -> increase | EU40: =ES40+EP40 -> 1 | EV40: =ET40 -> increase | EW40: =AO40 -> persists | EX40: increase | EY40: =EV40 -> increase | EZ40: =IF(FC40+HT40>0,1,0) -> 1 | FA40: =IF(FD40>1 OR(HU40>1),1,0) -> 0 | FB40: =IF(FC40+HT40=2,1,0) -> 0 | FC40: =IF(SUM(FH40,FV40,GK40,GS40,HE40,HL40,HP40)>0,1,0) -> 0 | FD40: =SUM(FH40,FV40,GK40,GS40,HE40,HL40,HP40) -> 0 | FE40: 0 | FF40: NA | FG40: NA | FH40: =IF(SUM(FL40:FU40)>0,1,0) -> 0 | FI40: NA | FJ40: NA | FK40: NA | FL40: 0 | FM40: 0 | FN40: 0 | FO40: 0 | FP40: 0 | FQ40: 0 | FR40: 0 | FS40: 0 | FT40: 0 | FU40: 0 | FV40: =IF(SUM(FZ40:GJ40)>0,1,0) -> 0 | FW40: NA | FX40: NA | FY40: NA | FZ40: 0 | GA40: 0 | GB40: 0 | GC40: 0 | GD40: 0 | GE40: 0 | GF40: 0 | GG40: 0 | GH40: 0 | GI40: 0 | GJ40: 0 | GK40: =IF(SUM(GO40:GR40)>0,1,0) -> 0 | GL40: NA | GM40: NA | GN40: NA | GO40: 0 | GP40: 0 | GQ40: 0 | GR40: 0 | GS40: =IF(SUM(GW40:HD40)>0,1,0) -> 0 | GT40: NA | GU40: NA | GV40: NA | GW40: 0 | GX40: 0 | GY40: 0 | GZ40: 0 | HA40: 0 | HB40: 0 | HC40: 0 | HD40: 0 | HE40: =IF(SUM(HI40:HK40)>0,1,0) -> 0 | HF40: NA | HG40: NA | HH40: NA | HI40: 0 | HJ40: 0 | HK40: 0 | HL40: 0 | HM40: NA | HN40: NA | HO40: NA | HP40: 0 | HQ40: NA | HR40: NA | HS40: NA | HT40: =IF(HX40+IG40>0,1,0) -> 1 | HU40: =SUM(HX40,IG40) -> 1 | HV40: 0 | HW40: NA | HX40: =IF(SUM(IB40:IF40)>0,1,0) -> 0 | HY40: NA | HZ40: NA | IA40: NA | IB40: 0 | IC40: 0 | ID40: 0 | IE40: 0 | IF40: 0 | IG40: 1 | IH40: NA | II40: 1990 | IJ40: NA
A41: 40 | B41: Zavodnik and Jaklin 1990 | C41: =IF(D41>0,1,0) -> 0 | F41: - | G41: Istrian coast | H41: 45.05045 | I41: 13.67209 | J41: bad | K41: Mediterranean | L41: Adriatic Sea | M41: Croatia | N41: Zm | O41: none | P41: 0 | Q41: 1 | R41: 0 | S41: 0 | T41: subtidal | U41: NA | V41: NA | W41: NA | X41: - | Y41: =IF(Z41=1,0,1) -> 1 | Z41: =IF((AQ41+BG41+BW41+CM41+DC41+DS41)>0,1,0) -> 0 | AA41: =IF(SUM(AR41+BH41+BX41+CN41+DD41+DT41)>0,1,0) -> 0 | AB41: 0 | AC41: 1 | AD41: 0 | AE41: 0 | AF41: 1 | AG41: 0 | AH41: 1938 | AI41: 1988 | AJ41: 50 | AK41: 1 | AL41: 1 | AM41: 0 | AN41: 0 | AO41: persists | AP41: 1 | AQ41: 0 | AR41: 0 | AS41: 1938 | AT41: 1988 | AU41: 50 | AV41: 1 | AW41: 1 | AX41: NA | AY41: NA | AZ41: NA | BA41: 2 | BB41: NA | BC41: NA | BD41: NA | BE41: decrease | BF41: 0 | BG41: 0 | BH41: 0 | BI41: NA | BJ41: NA | BK41: NA | BL41: NA | BM41: NA | BN41: NA | BO41: NA | BP41: NA | BQ41: NA | BR41: NA | BS41: NA | BT41: NA | BU41: unknown | BV41: 0 | BW41: 0 | BX41: 0 | BY41: NA | BZ41: NA | CA41: NA | CB41: NA | CC41: NA | CD41: NA | CE41: NA | CF41: NA | CG41: NA | CH41: NA | CI41: NA | CJ41: NA | CK41: unknown | CL41: 0 | CM41: 0 | CN41: 0 | CO41: NA | CP41: NA | CQ41: NA | CR41: NA | CS41: NA | CT41: NA | CU41: NA | CV41: NA | CW41: NA | CX41: NA | CY41: NA | CZ41: NA | DA41: unknown | DB41: 0 | DC41: 0 | DD41: 0 | DE41: NA | DF41: NA | DG41: NA | DH41: NA | DI41: NA | DJ41: NA | DK41: NA | DL41: NA | DM41: NA | DN41: NA | DO41: NA | DP41: NA | DQ41: unknown | DR41: 0 | DS41: 0 | DT41: 0 | DU41: NA | DV41: NA | DW41: NA | DX41: NA | DY41: NA | DZ41: NA | EA41: NA | EB41: NA | EC41: NA | ED41: NA | EE41: NA | EF41: NA | EG41: unknown | EH41: - | EI41: =MIN(DU41,DE41,CO41,BY41,BI41,AS41,AH41) -> 1938 | EJ41: =MAX(DV41,DF41,CP41,BZ41,BJ41,AT41,AI41) -> 1988 | EK41: =EJ41-EI41 -> 50 | EL41: =IF(EM41=0,"NA",AVERAGE(ED41,DN41,CX41)) -> NA | EM41: =DR41+DB41+CL41 -> 0 | EN41: unknown | EO41: NA | EP41: =BV41+BF41 -> 0 | EQ41: unknown | ER41: =BB41 -> NA | ES41: =AP41 -> 1 | ET41: =BE41 -> decrease | EU41: =ES41+EP41 -> 1 | EV41: =ET41 -> decrease | EW41: =AO41 -> persists | EX41: decrease | EY41: =EV41 -> decrease | EZ41: =IF(FC41+HT41>0,1,0) -> 1 | FA41: =IF(FD41>1 OR(HU41>1),1,0) -> 0 | FB41: =IF(FC41+HT41=2,1,0) -> 0 | FC41: =IF(SUM(FH41,FV41,GK41,GS41,HE41,HL41,HP41)>0,1,0) -> 1 | FD41: =SUM(FH41,FV41,GK41,GS41,HE41,HL41,HP41) -> 1 | FE41: 0 | FF41: NA | FG41: NA | FH41: =IF(SUM(FL41:FU41)>0,1,0) -> 1 | FI41: NA | FJ41: 1938 | FK41: 1988 | FL41: 0 | FM41: 0 | FN41: 0 | FO41: 1 | FP41: 0 | FQ41: 0 | FR41: 0 | FS41: 0 | FT41: 0 | FU41: 0 | FV41: =IF(SUM(FZ41:GJ41)>0,1,0) -> 0 | FW41: NA | FX41: NA | FY41: NA | FZ41: 0 | GA41: 0 | GB41: 0 | GC41: 0 | GD41: 0 | GE41: 0 | GF41: 0 | GG41: 0 | GH41: 0 | GI41: 0 | GJ41: 0 | GK41: =IF(SUM(GO41:GR41)>0,1,0) -> 0 | GL41: NA | GM41: NA | GN41: NA | GO41: 0 | GP41: 0 | GQ41: 0 | GR41: 0 | GS41: =IF(SUM(GW41:HD41)>0,1,0) -> 0 | GT41: NA | GU41: NA | GV41: NA | GW41: 0 | GX41: 0 | GY41: 0 | GZ41: 0 | HA41: 0 | HB41: 0 | HC41: 0 | HD41: 0 | HE41: =IF(SUM(HI41:HK41)>0,1,0) -> 0 | HF41: NA | HG41: NA | HH41: NA | HI41: 0 | HJ41: 0 | HK41: 0 | HL41: 0 | HM41: NA | HN41: NA | HO41: NA | HP41: 0 | HQ41: NA | HR41: NA | HS41: NA | HT41: =IF(HX41+IG41>0,1,0) -> 0 | HU41: =SUM(HX41,IG41) -> 0 | HV41: 0 | HW41: NA | HX41: =IF(SUM(IB41:IF41)>0,1,0) -> 0 | HY41: NA | HZ41: NA | IA41: NA | IB41: 0 | IC41: 0 | ID41: 0 | IE41: 0 | IF41: 0 | IG41: 0 | IH41: NA | II41: NA | IJ41: NA
A42: 41 | B42: Zavodnik and Jaklin 1990 | C42: =IF(D42>0,1,0) -> 0 | F42: - | G42: Istrian coast | H42: 45.05045 | I42: 13.67209 | J42: bad | K42: Mediterranean | L42: Adriatic Sea | M42: Croatia | N42: Zn | O42: none | P42: 0 | Q42: 0 | R42: 0 | S42: 1 | T42: intertidal | U42: NA | V42: NA | W42: NA | X42: - | Y42: =IF(Z42=1,0,1) -> 1 | Z42: =IF((AQ42+BG42+BW42+CM42+DC42+DS42)>0,1,0) -> 0 | AA42: =IF(SUM(AR42+BH42+BX42+CN42+DD42+DT42)>0,1,0) -> 0 | AB42: 0 | AC42: 1 | AD42: 0 | AE42: 0 | AF42: 1 | AG42: 0 | AH42: 1938 | AI42: 1988 | AJ42: 50 | AK42: 1 | AL42: 1 | AM42: 0 | AN42: 0 | AO42: persists | AP42: 1 | AQ42: 0 | AR42: 0 | AS42: 1938 | AT42: 1988 | AU42: 50 | AV42: 1 | AW42: 1 | AX42: NA | AY42: NA | AZ42: NA | BA42: 2 | BB42: NA | BC42: NA | BD42: NA | BE42: no change | BF42: 0 | BG42: 0 | BH42: 0 | BI42: NA | BJ42: NA | BK42: NA | BL42: NA | BM42: NA | BN42: NA | BO42: NA | BP42: NA | BQ42: NA | BR42: NA | BS42: NA | BT42: NA | BU42: unknown | BV42: 0 | BW42: 0 | BX42: 0 | BY42: NA | BZ42: NA | CA42: NA | CB42: NA | CC42: NA | CD42: NA | CE42: NA | CF42: NA | CG42: NA | CH42: NA | CI42: NA | CJ42: NA | CK42: unknown | CL42: 0 | CM42: 0 | CN42: 0 | CO42: NA | CP42: NA | CQ42: NA | CR42: NA | CS42: NA | CT42: NA | CU42: NA | CV42: NA | CW42: NA | CX42: NA | CY42: NA | CZ42: NA | DA42: unknown | DB42: 0 | DC42: 0 | DD42: 0 | DE42: NA | DF42: NA | DG42: NA | DH42: NA | DI42: NA | DJ42: NA | DK42: NA | DL42: NA | DM42: NA | DN42: NA | DO42: NA | DP42: NA | DQ42: unknown | DR42: 0 | DS42: 0 | DT42: 0 | DU42: NA | DV42: NA | DW42: NA | DX42: NA | DY42: NA | DZ42: NA | EA42: NA | EB42: NA | EC42: NA | ED42: NA | EE42: NA | EF42: NA | EG42: unknown | EH42: - | EI42: =MIN(DU42,DE42,CO42,BY42,BI42,AS42,AH42) -> 1938 | EJ42: =MAX(DV42,DF42,CP42,BZ42,BJ42,AT42,AI42) -> 1988 | EK42: =EJ42-EI42 -> 50 | EL42: =IF(EM42=0,"NA",AVERAGE(ED42,DN42,CX42)) -> NA | EM42: =DR42+DB42+CL42 -> 0 | EN42: unknown | EO42: NA | EP42: =BV42+BF42 -> 0 | EQ42: unknown | ER42: =BB42 -> NA | ES42: =AP42 -> 1 | ET42: =BE42 -> no change | EU42: =ES42+EP42 -> 1 | EV42: =ET42 -> no change | EW42: =AO42 -> persists | EX42: no change | EY42: =EV42 -> no change | EZ42: =IF(FC42+HT42>0,1,0) -> 0 | FA42: =IF(FD42>1 OR(HU42>1),1,0) -> 0 | FB42: =IF(FC42+HT42=2,1,0) -> 0 | FC42: =IF(SUM(FH42,FV42,GK42,GS42,HE42,HL42,HP42)>0,1,0) -> 0 | FD42: =SUM(FH42,FV42,GK42,GS42,HE42,HL42,HP42) -> 0 | FE42: 0 | FF42: NA | FG42: NA | FH42: =IF(SUM(FL42:FU42)>0,1,0) -> 0 | FI42: NA | FJ42: NA | FK42: NA | FL42: 0 | FM42: 0 | FN42: 0 | FO42: 0 | FP42: 0 | FQ42: 0 | FR42: 0 | FS42: 0 | FT42: 0 | FU42: 0 | FV42: =IF(SUM(FZ42:GJ42)>0,1,0) -> 0 | FW42: NA | FX42: NA | FY42: NA | FZ42: 0 | GA42: 0 | GB42: 0 | GC42: 0 | GD42: 0 | GE42: 0 | GF42: 0 | GG42: 0 | GH42: 0 | GI42: 0 | GJ42: 0 | GK42: =IF(SUM(GO42:GR42)>0,1,0) -> 0 | GL42: NA | GM42: NA | GN42: NA | GO42: 0 | GP42: 0 | GQ42: 0 | GR42: 0 | GS42: =IF(SUM(GW42:HD42)>0,1,0) -> 0 | GT42: NA | GU42: NA | GV42: NA | GW42: 0 | GX42: 0 | GY42: 0 | GZ42: 0 | HA42: 0 | HB42: 0 | HC42: 0 | HD42: 0 | HE42: =IF(SUM(HI42:HK42)>0,1,0) -> 0 | HF42: NA | HG42: NA | HH42: NA | HI42: 0 | HJ42: 0 | HK42: 0 | HL42: 0 | HM42: NA | HN42: NA | HO42: NA | HP42: 0 | HQ42: NA | HR42: NA | HS42: NA | HT42: =IF(HX42+IG42>0,1,0) -> 0 | HU42: =SUM(HX42,IG42) -> 0 | HV42: 0 | HW42: NA | HX42: =IF(SUM(IB42:IF42)>0,1,0) -> 0 | HY42: NA | HZ42: NA | IA42: NA | IB42: 0 | IC42: 0 | ID42: 0 | IE42: 0 | IF42: 0 | IG42: 0 | IH42: NA | II42: NA | IJ42: NA
A43: 42 | B43: Vadineanu et al. 1997 | C43: =IF(D43>0,1,0) -> 0 | F43: - | G43: Razim-Sinoe Complex | H43: 44.71927 | I43: 28.91545 | J43: bad | K43: Mediterranean | L43: Black Sea | M43: Romania | N43: Zm | O43: none | P43: 0 | Q43: 1 | R43: 0 | S43: 0 | T43: subtidal | U43: NA | V43: NA | W43: NA | X43: - | Y43: =IF(Z43=1,0,1) -> 1 | Z43: =IF((AQ43+BG43+BW43+CM43+DC43+DS43)>0,1,0) -> 0 | AA43: =IF(SUM(AR43+BH43+BX43+CN43+DD43+DT43)>0,1,0) -> 0 | AB43: 1 | AC43: 0 | AD43: 0 | AE43: 0 | AF43: 1 | AG43: 0 | AH43: 1980 | AI43: 1990 | AJ43: 10 | AK43: 1 | AL43: 0 | AM43: 0 | AN43: 1 | AO43: lost | AP43: 0 | AQ43: 0 | AR43: 0 | AS43: NA | AT43: NA | AU43: NA | AV43: NA | AW43: NA | AX43: NA | AY43: NA | AZ43: NA | BA43: NA | BB43: NA | BC43: NA | BD43: NA | BE43: unknown | BF43: 0 | BG43: 0 | BH43: 0 | BI43: NA | BJ43: NA | BK43: NA | BL43: NA | BM43: NA | BN43: NA | BO43: NA | BP43: NA | BQ43: NA | BR43: NA | BS43: NA | BT43: NA | BU43: unknown | BV43: 0 | BW43: 0 | BX43: 0 | BY43: NA | BZ43: NA | CA43: NA | CB43: NA | CC43: NA | CD43: NA | CE43: NA | CF43: NA | CG43: NA | CH43: NA | CI43: NA | CJ43: NA | CK43: unknown | CL43: 0 | CM43: 0 | CN43: 0 | CO43: NA | CP43: NA | CQ43: NA | CR43: NA | CS43: NA | CT43: NA | CU43: NA | CV43: NA | CW43: NA | CX43: NA | CY43: NA | CZ43: NA | DA43: unknown | DB43: 0 | DC43: 0 | DD43: 0 | DE43: NA | DF43: NA | DG43: NA | DH43: NA | DI43: NA | DJ43: NA | DK43: NA | DL43: NA | DM43: NA | DN43: NA | DO43: NA | DP43: NA | DQ43: unknown | DR43: 0 | DS43: 0 | DT43: 0 | DU43: NA | DV43: NA | DW43: NA | DX43: NA | DY43: NA | DZ43: NA | EA43: NA | EB43: NA | EC43: NA | ED43: NA | EE43: NA | EF43: NA | EG43: unknown | EH43: - | EI43: =MIN(DU43,DE43,CO43,BY43,BI43,AS43,AH43) -> 1980 | EJ43: =MAX(DV43,DF43,CP43,BZ43,BJ43,AT43,AI43) -> 1990 | EK43: =EJ43-EI43 -> 10 | EL43: =IF(EM43=0,"NA",AVERAGE(ED43,DN43,CX43)) -> NA | EM43: =DR43+DB43+CL43 -> 0 | EN43: unknown | EO43: NA | EP43: =BV43+BF43 -> 0 | EQ43: unknown | ER43: =BB43 -> NA | ES43: =AP43 -> 0 | ET43: =BE43 -> unknown | EU43: =ES43+EP43 -> 0 | EV43: unknown | EW43: =AO43 -> lost | EX43: decrease | EY43: decrease | EZ43: =IF(FC43+HT43>0,1,0) -> 1 | FA43: =IF(FD43>1 OR(HU43>1),1,0) -> 1 | FB43: =IF(FC43+HT43=2,1,0) -> 0 | FC43: =IF(SUM(FH43,FV43,GK43,GS43,HE43,HL43,HP43)>0,1,0) -> 1 | FD43: =SUM(FH43,FV43,GK43,GS43,HE43,HL43,HP43) -> 2 | FE43: 0 | FF43: NA | FG43: NA | FH43: =IF(SUM(FL43:FU43)>0,1,0) -> 1 | FI43: NA | FJ43: 1980 | FK43: 1990 | FL43: 0 | FM43: 1 | FN43: 0 | FO43: 0 | FP43: 0 | FQ43: 0 | FR43: 0 | FS43: 1 | FT43: 0 | FU43: 0 | FV43: =IF(SUM(FZ43:GJ43)>0,1,0) -> 1 | FW43: NA | FX43: 1980 | FY43: 1990 | FZ43: 0 | GA43: 0 | GB43: 0 | GC43: 0 | GD43: 0 | GE43: 0 | GF43: 0 | GG43: 0 | GH43: 0 | GI43: 0 | GJ43: 1 | GK43: =IF(SUM(GO43:GR43)>0,1,0) -> 0 | GL43: NA | GM43: NA | GN43: NA | GO43: 0 | GP43: 0 | GQ43: 0 | GR43: 0 | GS43: =IF(SUM(GW43:HD43)>0,1,0) -> 0 | GT43: NA | GU43: NA | GV43: NA | GW43: 0 | GX43: 0 | GY43: 0 | GZ43: 0 | HA43: 0 | HB43: 0 | HC43: 0 | HD43: 0 | HE43: =IF(SUM(HI43:HK43)>0,1,0) -> 0 | HF43: NA | HG43: NA | HH43: NA | HI43: 0 | HJ43: 0 | HK43: 0 | HL43: 0 | HM43: NA | HN43: NA | HO43: NA | HP43: 0 | HQ43: NA | HR43: NA | HS43: NA | HT43: =IF(HX43+IG43>0,1,0) -> 0 | HU43: =SUM(HX43,IG43) -> 0 | HV43: 0 | HW43: NA | HX43: =IF(SUM(IB43:IF43)>0,1,0) -> 0 | HY43: NA | HZ43: NA | IA43: NA | IB43: 0 | IC43: 0 | ID43: 0 | IE43: 0 | IF43: 0 | IG43: 0 | IH43: NA | II43: NA | IJ43: NA
A44: 43 | B44: Uzunova 2010 | C44: =IF(D44>0,1,0) -> 0 | F44: - | G44: Sozopol Bay | H44: 42.42492 | I44: 27.66404 | J44: fair | K44: Mediterranean | L44: Black Sea | M44: Bulgaria | N44: Zm | O44: Zn | P44: 0 | Q44: 1 | R44: 0 | S44: 1 | T44: subtidal | U44: -1 | V44: -3 | W44: NA | X44: - | Y44: =IF(Z44=1,0,1) -> 1 | Z44: =IF((AQ44+BG44+BW44+CM44+DC44+DS44)>0,1,0) -> 0 | AA44: =IF(SUM(AR44+BH44+BX44+CN44+DD44+DT44)>0,1,0) -> 0 | AB44: 0 | AC44: 0 | AD44: 0 | AE44: 1 | AF44: 1 | AG44: 0 | AH44: NA | AI44: 2000 | AJ44: NA | AK44: 1 | AL44: 1 | AM44: 0 | AN44: 0 | AO44: persists | AP44: 0 | AQ44: 0 | AR44: 0 | AS44: NA | AT44: NA | AU44: NA | AV44: NA | AW44: NA | AX44: NA | AY44: NA | AZ44: NA | BA44: NA | BB44: NA | BC44: NA | BD44: NA | BE44: unknown | BF44: 1 | BG44: 0 | BH44: 0 | BI44: NA | BJ44: 2000 | BK44: NA | BL44: 1 | BM44: 1 | BN44: NA | BO44: NA | BP44: NA | BQ44: 1 | BR44: NA | BS44: NA | BT44: NA | BU44: decrease | BV44: 0 | BW44: 0 | BX44: 0 | BY44: NA | BZ44: NA | CA44: NA | CB44: NA | CC44: NA | CD44: NA | CE44: NA | CF44: NA | CG44: NA | CH44: NA | CI44: NA | CJ44: NA | CK44: unknown | CL44: 0 | CM44: 0 | CN44: 0 | CO44: NA | CP44: NA | CQ44: NA | CR44: NA | CS44: NA | CT44: NA | CU44: NA | CV44: NA | CW44: NA | CX44: NA | CY44: NA | CZ44: NA | DA44: unknown | DB44: 1 | DC44: 0 | DD44: 0 | DE44: NA | DF44: 2000 | DG44: NA | DH44: 1 | DI44: 1 | DJ44: NA | DK44: NA | DL44: NA | DM44: 1 | DN44: NA | DO44: NA | DP44: NA | DQ44: decrease | DR44: 0 | DS44: 0 | DT44: 0 | DU44: NA | DV44: NA | DW44: NA | DX44: NA | DY44: NA | DZ44: NA | EA44: NA | EB44: NA | EC44: NA | ED44: NA | EE44: NA | EF44: NA | EG44: unknown | EH44: - | EI44: NA | EJ44: =MAX(DV44,DF44,CP44,BZ44,BJ44,AT44,AI44) -> 2000 | EK44: NA | EL44: NA | EM44: =DR44+DB44+CL44 -> 1 | EN44: =DQ44 -> decrease | EO44: NA | EP44: =BV44+BF44 -> 1 | EQ44: =BU44 -> decrease | ER44: =BB44 -> NA | ES44: =AP44 -> 0 | ET44: =BE44 -> unknown | EU44: =ES44+EP44 -> 1 | EV44: =EQ44 -> decrease | EW44: =AO44 -> persists | EX44: decrease | EY44: =EV44 -> decrease | EZ44: =IF(FC44+HT44>0,1,0) -> 1 | FA44: =IF(FD44>1 OR(HU44>1),1,0) -> 0 | FB44: =IF(FC44+HT44=2,1,0) -> 0 | FC44: =IF(SUM(FH44,FV44,GK44,GS44,HE44,HL44,HP44)>0,1,0) -> 1 | FD44: =SUM(FH44,FV44,GK44,GS44,HE44,HL44,HP44) -> 1 | FE44: 0 | FF44: NA | FG44: NA | FH44: =IF(SUM(FL44:FU44)>0,1,0) -> 1 | FI44: NA | FJ44: 1980 | FK44: 1999 | FL44: 0 | FM44: 1 | FN44: 0 | FO44: 0 | FP44: 0 | FQ44: 0 | FR44: 0 | FS44: 0 | FT44: 0 | FU44: 0 | FV44: =IF(SUM(FZ44:GJ44)>0,1,0) -> 0 | FW44: NA | FX44: NA | FY44: NA | FZ44: 0 | GA44: 0 | GB44: 0 | GC44: 0 | GD44: 0 | GE44: 0 | GF44: 0 | GG44: 0 | GH44: 0 | GI44: 0 | GJ44: 0 | GK44: =IF(SUM(GO44:GR44)>0,1,0) -> 0 | GL44: NA | GM44: NA | GN44: NA | GO44: 0 | GP44: 0 | GQ44: 0 | GR44: 0 | GS44: =IF(SUM(GW44:HD44)>0,1,0) -> 0 | GT44: NA | GU44: NA | GV44: NA | GW44: 0 | GX44: 0 | GY44: 0 | GZ44: 0 | HA44: 0 | HB44: 0 | HC44: 0 | HD44: 0 | HE44: =IF(SUM(HI44:HK44)>0,1,0) -> 0 | HF44: NA | HG44: NA | HH44: NA | HI44: 0 | HJ44: 0 | HK44: 0 | HL44: 0 | HM44: NA | HN44: NA | HO44: NA | HP44: 0 | HQ44: NA | HR44: NA | HS44: NA | HT44: =IF(HX44+IG44>0,1,0) -> 0 | HU44: =SUM(HX44,IG44) -> 0 | HV44: 0 | HW44: NA | HX44: =IF(SUM(IB44:IF44)>0,1,0) -> 0 | HY44: NA | HZ44: NA | IA44: NA | IB44: 0 | IC44: 0 | ID44: 0 | IE44: 0 | IF44: 0 | IG44: 0 | IH44: NA | II44: NA | IJ44: NA
A45: 44 | B45: Uzunova 2010 | C45: =IF(D45>0,1,0) -> 0 | F45: - | G45: Varna Bay | H45: 43.18918 | I45: 27.93828 | J45: bad | K45: Mediterranean | L45: Black Sea | M45: Bulgaria | N45: Zm | O45: none | P45: 0 | Q45: 1 | R45: 0 | S45: 0 | T45: subtidal | U45: NA | V45: NA | W45: NA | X45: - | Y45: =IF(Z45=1,0,1) -> 1 | Z45: =IF((AQ45+BG45+BW45+CM45+DC45+DS45)>0,1,0) -> 0 | AA45: =IF(SUM(AR45+BH45+BX45+CN45+DD45+DT45)>0,1,0) -> 0 | AB45: 0 | AC45: 0 | AD45: 1 | AE45: 0 | AF45: 1 | AG45: 0 | AH45: NA | AI45: 2000 | AJ45: NA | AK45: 1 | AL45: 0 | AM45: 0 | AN45: 1 | AO45: lost | AP45: 0 | AQ45: 0 | AR45: 0 | AS45: NA | AT45: NA | AU45: NA | AV45: NA | AW45: NA | AX45: NA | AY45: NA | AZ45: NA | BA45: NA | BB45: NA | BC45: NA | BD45: NA | BE45: unknown | BF45: 0 | BG45: 0 | BH45: 0 | BI45: NA | BJ45: NA | BK45: NA | BL45: NA | BM45: NA | BN45: NA | BO45: NA | BP45: NA | BQ45: NA | BR45: NA | BS45: NA | BT45: NA | BU45: unknown | BV45: 0 | BW45: 0 | BX45: 0 | BY45: NA | BZ45: NA | CA45: NA | CB45: NA | CC45: NA | CD45: NA | CE45: NA | CF45: NA | CG45: NA | CH45: NA | CI45: NA | CJ45: NA | CK45: unknown | CL45: 1 | CM45: 0 | CN45: 0 | CO45: NA | CP45: 2013 | CQ45: NA | CR45: 1 | CS45: 1 | CT45: NA | CU45: NA | CV45: NA | CW45: 1 | CX45: NA | CY45: NA | CZ45: NA | DA45: decrease | DB45: 0 | DC45: 0 | DD45: 0 | DE45: NA | DF45: NA | DG45: NA | DH45: NA | DI45: NA | DJ45: NA | DK45: NA | DL45: NA | DM45: NA | DN45: NA | DO45: NA | DP45: NA | DQ45: unknown | DR45: 0 | DS45: 0 | DT45: 0 | DU45: NA | DV45: NA | DW45: NA | DX45: NA | DY45: NA | DZ45: NA | EA45: NA | EB45: NA | EC45: NA | ED45: NA | EE45: NA | EF45: NA | EG45: unknown | EH45: - | EI45: NA | EJ45: =MAX(DV45,DF45,CP45,BZ45,BJ45,AT45,AI45) -> 2013 | EK45: NA | EL45: NA | EM45: =DR45+DB45+CL45 -> 1 | EN45: =DA45 -> decrease | EO45: NA | EP45: =BV45+BF45 -> 0 | EQ45: unknown | ER45: =BB45 -> NA | ES45: =AP45 -> 0 | ET45: =BE45 -> unknown | EU45: =ES45+EP45 -> 0 | EV45: unknown | EW45: =AO45 -> lost | EX45: decrease | EY45: decrease | EZ45: =IF(FC45+HT45>0,1,0) -> 1 | FA45: =IF(FD45>1 OR(HU45>1),1,0) -> 0 | FB45: =IF(FC45+HT45=2,1,0) -> 0 | FC45: =IF(SUM(FH45,FV45,GK45,GS45,HE45,HL45,HP45)>0,1,0) -> 1 | FD45: =SUM(FH45,FV45,GK45,GS45,HE45,HL45,HP45) -> 1 | FE45: 0 | FF45: NA | FG45: NA | FH45: =IF(SUM(FL45:FU45)>0,1,0) -> 1 | FI45: NA | FJ45: 1999 | FK45: NA | FL45: 0 | FM45: 1 | FN45: 0 | FO45: 0 | FP45: 0 | FQ45: 0 | FR45: 0 | FS45: 0 | FT45: 0 | FU45: 0 | FV45: =IF(SUM(FZ45:GJ45)>0,1,0) -> 0 | FW45: NA | FX45: NA | FY45: NA | FZ45: 0 | GA45: 0 | GB45: 0 | GC45: 0 | GD45: 0 | GE45: 0 | GF45: 0 | GG45: 0 | GH45: 0 | GI45: 0 | GJ45: 0 | GK45: =IF(SUM(GO45:GR45)>0,1,0) -> 0 | GL45: NA | GM45: NA | GN45: NA | GO45: 0 | GP45: 0 | GQ45: 0 | GR45: 0 | GS45: =IF(SUM(GW45:HD45)>0,1,0) -> 0 | GT45: NA | GU45: NA | GV45: NA | GW45: 0 | GX45: 0 | GY45: 0 | GZ45: 0 | HA45: 0 | HB45: 0 | HC45: 0 | HD45: 0 | HE45: =IF(SUM(HI45:HK45)>0,1,0) -> 0 | HF45: NA | HG45: NA | HH45: NA | HI45: 0 | HJ45: 0 | HK45: 0 | HL45: 0 | HM45: NA | HN45: NA | HO45: NA | HP45: 0 | HQ45: NA | HR45: NA | HS45: NA | HT45: =IF(HX45+IG45>0,1,0) -> 0 | HU45: =SUM(HX45,IG45) -> 0 | HV45: 0 | HW45: NA | HX45: =IF(SUM(IB45:IF45)>0,1,0) -> 0 | HY45: NA | HZ45: NA | IA45: NA | IB45: 0 | IC45: 0 | ID45: 0 | IE45: 0 | IF45: 0 | IG45: 0 | IH45: NA | II45: NA | IJ45: NA
A46: 45 | B46: Plus et al. 2003 | C46: =IF(D46>0,1,0) -> 0 | F46: - | G46: Thau Lagoon | H46: 43.39967 | I46: 3.59588 | J46: good | K46: Mediterranean | L46: Western Mediterranean Sea | M46: France | N46: Zm | O46: none | P46: 0 | Q46: 1 | R46: 0 | S46: 0 | T46: subtidal | U46: NA | V46: NA | W46: -4.2 | X46: - | Y46: =IF(Z46=1,0,1) -> 0 | Z46: =IF((AQ46+BG46+BW46+CM46+DC46+DS46)>0,1,0) -> 1 | AA46: =IF(SUM(AR46+BH46+BX46+CN46+DD46+DT46)>0,1,0) -> 0 | AB46: 0 | AC46: 0 | AD46: 1 | AE46: 0 | AF46: 1 | AG46: 0 | AH46: 1997 | AI46: 1999 | AJ46: 2 | AK46: 0 | AL46: 1 | AM46: 1 | AN46: 0 | AO46: gained | AP46: 0 | AQ46: 0 | AR46: 0 | AS46: NA | AT46: NA | AU46: NA | AV46: NA | AW46: NA | AX46: NA | AY46: NA | AZ46: NA | BA46: NA | BB46: NA | BC46: NA | BD46: NA | BE46: unknown | BF46: 0 | BG46: 0 | BH46: 0 | BI46: NA | BJ46: NA | BK46: NA | BL46: NA | BM46: NA | BN46: NA | BO46: NA | BP46: NA | BQ46: NA | BR46: NA | BS46: NA | BT46: NA | BU46: unknown | BV46: 0 | BW46: 0 | BX46: 0 | BY46: NA | BZ46: NA | CA46: NA | CB46: NA | CC46: NA | CD46: NA | CE46: NA | CF46: NA | CG46: NA | CH46: NA | CI46: NA | CJ46: NA | CK46: unknown | CL46: 0 | CM46: 0 | CN46: 0 | CO46: NA | CP46: NA | CQ46: NA | CR46: NA | CS46: NA | CT46: NA | CU46: NA | CV46: NA | CW46: NA | CX46: NA | CY46: NA | CZ46: NA | DA46: unknown | DB46: 1 | DC46: 1 | DD46: 0 | DE46: 1997 | DF46: 1999 | DG46: 2 | DH46: 0 | DI46: 1 | DJ46: 0 | DK46: 107.41 | DL46: 126.85 | DM46: 3 | DN46: NA | DO46: 107.41 | DP46: NA | DQ46: increase | DR46: 1 | DS46: 1 | DT46: 0 | DU46: 1997 | DV46: 1999 | DW46: 2 | DX46: 0 | DY46: 1 | DZ46: 0 | EA46: 29.8 | EB46: 29.8 | EC46: 3 | ED46: NA | EE46: 29.8 | EF46: NA | EG46: increase | EH46: - | EI46: =MIN(DU46,DE46,CO46,BY46,BI46,AS46,AH46) -> 1997 | EJ46: =MAX(DV46,DF46,CP46,BZ46,BJ46,AT46,AI46) -> 1999 | EK46: =EJ46-EI46 -> 2 | EL46: NA | EM46: =DR46+DB46+CL46 -> 2 | EN46: =EG46 -> increase | EO46: NA | EP46: =BV46+BF46 -> 0 | EQ46: unknown | ER46: =BB46 -> NA | ES46: =AP46 -> 0 | ET46: =BE46 -> unknown | EU46: =ES46+EP46 -> 0 | EV46: unknown | EW46: =AO46 -> gained | EX46: increase | EY46: increase | EZ46: =IF(FC46+HT46>0,1,0) -> 1 | FA46: =IF(FD46>1 OR(HU46>1),1,0) -> 0 | FB46: =IF(FC46+HT46=2,1,0) -> 1 | FC46: =IF(SUM(FH46,FV46,GK46,GS46,HE46,HL46,HP46)>0,1,0) -> 1 | FD46: =SUM(FH46,FV46,GK46,GS46,HE46,HL46,HP46) -> 1 | FE46: 0 | FF46: NA | FG46: NA | FH46: =IF(SUM(FL46:FU46)>0,1,0) -> 1 | FI46: NA | FJ46: 1997 | FK46: NA | FL46: 0 | FM46: 0 | FN46: 0 | FO46: 0 | FP46: 1 | FQ46: 0 | FR46: 0 | FS46: 0 | FT46: 0 | FU46: 0 | FV46: =IF(SUM(FZ46:GJ46)>0,1,0) -> 0 | FW46: NA | FX46: NA | FY46: NA | FZ46: 0 | GA46: 0 | GB46: 0 | GC46: 0 | GD46: 0 | GE46: 0 | GF46: 0 | GG46: 0 | GH46: 0 | GI46: 0 | GJ46: 0 | GK46: =IF(SUM(GO46:GR46)>0,1,0) -> 0 | GL46: NA | GM46: NA | GN46: NA | GO46: 0 | GP46: 0 | GQ46: 0 | GR46: 0 | GS46: =IF(SUM(GW46:HD46)>0,1,0) -> 0 | GT46: NA | GU46: NA | GV46: NA | GW46: 0 | GX46: 0 | GY46: 0 | GZ46: 0 | HA46: 0 | HB46: 0 | HC46: 0 | HD46: 0 | HE46: =IF(SUM(HI46:HK46)>0,1,0) -> 0 | HF46: NA | HG46: NA | HH46: NA | HI46: 0 | HJ46: 0 | HK46: 0 | HL46: 0 | HM46: NA | HN46: NA | HO46: NA | HP46: 0 | HQ46: NA | HR46: NA | HS46: NA | HT46: =IF(HX46+IG46>0,1,0) -> 1 | HU46: =SUM(HX46,IG46) -> 1 | HV46: 0 | HW46: NA | HX46: =IF(SUM(IB46:IF46)>0,1,0) -> 0 | HY46: NA | HZ46: NA | IA46: NA | IB46: 0 | IC46: 0 | ID46: 0 | IE46: 0 | IF46: 0 | IG46: 1 | IH46: NA | II46: 1998 | IJ46: NA
A47: 46 | B47: Ballesta et al. 2000 | C47: =IF(D47>0,1,0) -> 0 | F47: - | G47: Pin Parasol Cove | H47: 42.46259 | I47: 3.16144 | J47: fair | K47: Mediterranean | L47: Western Mediterranean Sea | M47: France | N47: Po | O47: none | P47: 1 | Q47: 0 | R47: 0 | S47: 0 | T47: subtidal | U47: NA | V47: -20 | W47: NA | X47: - | Y47: =IF(Z47=1,0,1) -> 0 | Z47: =IF((AQ47+BG47+BW47+CM47+DC47+DS47)>0,1,0) -> 1 | AA47: =IF(SUM(AR47+BH47+BX47+CN47+DD47+DT47)>0,1,0) -> 1 | AB47: 0 | AC47: 1 | AD47: 0 | AE47: 0 | AF47: 1 | AG47: 0 | AH47: 1989 | AI47: 1997 | AJ47: 8 | AK47: 1 | AL47: 1 | AM47: 0 | AN47: 0 | AO47: persists | AP47: 1 | AQ47: 1 | AR47: 1 | AS47: 1989 | AT47: 1997 | AU47: 8 | AV47: 1 | AW47: 1 | AX47: 0.02 | AY47: 0.01 | AZ47: 0.02 | BA47: 2 | BB47: 50 | BC47: -0.01 | BD47: -8.664339757 | BE47: decrease | BF47: 0 | BG47: 0 | BH47: 0 | BI47: NA | BJ47: NA | BK47: NA | BL47: NA | BM47: NA | BN47: NA | BO47: NA | BP47: NA | BQ47: NA | BR47: NA | BS47: NA | BT47: NA | BU47: unknown | BV47: 0 | BW47: 0 | BX47: 0 | BY47: NA | BZ47: NA | CA47: NA | CB47: NA | CC47: NA | CD47: NA | CE47: NA | CF47: NA | CG47: NA | CH47: NA | CI47: NA | CJ47: NA | CK47: unknown | CL47: 0 | CM47: 0 | CN47: 0 | CO47: NA | CP47: NA | CQ47: NA | CR47: NA | CS47: NA | CT47: NA | CU47: NA | CV47: NA | CW47: NA | CX47: NA | CY47: NA | CZ47: NA | DA47: unknown | DB47: 0 | DC47: 0 | DD47: 0 | DE47: NA | DF47: NA | DG47: NA | DH47: NA | DI47: NA | DJ47: NA | DK47: NA | DL47: NA | DM47: NA | DN47: NA | DO47: NA | DP47: NA | DQ47: unknown | DR47: 0 | DS47: 0 | DT47: 0 | DU47: NA | DV47: NA | DW47: NA | DX47: NA | DY47: NA | DZ47: NA | EA47: NA | EB47: NA | EC47: NA | ED47: NA | EE47: NA | EF47: NA | EG47: unknown | EH47: - | EI47: =MIN(DU47,DE47,CO47,BY47,BI47,AS47,AH47) -> 1989 | EJ47: =MAX(DV47,DF47,CP47,BZ47,BJ47,AT47,AI47) -> 1997 | EK47: =EJ47-EI47 -> 8 | EL47: =IF(EM47=0,"NA",AVERAGE(ED47,DN47,CX47)) -> NA | EM47: =DR47+DB47+CL47 -> 0 | EN47: unknown | EO47: NA | EP47: =BV47+BF47 -> 0 | EQ47: unknown | ER47: =BB47 -> 50 | ES47: =AP47 -> 1 | ET47: =BE47 -> decrease | EU47: =ES47+EP47 -> 1 | EV47: =ET47 -> decrease | EW47: =AO47 -> persists | EX47: decrease | EY47: =EV47 -> decrease | EZ47: =IF(FC47+HT47>0,1,0) -> 0 | FA47: =IF(FD47>1 OR(HU47>1),1,0) -> 0 | FB47: =IF(FC47+HT47=2,1,0) -> 0 | FC47: =IF(SUM(FH47,FV47,GK47,GS47,HE47,HL47,HP47)>0,1,0) -> 0 | FD47: =SUM(FH47,FV47,GK47,GS47,HE47,HL47,HP47) -> 0 | FE47: 0 | FF47: NA | FG47: NA | FH47: =IF(SUM(FL47:FU47)>0,1,0) -> 0 | FI47: NA | FJ47: NA | FK47: NA | FL47: 0 | FM47: 0 | FN47: 0 | FO47: 0 | FP47: 0 | FQ47: 0 | FR47: 0 | FS47: 0 | FT47: 0 | FU47: 0 | FV47: =IF(SUM(FZ47:GJ47)>0,1,0) -> 0 | FW47: NA | FX47: NA | FY47: NA | FZ47: 0 | GA47: 0 | GB47: 0 | GC47: 0 | GD47: 0 | GE47: 0 | GF47: 0 | GG47: 0 | GH47: 0 | GI47: 0 | GJ47: 0 | GK47: =IF(SUM(GO47:GR47)>0,1,0) -> 0 | GL47: NA | GM47: NA | GN47: NA | GO47: 0 | GP47: 0 | GQ47: 0 | GR47: 0 | GS47: =IF(SUM(GW47:HD47)>0,1,0) -> 0 | GT47: NA | GU47: NA | GV47: NA | GW47: 0 | GX47: 0 | GY47: 0 | GZ47: 0 | HA47: 0 | HB47: 0 | HC47: 0 | HD47: 0 | HE47: =IF(SUM(HI47:HK47)>0,1,0) -> 0 | HF47: NA | HG47: NA | HH47: NA | HI47: 0 | HJ47: 0 | HK47: 0 | HL47: 0 | HM47: NA | HN47: NA | HO47: NA | HP47: 0 | HQ47: NA | HR47: NA | HS47: NA | HT47: =IF(HX47+IG47>0,1,0) -> 0 | HU47: =SUM(HX47,IG47) -> 0 | HV47: 0 | HW47: NA | HX47: =IF(SUM(IB47:IF47)>0,1,0) -> 0 | HY47: NA | HZ47: NA | IA47: NA | IB47: 0 | IC47: 0 | ID47: 0 | IE47: 0 | IF47: 0 | IG47: 0 | IH47: NA | II47: NA | IJ47: NA
A48: 47 | B48: Rismondo and Mion 2008 | C48: =IF(D48>0,1,0) -> 0 | F48: - | G48: Venice Lagoon | H48: 45.39453 | I48: 12.304 | J48: good | K48: Mediterranean | L48: Adriatic Sea | M48: Italy | N48: Cn | O48: none | P48: 0 | Q48: 0 | R48: 1 | S48: 0 | T48: unknown | U48: NA | V48: NA | W48: NA | X48: - | Y48: =IF(Z48=1,0,1) -> 0 | Z48: =IF((AQ48+BG48+BW48+CM48+DC48+DS48)>0,1,0) -> 1 | AA48: =IF(SUM(AR48+BH48+BX48+CN48+DD48+DT48)>0,1,0) -> 0 | AB48: 0 | AC48: 1 | AD48: 0 | AE48: 0 | AF48: 1 | AG48: 0 | AH48: 2002 | AI48: 2004 | AJ48: 2 | AK48: 1 | AL48: 1 | AM48: 0 | AN48: 0 | AO48: persists | AP48: 1 | AQ48: 1 | AR48: 0 | AS48: 2002 | AT48: 2004 | AU48: 2 | AV48: 1 | AW48: 1 | AX48: 145 | AY48: 63 | AZ48: 145 | BA48: 3 | BB48: 43.44827586 | BC48: -82 | BD48: -41.6799508 | BE48: decrease | BF48: 0 | BG48: 0 | BH48: 0 | BI48: NA | BJ48: NA | BK48: NA | BL48: NA | BM48: NA | BN48: NA | BO48: NA | BP48: NA | BQ48: NA | BR48: NA | BS48: NA | BT48: NA | BU48: unknown | BV48: 0 | BW48: 0 | BX48: 0 | BY48: NA | BZ48: NA | CA48: NA | CB48: NA | CC48: NA | CD48: NA | CE48: NA | CF48: NA | CG48: NA | CH48: NA | CI48: NA | CJ48: NA | CK48: unknown | CL48: 0 | CM48: 0 | CN48: 0 | CO48: NA | CP48: NA | CQ48: NA | CR48: NA | CS48: NA | CT48: NA | CU48: NA | CV48: NA | CW48: NA | CX48: NA | CY48: NA | CZ48: NA | DA48: unknown | DB48: 0 | DC48: 0 | DD48: 0 | DE48: NA | DF48: NA | DG48: NA | DH48: NA | DI48: NA | DJ48: NA | DK48: NA | DL48: NA | DM48: NA | DN48: NA | DO48: NA | DP48: NA | DQ48: unknown | DR48: 0 | DS48: 0 | DT48: 0 | DU48: NA | DV48: NA | DW48: NA | DX48: NA | DY48: NA | DZ48: NA | EA48: NA | EB48: NA | EC48: NA | ED48: NA | EE48: NA | EF48: NA | EG48: unknown | EH48: - | EI48: =MIN(DU48,DE48,CO48,BY48,BI48,AS48,AH48) -> 2002 | EJ48: =MAX(DV48,DF48,CP48,BZ48,BJ48,AT48,AI48) -> 2004 | EK48: =EJ48-EI48 -> 2 | EL48: =IF(EM48=0,"NA",AVERAGE(ED48,DN48,CX48)) -> NA | EM48: =DR48+DB48+CL48 -> 0 | EN48: unknown | EO48: NA | EP48: =BV48+BF48 -> 0 | EQ48: unknown | ER48: =BB48 -> 43.44827586 | ES48: =AP48 -> 1 | ET48: =BE48 -> decrease | EU48: =ES48+EP48 -> 1 | EV48: =ET48 -> decrease | EW48: =AO48 -> persists | EX48: decrease | EY48: =EV48 -> decrease | EZ48: =IF(FC48+HT48>0,1,0) -> 0 | FA48: =IF(FD48>1 OR(HU48>1),1,0) -> 0 | FB48: =IF(FC48+HT48=2,1,0) -> 0 | FC48: =IF(SUM(FH48,FV48,GK48,GS48,HE48,HL48,HP48)>0,1,0) -> 0 | FD48: =SUM(FH48,FV48,GK48,GS48,HE48,HL48,HP48) -> 0 | FE48: 0 | FF48: NA | FG48: NA | FH48: =IF(SUM(FL48:FU48)>0,1,0) -> 0 | FI48: NA | FJ48: NA | FK48: NA | FL48: 0 | FM48: 0 | FN48: 0 | FO48: 0 | FP48: 0 | FQ48: 0 | FR48: 0 | FS48: 0 | FT48: 0 | FU48: 0 | FV48: =IF(SUM(FZ48:GJ48)>0,1,0) -> 0 | FW48: NA | FX48: NA | FY48: NA | FZ48: 0 | GA48: 0 | GB48: 0 | GC48: 0 | GD48: 0 | GE48: 0 | GF48: 0 | GG48: 0 | GH48: 0 | GI48: 0 | GJ48: 0 | GK48: =IF(SUM(GO48:GR48)>0,1,0) -> 0 | GL48: NA | GM48: NA | GN48: NA | GO48: 0 | GP48: 0 | GQ48: 0 | GR48: 0 | GS48: =IF(SUM(GW48:HD48)>0,1,0) -> 0 | GT48: NA | GU48: NA | GV48: NA | GW48: 0 | GX48: 0 | GY48: 0 | GZ48: 0 | HA48: 0 | HB48: 0 | HC48: 0 | HD48: 0 | HE48: =IF(SUM(HI48:HK48)>0,1,0) -> 0 | HF48: NA | HG48: NA | HH48: NA | HI48: 0 | HJ48: 0 | HK48: 0 | HL48: 0 | HM48: NA | HN48: NA | HO48: NA | HP48: 0 | HQ48: NA | HR48: NA | HS48: NA | HT48: =IF(HX48+IG48>0,1,0) -> 0 | HU48: =SUM(HX48,IG48) -> 0 | HV48: 0 | HW48: NA | HX48: =IF(SUM(IB48:IF48)>0,1,0) -> 0 | HY48: NA | HZ48: NA | IA48: NA | IB48: 0 | IC48: 0 | ID48: 0 | IE48: 0 | IF48: 0 | IG48: 0 | IH48: NA | II48: NA | IJ48: NA
A49: 48 | B49: Charpentier et al. 2005 | C49: =IF(D49>0,1,0) -> 1 | D49: 38/78 | E49: 0 | F49: - | G49: Vaccarès Lagoon | H49: 43.54013 | I49: 4.56635 | J49: good | K49: Mediterranean | L49: Western Mediterranean Sea | M49: France | N49: Zn | O49: none | P49: 0 | Q49: 0 | R49: 0 | S49: 1 | T49: intertidal | U49: NA | V49: -1.6 | W49: NA | X49: - | Y49: =IF(Z49=1,0,1) -> 0 | Z49: =IF((AQ49+BG49+BW49+CM49+DC49+DS49)>0,1,0) -> 1 | AA49: =IF(SUM(AR49+BH49+BX49+CN49+DD49+DT49)>0,1,0) -> 1 | AB49: 0 | AC49: 1 | AD49: 0 | AE49: 0 | AF49: 1 | AG49: 0 | AH49: 1993 | AI49: 2003 | AJ49: 10 | AK49: 1 | AL49: 1 | AM49: 0 | AN49: 0 | AO49: persists | AP49: 1 | AQ49: 1 | AR49: 1 | AS49: 1993 | AT49: 2003 | AU49: 10 | AV49: 1 | AW49: 1 | AX49: 4753.6 | AY49: 3884.1 | AZ49: 4753.6 | BA49: 11 | BB49: 81.7085998 | BC49: -869.5 | BD49: -2.02010929 | BE49: decrease | BF49: 1 | BG49: 1 | BH49: 0 | BI49: 1996 | BJ49: 2003 | BK49: =BJ49-BI49 -> 7 | BL49: 1 | BM49: 1 | BN49: -1.64 | BO49: -1.78 | BP49: -1.82 | BQ49: 8 | BR49: 108.5365854 | BS49: 0.14 | BT49: 1.170244607 | BU49: no change | BV49: 0 | BW49: 0 | BX49: 0 | BY49: NA | BZ49: NA | CA49: NA | CB49: NA | CC49: NA | CD49: NA | CE49: NA | CF49: NA | CG49: NA | CH49: NA | CI49: NA | CJ49: NA | CK49: unknown | CL49: 0 | CM49: 0 | CN49: 0 | CO49: NA | CP49: NA | CQ49: NA | CR49: NA | CS49: NA | CT49: NA | CU49: NA | CV49: NA | CW49: NA | CX49: NA | CY49: NA | CZ49: NA | DA49: unknown | DB49: 0 | DC49: 0 | DD49: 0 | DE49: NA | DF49: NA | DG49: NA | DH49: NA | DI49: NA | DJ49: NA | DK49: NA | DL49: NA | DM49: NA | DN49: NA | DO49: NA | DP49: NA | DQ49: unknown | DR49: 0 | DS49: 0 | DT49: 0 | DU49: NA | DV49: NA | DW49: NA | DX49: NA | DY49: NA | DZ49: NA | EA49: NA | EB49: NA | EC49: NA | ED49: NA | EE49: NA | EF49: NA | EG49: unknown | EH49: - | EI49: =MIN(DU49,DE49,CO49,BY49,BI49,AS49,AH49) -> 1993 | EJ49: =MAX(DV49,DF49,CP49,BZ49,BJ49,AT49,AI49) -> 2003 | EK49: =EJ49-EI49 -> 10 | EL49: =IF(EM49=0,"NA",AVERAGE(ED49,DN49,CX49)) -> NA | EM49: =DR49+DB49+CL49 -> 0 | EN49: unknown | EO49: =AVERAGE(CH49,BR49) -> 108.5365854 | EP49: =BV49+BF49 -> 1 | EQ49: =IF(EO49>125,"increase",IF(EO49<75,"decrease","no change")) -> no change | ER49: =BB49 -> 81.7085998 | ES49: =AP49 -> 1 | ET49: =BE49 -> decrease | EU49: =ES49+EP49 -> 2 | EV49: =ET49 -> decrease | EW49: =AO49 -> persists | EX49: decrease | EY49: =EV49 -> decrease | EZ49: =IF(FC49+HT49>0,1,0) -> 1 | FA49: =IF(FD49>1 OR(HU49>1),1,0) -> 0 | FB49: =IF(FC49+HT49=2,1,0) -> 1 | FC49: =IF(SUM(FH49,FV49,GK49,GS49,HE49,HL49,HP49)>0,1,0) -> 1 | FD49: =SUM(FH49,FV49,GK49,GS49,HE49,HL49,HP49) -> 1 | FE49: 1 | FF49: -4652.2 | FG49: NA | FH49: =IF(SUM(FL49:FU49)>0,1,0) -> 0 | FI49: NA | FJ49: NA | FK49: NA | FL49: 0 | FM49: 0 | FN49: 0 | FO49: 0 | FP49: 0 | FQ49: 0 | FR49: 0 | FS49: 0 | FT49: 0 | FU49: 0 | FV49: =IF(SUM(FZ49:GJ49)>0,1,0) -> 0 | FW49: NA | FX49: NA | FY49: NA | FZ49: 0 | GA49: 0 | GB49: 0 | GC49: 0 | GD49: 0 | GE49: 0 | GF49: 0 | GG49: 0 | GH49: 0 | GI49: 0 | GJ49: 0 | GK49: =IF(SUM(GO49:GR49)>0,1,0) -> 1 | GL49: -4652.2 | GM49: 1994 | GN49: 1997 | GO49: 0 | GP49: 0 | GQ49: 0 | GR49: 1 | GS49: =IF(SUM(GW49:HD49)>0,1,0) -> 0 | GT49: NA | GU49: NA | GV49: NA | GW49: 0 | GX49: 0 | GY49: 0 | GZ49: 0 | HA49: 0 | HB49: 0 | HC49: 0 | HD49: 0 | HE49: =IF(SUM(HI49:HK49)>0,1,0) -> 0 | HF49: NA | HG49: NA | HH49: NA | HI49: 0 | HJ49: 0 | HK49: 0 | HL49: 0 | HM49: NA | HN49: NA | HO49: NA | HP49: 0 | HQ49: NA | HR49: NA | HS49: NA | HT49: =IF(HX49+IG49>0,1,0) -> 1 | HU49: =SUM(HX49,IG49) -> 1 | HV49: 1 | HW49: 3782.7 | HX49: =IF(SUM(IB49:IF49)>0,1,0) -> 0 | HY49: NA | HZ49: NA | IA49: NA | IB49: 0 | IC49: 0 | ID49: 0 | IE49: 0 | IF49: 0 | IG49: 1 | IH49: 3782.7 | II49: 1997 | IJ49: 2003
A50: 49 | B50: Nyqvist et al. 2009, Baden et al. 2003 | C50: =IF(D50>0,1,0) -> 1 | D50: 29/335 | E50: 1 | F50: - | G50: Kungälv | H50: 57.89497 | I50: 11.7061 | J50: bad | K50: Baltic | L50: Baltic Sea | M50: Sweden | N50: Zm | O50: none | P50: 0 | Q50: 1 | R50: 0 | S50: 0 | T50: subtidal | U50: NA | V50: NA | W50: NA | X50: - | Y50: =IF(Z50=1,0,1) -> 0 | Z50: =IF((AQ50+BG50+BW50+CM50+DC50+DS50)>0,1,0) -> 1 | AA50: =IF(SUM(AR50+BH50+BX50+CN50+DD50+DT50)>0,1,0) -> 1 | AB50: 0 | AC50: 1 | AD50: 0 | AE50: 0 | AF50: 1 | AG50: 0 | AH50: 1980 | AI50: 2004 | AJ50: 24 | AK50: 1 | AL50: 1 | AM50: 0 | AN50: 0 | AO50: persists | AP50: 1 | AQ50: 1 | AR50: 1 | AS50: 1980 | AT50: 2004 | AU50: 24 | AV50: 1 | AW50: 1 | AX50: 650.58 | AY50: 93.55 | AZ50: 650.58 | BA50: 4 | BB50: 14.37947677 | BC50: -557.03 | BD50: -8.080700917 | BE50: decrease | BF50: 0 | BG50: 0 | BH50: 0 | BI50: NA | BJ50: NA | BK50: NA | BL50: NA | BM50: NA | BN50: NA | BO50: NA | BP50: NA | BQ50: NA | BR50: NA | BS50: NA | BT50: NA | BU50: unknown | BV50: 0 | BW50: 0 | BX50: 0 | BY50: NA | BZ50: NA | CA50: NA | CB50: NA | CC50: NA | CD50: NA | CE50: NA | CF50: NA | CG50: NA | CH50: NA | CI50: NA | CJ50: NA | CK50: unknown | CL50: 0 | CM50: 0 | CN50: 0 | CO50: NA | CP50: NA | CQ50: NA | CR50: NA | CS50: NA | CT50: NA | CU50: NA | CV50: NA | CW50: NA | CX50: NA | CY50: NA | CZ50: NA | DA50: unknown | DB50: 0 | DC50: 0 | DD50: 0 | DE50: NA | DF50: NA | DG50: NA | DH50: NA | DI50: NA | DJ50: NA | DK50: NA | DL50: NA | DM50: NA | DN50: NA | DO50: NA | DP50: NA | DQ50: unknown | DR50: 0 | DS50: 0 | DT50: 0 | DU50: NA | DV50: NA | DW50: NA | DX50: NA | DY50: NA | DZ50: NA | EA50: NA | EB50: NA | EC50: NA | ED50: NA | EE50: NA | EF50: NA | EG50: unknown | EH50: - | EI50: =MIN(DU50,DE50,CO50,BY50,BI50,AS50,AH50) -> 1980 | EJ50: =MAX(DV50,DF50,CP50,BZ50,BJ50,AT50,AI50) -> 2004 | EK50: =EJ50-EI50 -> 24 | EL50: =IF(EM50=0,"NA",AVERAGE(ED50,DN50,CX50)) -> NA | EM50: =DR50+DB50+CL50 -> 0 | EN50: unknown | EO50: NA | EP50: =BV50+BF50 -> 0 | EQ50: unknown | ER50: =BB50 -> 14.37947677 | ES50: =AP50 -> 1 | ET50: =BE50 -> decrease | EU50: =ES50+EP50 -> 1 | EV50: =ET50 -> decrease | EW50: =AO50 -> persists | EX50: decrease | EY50: =EV50 -> decrease | EZ50: =IF(FC50+HT50>0,1,0) -> 1 | FA50: =IF(FD50>1 OR(HU50>1),1,0) -> 0 | FB50: =IF(FC50+HT50=2,1,0) -> 0 | FC50: =IF(SUM(FH50,FV50,GK50,GS50,HE50,HL50,HP50)>0,1,0) -> 1 | FD50: =SUM(FH50,FV50,GK50,GS50,HE50,HL50,HP50) -> 1 | FE50: 1 | FF50: -557.03 | FG50: NA | FH50: =IF(SUM(FL50:FU50)>0,1,0) -> 1 | FI50: -557.03 | FJ50: 1980 | FK50: 2004 | FL50: 0 | FM50: 1 | FN50: 0 | FO50: 0 | FP50: 0 | FQ50: 0 | FR50: 0 | FS50: 0 | FT50: 0 | FU50: 0 | FV50: =IF(SUM(FZ50:GJ50)>0,1,0) -> 0 | FW50: NA | FX50: NA | FY50: NA | FZ50: 0 | GA50: 0 | GB50: 0 | GC50: 0 | GD50: 0 | GE50: 0 | GF50: 0 | GG50: 0 | GH50: 0 | GI50: 0 | GJ50: 0 | GK50: =IF(SUM(GO50:GR50)>0,1,0) -> 0 | GL50: NA | GM50: NA | GN50: NA | GO50: 0 | GP50: 0 | GQ50: 0 | GR50: 0 | GS50: =IF(SUM(GW50:HD50)>0,1,0) -> 0 | GT50: NA | GU50: NA | GV50: NA | GW50: 0 | GX50: 0 | GY50: 0 | GZ50: 0 | HA50: 0 | HB50: 0 | HC50: 0 | HD50: 0 | HE50: =IF(SUM(HI50:HK50)>0,1,0) -> 0 | HF50: NA | HG50: NA | HH50: NA | HI50: 0 | HJ50: 0 | HK50: 0 | HL50: 0 | HM50: NA | HN50: NA | HO50: NA | HP50: 0 | HQ50: NA | HR50: NA | HS50: NA | HT50: =IF(HX50+IG50>0,1,0) -> 0 | HU50: =SUM(HX50,IG50) -> 0 | HV50: 0 | HW50: NA | HX50: =IF(SUM(IB50:IF50)>0,1,0) -> 0 | HY50: NA | HZ50: NA | IA50: NA | IB50: 0 | IC50: 0 | ID50: 0 | IE50: 0 | IF50: 0 | IG50: 0 | IH50: NA | II50: NA | IJ50: NA
A51: 50 | B51: Nyqvist et al. 2009 | C51: =IF(D51>0,1,0) -> 1 | D51: 26/335 | E51: 1 | F51: - | G51: Lysekil | H51: 58.17831 | I51: 11.41177 | J51: bad | K51: Baltic | L51: Baltic Sea | M51: Sweden | N51: Zm | O51: none | P51: 0 | Q51: 1 | R51: 0 | S51: 0 | T51: subtidal | U51: NA | V51: NA | W51: NA | X51: - | Y51: =IF(Z51=1,0,1) -> 0 | Z51: =IF((AQ51+BG51+BW51+CM51+DC51+DS51)>0,1,0) -> 1 | AA51: =IF(SUM(AR51+BH51+BX51+CN51+DD51+DT51)>0,1,0) -> 1 | AB51: 0 | AC51: 1 | AD51: 0 | AE51: 0 | AF51: 1 | AG51: 0 | AH51: 1980 | AI51: 2004 | AJ51: 24 | AK51: 1 | AL51: 1 | AM51: 0 | AN51: 0 | AO51: persists | AP51: 1 | AQ51: 1 | AR51: 1 | AS51: 1980 | AT51: 2004 | AU51: 24 | AV51: 1 | AW51: 1 | AX51: 144.8 | AY51: 117.7 | AZ51: 144.8 | BA51: 4 | BB51: 81.28453039 | BC51: -27.1 | BD51: -0.863393607 | BE51: decrease | BF51: 0 | BG51: 0 | BH51: 0 | BI51: NA | BJ51: NA | BK51: NA | BL51: NA | BM51: NA | BN51: NA | BO51: NA | BP51: NA | BQ51: NA | BR51: NA | BS51: NA | BT51: NA | BU51: unknown | BV51: 0 | BW51: 0 | BX51: 0 | BY51: NA | BZ51: NA | CA51: NA | CB51: NA | CC51: NA | CD51: NA | CE51: NA | CF51: NA | CG51: NA | CH51: NA | CI51: NA | CJ51: NA | CK51: unknown | CL51: 0 | CM51: 0 | CN51: 0 | CO51: NA | CP51: NA | CQ51: NA | CR51: NA | CS51: NA | CT51: NA | CU51: NA | CV51: NA | CW51: NA | CX51: NA | CY51: NA | CZ51: NA | DA51: unknown | DB51: 0 | DC51: 0 | DD51: 0 | DE51: NA | DF51: NA | DG51: NA | DH51: NA | DI51: NA | DJ51: NA | DK51: NA | DL51: NA | DM51: NA | DN51: NA | DO51: NA | DP51: NA | DQ51: unknown | DR51: 0 | DS51: 0 | DT51: 0 | DU51: NA | DV51: NA | DW51: NA | DX51: NA | DY51: NA | DZ51: NA | EA51: NA | EB51: NA | EC51: NA | ED51: NA | EE51: NA | EF51: NA | EG51: unknown | EH51: - | EI51: =MIN(DU51,DE51,CO51,BY51,BI51,AS51,AH51) -> 1980 | EJ51: =MAX(DV51,DF51,CP51,BZ51,BJ51,AT51,AI51) -> 2004 | EK51: =EJ51-EI51 -> 24 | EL51: =IF(EM51=0,"NA",AVERAGE(ED51,DN51,CX51)) -> NA | EM51: =DR51+DB51+CL51 -> 0 | EN51: unknown | EO51: NA | EP51: =BV51+BF51 -> 0 | EQ51: unknown | ER51: =BB51 -> 81.28453039 | ES51: =AP51 -> 1 | ET51: =BE51 -> decrease | EU51: =ES51+EP51 -> 1 | EV51: =ET51 -> decrease | EW51: =AO51 -> persists | EX51: decrease | EY51: =EV51 -> decrease | EZ51: =IF(FC51+HT51>0,1,0) -> 1 | FA51: =IF(FD51>1 OR(HU51>1),1,0) -> 0 | FB51: =IF(FC51+HT51=2,1,0) -> 0 | FC51: =IF(SUM(FH51,FV51,GK51,GS51,HE51,HL51,HP51)>0,1,0) -> 1 | FD51: =SUM(FH51,FV51,GK51,GS51,HE51,HL51,HP51) -> 1 | FE51: 1 | FF51: -27.1 | FG51: NA | FH51: =IF(SUM(FL51:FU51)>0,1,0) -> 1 | FI51: -27.1 | FJ51: 1980 | FK51: 2004 | FL51: 0 | FM51: 1 | FN51: 0 | FO51: 0 | FP51: 0 | FQ51: 0 | FR51: 0 | FS51: 0 | FT51: 0 | FU51: 0 | FV51: =IF(SUM(FZ51:GJ51)>0,1,0) -> 0 | FW51: NA | FX51: NA | FY51: NA | FZ51: 0 | GA51: 0 | GB51: 0 | GC51: 0 | GD51: 0 | GE51: 0 | GF51: 0 | GG51: 0 | GH51: 0 | GI51: 0 | GJ51: 0 | GK51: =IF(SUM(GO51:GR51)>0,1,0) -> 0 | GL51: NA | GM51: NA | GN51: NA | GO51: 0 | GP51: 0 | GQ51: 0 | GR51: 0 | GS51: =IF(SUM(GW51:HD51)>0,1,0) -> 0 | GT51: NA | GU51: NA | GV51: NA | GW51: 0 | GX51: 0 | GY51: 0 | GZ51: 0 | HA51: 0 | HB51: 0 | HC51: 0 | HD51: 0 | HE51: =IF(SUM(HI51:HK51)>0,1,0) -> 0 | HF51: NA | HG51: NA | HH51: NA | HI51: 0 | HJ51: 0 | HK51: 0 | HL51: 0 | HM51: NA | HN51: NA | HO51: NA | HP51: 0 | HQ51: NA | HR51: NA | HS51: NA | HT51: =IF(HX51+IG51>0,1,0) -> 0 | HU51: =SUM(HX51,IG51) -> 0 | HV51: 0 | HW51: NA | HX51: =IF(SUM(IB51:IF51)>0,1,0) -> 0 | HY51: NA | HZ51: NA | IA51: NA | IB51: 0 | IC51: 0 | ID51: 0 | IE51: 0 | IF51: 0 | IG51: 0 | IH51: NA | II51: NA | IJ51: NA
A52: 51 | B52: Nyqvist et al. 2009 | C52: =IF(D52>0,1,0) -> 1 | D52: 28/335 | E52: 1 | F52: - | G52: Stenungsund | H52: 58.13848 | I52: 11.83655 | J52: bad | K52: Baltic | L52: Baltic Sea | M52: Sweden | N52: Zm | O52: none | P52: 0 | Q52: 1 | R52: 0 | S52: 0 | T52: subtidal | U52: NA | V52: NA | W52: NA | X52: - | Y52: =IF(Z52=1,0,1) -> 0 | Z52: =IF((AQ52+BG52+BW52+CM52+DC52+DS52)>0,1,0) -> 1 | AA52: =IF(SUM(AR52+BH52+BX52+CN52+DD52+DT52)>0,1,0) -> 1 | AB52: 0 | AC52: 0 | AD52: 0 | AE52: 1 | AF52: 1 | AG52: 0 | AH52: 1980 | AI52: 2004 | AJ52: 24 | AK52: 1 | AL52: 1 | AM52: 0 | AN52: 0 | AO52: persists | AP52: 1 | AQ52: 1 | AR52: 1 | AS52: 1980 | AT52: 2004 | AU52: 24 | AV52: 1 | AW52: 1 | AX52: 294.46 | AY52: 243.75 | AZ52: 294.46 | BA52: 4 | BB52: 82.77864566 | BC52: -50.71 | BD52: -0.7875002523 | BE52: decrease | BF52: 0 | BG52: 0 | BH52: 0 | BI52: NA | BJ52: NA | BK52: NA | BL52: NA | BM52: NA | BN52: NA | BO52: NA | BP52: NA | BQ52: NA | BR52: NA | BS52: NA | BT52: NA | BU52: unknown | BV52: 0 | BW52: 0 | BX52: 0 | BY52: NA | BZ52: NA | CA52: NA | CB52: NA | CC52: NA | CD52: NA | CE52: NA | CF52: NA | CG52: NA | CH52: NA | CI52: NA | CJ52: NA | CK52: unknown | CL52: 1 | CM52: 0 | CN52: 0 | CO52: NA | CP52: 2005 | CQ52: NA | CR52: 1 | CS52: 1 | CT52: NA | CU52: 50 | CV52: 50 | CW52: 1 | CX52: NA | CY52: NA | CZ52: NA | DA52: decrease | DB52: 0 | DC52: 0 | DD52: 0 | DE52: NA | DF52: NA | DG52: NA | DH52: NA | DI52: NA | DJ52: NA | DK52: NA | DL52: NA | DM52: NA | DN52: NA | DO52: NA | DP52: NA | DQ52: unknown | DR52: 0 | DS52: 0 | DT52: 0 | DU52: NA | DV52: NA | DW52: NA | DX52: NA | DY52: NA | DZ52: NA | EA52: NA | EB52: NA | EC52: NA | ED52: NA | EE52: NA | EF52: NA | EG52: unknown | EH52: - | EI52: =MIN(DU52,DE52,CO52,BY52,BI52,AS52,AH52) -> 1980 | EJ52: =MAX(DV52,DF52,CP52,BZ52,BJ52,AT52,AI52) -> 2005 | EK52: =EJ52-EI52 -> 25 | EL52: NA | EM52: =DR52+DB52+CL52 -> 1 | EN52: =DA52 -> decrease | EO52: NA | EP52: =BV52+BF52 -> 0 | EQ52: unknown | ER52: =BB52 -> 82.77864566 | ES52: =AP52 -> 1 | ET52: =BE52 -> decrease | EU52: =ES52+EP52 -> 1 | EV52: =ET52 -> decrease | EW52: =AO52 -> persists | EX52: decrease | EY52: =EV52 -> decrease | EZ52: =IF(FC52+HT52>0,1,0) -> 1 | FA52: =IF(FD52>1 OR(HU52>1),1,0) -> 0 | FB52: =IF(FC52+HT52=2,1,0) -> 0 | FC52: =IF(SUM(FH52,FV52,GK52,GS52,HE52,HL52,HP52)>0,1,0) -> 1 | FD52: =SUM(FH52,FV52,GK52,GS52,HE52,HL52,HP52) -> 1 | FE52: 1 | FF52: -50.71 | FG52: NA | FH52: =IF(SUM(FL52:FU52)>0,1,0) -> 1 | FI52: -50.71 | FJ52: 1980 | FK52: 2004 | FL52: 0 | FM52: 1 | FN52: 0 | FO52: 0 | FP52: 0 | FQ52: 0 | FR52: 0 | FS52: 0 | FT52: 0 | FU52: 0 | FV52: =IF(SUM(FZ52:GJ52)>0,1,0) -> 0 | FW52: NA | FX52: NA | FY52: NA | FZ52: 0 | GA52: 0 | GB52: 0 | GC52: 0 | GD52: 0 | GE52: 0 | GF52: 0 | GG52: 0 | GH52: 0 | GI52: 0 | GJ52: 0 | GK52: =IF(SUM(GO52:GR52)>0,1,0) -> 0 | GL52: NA | GM52: NA | GN52: NA | GO52: 0 | GP52: 0 | GQ52: 0 | GR52: 0 | GS52: =IF(SUM(GW52:HD52)>0,1,0) -> 0 | GT52: NA | GU52: NA | GV52: NA | GW52: 0 | GX52: 0 | GY52: 0 | GZ52: 0 | HA52: 0 | HB52: 0 | HC52: 0 | HD52: 0 | HE52: =IF(SUM(HI52:HK52)>0,1,0) -> 0 | HF52: NA | HG52: NA | HH52: NA | HI52: 0 | HJ52: 0 | HK52: 0 | HL52: 0 | HM52: NA | HN52: NA | HO52: NA | HP52: 0 | HQ52: NA | HR52: NA | HS52: NA | HT52: =IF(HX52+IG52>0,1,0) -> 0 | HU52: =SUM(HX52,IG52) -> 0 | HV52: 0 | HW52: NA | HX52: =IF(SUM(IB52:IF52)>0,1,0) -> 0 | HY52: NA | HZ52: NA | IA52: NA | IB52: 0 | IC52: 0 | ID52: 0 | IE52: 0 | IF52: 0 | IG52: 0 | IH52: NA | II52: NA | IJ52: NA
A53: 52 | B53: Nyqvist et al. 2009 | C53: =IF(D53>0,1,0) -> 1 | D53: 25/335 | E53: 1 | F53: - | G53: Strömstad | H53: 59.07282 | I53: 11.13852 | J53: bad | K53: Baltic | L53: Baltic Sea | M53: Sweden | N53: Zm | O53: none | P53: 0 | Q53: 1 | R53: 0 | S53: 0 | T53: subtidal | U53: NA | V53: NA | W53: NA | X53: - | Y53: =IF(Z53=1,0,1) -> 0 | Z53: =IF((AQ53+BG53+BW53+CM53+DC53+DS53)>0,1,0) -> 1 | AA53: =IF(SUM(AR53+BH53+BX53+CN53+DD53+DT53)>0,1,0) -> 1 | AB53: 0 | AC53: 1 | AD53: 0 | AE53: 0 | AF53: 1 | AG53: 0 | AH53: 1980 | AI53: 2004 | AJ53: 24 | AK53: 1 | AL53: 1 | AM53: 0 | AN53: 0 | AO53: persists | AP53: 1 | AQ53: 1 | AR53: 1 | AS53: 1980 | AT53: 2004 | AU53: 24 | AV53: 1 | AW53: 1 | AX53: 190.27 | AY53: 117.46 | AZ53: 190.27 | BA53: 4 | BB53: 61.73332633 | BC53: -72.81 | BD53: -2.009776108 | BE53: decrease | BF53: 0 | BG53: 0 | BH53: 0 | BI53: NA | BJ53: NA | BK53: NA | BL53: NA | BM53: NA | BN53: NA | BO53: NA | BP53: NA | BQ53: NA | BR53: NA | BS53: NA | BT53: NA | BU53: unknown | BV53: 0 | BW53: 0 | BX53: 0 | BY53: NA | BZ53: NA | CA53: NA | CB53: NA | CC53: NA | CD53: NA | CE53: NA | CF53: NA | CG53: NA | CH53: NA | CI53: NA | CJ53: NA | CK53: unknown | CL53: 0 | CM53: 0 | CN53: 0 | CO53: NA | CP53: NA | CQ53: NA | CR53: NA | CS53: NA | CT53: NA | CU53: NA | CV53: NA | CW53: NA | CX53: NA | CY53: NA | CZ53: NA | DA53: unknown | DB53: 0 | DC53: 0 | DD53: 0 | DE53: NA | DF53: NA | DG53: NA | DH53: NA | DI53: NA | DJ53: NA | DK53: NA | DL53: NA | DM53: NA | DN53: NA | DO53: NA | DP53: NA | DQ53: unknown | DR53: 0 | DS53: 0 | DT53: 0 | DU53: NA | DV53: NA | DW53: NA | DX53: NA | DY53: NA | DZ53: NA | EA53: NA | EB53: NA | EC53: NA | ED53: NA | EE53: NA | EF53: NA | EG53: unknown | EH53: - | EI53: =MIN(DU53,DE53,CO53,BY53,BI53,AS53,AH53) -> 1980 | EJ53: =MAX(DV53,DF53,CP53,BZ53,BJ53,AT53,AI53) -> 2004 | EK53: =EJ53-EI53 -> 24 | EL53: =IF(EM53=0,"NA",AVERAGE(ED53,DN53,CX53)) -> NA | EM53: =DR53+DB53+CL53 -> 0 | EN53: unknown | EO53: NA | EP53: =BV53+BF53 -> 0 | EQ53: unknown | ER53: =BB53 -> 61.73332633 | ES53: =AP53 -> 1 | ET53: =BE53 -> decrease | EU53: =ES53+EP53 -> 1 | EV53: =ET53 -> decrease | EW53: =AO53 -> persists | EX53: decrease | EY53: =EV53 -> decrease | EZ53: =IF(FC53+HT53>0,1,0) -> 0 | FA53: =IF(FD53>1 OR(HU53>1),1,0) -> 0 | FB53: =IF(FC53+HT53=2,1,0) -> 0 | FC53: =IF(SUM(FH53,FV53,GK53,GS53,HE53,HL53,HP53)>0,1,0) -> 0 | FD53: =SUM(FH53,FV53,GK53,GS53,HE53,HL53,HP53) -> 0 | FE53: 0 | FF53: NA | FG53: NA | FH53: =IF(SUM(FL53:FU53)>0,1,0) -> 0 | FI53: NA | FJ53: NA | FK53: NA | FL53: 0 | FM53: 0 | FN53: 0 | FO53: 0 | FP53: 0 | FQ53: 0 | FR53: 0 | FS53: 0 | FT53: 0 | FU53: 0 | FV53: =IF(SUM(FZ53:GJ53)>0,1,0) -> 0 | FW53: NA | FX53: NA | FY53: NA | FZ53: 0 | GA53: 0 | GB53: 0 | GC53: 0 | GD53: 0 | GE53: 0 | GF53: 0 | GG53: 0 | GH53: 0 | GI53: 0 | GJ53: 0 | GK53: =IF(SUM(GO53:GR53)>0,1,0) -> 0 | GL53: NA | GM53: NA | GN53: NA | GO53: 0 | GP53: 0 | GQ53: 0 | GR53: 0 | GS53: =IF(SUM(GW53:HD53)>0,1,0) -> 0 | GT53: NA | GU53: NA | GV53: NA | GW53: 0 | GX53: 0 | GY53: 0 | GZ53: 0 | HA53: 0 | HB53: 0 | HC53: 0 | HD53: 0 | HE53: =IF(SUM(HI53:HK53)>0,1,0) -> 0 | HF53: NA | HG53: NA | HH53: NA | HI53: 0 | HJ53: 0 | HK53: 0 | HL53: 0 | HM53: NA | HN53: NA | HO53: NA | HP53: 0 | HQ53: NA | HR53: NA | HS53: NA | HT53: =IF(HX53+IG53>0,1,0) -> 0 | HU53: =SUM(HX53,IG53) -> 0 | HV53: 0 | HW53: NA | HX53: =IF(SUM(IB53:IF53)>0,1,0) -> 0 | HY53: NA | HZ53: NA | IA53: NA | IB53: 0 | IC53: 0 | ID53: 0 | IE53: 0 | IF53: 0 | IG53: 0 | IH53: NA | II53: NA | IJ53: NA
